Workbook

Sheet End user agreement
F2: ILSI N.A. Heavy Metal Screening Tool
F3: CLICK-THROUGH AGREEMENT
B5: THIS CLICK-THROUGH AGREEMENT (THIS “AGREEMENT”) IS BETWEEN ILSI North America AND
B6: EXPONENT, INC. ON THE ONE HAND AND YOU ON THE OTHER HAND. IF YOU ARE ENTERING INTO THIS
B7: AGREEMENT ON BEHALF OF A COMPANY OR OTHER ENTITY, YOU REPRESENT THAT YOU ARE THE
B8: EMPLOYEE OR AGENT OF SUCH COMPANY (OR OTHER ENTITY) AND YOU HAVE THE AUTHORITY TO
B9: ENTER INTO THIS AGREEMENT ON BEHALF OF SUCH COMPANY (OR OTHER ENTITY). BY CLICKING ON
B10: THE “ACCEPT” BUTTON BELOW, YOU ACKNOWLEDGE THAT YOU HAVE READ ALL OF THE TERMS AND
B11: CONDITIONS SET FORTH BELOW, UNDERSTAND ALL OF THE TERMS AND CONDITIONS OF THIS
B12: AGREEMENT, AND AGREE TO BE BOUND BY ALL OF THE TERMS AND CONDITIONS OF THIS | C12: TO YOU, AND YOU MUST CLICK ON THE “DO NOT ACCEPT” BUTTON BELOW. THE “EFFECTIVE DATE”
B13: AGREEMENT. IF YOU DO NOT AGREE TO ANY OF THE TERMS AND CONDITIONS OF THIS AGREEMENT,
B14: THE LICENSOR (DEFINED BELOW) IS UNWILLING TO LICENSE THE SOFTWARE (AS DEFINED BELOW)
B15: TO YOU, AND YOU MUST CLICK ON THE “DO NOT ACCEPT” BUTTON BELOW. THE “EFFECTIVE DATE”
B16: OF THIS AGREEMENT IS THE DATE UPON WHICH YOU CLICK THE “ACCEPT” BUTTON BELOW.
B18: 1. DEFINITIONS:
C19: a. “ILSI N.A.” means the International Life Sciences Institute, North America, a nonprofit corporation
D20: headquartered at 1156 15th Street, N.W. Suite 200, Washington, D.C. 20005
C22: b. “Exponent” means Exponent, Inc., a Delaware corporation headquartered at 149 Commonwealth Drive,
D23: Menlo Park, California 94025.
C25: c. “Documentation” means print and/or electronic media and certain technical and user documentation
D26: describing the use and operation of the Software including any minimum hardware and software
D27: requirements necessary for the recommended operational performance of the Software
C29: d. “End-User” or “you” means the person or entity that has accepted the terms of this Agreement by clicking
D30: the “I ACCEPT/AGREE” button upon downloading the Software.
C32: e. “Licensor” means ILSI N.A. and Exponent collectively.
C34: f. “Software” means the User-Interface, User Application including Exponent Proprietary Software, and any
D35: applicable Documentation.
C37: g. “Exponent Proprietary Software” means the Exponent owned portions of the User Application in both
D38: source code and object/machine code formats.
C40: h. “User-Interface” means the ILSI N.A. custom, form driven, Microsoft Excel-based user interface that hosts
D41: the User Application.
C43: i. “User Application” means the ILSI N.A. tool used to evaluate the heavy metal (arsenic, cadmium,
D44: chromium, lead, and mercury) content for raw materials that are used in the processing of food products.
C46: j. “Website” means the ILSI N.A. site identified by the URL http://ILSI.org/
B48: 2. GRANT OF LICENSE. Subject to the terms of this Agreement and solely in connection with End-User’s
B49: internal business operations in the United States without the right to sell, license for a fee, sublicense, assign to a
B50: third party, reproduce, re-use, alter, edit, or modify (except as permitted in the next sentence). Licensor grants to
B51: End-User a revocable, limited, non-exclusive, non-transferable, royalty free license to use, download and display
B52: the Software, to add new data points to the executable application portion of the User-Interface, to permit the
B53: End-Users to display and reproduce (including by printing the electronic version) the Documentation as
B54: reasonably required to permit the End-Users to exercise the rights expressly granted in this Section 2.
B56: 3. OWNERSHIP. As between Licensor and End-User, Licensor exclusively retains all rights not expressly
B57: granted to End-User herein including but not limited to: all intellectual property rights (including patents,
B58: trademarks and copyrights), proprietary rights (including trade secrets) and moral rights (including, rights of
B59: attribution and authorship) throughout the world in and to the Software, and all of their derivative works and
B60: improvements. No right, title or interest is granted or otherwise transferred to End-User. This license is not a sale
B61: of the Software or any copy. The Software contains valuable trade secrets belonging to Licensor and is protected
B62: by copyright law and other laws. Unauthorized use, reproduction, modification, distribution or display of the
B63: Software is expressly prohibited. End-User is responsible for any copyright infringement that is caused or
B64: encouraged by End-User’s failure to abide by the terms of this Agreement.
B66: 4. LICENSE CONDITIONS AND RESTRICTIONS. As a condition of the rights granted by Licensor to End-User
B67: under this Agreement, End-User is prohibited from: (a) reverse engineering, decompiling or otherwise attempting
B68: to create human readable materials from the object code of the Software; (b) allowing use of the Software for any
B69: purpose not expressly permitted in this Agreement; (c) removing proprietary rights notices, asset tags, brand
B70: labels or marks placed on the Software; (d) attempting to circumvent or compromise the security features of the
B71: Software or introducing any viruses, worms or other disabling code into the Software and/or Website; or (e)
B72: exporting the Software in violation of any U.S. export law or regulation. If End-User is required by law to provide
B73: any governmental or regulatory body with use or access to the Software, then such use and access shall be
B74: subject to this Section 4 and the confidentiality obligations of End-User and all items so provided or accessed
B75: shall bear the “Restricted Rights” legend in addition to all other notices. End-User shall be responsible for all acts
B76: and omissions in connection with its use of the Software. End-User is solely responsible for obtaining the proper
B77: hardware and software necessary to operate the Software as further described in the Documentation. Licensor
B78: shall, in its sole discretion, be free to modify, change, or enhance the Software, including, but not limited to,
B79: changing the computer system requirements needed to use the Software without any obligation to the End-User.
B81: 5. SUBMISSION OF INFORMATION. Licensor has no responsibility or liability for the content, accuracy, or
B82: completeness of any such information submitted by the End-User or any vendor, licensee, customer, or provider
B83: of goods or services to End-User. End-User is solely responsible for any and all information submitted to or
B84: through the User-Interface. This sole liability shall extend to all transactions included in the User-Interface and to
B85: End-User Data (as defined below). Without limiting the foregoing, End-User shall assure that all information
B86: submitted or provided to the User-Interface by End-User is: (i) accurate, complete, and correct; (ii) does not
B87: violate any applicable federal, state, local or international statute, law or regulation to which any transaction shall
B88: be applicable; and (iii) does not infringe upon or violate the proprietary or intellectual property rights including
B89: trade name, trademark, copyrights, or patent interests of any third party. End-User further represents and
B90: warrants that it possesses all rights, title and interest including applicable intellectual property rights to submit
B91: such information to or through the Software and to act as agent on behalf of any person(s) on whose behalf End-
B92: User is submitting information into the Software.
B94: 6. END-USER INDEMNIFICATION Licensor shall have no liability for, and End-User, at its own expense, shall
B95: defend, indemnify, and hold harmless, Licensor, its affiliates, officers, directors, employees, agents, successors,
B96: and assigns with respect to any claims, actions, damages, liabilities, costs and expenses, including reasonable
B97: legal and accounting fees, brought or asserted against Licensor, its agents, affiliates, successors, and assigns by
B98: any party derived in whole or in part from any claims or liabilities: (i) arising in any manner under federal, state, or
B99: local statutes, laws, or regulations; (ii) attributable to the content, structure, format or quality of any data or
B100: information delivered to the Software by End-User or its clients, or any other party; (iii) arising from any act or
B101: omission of End-User, its agents, contractors, licensees, servants, or employees; (iv) resulting from or arising out
B102: of the use or non-use of and/or reliance on the output data or information derived from the Software; or (v)
B103: resulting from or arising out of exercise of this license.
B105: 7. CONFIDENTIALITY. “Confidential Information” will mean all information, data and software transmitted in
B106: writing, orally, visually, tangibly, intangibly, or on magnetic media, including, organizational information, system
B107: architecture, software, graphics, programs, designs, ideas, concepts, flow charts, diagrams, computer programs,
B108: methods research, and any other personal or intellectual property relating to a party, its respective parent,
B109: subsidiaries, or affiliates by one party to the other in connection with this Agreement. Without limiting the
B110: generality of the foregoing, the parties stipulate and agree that “Confidential Information” will specifically include:
B111: (i) the Software; and (ii) any data provided by End-User to Licensor or input into the Software by End-User in
B112: connection with End-User’s use of Software hereunder (collectively, “End-User Data”). Notwithstanding the
B113: foregoing, “Confidential Information” will not include information which: (i) is publicly disclosed by the party
B114: disclosing the information either prior to or subsequent to the receipt of such information by the receiving party; (ii)
B115: is or becomes generally known in the trade through no fault of the receiving party; (iii) is lawfully disclosed to the
B116: receiving party by a third person to this Agreement who has lawfully acquired the Confidential Information; or (iv)
B117: was independently developed by the receiving party; provided, however, that the receiving party hereby stipulates
B118: and agrees that, if it seeks to disclose, display, divulge, reveal, report, publish or transfer, for any purpose
B119: whatsoever, any Confidential Information, such receiving party will bear the burden of proving that any such
B120: information was independently developed or is or became publicly available without any such breach. A party’s
B121: failure to mark any Confidential Information as confidential, protected or proprietary will not affect its status as
B122: Confidential Information under this Agreement. Each party acknowledges that, in performing its obligations and
B123: exercising its rights hereunder, a party may acquire the Confidential Information of the other party. As a material
B124: inducement to the other party to disclose such Confidential Information, each party covenants and agrees that it
B125: will not, except with the prior written consent of the other party, at any time directly by itself or indirectly through
B126: any agent or employee: (i) reproduce, distribute, transmit, publicly display, modify, create derivative works based
B127: upon, or disclose, deliver, display, divulge, reveal, report, publish or transfer to any person or entity, for any
B128: purpose whatsoever, any Confidential Information of the other party or (ii) use Confidential Information of the
B129: other party for any purpose other than in connection with the performance of its obligations or the exercise of its
B130: rights hereunder. Each party further covenants and agrees to handle the Confidential Information of the other
B131: party in the same manner that the party handles its own most confidential information and, in any event, to take all
B132: steps reasonably necessary to preserve the confidentiality of Confidential Information, including without limitation
B133: adopting appropriate confidentiality policies, inserting appropriate confidentiality terms in agreements with all
B134: employees and subcontractors, and maintaining Confidential Information in a manner designed to assure that it
B135: will not be used or disclosed improperly.
C137: A party will promptly notify the other party if it becomes aware of any unauthorized use or disclosure of
B138: any Confidential Information of another party and, at the other party’s request, will take such action as may be
B139: reasonably necessary and legally permissible to terminate or remedy any unauthorized use or disclosure that
B140: results from any act or omission of the party or any of its employees, subcontractors or agents. If a receiving party
B141: is compelled by a court or other body of competent jurisdiction to disclose the Confidential Information, the
B142: receiving party shall (to the extent legally permissible) inform the disclosing party by written notice and shall
B143: such bug fix, patch or upgrade, then it shall be deemed incorporated into the Software and subject to this
B144: safeguarding the Confidential Information required to be disclosed. The receiving party may then disclose only so
B145: much of the Confidential Information as is legally required to be disclosed.
B147: 8. NO MAINTENANCE OR SUPPORT. The Licensor shall be under no obligation whatsoever to: (i) provide
B148: maintenance or support for the Software; or (ii) to notify End-User of bug fixes, patches, or upgrades to the
B149: Software (if any). If, in its sole discretion, the Licensor makes a Software bug fix, patch or upgrade available to
B150: End-User and the Licensor does not separately enter into a written license agreement with End-User relating to
B151: such bug fix, patch or upgrade, then it shall be deemed incorporated into the Software and subject to this
B152: Agreement.
B154: 9. DISCLAIMER OF WARRANTY. THE SOFTWARE ALONG WITH ANY SERVICES, MATERIALS OR
B155: OTHER PRODUCTS ARE PROVIDED “AS IS” WITHOUT ANY REPRESENTATIONS, WARRANTIES,
B156: COVENANTS OR CONDITIONS OF ANY KIND. LICENSOR HEREBY DISCLAIMS ALL WARRANTIES OF ANY
B157: KIND (WHETHER EXPRESS, IMPLIED, STATUTORY OR ARISING BY CUSTOM OR TRADE USAGE),
B158: INCLUDING WITHOUT LIMITATION THE IMPLIED WARRANTIES OF MERCHANTABILITY, DESIGN AND
B159: FITNESS FOR A PARTICULAR PURPOSE, OR WARRANTIES OF NON-INFRINGEMENT OR CONDITION OF
B160: TITLE. NO ORAL OR WRITTEN INFORMATION OR ADVICE GIVEN BY LICENSOR, ITS AGENTS OR
B161: EMPLOYEES IN PERFORMING ITS OBLIGATIONS HEREUNDER WILL CREATE ANY WARRANTY.
B162: FURTHER, LICENSOR DOES NOT WARRANT, GUARANTEE, OR MAKE ANY REPRESENTATIONS
B163: REGARDING THE USE, OR THE RESULTS OF THE USE, OF ANY SOFTWARE OR WITH RESPECT TO THE
B164: CORRECTNESS, ACCURACY, AVAILABILITY, RELIABILITY OF SUCH SOFTWARE OR OTHERWISE.
B165: CUSTOMER ACKNOWLEDGES AND AGREES THAT END-USER HAS RELIED ON NO WARRANTIES
B167: 10. LIMITATION ON DAMAGES. EXCEPT AS OTHERWISE EXPRESSLY SET FORTH HEREIN, NEITHER
B168: LICENSOR NOR ITS AFFILIATES, OFFICERS, DIRECTORS, SHAREHOLDERS, EMPLOYEES,
B169: CONTRACTORS, AGENTS AND SUPPLIERS WHO HAVE BEEN INVOLVED IN THE CREATION,
B170: PRODUCTION OR DELIVERY OF THE SOFTWARE SHALL BE LIABLE FOR ANY DIRECT, INDIRECT,
B171: CONSEQUENTIAL, OR INCIDENTAL DAMAGES (INCLUDING DAMAGES FOR LOSS OF BUSINESS
B172: PROFITS, BUSINESS INTERRUPTION, LOSS OF BUSINESS INFORMATION, AND THE LIKE) ARISING OUT
B173: OF THE USE OF OR INABILITY TO USE SUCH SOFTWARE EVEN IF LICENSOR HAS BEEN ADVISED OF
B174: THE POSSIBILITY OF SUCH DAMAGES. IN NO EVENT SHALL LICENSOR’S LIABILITY RELATED TO THE
B175: SOFTWARE EXCEED FIVE DOLLARS (US$5.00). THE FOREGOING LIMITATION SHALL APPLY
B176: NOTWITHSTANDING ANY FAILURE OF ESSENTIAL PURPOSE OF ANY LIMITED REMEDY.
B178: 11. PUBLICITY. No party shall, in connection with its activities under this Agreement, use the name, trade name,
B179: trademark or service mark of the other party in any way without the prior written consent of the other party, which
B180: consent may be withheld in the sole discretion of the party.
B182: 12. FORCE MAJEURE. Licensor shall not be liable to End-User or deemed in breach of this Agreement for its
B183: failure or delay in performing any of its obligations under this Agreement during any period in which such
B184: performance is rendered impracticable or impossible due to circumstances beyond Licensor’s reasonable control,
B185: including, but not limited to, acts of God, fire, explosion, flood, drought, riot, sabotage, terrorism, war, invasion,
B186: embargo, strikes or other labor trouble, failure in whole or in part of suppliers to deliver materials, equipment or
B187: machinery, interruption of or delay in transportation or telecommunications or compliance with any order or
B188: regulation of any government entity acting with color of right.
B190: 13. THIRD PARTY SUPPLIERS. The Software may include software or other code distributed under license from
B191: third party suppliers. End-User acknowledges that such third party suppliers disclaim and make no representation
B192: or warranty with respect to the Software or any portion thereof and assume no liability for any claim that may arise
B193: with respect to the Software or End-User’s use or inability to use the same.
B195: 14. EXPORT CONTROLS. The Software and the underlying information and technology may not be downloaded
B196: or otherwise exported or re-exported (i) the United States (ii) into (or to a national or resident of) Cuba, Iraq,
B197: Libya, North Korea, Iran, Syria or any other country to which the U.S. has embargoed goods; or (iii) to anyone on
B198: the U.S. Treasury Department’s list of Specially Designated Nationals or the U.S. Commerce Department’s Table
B199: of Deny Orders. By downloading or using the Software, you are agreeing to the foregoing and you represent and
B200: warrant that you are not located outside of the United States, located in, under the control of, or a national or
B201: resident of any such country or on any such list.
B203: 15. TERMINATION. This Agreement may be terminated by Licensor at any time on three (3) days notice (which
B204: may be posted to the Website) and by End-User on thirty (30) days written notice. Notwithstanding the foregoing,
B205: Licensor shall have the right, in addition to any other rights and remedies available to Licensor, to terminate this
B206: Agreement effective immediately upon written notice to End-User if End-User violates Licensor’s intellectual
B207: property rights, the restrictions in Section 3 or the obligations of Sections 4 and 7. End-User agrees that in the
B208: event this Agreement is terminated, in whole or in part, End-User shall cease using and remove, destroy, or return
B209: to Licensor the Software and all parts thereof, including all copies, modifications and merged portions, regardless
B210: of form. In the event that End-User fails to remove, destroy or return the Software as set forth above, Licensor
B211: shall have the right to enter the End-User’s premises to the extent allowed by law to access the End-User’s
B212: computer systems for the purpose of removing or destroying the Software. In addition to all definitions and this
B213: sentence, the following sections will survive any termination or expiration of this Agreement: 3, 4, 5, 6, 7, 8, 9, 10,
B214: 11, 13, 15, 16 and 17.
B216: 16. SEVERABILITY. Should any section or any part of a section within this Agreement be rendered void, invalid
B217: or unenforceable by any court or law for any reason, such invalidity or unenforceability shall not void or render
B218: invalid or unenforceable any other section or part of a section to this Agreement.
B220: 17. GOVERNING LAW. This Agreement will be governed by the law of the State of California without regard to its
B221: principles of conflicts of laws. The parties stipulate and agree that any litigation arising from or relating to this
B222: Agreement will be filed and prosecuted before a court of competent subject matter jurisdiction in Santa Clara
B223: County, California. The parties consent to the jurisdiction of such courts over them, stipulate to the convenience,
B224: efficiency and fairness of proceeding in such courts, and covenant not to assert any objection to proceeding in
B225: such courts based on the alleged inconvenience, inefficiency or unfairness of such courts.
B227: 18. ENTIRE AGREEMENT. This Agreement is the complete and exclusive statement of the agreement between
B228: Licensor and End-User, superseding all prior agreements, representations, proposals, oral or written, and all other
B229: communications between the parties relating to the subject matter hereof. All terms and provisions of this
B230: Agreement shall be binding upon and inure to the benefit of the parties hereto and their respective permitted
... 2 more rows

Sheet Arsenic

Sheet Cadmium

Sheet Chromium

Sheet Lead

Sheet Mercury

Sheet FITS estimates (hidden)
B1: =IF('Module 2-Step 1'!$D$4="Raw Agricultural Commodities","Per Serving Results Not Applicable for Raw Agricultiural Commodities","") ->  | I1: =IF('Module 2-Step 1'!$D$4="Raw Agricultural Commodities","Per Serving Results Not Applicable for Raw Agricultiural Commodities","") ->  | P1: =IF('Module 2-Step 1'!$D$4="Raw Agricultural Commodities","Per Serving Results Not Applicable for Raw Agricultiural Commodities","") -> 
B2: ="Results: Estimated Daily Intake of "&'Module 1-Step 1'!$D4&" per Serving (" & 'FITS calculation sheet'!D1&")" -> Results: Estimated Daily Intake of Lead per Serving () | I2: ="Results: Estimated Daily Intake of "&'Module 1-Step 1'!$D4&" per Serving (" & 'FITS calculation sheet'!H1&")" -> Results: Estimated Daily Intake of Lead per Serving () | P2: ="Results: Estimated Daily Intake of "&'Module 1-Step 1'!$D4&" per Serving (" & 'FITS calculation sheet'!L1&")" -> Results: Estimated Daily Intake of Lead per Serving ()
B4: PTDI | C4: =IF('Module 2-Step 1'!$D$4="FITS data (4-11m)",IF(F4="ug/day",E4,E4*'age grps'!$H$3),IF('Module 2-Step 1'!$D$4="FITS data (12-24m)",IF(F4="ug/day",E4,E4*'age grps'!$H$6))) -> FALSE | D4: ug/day | E4: ='Module 1-Step 3'!D4 -> 6 | F4: =VLOOKUP('Module 1-Step 1'!$D$4,'Default PTDI'!$B$18:$C$23,2,FALSE) -> ug/day | I4: PTDI | J4: =IF('Module 2-Step 1'!$D$4="FITS data (4-11m)",IF(M4="ug/day",L4,L4*'age grps'!$H$4),IF('Module 2-Step 1'!$D$4="FITS data (12-24m)",IF(M4="ug/day",L4,L4*'age grps'!$H$7))) -> FALSE | K4: ug/day | L4: =E4 -> 6 | M4: =VLOOKUP('Module 1-Step 1'!$D$4,'Default PTDI'!$B$18:$C$23,2,FALSE) -> ug/day | P4: PTDI | Q4: =IF('Module 2-Step 1'!$D$4="FITS data (4-11m)",IF(T4="ug/day",S4,S4*'age grps'!$H$5),IF('Module 2-Step 1'!$D$4="FITS data (12-24m)",IF(T4="ug/day",S4,S4*'age grps'!$H$8))) -> FALSE | R4: ug/day | S4: =L4 -> 6 | T4: =VLOOKUP('Module 1-Step 1'!$D$4,'Default PTDI'!$B$18:$C$23,2,FALSE) -> ug/day
B5: Fraction to background | C5: =IF('Module 2-Step 1'!$D$4="FITS data (4-11m)",IF(F5="ug/day",E5,E5*'age grps'!$H$3),IF('Module 2-Step 1'!$D$4="FITS data (12-24m)",IF(F5="ug/day",E5,E5*'age grps'!$H$6))) -> FALSE | D5: ug/day | E5: ='Module 1-Step 3'!D9 -> 3 | F5: =VLOOKUP('Module 1-Step 1'!$D$4,'Default PTDI'!$B$18:$C$23,2,FALSE) -> ug/day | I5: Fraction to background | J5: =IF('Module 2-Step 1'!$D$4="FITS data (4-11m)",IF(M5="ug/day",L5,L5*'age grps'!$H$4),IF('Module 2-Step 1'!$D$4="FITS data (12-24m)",IF(M5="ug/day",L5,L5*'age grps'!$H$7))) -> FALSE | K5: ug/day | L5: =E5 -> 3 | M5: =VLOOKUP('Module 1-Step 1'!$D$4,'Default PTDI'!$B$18:$C$23,2,FALSE) -> ug/day | P5: Fraction to background | Q5: =IF('Module 2-Step 1'!$D$4="FITS data (4-11m)",IF(T5="ug/day",S5,S5*'age grps'!$H$5),IF('Module 2-Step 1'!$D$4="FITS data (12-24m)",IF(T5="ug/day",S5,S5*'age grps'!$H$8))) -> FALSE | R5: ug/day | S5: =L5 -> 3 | T5: =VLOOKUP('Module 1-Step 1'!$D$4,'Default PTDI'!$B$18:$C$23,2,FALSE) -> ug/day
B6: Fraction to HMS Tool | C6: =IF('Module 2-Step 1'!$D$4="FITS data (4-11m)",IF(F6="ug/day",E6,E6*'age grps'!$H$3),IF('Module 2-Step 1'!$D$4="FITS data (12-24m)",IF(F6="ug/day",E6,E6*'age grps'!$H$6))) -> FALSE | D6: ug/day | E6: ='Module 1-Step 3'!D14 -> 3 | F6: =VLOOKUP('Module 1-Step 1'!$D$4,'Default PTDI'!$B$18:$C$23,2,FALSE) -> ug/day | I6: Fraction to HMS Tool | J6: =IF('Module 2-Step 1'!$D$4="FITS data (4-11m)",IF(M6="ug/day",L6,L6*'age grps'!$H$4),IF('Module 2-Step 1'!$D$4="FITS data (12-24m)",IF(M6="ug/day",L6,L6*'age grps'!$H$7))) -> FALSE | K6: ug/day | L6: 3 | M6: =VLOOKUP('Module 1-Step 1'!$D$4,'Default PTDI'!$B$18:$C$23,2,FALSE) -> ug/day | P6: Fraction to HMS Tool | Q6: =IF('Module 2-Step 1'!$D$4="FITS data (4-11m)",IF(T6="ug/day",S6,S6*'age grps'!$H$5),IF('Module 2-Step 1'!$D$4="FITS data (12-24m)",IF(T6="ug/day",S6,S6*'age grps'!$H$8))) -> FALSE | R6: ug/day | S6: 3 | T6: =VLOOKUP('Module 1-Step 1'!$D$4,'Default PTDI'!$B$18:$C$23,2,FALSE) -> ug/day
B7: Foods with assigned concentration | C7: Serving Size (g) | D7: Estimated intake (ug per serving) | E7: Approach 1 | F7: Approach 2 | I7: Foods with assigned concentration | J7: Serving Size (g) | K7: Estimated intake (ug per serving) | L7: Approach 1 | M7: Approach 2 | P7: Foods with assigned concentration | Q7: Serving Size (g) | R7: Estimated intake (ug per serving) | S7: Approach 1 | T7: Approach 2
E8: # of servings, assuming only 1 food | F8: % of Fraction to HMS Tool Allowed to Specfic Food (%) | G8: # of servings assuming all foods | L8: # of servings, assuming only 1 food | M8: % of Fraction to HMS Tool Allowed to Specfic Food (%) | N8: # of servings assuming all foods | S8: # of servings, assuming only 1 food | T8: % of Fraction to HMS Tool Allowed to Specfic Food (%) | U8: # of servings assuming all foods
A9: 1 | B9: =IF(ISNUMBER(VLOOKUP($A9,'FITS calculation sheet'!$A3:$N$502,1,FALSE))=TRUE,VLOOKUP($A9,'FITS calculation sheet'!$A3:$N$502,2,FALSE),"") ->  | C9: =IF($B9<>"",IF('FITS calculation sheet'!D3>0,'FITS calculation sheet'!D3,"NC"),"") ->  | D9: =IF(B9<>"",IF('FITS calculation sheet'!E3=0,0,ROUND('FITS calculation sheet'!E3,2-INT(LOG10(ABS('FITS calculation sheet'!E3))))),"") ->  | E9: =IF($B9<>"",IF(D9>0,ROUND(C$6/D9,2-INT(LOG10(ABS(C$6/D9)))),"NC"),"") ->  | F9: =IF($B9<>"",'FITS calculation sheet'!G3,"") ->  | G9: =IF(B9<>"",IF(D9>0,ROUND(C$6*F9/D9,2-INT(LOG10(ABS(C$6*F9/D9)))),"NC"),"") ->  | I9: =IF(ISNUMBER(VLOOKUP($A9,'FITS calculation sheet'!$A3:$N$502,1,FALSE))=TRUE,VLOOKUP($A9,'FITS calculation sheet'!$A3:$N$502,2,FALSE),"") ->  | J9: =IF(I9<>"",IF('FITS calculation sheet'!H3>0,'FITS calculation sheet'!H3,"Not consumed"),"") ->  | K9: =IF(I9<>"",IF('FITS calculation sheet'!I3=0,0,ROUND('FITS calculation sheet'!I3,2-INT(LOG10(ABS('FITS calculation sheet'!I3))))),"") ->  | L9: =IF($B9<>"",IF(K9>0,ROUND(J$6/K9,2-INT(LOG10(ABS(J$6/K9)))),"NC"),"") ->  | M9: =IF(I9<>"",'FITS calculation sheet'!K3,"") ->  | N9: =IF(I9<>"",IF(K9>0,ROUND(J$6*M9/K9,2-INT(LOG10(ABS(J$6*M9/K9)))),"NC"),"") ->  | P9: =IF(ISNUMBER(VLOOKUP($A9,'FITS calculation sheet'!$A3:$N$502,1,FALSE))=TRUE,VLOOKUP($A9,'FITS calculation sheet'!$A3:$N$502,2,FALSE),"") ->  | Q9: =IF(P9<>"",IF('FITS calculation sheet'!L3>0,'FITS calculation sheet'!L3,"Not consumed"),"") ->  | R9: =IF(P9<>"",IF('FITS calculation sheet'!M3=0,0,ROUND('FITS calculation sheet'!M3,2-INT(LOG10(ABS('FITS calculation sheet'!M3))))),"") ->  | S9: =IF($B9<>"",IF(R9>0,ROUND(Q$6/R9,2-INT(LOG10(ABS(Q$6/R9)))),"NC"),"") ->  | T9: =IF(P9<>"",'FITS calculation sheet'!O3,"") ->  | U9: =IF(P9<>"",IF(R9>0,ROUND(Q$6*T9/R9,2-INT(LOG10(ABS(Q$6*T9/R9)))),"NC"),"") -> 
A10: 2 | B10: =IF(ISNUMBER(VLOOKUP($A10,'FITS calculation sheet'!$A4:$N$502,1,FALSE))=TRUE,VLOOKUP($A10,'FITS calculation sheet'!$A4:$N$502,2,FALSE),"") ->  | C10: =IF($B10<>"",IF('FITS calculation sheet'!D4>0,'FITS calculation sheet'!D4,"NC"),"") ->  | D10: =IF(B10<>"",IF('FITS calculation sheet'!E4=0,0,ROUND('FITS calculation sheet'!E4,2-INT(LOG10(ABS('FITS calculation sheet'!E4))))),"") ->  | E10: =IF($B10<>"",IF(D10>0,ROUND(C$6/D10,2-INT(LOG10(ABS(C$6/D10)))),"NC"),"") ->  | F10: =IF($B10<>"",'FITS calculation sheet'!G4,"") ->  | G10: =IF(B10<>"",IF(D10>0,ROUND(C$6*F10/D10,2-INT(LOG10(ABS(C$6*F10/D10)))),"NC"),"") ->  | I10: =IF(ISNUMBER(VLOOKUP($A10,'FITS calculation sheet'!$A4:$N$502,1,FALSE))=TRUE,VLOOKUP($A10,'FITS calculation sheet'!$A4:$N$502,2,FALSE),"") ->  | J10: =IF(I10<>"",IF('FITS calculation sheet'!H4>0,'FITS calculation sheet'!H4,"Not consumed"),"") ->  | K10: =IF(I10<>"",IF('FITS calculation sheet'!I4=0,0,ROUND('FITS calculation sheet'!I4,2-INT(LOG10(ABS('FITS calculation sheet'!I4))))),"") ->  | L10: =IF($B10<>"",IF(K10>0,ROUND(J$6/K10,2-INT(LOG10(ABS(J$6/K10)))),"NC"),"") ->  | M10: =IF(I10<>"",'FITS calculation sheet'!K4,"") ->  | N10: =IF(I10<>"",IF(K10>0,ROUND(J$6*M10/K10,2-INT(LOG10(ABS(J$6*M10/K10)))),"NC"),"") ->  | P10: =IF(ISNUMBER(VLOOKUP($A10,'FITS calculation sheet'!$A4:$N$502,1,FALSE))=TRUE,VLOOKUP($A10,'FITS calculation sheet'!$A4:$N$502,2,FALSE),"") ->  | Q10: =IF(P10<>"",IF('FITS calculation sheet'!L4>0,'FITS calculation sheet'!L4,"Not consumed"),"") ->  | R10: =IF(P10<>"",IF('FITS calculation sheet'!M4=0,0,ROUND('FITS calculation sheet'!M4,2-INT(LOG10(ABS('FITS calculation sheet'!M4))))),"") ->  | S10: =IF($B10<>"",IF(R10>0,ROUND(Q$6/R10,2-INT(LOG10(ABS(Q$6/R10)))),"NC"),"") ->  | T10: =IF(P10<>"",'FITS calculation sheet'!O4,"") ->  | U10: =IF(P10<>"",IF(R10>0,ROUND(Q$6*T10/R10,2-INT(LOG10(ABS(Q$6*T10/R10)))),"NC"),"") -> 
A11: 3 | B11: =IF(ISNUMBER(VLOOKUP($A11,'FITS calculation sheet'!$A5:$N$502,1,FALSE))=TRUE,VLOOKUP($A11,'FITS calculation sheet'!$A5:$N$502,2,FALSE),"") ->  | C11: =IF($B11<>"",IF('FITS calculation sheet'!D5>0,'FITS calculation sheet'!D5,"NC"),"") ->  | D11: =IF(B11<>"",IF('FITS calculation sheet'!E5=0,0,ROUND('FITS calculation sheet'!E5,2-INT(LOG10(ABS('FITS calculation sheet'!E5))))),"") ->  | F11: =IF($B11<>"",'FITS calculation sheet'!G5,"") ->  | I11: =IF(ISNUMBER(VLOOKUP($A11,'FITS calculation sheet'!$A5:$N$502,1,FALSE))=TRUE,VLOOKUP($A11,'FITS calculation sheet'!$A5:$N$502,2,FALSE),"") ->  | J11: =IF(I11<>"",IF('FITS calculation sheet'!H5>0,'FITS calculation sheet'!H5,"Not consumed"),"") ->  | K11: =IF(I11<>"",IF('FITS calculation sheet'!I5=0,0,ROUND('FITS calculation sheet'!I5,2-INT(LOG10(ABS('FITS calculation sheet'!I5))))),"") ->  | M11: =IF(I11<>"",'FITS calculation sheet'!K5,"") ->  | P11: =IF(ISNUMBER(VLOOKUP($A11,'FITS calculation sheet'!$A5:$N$502,1,FALSE))=TRUE,VLOOKUP($A11,'FITS calculation sheet'!$A5:$N$502,2,FALSE),"") ->  | Q11: =IF(P11<>"",IF('FITS calculation sheet'!L5>0,'FITS calculation sheet'!L5,"Not consumed"),"") ->  | R11: =IF(P11<>"",IF('FITS calculation sheet'!M5=0,0,ROUND('FITS calculation sheet'!M5,2-INT(LOG10(ABS('FITS calculation sheet'!M5))))),"") ->  | T11: =IF(P11<>"",'FITS calculation sheet'!O5,"") -> 
A12: 4 | B12: =IF(ISNUMBER(VLOOKUP($A12,'FITS calculation sheet'!$A6:$N$502,1,FALSE))=TRUE,VLOOKUP($A12,'FITS calculation sheet'!$A6:$N$502,2,FALSE),"") ->  | C12: =IF($B12<>"",IF('FITS calculation sheet'!D6>0,'FITS calculation sheet'!D6,"NC"),"") ->  | D12: =IF(B12<>"",IF('FITS calculation sheet'!E6=0,0,ROUND('FITS calculation sheet'!E6,2-INT(LOG10(ABS('FITS calculation sheet'!E6))))),"") ->  | F12: =IF($B12<>"",'FITS calculation sheet'!G6,"") ->  | I12: =IF(ISNUMBER(VLOOKUP($A12,'FITS calculation sheet'!$A6:$N$502,1,FALSE))=TRUE,VLOOKUP($A12,'FITS calculation sheet'!$A6:$N$502,2,FALSE),"") ->  | J12: =IF(I12<>"",IF('FITS calculation sheet'!H6>0,'FITS calculation sheet'!H6,"Not consumed"),"") ->  | K12: =IF(I12<>"",IF('FITS calculation sheet'!I6=0,0,ROUND('FITS calculation sheet'!I6,2-INT(LOG10(ABS('FITS calculation sheet'!I6))))),"") ->  | M12: =IF(I12<>"",'FITS calculation sheet'!K6,"") ->  | P12: =IF(ISNUMBER(VLOOKUP($A12,'FITS calculation sheet'!$A6:$N$502,1,FALSE))=TRUE,VLOOKUP($A12,'FITS calculation sheet'!$A6:$N$502,2,FALSE),"") ->  | Q12: =IF(P12<>"",IF('FITS calculation sheet'!L6>0,'FITS calculation sheet'!L6,"Not consumed"),"") ->  | R12: =IF(P12<>"",IF('FITS calculation sheet'!M6=0,0,ROUND('FITS calculation sheet'!M6,2-INT(LOG10(ABS('FITS calculation sheet'!M6))))),"") ->  | T12: =IF(P12<>"",'FITS calculation sheet'!O6,"") -> 
A13: 5 | B13: =IF(ISNUMBER(VLOOKUP($A13,'FITS calculation sheet'!$A7:$N$502,1,FALSE))=TRUE,VLOOKUP($A13,'FITS calculation sheet'!$A7:$N$502,2,FALSE),"") ->  | C13: =IF($B13<>"",IF('FITS calculation sheet'!D7>0,'FITS calculation sheet'!D7,"NC"),"") ->  | D13: =IF(B13<>"",IF('FITS calculation sheet'!E7=0,0,ROUND('FITS calculation sheet'!E7,2-INT(LOG10(ABS('FITS calculation sheet'!E7))))),"") ->  | F13: =IF($B13<>"",'FITS calculation sheet'!G7,"") ->  | I13: =IF(ISNUMBER(VLOOKUP($A13,'FITS calculation sheet'!$A7:$N$502,1,FALSE))=TRUE,VLOOKUP($A13,'FITS calculation sheet'!$A7:$N$502,2,FALSE),"") ->  | J13: =IF(I13<>"",IF('FITS calculation sheet'!H7>0,'FITS calculation sheet'!H7,"Not consumed"),"") ->  | K13: =IF(I13<>"",IF('FITS calculation sheet'!I7=0,0,ROUND('FITS calculation sheet'!I7,2-INT(LOG10(ABS('FITS calculation sheet'!I7))))),"") ->  | M13: =IF(I13<>"",'FITS calculation sheet'!K7,"") ->  | P13: =IF(ISNUMBER(VLOOKUP($A13,'FITS calculation sheet'!$A7:$N$502,1,FALSE))=TRUE,VLOOKUP($A13,'FITS calculation sheet'!$A7:$N$502,2,FALSE),"") ->  | Q13: =IF(P13<>"",IF('FITS calculation sheet'!L7>0,'FITS calculation sheet'!L7,"Not consumed"),"") ->  | R13: =IF(P13<>"",IF('FITS calculation sheet'!M7=0,0,ROUND('FITS calculation sheet'!M7,2-INT(LOG10(ABS('FITS calculation sheet'!M7))))),"") ->  | T13: =IF(P13<>"",'FITS calculation sheet'!O7,"") ->  | W13: Note: you can send the above summary to a printer or save to a pdf file. You need to set this first before you click on the Print/Save button:
A14: 6 | B14: =IF(ISNUMBER(VLOOKUP($A14,'FITS calculation sheet'!$A8:$N$502,1,FALSE))=TRUE,VLOOKUP($A14,'FITS calculation sheet'!$A8:$N$502,2,FALSE),"") ->  | C14: =IF($B14<>"",IF('FITS calculation sheet'!D8>0,'FITS calculation sheet'!D8,"NC"),"") ->  | D14: =IF(B14<>"",IF('FITS calculation sheet'!E8=0,0,ROUND('FITS calculation sheet'!E8,2-INT(LOG10(ABS('FITS calculation sheet'!E8))))),"") ->  | F14: =IF($B14<>"",'FITS calculation sheet'!G8,"") ->  | I14: =IF(ISNUMBER(VLOOKUP($A14,'FITS calculation sheet'!$A8:$N$502,1,FALSE))=TRUE,VLOOKUP($A14,'FITS calculation sheet'!$A8:$N$502,2,FALSE),"") ->  | J14: =IF(I14<>"",IF('FITS calculation sheet'!H8>0,'FITS calculation sheet'!H8,"Not consumed"),"") ->  | K14: =IF(I14<>"",IF('FITS calculation sheet'!I8=0,0,ROUND('FITS calculation sheet'!I8,2-INT(LOG10(ABS('FITS calculation sheet'!I8))))),"") ->  | M14: =IF(I14<>"",'FITS calculation sheet'!K8,"") ->  | P14: =IF(ISNUMBER(VLOOKUP($A14,'FITS calculation sheet'!$A8:$N$502,1,FALSE))=TRUE,VLOOKUP($A14,'FITS calculation sheet'!$A8:$N$502,2,FALSE),"") ->  | Q14: =IF(P14<>"",IF('FITS calculation sheet'!L8>0,'FITS calculation sheet'!L8,"Not consumed"),"") ->  | R14: =IF(P14<>"",IF('FITS calculation sheet'!M8=0,0,ROUND('FITS calculation sheet'!M8,2-INT(LOG10(ABS('FITS calculation sheet'!M8))))),"") ->  | T14: =IF(P14<>"",'FITS calculation sheet'!O8,"") -> 
A15: 7 | B15: =IF(ISNUMBER(VLOOKUP($A15,'FITS calculation sheet'!$A9:$N$502,1,FALSE))=TRUE,VLOOKUP($A15,'FITS calculation sheet'!$A9:$N$502,2,FALSE),"") ->  | C15: =IF($B15<>"",IF('FITS calculation sheet'!D9>0,'FITS calculation sheet'!D9,"NC"),"") ->  | D15: =IF(B15<>"",IF('FITS calculation sheet'!E9=0,0,ROUND('FITS calculation sheet'!E9,2-INT(LOG10(ABS('FITS calculation sheet'!E9))))),"") ->  | F15: =IF($B15<>"",'FITS calculation sheet'!G9,"") ->  | I15: =IF(ISNUMBER(VLOOKUP($A15,'FITS calculation sheet'!$A9:$N$502,1,FALSE))=TRUE,VLOOKUP($A15,'FITS calculation sheet'!$A9:$N$502,2,FALSE),"") ->  | J15: =IF(I15<>"",IF('FITS calculation sheet'!H9>0,'FITS calculation sheet'!H9,"Not consumed"),"") ->  | K15: =IF(I15<>"",IF('FITS calculation sheet'!I9=0,0,ROUND('FITS calculation sheet'!I9,2-INT(LOG10(ABS('FITS calculation sheet'!I9))))),"") ->  | M15: =IF(I15<>"",'FITS calculation sheet'!K9,"") ->  | P15: =IF(ISNUMBER(VLOOKUP($A15,'FITS calculation sheet'!$A9:$N$502,1,FALSE))=TRUE,VLOOKUP($A15,'FITS calculation sheet'!$A9:$N$502,2,FALSE),"") ->  | Q15: =IF(P15<>"",IF('FITS calculation sheet'!L9>0,'FITS calculation sheet'!L9,"Not consumed"),"") ->  | R15: =IF(P15<>"",IF('FITS calculation sheet'!M9=0,0,ROUND('FITS calculation sheet'!M9,2-INT(LOG10(ABS('FITS calculation sheet'!M9))))),"") ->  | T15: =IF(P15<>"",'FITS calculation sheet'!O9,"") ->  | W15: (i) Go to "File" (top left corner), (ii) select "Print" and (iii) select from the list of printers that are avaible to you or select PDF.
A16: 8 | B16: =IF(ISNUMBER(VLOOKUP($A16,'FITS calculation sheet'!$A10:$N$502,1,FALSE))=TRUE,VLOOKUP($A16,'FITS calculation sheet'!$A10:$N$502,2,FALSE),"") ->  | C16: =IF($B16<>"",IF('FITS calculation sheet'!D10>0,'FITS calculation sheet'!D10,"NC"),"") ->  | D16: =IF(B16<>"",IF('FITS calculation sheet'!E10=0,0,ROUND('FITS calculation sheet'!E10,2-INT(LOG10(ABS('FITS calculation sheet'!E10))))),"") ->  | F16: =IF($B16<>"",'FITS calculation sheet'!G10,"") ->  | I16: =IF(ISNUMBER(VLOOKUP($A16,'FITS calculation sheet'!$A10:$N$502,1,FALSE))=TRUE,VLOOKUP($A16,'FITS calculation sheet'!$A10:$N$502,2,FALSE),"") ->  | J16: =IF(I16<>"",IF('FITS calculation sheet'!H10>0,'FITS calculation sheet'!H10,"Not consumed"),"") ->  | K16: =IF(I16<>"",IF('FITS calculation sheet'!I10=0,0,ROUND('FITS calculation sheet'!I10,2-INT(LOG10(ABS('FITS calculation sheet'!I10))))),"") ->  | M16: =IF(I16<>"",'FITS calculation sheet'!K10,"") ->  | P16: =IF(ISNUMBER(VLOOKUP($A16,'FITS calculation sheet'!$A10:$N$502,1,FALSE))=TRUE,VLOOKUP($A16,'FITS calculation sheet'!$A10:$N$502,2,FALSE),"") ->  | Q16: =IF(P16<>"",IF('FITS calculation sheet'!L10>0,'FITS calculation sheet'!L10,"Not consumed"),"") ->  | R16: =IF(P16<>"",IF('FITS calculation sheet'!M10=0,0,ROUND('FITS calculation sheet'!M10,2-INT(LOG10(ABS('FITS calculation sheet'!M10))))),"") ->  | T16: =IF(P16<>"",'FITS calculation sheet'!O10,"") -> 
A17: 9 | B17: =IF(ISNUMBER(VLOOKUP($A17,'FITS calculation sheet'!$A11:$N$502,1,FALSE))=TRUE,VLOOKUP($A17,'FITS calculation sheet'!$A11:$N$502,2,FALSE),"") ->  | C17: =IF($B17<>"",IF('FITS calculation sheet'!D11>0,'FITS calculation sheet'!D11,"NC"),"") ->  | D17: =IF(B17<>"",IF('FITS calculation sheet'!E11=0,0,ROUND('FITS calculation sheet'!E11,2-INT(LOG10(ABS('FITS calculation sheet'!E11))))),"") ->  | F17: =IF($B17<>"",'FITS calculation sheet'!G11,"") ->  | I17: =IF(ISNUMBER(VLOOKUP($A17,'FITS calculation sheet'!$A11:$N$502,1,FALSE))=TRUE,VLOOKUP($A17,'FITS calculation sheet'!$A11:$N$502,2,FALSE),"") ->  | J17: =IF(I17<>"",IF('FITS calculation sheet'!H11>0,'FITS calculation sheet'!H11,"Not consumed"),"") ->  | K17: =IF(I17<>"",IF('FITS calculation sheet'!I11=0,0,ROUND('FITS calculation sheet'!I11,2-INT(LOG10(ABS('FITS calculation sheet'!I11))))),"") ->  | M17: =IF(I17<>"",'FITS calculation sheet'!K11,"") ->  | P17: =IF(ISNUMBER(VLOOKUP($A17,'FITS calculation sheet'!$A11:$N$502,1,FALSE))=TRUE,VLOOKUP($A17,'FITS calculation sheet'!$A11:$N$502,2,FALSE),"") ->  | Q17: =IF(P17<>"",IF('FITS calculation sheet'!L11>0,'FITS calculation sheet'!L11,"Not consumed"),"") ->  | R17: =IF(P17<>"",IF('FITS calculation sheet'!M11=0,0,ROUND('FITS calculation sheet'!M11,2-INT(LOG10(ABS('FITS calculation sheet'!M11))))),"") ->  | T17: =IF(P17<>"",'FITS calculation sheet'!O11,"") ->  | W17: Then click on "Print/Save".
A18: 10 | B18: =IF(ISNUMBER(VLOOKUP($A18,'FITS calculation sheet'!$A12:$N$502,1,FALSE))=TRUE,VLOOKUP($A18,'FITS calculation sheet'!$A12:$N$502,2,FALSE),"") ->  | C18: =IF($B18<>"",IF('FITS calculation sheet'!D12>0,'FITS calculation sheet'!D12,"NC"),"") ->  | D18: =IF(B18<>"",IF('FITS calculation sheet'!E12=0,0,ROUND('FITS calculation sheet'!E12,2-INT(LOG10(ABS('FITS calculation sheet'!E12))))),"") ->  | F18: =IF($B18<>"",'FITS calculation sheet'!G12,"") ->  | I18: =IF(ISNUMBER(VLOOKUP($A18,'FITS calculation sheet'!$A12:$N$502,1,FALSE))=TRUE,VLOOKUP($A18,'FITS calculation sheet'!$A12:$N$502,2,FALSE),"") ->  | J18: =IF(I18<>"",IF('FITS calculation sheet'!H12>0,'FITS calculation sheet'!H12,"Not consumed"),"") ->  | K18: =IF(I18<>"",IF('FITS calculation sheet'!I12=0,0,ROUND('FITS calculation sheet'!I12,2-INT(LOG10(ABS('FITS calculation sheet'!I12))))),"") ->  | M18: =IF(I18<>"",'FITS calculation sheet'!K12,"") ->  | P18: =IF(ISNUMBER(VLOOKUP($A18,'FITS calculation sheet'!$A12:$N$502,1,FALSE))=TRUE,VLOOKUP($A18,'FITS calculation sheet'!$A12:$N$502,2,FALSE),"") ->  | Q18: =IF(P18<>"",IF('FITS calculation sheet'!L12>0,'FITS calculation sheet'!L12,"Not consumed"),"") ->  | R18: =IF(P18<>"",IF('FITS calculation sheet'!M12=0,0,ROUND('FITS calculation sheet'!M12,2-INT(LOG10(ABS('FITS calculation sheet'!M12))))),"") ->  | T18: =IF(P18<>"",'FITS calculation sheet'!O12,"") -> 
A19: 11 | B19: =IF(ISNUMBER(VLOOKUP($A19,'FITS calculation sheet'!$A13:$N$502,1,FALSE))=TRUE,VLOOKUP($A19,'FITS calculation sheet'!$A13:$N$502,2,FALSE),"") ->  | C19: =IF($B19<>"",IF('FITS calculation sheet'!D13>0,'FITS calculation sheet'!D13,"NC"),"") ->  | D19: =IF(B19<>"",IF('FITS calculation sheet'!E13=0,0,ROUND('FITS calculation sheet'!E13,2-INT(LOG10(ABS('FITS calculation sheet'!E13))))),"") ->  | F19: =IF($B19<>"",'FITS calculation sheet'!G13,"") ->  | I19: =IF(ISNUMBER(VLOOKUP($A19,'FITS calculation sheet'!$A13:$N$502,1,FALSE))=TRUE,VLOOKUP($A19,'FITS calculation sheet'!$A13:$N$502,2,FALSE),"") ->  | J19: =IF(I19<>"",IF('FITS calculation sheet'!H13>0,'FITS calculation sheet'!H13,"Not consumed"),"") ->  | K19: =IF(I19<>"",IF('FITS calculation sheet'!I13=0,0,ROUND('FITS calculation sheet'!I13,2-INT(LOG10(ABS('FITS calculation sheet'!I13))))),"") ->  | M19: =IF(I19<>"",'FITS calculation sheet'!K13,"") ->  | P19: =IF(ISNUMBER(VLOOKUP($A19,'FITS calculation sheet'!$A13:$N$502,1,FALSE))=TRUE,VLOOKUP($A19,'FITS calculation sheet'!$A13:$N$502,2,FALSE),"") ->  | Q19: =IF(P19<>"",IF('FITS calculation sheet'!L13>0,'FITS calculation sheet'!L13,"Not consumed"),"") ->  | R19: =IF(P19<>"",IF('FITS calculation sheet'!M13=0,0,ROUND('FITS calculation sheet'!M13,2-INT(LOG10(ABS('FITS calculation sheet'!M13))))),"") ->  | T19: =IF(P19<>"",'FITS calculation sheet'!O13,"") -> 
A20: 12 | B20: =IF(ISNUMBER(VLOOKUP($A20,'FITS calculation sheet'!$A14:$N$502,1,FALSE))=TRUE,VLOOKUP($A20,'FITS calculation sheet'!$A14:$N$502,2,FALSE),"") ->  | C20: =IF($B20<>"",IF('FITS calculation sheet'!D14>0,'FITS calculation sheet'!D14,"NC"),"") ->  | D20: =IF(B20<>"",IF('FITS calculation sheet'!E14=0,0,ROUND('FITS calculation sheet'!E14,2-INT(LOG10(ABS('FITS calculation sheet'!E14))))),"") ->  | F20: =IF($B20<>"",'FITS calculation sheet'!G14,"") ->  | I20: =IF(ISNUMBER(VLOOKUP($A20,'FITS calculation sheet'!$A14:$N$502,1,FALSE))=TRUE,VLOOKUP($A20,'FITS calculation sheet'!$A14:$N$502,2,FALSE),"") ->  | J20: =IF(I20<>"",IF('FITS calculation sheet'!H14>0,'FITS calculation sheet'!H14,"Not consumed"),"") ->  | K20: =IF(I20<>"",IF('FITS calculation sheet'!I14=0,0,ROUND('FITS calculation sheet'!I14,2-INT(LOG10(ABS('FITS calculation sheet'!I14))))),"") ->  | M20: =IF(I20<>"",'FITS calculation sheet'!K14,"") ->  | P20: =IF(ISNUMBER(VLOOKUP($A20,'FITS calculation sheet'!$A14:$N$502,1,FALSE))=TRUE,VLOOKUP($A20,'FITS calculation sheet'!$A14:$N$502,2,FALSE),"") ->  | Q20: =IF(P20<>"",IF('FITS calculation sheet'!L14>0,'FITS calculation sheet'!L14,"Not consumed"),"") ->  | R20: =IF(P20<>"",IF('FITS calculation sheet'!M14=0,0,ROUND('FITS calculation sheet'!M14,2-INT(LOG10(ABS('FITS calculation sheet'!M14))))),"") ->  | T20: =IF(P20<>"",'FITS calculation sheet'!O14,"") -> 
A21: 13 | B21: =IF(ISNUMBER(VLOOKUP($A21,'FITS calculation sheet'!$A15:$N$502,1,FALSE))=TRUE,VLOOKUP($A21,'FITS calculation sheet'!$A15:$N$502,2,FALSE),"") ->  | C21: =IF($B21<>"",IF('FITS calculation sheet'!D15>0,'FITS calculation sheet'!D15,"NC"),"") ->  | D21: =IF(B21<>"",IF('FITS calculation sheet'!E15=0,0,ROUND('FITS calculation sheet'!E15,2-INT(LOG10(ABS('FITS calculation sheet'!E15))))),"") ->  | F21: =IF($B21<>"",'FITS calculation sheet'!G15,"") ->  | I21: =IF(ISNUMBER(VLOOKUP($A21,'FITS calculation sheet'!$A15:$N$502,1,FALSE))=TRUE,VLOOKUP($A21,'FITS calculation sheet'!$A15:$N$502,2,FALSE),"") ->  | J21: =IF(I21<>"",IF('FITS calculation sheet'!H15>0,'FITS calculation sheet'!H15,"Not consumed"),"") ->  | K21: =IF(I21<>"",IF('FITS calculation sheet'!I15=0,0,ROUND('FITS calculation sheet'!I15,2-INT(LOG10(ABS('FITS calculation sheet'!I15))))),"") ->  | M21: =IF(I21<>"",'FITS calculation sheet'!K15,"") ->  | P21: =IF(ISNUMBER(VLOOKUP($A21,'FITS calculation sheet'!$A15:$N$502,1,FALSE))=TRUE,VLOOKUP($A21,'FITS calculation sheet'!$A15:$N$502,2,FALSE),"") ->  | Q21: =IF(P21<>"",IF('FITS calculation sheet'!L15>0,'FITS calculation sheet'!L15,"Not consumed"),"") ->  | R21: =IF(P21<>"",IF('FITS calculation sheet'!M15=0,0,ROUND('FITS calculation sheet'!M15,2-INT(LOG10(ABS('FITS calculation sheet'!M15))))),"") ->  | T21: =IF(P21<>"",'FITS calculation sheet'!O15,"") -> 
A22: 14 | B22: =IF(ISNUMBER(VLOOKUP($A22,'FITS calculation sheet'!$A16:$N$502,1,FALSE))=TRUE,VLOOKUP($A22,'FITS calculation sheet'!$A16:$N$502,2,FALSE),"") ->  | C22: =IF($B22<>"",IF('FITS calculation sheet'!D16>0,'FITS calculation sheet'!D16,"NC"),"") ->  | D22: =IF(B22<>"",IF('FITS calculation sheet'!E16=0,0,ROUND('FITS calculation sheet'!E16,2-INT(LOG10(ABS('FITS calculation sheet'!E16))))),"") ->  | F22: =IF($B22<>"",'FITS calculation sheet'!G16,"") ->  | I22: =IF(ISNUMBER(VLOOKUP($A22,'FITS calculation sheet'!$A16:$N$502,1,FALSE))=TRUE,VLOOKUP($A22,'FITS calculation sheet'!$A16:$N$502,2,FALSE),"") ->  | J22: =IF(I22<>"",IF('FITS calculation sheet'!H16>0,'FITS calculation sheet'!H16,"Not consumed"),"") ->  | K22: =IF(I22<>"",IF('FITS calculation sheet'!I16=0,0,ROUND('FITS calculation sheet'!I16,2-INT(LOG10(ABS('FITS calculation sheet'!I16))))),"") ->  | M22: =IF(I22<>"",'FITS calculation sheet'!K16,"") ->  | P22: =IF(ISNUMBER(VLOOKUP($A22,'FITS calculation sheet'!$A16:$N$502,1,FALSE))=TRUE,VLOOKUP($A22,'FITS calculation sheet'!$A16:$N$502,2,FALSE),"") ->  | Q22: =IF(P22<>"",IF('FITS calculation sheet'!L16>0,'FITS calculation sheet'!L16,"Not consumed"),"") ->  | R22: =IF(P22<>"",IF('FITS calculation sheet'!M16=0,0,ROUND('FITS calculation sheet'!M16,2-INT(LOG10(ABS('FITS calculation sheet'!M16))))),"") ->  | T22: =IF(P22<>"",'FITS calculation sheet'!O16,"") -> 
A23: 15 | B23: =IF(ISNUMBER(VLOOKUP($A23,'FITS calculation sheet'!$A17:$N$502,1,FALSE))=TRUE,VLOOKUP($A23,'FITS calculation sheet'!$A17:$N$502,2,FALSE),"") ->  | C23: =IF($B23<>"",IF('FITS calculation sheet'!D17>0,'FITS calculation sheet'!D17,"NC"),"") ->  | D23: =IF(B23<>"",IF('FITS calculation sheet'!E17=0,0,ROUND('FITS calculation sheet'!E17,2-INT(LOG10(ABS('FITS calculation sheet'!E17))))),"") ->  | F23: =IF($B23<>"",'FITS calculation sheet'!G17,"") ->  | I23: =IF(ISNUMBER(VLOOKUP($A23,'FITS calculation sheet'!$A17:$N$502,1,FALSE))=TRUE,VLOOKUP($A23,'FITS calculation sheet'!$A17:$N$502,2,FALSE),"") ->  | J23: =IF(I23<>"",IF('FITS calculation sheet'!H17>0,'FITS calculation sheet'!H17,"Not consumed"),"") ->  | K23: =IF(I23<>"",IF('FITS calculation sheet'!I17=0,0,ROUND('FITS calculation sheet'!I17,2-INT(LOG10(ABS('FITS calculation sheet'!I17))))),"") ->  | M23: =IF(I23<>"",'FITS calculation sheet'!K17,"") ->  | P23: =IF(ISNUMBER(VLOOKUP($A23,'FITS calculation sheet'!$A17:$N$502,1,FALSE))=TRUE,VLOOKUP($A23,'FITS calculation sheet'!$A17:$N$502,2,FALSE),"") ->  | Q23: =IF(P23<>"",IF('FITS calculation sheet'!L17>0,'FITS calculation sheet'!L17,"Not consumed"),"") ->  | R23: =IF(P23<>"",IF('FITS calculation sheet'!M17=0,0,ROUND('FITS calculation sheet'!M17,2-INT(LOG10(ABS('FITS calculation sheet'!M17))))),"") ->  | T23: =IF(P23<>"",'FITS calculation sheet'!O17,"") -> 
A24: 16 | B24: =IF(ISNUMBER(VLOOKUP($A24,'FITS calculation sheet'!$A18:$N$502,1,FALSE))=TRUE,VLOOKUP($A24,'FITS calculation sheet'!$A18:$N$502,2,FALSE),"") ->  | C24: =IF($B24<>"",IF('FITS calculation sheet'!D18>0,'FITS calculation sheet'!D18,"NC"),"") ->  | D24: =IF(B24<>"",IF('FITS calculation sheet'!E18=0,0,ROUND('FITS calculation sheet'!E18,2-INT(LOG10(ABS('FITS calculation sheet'!E18))))),"") ->  | F24: =IF($B24<>"",'FITS calculation sheet'!G18,"") ->  | I24: =IF(ISNUMBER(VLOOKUP($A24,'FITS calculation sheet'!$A18:$N$502,1,FALSE))=TRUE,VLOOKUP($A24,'FITS calculation sheet'!$A18:$N$502,2,FALSE),"") ->  | J24: =IF(I24<>"",IF('FITS calculation sheet'!H18>0,'FITS calculation sheet'!H18,"Not consumed"),"") ->  | K24: =IF(I24<>"",IF('FITS calculation sheet'!I18=0,0,ROUND('FITS calculation sheet'!I18,2-INT(LOG10(ABS('FITS calculation sheet'!I18))))),"") ->  | M24: =IF(I24<>"",'FITS calculation sheet'!K18,"") ->  | P24: =IF(ISNUMBER(VLOOKUP($A24,'FITS calculation sheet'!$A18:$N$502,1,FALSE))=TRUE,VLOOKUP($A24,'FITS calculation sheet'!$A18:$N$502,2,FALSE),"") ->  | Q24: =IF(P24<>"",IF('FITS calculation sheet'!L18>0,'FITS calculation sheet'!L18,"Not consumed"),"") ->  | R24: =IF(P24<>"",IF('FITS calculation sheet'!M18=0,0,ROUND('FITS calculation sheet'!M18,2-INT(LOG10(ABS('FITS calculation sheet'!M18))))),"") ->  | T24: =IF(P24<>"",'FITS calculation sheet'!O18,"") -> 
A25: 17 | B25: =IF(ISNUMBER(VLOOKUP($A25,'FITS calculation sheet'!$A19:$N$502,1,FALSE))=TRUE,VLOOKUP($A25,'FITS calculation sheet'!$A19:$N$502,2,FALSE),"") ->  | C25: =IF($B25<>"",IF('FITS calculation sheet'!D19>0,'FITS calculation sheet'!D19,"NC"),"") ->  | D25: =IF(B25<>"",IF('FITS calculation sheet'!E19=0,0,ROUND('FITS calculation sheet'!E19,2-INT(LOG10(ABS('FITS calculation sheet'!E19))))),"") ->  | F25: =IF($B25<>"",'FITS calculation sheet'!G19,"") ->  | I25: =IF(ISNUMBER(VLOOKUP($A25,'FITS calculation sheet'!$A19:$N$502,1,FALSE))=TRUE,VLOOKUP($A25,'FITS calculation sheet'!$A19:$N$502,2,FALSE),"") ->  | J25: =IF(I25<>"",IF('FITS calculation sheet'!H19>0,'FITS calculation sheet'!H19,"Not consumed"),"") ->  | K25: =IF(I25<>"",IF('FITS calculation sheet'!I19=0,0,ROUND('FITS calculation sheet'!I19,2-INT(LOG10(ABS('FITS calculation sheet'!I19))))),"") ->  | M25: =IF(I25<>"",'FITS calculation sheet'!K19,"") ->  | P25: =IF(ISNUMBER(VLOOKUP($A25,'FITS calculation sheet'!$A19:$N$502,1,FALSE))=TRUE,VLOOKUP($A25,'FITS calculation sheet'!$A19:$N$502,2,FALSE),"") ->  | Q25: =IF(P25<>"",IF('FITS calculation sheet'!L19>0,'FITS calculation sheet'!L19,"Not consumed"),"") ->  | R25: =IF(P25<>"",IF('FITS calculation sheet'!M19=0,0,ROUND('FITS calculation sheet'!M19,2-INT(LOG10(ABS('FITS calculation sheet'!M19))))),"") ->  | T25: =IF(P25<>"",'FITS calculation sheet'!O19,"") -> 
A26: 18 | B26: =IF(ISNUMBER(VLOOKUP($A26,'FITS calculation sheet'!$A20:$N$502,1,FALSE))=TRUE,VLOOKUP($A26,'FITS calculation sheet'!$A20:$N$502,2,FALSE),"") ->  | C26: =IF($B26<>"",IF('FITS calculation sheet'!D20>0,'FITS calculation sheet'!D20,"NC"),"") ->  | D26: =IF(B26<>"",IF('FITS calculation sheet'!E20=0,0,ROUND('FITS calculation sheet'!E20,2-INT(LOG10(ABS('FITS calculation sheet'!E20))))),"") ->  | F26: =IF($B26<>"",'FITS calculation sheet'!G20,"") ->  | I26: =IF(ISNUMBER(VLOOKUP($A26,'FITS calculation sheet'!$A20:$N$502,1,FALSE))=TRUE,VLOOKUP($A26,'FITS calculation sheet'!$A20:$N$502,2,FALSE),"") ->  | J26: =IF(I26<>"",IF('FITS calculation sheet'!H20>0,'FITS calculation sheet'!H20,"Not consumed"),"") ->  | K26: =IF(I26<>"",IF('FITS calculation sheet'!I20=0,0,ROUND('FITS calculation sheet'!I20,2-INT(LOG10(ABS('FITS calculation sheet'!I20))))),"") ->  | M26: =IF(I26<>"",'FITS calculation sheet'!K20,"") ->  | P26: =IF(ISNUMBER(VLOOKUP($A26,'FITS calculation sheet'!$A20:$N$502,1,FALSE))=TRUE,VLOOKUP($A26,'FITS calculation sheet'!$A20:$N$502,2,FALSE),"") ->  | Q26: =IF(P26<>"",IF('FITS calculation sheet'!L20>0,'FITS calculation sheet'!L20,"Not consumed"),"") ->  | R26: =IF(P26<>"",IF('FITS calculation sheet'!M20=0,0,ROUND('FITS calculation sheet'!M20,2-INT(LOG10(ABS('FITS calculation sheet'!M20))))),"") ->  | T26: =IF(P26<>"",'FITS calculation sheet'!O20,"") -> 
A27: 19 | B27: =IF(ISNUMBER(VLOOKUP($A27,'FITS calculation sheet'!$A21:$N$502,1,FALSE))=TRUE,VLOOKUP($A27,'FITS calculation sheet'!$A21:$N$502,2,FALSE),"") ->  | C27: =IF($B27<>"",IF('FITS calculation sheet'!D21>0,'FITS calculation sheet'!D21,"NC"),"") ->  | D27: =IF(B27<>"",IF('FITS calculation sheet'!E21=0,0,ROUND('FITS calculation sheet'!E21,2-INT(LOG10(ABS('FITS calculation sheet'!E21))))),"") ->  | F27: =IF($B27<>"",'FITS calculation sheet'!G21,"") ->  | I27: =IF(ISNUMBER(VLOOKUP($A27,'FITS calculation sheet'!$A21:$N$502,1,FALSE))=TRUE,VLOOKUP($A27,'FITS calculation sheet'!$A21:$N$502,2,FALSE),"") ->  | J27: =IF(I27<>"",IF('FITS calculation sheet'!H21>0,'FITS calculation sheet'!H21,"Not consumed"),"") ->  | K27: =IF(I27<>"",IF('FITS calculation sheet'!I21=0,0,ROUND('FITS calculation sheet'!I21,2-INT(LOG10(ABS('FITS calculation sheet'!I21))))),"") ->  | M27: =IF(I27<>"",'FITS calculation sheet'!K21,"") ->  | P27: =IF(ISNUMBER(VLOOKUP($A27,'FITS calculation sheet'!$A21:$N$502,1,FALSE))=TRUE,VLOOKUP($A27,'FITS calculation sheet'!$A21:$N$502,2,FALSE),"") ->  | Q27: =IF(P27<>"",IF('FITS calculation sheet'!L21>0,'FITS calculation sheet'!L21,"Not consumed"),"") ->  | R27: =IF(P27<>"",IF('FITS calculation sheet'!M21=0,0,ROUND('FITS calculation sheet'!M21,2-INT(LOG10(ABS('FITS calculation sheet'!M21))))),"") ->  | T27: =IF(P27<>"",'FITS calculation sheet'!O21,"") -> 
A28: 20 | B28: =IF(ISNUMBER(VLOOKUP($A28,'FITS calculation sheet'!$A22:$N$502,1,FALSE))=TRUE,VLOOKUP($A28,'FITS calculation sheet'!$A22:$N$502,2,FALSE),"") ->  | C28: =IF($B28<>"",IF('FITS calculation sheet'!D22>0,'FITS calculation sheet'!D22,"NC"),"") ->  | D28: =IF(B28<>"",IF('FITS calculation sheet'!E22=0,0,ROUND('FITS calculation sheet'!E22,2-INT(LOG10(ABS('FITS calculation sheet'!E22))))),"") ->  | F28: =IF($B28<>"",'FITS calculation sheet'!G22,"") ->  | I28: =IF(ISNUMBER(VLOOKUP($A28,'FITS calculation sheet'!$A22:$N$502,1,FALSE))=TRUE,VLOOKUP($A28,'FITS calculation sheet'!$A22:$N$502,2,FALSE),"") ->  | J28: =IF(I28<>"",IF('FITS calculation sheet'!H22>0,'FITS calculation sheet'!H22,"Not consumed"),"") ->  | K28: =IF(I28<>"",IF('FITS calculation sheet'!I22=0,0,ROUND('FITS calculation sheet'!I22,2-INT(LOG10(ABS('FITS calculation sheet'!I22))))),"") ->  | M28: =IF(I28<>"",'FITS calculation sheet'!K22,"") ->  | P28: =IF(ISNUMBER(VLOOKUP($A28,'FITS calculation sheet'!$A22:$N$502,1,FALSE))=TRUE,VLOOKUP($A28,'FITS calculation sheet'!$A22:$N$502,2,FALSE),"") ->  | Q28: =IF(P28<>"",IF('FITS calculation sheet'!L22>0,'FITS calculation sheet'!L22,"Not consumed"),"") ->  | R28: =IF(P28<>"",IF('FITS calculation sheet'!M22=0,0,ROUND('FITS calculation sheet'!M22,2-INT(LOG10(ABS('FITS calculation sheet'!M22))))),"") ->  | T28: =IF(P28<>"",'FITS calculation sheet'!O22,"") -> 
A29: 21 | B29: =IF(ISNUMBER(VLOOKUP($A29,'FITS calculation sheet'!$A23:$N$502,1,FALSE))=TRUE,VLOOKUP($A29,'FITS calculation sheet'!$A23:$N$502,2,FALSE),"") ->  | C29: =IF($B29<>"",IF('FITS calculation sheet'!D23>0,'FITS calculation sheet'!D23,"NC"),"") ->  | D29: =IF(B29<>"",IF('FITS calculation sheet'!E23=0,0,ROUND('FITS calculation sheet'!E23,2-INT(LOG10(ABS('FITS calculation sheet'!E23))))),"") ->  | F29: =IF($B29<>"",'FITS calculation sheet'!G23,"") ->  | I29: =IF(ISNUMBER(VLOOKUP($A29,'FITS calculation sheet'!$A23:$N$502,1,FALSE))=TRUE,VLOOKUP($A29,'FITS calculation sheet'!$A23:$N$502,2,FALSE),"") ->  | J29: =IF(I29<>"",IF('FITS calculation sheet'!H23>0,'FITS calculation sheet'!H23,"Not consumed"),"") ->  | K29: =IF(I29<>"",IF('FITS calculation sheet'!I23=0,0,ROUND('FITS calculation sheet'!I23,2-INT(LOG10(ABS('FITS calculation sheet'!I23))))),"") ->  | M29: =IF(I29<>"",'FITS calculation sheet'!K23,"") ->  | P29: =IF(ISNUMBER(VLOOKUP($A29,'FITS calculation sheet'!$A23:$N$502,1,FALSE))=TRUE,VLOOKUP($A29,'FITS calculation sheet'!$A23:$N$502,2,FALSE),"") ->  | Q29: =IF(P29<>"",IF('FITS calculation sheet'!L23>0,'FITS calculation sheet'!L23,"Not consumed"),"") ->  | R29: =IF(P29<>"",IF('FITS calculation sheet'!M23=0,0,ROUND('FITS calculation sheet'!M23,2-INT(LOG10(ABS('FITS calculation sheet'!M23))))),"") ->  | T29: =IF(P29<>"",'FITS calculation sheet'!O23,"") -> 
A30: 22 | B30: =IF(ISNUMBER(VLOOKUP($A30,'FITS calculation sheet'!$A24:$N$502,1,FALSE))=TRUE,VLOOKUP($A30,'FITS calculation sheet'!$A24:$N$502,2,FALSE),"") ->  | C30: =IF($B30<>"",IF('FITS calculation sheet'!D24>0,'FITS calculation sheet'!D24,"NC"),"") ->  | D30: =IF(B30<>"",IF('FITS calculation sheet'!E24=0,0,ROUND('FITS calculation sheet'!E24,2-INT(LOG10(ABS('FITS calculation sheet'!E24))))),"") ->  | F30: =IF($B30<>"",'FITS calculation sheet'!G24,"") ->  | I30: =IF(ISNUMBER(VLOOKUP($A30,'FITS calculation sheet'!$A24:$N$502,1,FALSE))=TRUE,VLOOKUP($A30,'FITS calculation sheet'!$A24:$N$502,2,FALSE),"") ->  | J30: =IF(I30<>"",IF('FITS calculation sheet'!H24>0,'FITS calculation sheet'!H24,"Not consumed"),"") ->  | K30: =IF(I30<>"",IF('FITS calculation sheet'!I24=0,0,ROUND('FITS calculation sheet'!I24,2-INT(LOG10(ABS('FITS calculation sheet'!I24))))),"") ->  | M30: =IF(I30<>"",'FITS calculation sheet'!K24,"") ->  | P30: =IF(ISNUMBER(VLOOKUP($A30,'FITS calculation sheet'!$A24:$N$502,1,FALSE))=TRUE,VLOOKUP($A30,'FITS calculation sheet'!$A24:$N$502,2,FALSE),"") ->  | Q30: =IF(P30<>"",IF('FITS calculation sheet'!L24>0,'FITS calculation sheet'!L24,"Not consumed"),"") ->  | R30: =IF(P30<>"",IF('FITS calculation sheet'!M24=0,0,ROUND('FITS calculation sheet'!M24,2-INT(LOG10(ABS('FITS calculation sheet'!M24))))),"") ->  | T30: =IF(P30<>"",'FITS calculation sheet'!O24,"") -> 
A31: 23 | B31: =IF(ISNUMBER(VLOOKUP($A31,'FITS calculation sheet'!$A25:$N$502,1,FALSE))=TRUE,VLOOKUP($A31,'FITS calculation sheet'!$A25:$N$502,2,FALSE),"") ->  | C31: =IF($B31<>"",IF('FITS calculation sheet'!D25>0,'FITS calculation sheet'!D25,"NC"),"") ->  | D31: =IF(B31<>"",IF('FITS calculation sheet'!E25=0,0,ROUND('FITS calculation sheet'!E25,2-INT(LOG10(ABS('FITS calculation sheet'!E25))))),"") ->  | F31: =IF($B31<>"",'FITS calculation sheet'!G25,"") ->  | I31: =IF(ISNUMBER(VLOOKUP($A31,'FITS calculation sheet'!$A25:$N$502,1,FALSE))=TRUE,VLOOKUP($A31,'FITS calculation sheet'!$A25:$N$502,2,FALSE),"") ->  | J31: =IF(I31<>"",IF('FITS calculation sheet'!H25>0,'FITS calculation sheet'!H25,"Not consumed"),"") ->  | K31: =IF(I31<>"",IF('FITS calculation sheet'!I25=0,0,ROUND('FITS calculation sheet'!I25,2-INT(LOG10(ABS('FITS calculation sheet'!I25))))),"") ->  | M31: =IF(I31<>"",'FITS calculation sheet'!K25,"") ->  | P31: =IF(ISNUMBER(VLOOKUP($A31,'FITS calculation sheet'!$A25:$N$502,1,FALSE))=TRUE,VLOOKUP($A31,'FITS calculation sheet'!$A25:$N$502,2,FALSE),"") ->  | Q31: =IF(P31<>"",IF('FITS calculation sheet'!L25>0,'FITS calculation sheet'!L25,"Not consumed"),"") ->  | R31: =IF(P31<>"",IF('FITS calculation sheet'!M25=0,0,ROUND('FITS calculation sheet'!M25,2-INT(LOG10(ABS('FITS calculation sheet'!M25))))),"") ->  | T31: =IF(P31<>"",'FITS calculation sheet'!O25,"") -> 
A32: 24 | B32: =IF(ISNUMBER(VLOOKUP($A32,'FITS calculation sheet'!$A26:$N$502,1,FALSE))=TRUE,VLOOKUP($A32,'FITS calculation sheet'!$A26:$N$502,2,FALSE),"") ->  | C32: =IF($B32<>"",IF('FITS calculation sheet'!D26>0,'FITS calculation sheet'!D26,"NC"),"") ->  | D32: =IF(B32<>"",IF('FITS calculation sheet'!E26=0,0,ROUND('FITS calculation sheet'!E26,2-INT(LOG10(ABS('FITS calculation sheet'!E26))))),"") ->  | F32: =IF($B32<>"",'FITS calculation sheet'!G26,"") ->  | I32: =IF(ISNUMBER(VLOOKUP($A32,'FITS calculation sheet'!$A26:$N$502,1,FALSE))=TRUE,VLOOKUP($A32,'FITS calculation sheet'!$A26:$N$502,2,FALSE),"") ->  | J32: =IF(I32<>"",IF('FITS calculation sheet'!H26>0,'FITS calculation sheet'!H26,"Not consumed"),"") ->  | K32: =IF(I32<>"",IF('FITS calculation sheet'!I26=0,0,ROUND('FITS calculation sheet'!I26,2-INT(LOG10(ABS('FITS calculation sheet'!I26))))),"") ->  | M32: =IF(I32<>"",'FITS calculation sheet'!K26,"") ->  | P32: =IF(ISNUMBER(VLOOKUP($A32,'FITS calculation sheet'!$A26:$N$502,1,FALSE))=TRUE,VLOOKUP($A32,'FITS calculation sheet'!$A26:$N$502,2,FALSE),"") ->  | Q32: =IF(P32<>"",IF('FITS calculation sheet'!L26>0,'FITS calculation sheet'!L26,"Not consumed"),"") ->  | R32: =IF(P32<>"",IF('FITS calculation sheet'!M26=0,0,ROUND('FITS calculation sheet'!M26,2-INT(LOG10(ABS('FITS calculation sheet'!M26))))),"") ->  | T32: =IF(P32<>"",'FITS calculation sheet'!O26,"") -> 
A33: 25 | B33: =IF(ISNUMBER(VLOOKUP($A33,'FITS calculation sheet'!$A27:$N$502,1,FALSE))=TRUE,VLOOKUP($A33,'FITS calculation sheet'!$A27:$N$502,2,FALSE),"") ->  | C33: =IF($B33<>"",IF('FITS calculation sheet'!D27>0,'FITS calculation sheet'!D27,"NC"),"") ->  | D33: =IF(B33<>"",IF('FITS calculation sheet'!E27=0,0,ROUND('FITS calculation sheet'!E27,2-INT(LOG10(ABS('FITS calculation sheet'!E27))))),"") ->  | F33: =IF($B33<>"",'FITS calculation sheet'!G27,"") ->  | I33: =IF(ISNUMBER(VLOOKUP($A33,'FITS calculation sheet'!$A27:$N$502,1,FALSE))=TRUE,VLOOKUP($A33,'FITS calculation sheet'!$A27:$N$502,2,FALSE),"") ->  | J33: =IF(I33<>"",IF('FITS calculation sheet'!H27>0,'FITS calculation sheet'!H27,"Not consumed"),"") ->  | K33: =IF(I33<>"",IF('FITS calculation sheet'!I27=0,0,ROUND('FITS calculation sheet'!I27,2-INT(LOG10(ABS('FITS calculation sheet'!I27))))),"") ->  | M33: =IF(I33<>"",'FITS calculation sheet'!K27,"") ->  | P33: =IF(ISNUMBER(VLOOKUP($A33,'FITS calculation sheet'!$A27:$N$502,1,FALSE))=TRUE,VLOOKUP($A33,'FITS calculation sheet'!$A27:$N$502,2,FALSE),"") ->  | Q33: =IF(P33<>"",IF('FITS calculation sheet'!L27>0,'FITS calculation sheet'!L27,"Not consumed"),"") ->  | R33: =IF(P33<>"",IF('FITS calculation sheet'!M27=0,0,ROUND('FITS calculation sheet'!M27,2-INT(LOG10(ABS('FITS calculation sheet'!M27))))),"") ->  | T33: =IF(P33<>"",'FITS calculation sheet'!O27,"") -> 
A34: 26 | B34: =IF(ISNUMBER(VLOOKUP($A34,'FITS calculation sheet'!$A28:$N$502,1,FALSE))=TRUE,VLOOKUP($A34,'FITS calculation sheet'!$A28:$N$502,2,FALSE),"") ->  | C34: =IF($B34<>"",IF('FITS calculation sheet'!D28>0,'FITS calculation sheet'!D28,"NC"),"") ->  | D34: =IF(B34<>"",IF('FITS calculation sheet'!E28=0,0,ROUND('FITS calculation sheet'!E28,2-INT(LOG10(ABS('FITS calculation sheet'!E28))))),"") ->  | F34: =IF($B34<>"",'FITS calculation sheet'!G28,"") ->  | I34: =IF(ISNUMBER(VLOOKUP($A34,'FITS calculation sheet'!$A28:$N$502,1,FALSE))=TRUE,VLOOKUP($A34,'FITS calculation sheet'!$A28:$N$502,2,FALSE),"") ->  | J34: =IF(I34<>"",IF('FITS calculation sheet'!H28>0,'FITS calculation sheet'!H28,"Not consumed"),"") ->  | K34: =IF(I34<>"",IF('FITS calculation sheet'!I28=0,0,ROUND('FITS calculation sheet'!I28,2-INT(LOG10(ABS('FITS calculation sheet'!I28))))),"") ->  | M34: =IF(I34<>"",'FITS calculation sheet'!K28,"") ->  | P34: =IF(ISNUMBER(VLOOKUP($A34,'FITS calculation sheet'!$A28:$N$502,1,FALSE))=TRUE,VLOOKUP($A34,'FITS calculation sheet'!$A28:$N$502,2,FALSE),"") ->  | Q34: =IF(P34<>"",IF('FITS calculation sheet'!L28>0,'FITS calculation sheet'!L28,"Not consumed"),"") ->  | R34: =IF(P34<>"",IF('FITS calculation sheet'!M28=0,0,ROUND('FITS calculation sheet'!M28,2-INT(LOG10(ABS('FITS calculation sheet'!M28))))),"") ->  | T34: =IF(P34<>"",'FITS calculation sheet'!O28,"") -> 
A35: 27 | B35: =IF(ISNUMBER(VLOOKUP($A35,'FITS calculation sheet'!$A29:$N$502,1,FALSE))=TRUE,VLOOKUP($A35,'FITS calculation sheet'!$A29:$N$502,2,FALSE),"") ->  | C35: =IF($B35<>"",IF('FITS calculation sheet'!D29>0,'FITS calculation sheet'!D29,"NC"),"") ->  | D35: =IF(B35<>"",IF('FITS calculation sheet'!E29=0,0,ROUND('FITS calculation sheet'!E29,2-INT(LOG10(ABS('FITS calculation sheet'!E29))))),"") ->  | F35: =IF($B35<>"",'FITS calculation sheet'!G29,"") ->  | I35: =IF(ISNUMBER(VLOOKUP($A35,'FITS calculation sheet'!$A29:$N$502,1,FALSE))=TRUE,VLOOKUP($A35,'FITS calculation sheet'!$A29:$N$502,2,FALSE),"") ->  | J35: =IF(I35<>"",IF('FITS calculation sheet'!H29>0,'FITS calculation sheet'!H29,"Not consumed"),"") ->  | K35: =IF(I35<>"",IF('FITS calculation sheet'!I29=0,0,ROUND('FITS calculation sheet'!I29,2-INT(LOG10(ABS('FITS calculation sheet'!I29))))),"") ->  | M35: =IF(I35<>"",'FITS calculation sheet'!K29,"") ->  | P35: =IF(ISNUMBER(VLOOKUP($A35,'FITS calculation sheet'!$A29:$N$502,1,FALSE))=TRUE,VLOOKUP($A35,'FITS calculation sheet'!$A29:$N$502,2,FALSE),"") ->  | Q35: =IF(P35<>"",IF('FITS calculation sheet'!L29>0,'FITS calculation sheet'!L29,"Not consumed"),"") ->  | R35: =IF(P35<>"",IF('FITS calculation sheet'!M29=0,0,ROUND('FITS calculation sheet'!M29,2-INT(LOG10(ABS('FITS calculation sheet'!M29))))),"") ->  | T35: =IF(P35<>"",'FITS calculation sheet'!O29,"") -> 
A36: 28 | B36: =IF(ISNUMBER(VLOOKUP($A36,'FITS calculation sheet'!$A30:$N$502,1,FALSE))=TRUE,VLOOKUP($A36,'FITS calculation sheet'!$A30:$N$502,2,FALSE),"") ->  | C36: =IF($B36<>"",IF('FITS calculation sheet'!D30>0,'FITS calculation sheet'!D30,"NC"),"") ->  | D36: =IF(B36<>"",IF('FITS calculation sheet'!E30=0,0,ROUND('FITS calculation sheet'!E30,2-INT(LOG10(ABS('FITS calculation sheet'!E30))))),"") ->  | F36: =IF($B36<>"",'FITS calculation sheet'!G30,"") ->  | I36: =IF(ISNUMBER(VLOOKUP($A36,'FITS calculation sheet'!$A30:$N$502,1,FALSE))=TRUE,VLOOKUP($A36,'FITS calculation sheet'!$A30:$N$502,2,FALSE),"") ->  | J36: =IF(I36<>"",IF('FITS calculation sheet'!H30>0,'FITS calculation sheet'!H30,"Not consumed"),"") ->  | K36: =IF(I36<>"",IF('FITS calculation sheet'!I30=0,0,ROUND('FITS calculation sheet'!I30,2-INT(LOG10(ABS('FITS calculation sheet'!I30))))),"") ->  | M36: =IF(I36<>"",'FITS calculation sheet'!K30,"") ->  | P36: =IF(ISNUMBER(VLOOKUP($A36,'FITS calculation sheet'!$A30:$N$502,1,FALSE))=TRUE,VLOOKUP($A36,'FITS calculation sheet'!$A30:$N$502,2,FALSE),"") ->  | Q36: =IF(P36<>"",IF('FITS calculation sheet'!L30>0,'FITS calculation sheet'!L30,"Not consumed"),"") ->  | R36: =IF(P36<>"",IF('FITS calculation sheet'!M30=0,0,ROUND('FITS calculation sheet'!M30,2-INT(LOG10(ABS('FITS calculation sheet'!M30))))),"") ->  | T36: =IF(P36<>"",'FITS calculation sheet'!O30,"") -> 
A37: 29 | B37: =IF(ISNUMBER(VLOOKUP($A37,'FITS calculation sheet'!$A31:$N$502,1,FALSE))=TRUE,VLOOKUP($A37,'FITS calculation sheet'!$A31:$N$502,2,FALSE),"") ->  | C37: =IF($B37<>"",IF('FITS calculation sheet'!D31>0,'FITS calculation sheet'!D31,"NC"),"") ->  | D37: =IF(B37<>"",IF('FITS calculation sheet'!E31=0,0,ROUND('FITS calculation sheet'!E31,2-INT(LOG10(ABS('FITS calculation sheet'!E31))))),"") ->  | F37: =IF($B37<>"",'FITS calculation sheet'!G31,"") ->  | I37: =IF(ISNUMBER(VLOOKUP($A37,'FITS calculation sheet'!$A31:$N$502,1,FALSE))=TRUE,VLOOKUP($A37,'FITS calculation sheet'!$A31:$N$502,2,FALSE),"") ->  | J37: =IF(I37<>"",IF('FITS calculation sheet'!H31>0,'FITS calculation sheet'!H31,"Not consumed"),"") ->  | K37: =IF(I37<>"",IF('FITS calculation sheet'!I31=0,0,ROUND('FITS calculation sheet'!I31,2-INT(LOG10(ABS('FITS calculation sheet'!I31))))),"") ->  | M37: =IF(I37<>"",'FITS calculation sheet'!K31,"") ->  | P37: =IF(ISNUMBER(VLOOKUP($A37,'FITS calculation sheet'!$A31:$N$502,1,FALSE))=TRUE,VLOOKUP($A37,'FITS calculation sheet'!$A31:$N$502,2,FALSE),"") ->  | Q37: =IF(P37<>"",IF('FITS calculation sheet'!L31>0,'FITS calculation sheet'!L31,"Not consumed"),"") ->  | R37: =IF(P37<>"",IF('FITS calculation sheet'!M31=0,0,ROUND('FITS calculation sheet'!M31,2-INT(LOG10(ABS('FITS calculation sheet'!M31))))),"") ->  | T37: =IF(P37<>"",'FITS calculation sheet'!O31,"") -> 
A38: 30 | B38: =IF(ISNUMBER(VLOOKUP($A38,'FITS calculation sheet'!$A32:$N$502,1,FALSE))=TRUE,VLOOKUP($A38,'FITS calculation sheet'!$A32:$N$502,2,FALSE),"") ->  | C38: =IF($B38<>"",IF('FITS calculation sheet'!D32>0,'FITS calculation sheet'!D32,"NC"),"") ->  | D38: =IF(B38<>"",IF('FITS calculation sheet'!E32=0,0,ROUND('FITS calculation sheet'!E32,2-INT(LOG10(ABS('FITS calculation sheet'!E32))))),"") ->  | F38: =IF($B38<>"",'FITS calculation sheet'!G32,"") ->  | I38: =IF(ISNUMBER(VLOOKUP($A38,'FITS calculation sheet'!$A32:$N$502,1,FALSE))=TRUE,VLOOKUP($A38,'FITS calculation sheet'!$A32:$N$502,2,FALSE),"") ->  | J38: =IF(I38<>"",IF('FITS calculation sheet'!H32>0,'FITS calculation sheet'!H32,"Not consumed"),"") ->  | K38: =IF(I38<>"",IF('FITS calculation sheet'!I32=0,0,ROUND('FITS calculation sheet'!I32,2-INT(LOG10(ABS('FITS calculation sheet'!I32))))),"") ->  | M38: =IF(I38<>"",'FITS calculation sheet'!K32,"") ->  | P38: =IF(ISNUMBER(VLOOKUP($A38,'FITS calculation sheet'!$A32:$N$502,1,FALSE))=TRUE,VLOOKUP($A38,'FITS calculation sheet'!$A32:$N$502,2,FALSE),"") ->  | Q38: =IF(P38<>"",IF('FITS calculation sheet'!L32>0,'FITS calculation sheet'!L32,"Not consumed"),"") ->  | R38: =IF(P38<>"",IF('FITS calculation sheet'!M32=0,0,ROUND('FITS calculation sheet'!M32,2-INT(LOG10(ABS('FITS calculation sheet'!M32))))),"") ->  | T38: =IF(P38<>"",'FITS calculation sheet'!O32,"") -> 

Sheet Default PTDI (hidden)
A1: Compound | B1: PTDI | C1: Units | D1: Type | E1: Compound | F1: Fraction assigned to background | H1: Rationale
A2: Inorganic Arsenic | B2: 0.3 | C2: ug/kg/day | D2: =A2&" FDA TDI" -> Inorganic Arsenic FDA TDI | E2: =A2 -> Inorganic Arsenic | F2: 0.285 | G2: =C2 -> ug/kg/day | H2: 95% Exponent assigned default
A3: Cadmium | B3: 0.83 | C3: ug/kg/day | D3: =A3&" JECFA PTDI" -> Cadmium JECFA PTDI | E3: =A3&" mean from food" -> Cadmium mean from food | F3: =0.19+ 0.17 -> 0.36 | G3: =C3 -> ug/kg/day | H3: ="0.19 (average from food, TDS) + 0.17 (bottled water limit, FDA 2007)" -> 0.19 (average from food, TDS) + 0.17 (bottled water limit, FDA 2007)
A4: Cadmium | B4: 0.83 | C4: ug/kg/day | D4: =A4&" JECFA PTDI" -> Cadmium JECFA PTDI | E4: =A4&" 90th Ptile food" -> Cadmium 90th Ptile food | F4: =0.36+ 0.17 -> 0.53 | G4: =C4 -> ug/kg/day | H4: ="0.36 (90th percentile from food, TDS) + 0.17 (bottled water limit, FDA 2007)" -> 0.36 (90th percentile from food, TDS) + 0.17 (bottled water limit, FDA 2007)
A5: Chromium III | B5: 250 | C5: ug/day | D5: =A5&" EFSA/WHO TUL" -> Chromium III EFSA/WHO TUL | E5: =A5 -> Chromium III | F5: =54+7.2 -> 61.2 | G5: =C5 -> ug/day | H5: ="54 (food, IOM) + 7.2 (water, ATSDR 2008)" -> 54 (food, IOM) + 7.2 (water, ATSDR 2008)
A6: Chromium VI | B6: 0.9 | C6: ug/kg/day | D6: =A6& " EPA RfD" -> Chromium VI EPA RfD | E6: =A6 -> Chromium VI | F6: =0.95*B6 -> 0.855 | G6: =C6 -> ug/kg/day | H6: ="WHO 1996 Limit (1.7 ug/kg/d) exceeds RfD, Exponent default: 95% to background" -> WHO 1996 Limit (1.7 ug/kg/d) exceeds RfD, Exponent default: 95% to background
A7: Lead_1 | B7: 6 | C7: ug/day | D7: ="Children (0-6 y) - Lead FDA PTTI" -> Children (0-6 y) - Lead FDA PTTI | E7: Lead - Children 0-6y | F7: =0.5*B7 -> 3 | G7: ug/day | H7: 50% Exponent assigned default
A8: Lead_2 | B8: 15 | C8: ug/day | D8: ="Children (7+ y) - Lead FDA PTTI" -> Children (7+ y) - Lead FDA PTTI | E8: Lead - Children 7+y | F8: =0.5*B8 -> 7.5 | G8: ug/day | H8: 50% Exponent assigned default
A9: Lead_3 | B9: 25 | C9: ug/day | D9: ="Pregn & lact Females - Lead FDA PTTI" -> Pregn & lact Females - Lead FDA PTTI | E9: Lead - Preg & lact Females | F9: =0.5*B9 -> 12.5 | G9: ug/day | H9: 50% Exponent assigned default
A10: Lead_4 | B10: 75 | C10: ug/day | D10: ="Adults - Lead FDA PTTI" -> Adults - Lead FDA PTTI | E10: Lead - Adults | F10: =B10/3 -> 25 | G10: ug/day | H10: 1/3 Exponent assigned default
A11: Mercury | B11: 0.57 | C11: ug/kg/day | D11: =A11&" JECFA PTDI" -> Mercury JECFA PTDI | E11: =A11&" mean from food" -> Mercury mean from food | F11: =ROUND(0.06+0.067,2) -> 0.13 | G11: =C11 -> ug/kg/day | H11: ="0.060 (average from food, TDS) + 0.067 (bottled water limit, FDA 2007)" -> 0.060 (average from food, TDS) + 0.067 (bottled water limit, FDA 2007)
A12: Mercury | B12: 0.57 | C12: ug/kg/day | D12: =A12&" JECFA PTDI" -> Mercury JECFA PTDI | E12: =A12&" 90th Ptile food" -> Mercury 90th Ptile food | F12: =ROUND(0.14+0.067,2) -> 0.21 | G12: ug/kg/day | H12: ="0.14 (90th percentile from food, TDS) + 0.067 (bottled water limit, FDA 2007)" -> 0.14 (90th percentile from food, TDS) + 0.067 (bottled water limit, FDA 2007)
B17: compound | C17: units
B18: Inorganic Arsenic | C18: =G2 -> ug/kg/day
B19: Cadmium | C19: =G3 -> ug/kg/day
B20: Chromium III | C20: =G5 -> ug/day
B21: Chromium VI | C21: =G6 -> ug/kg/day
B22: Lead | C22: =G10 -> ug/day
B23: Mercury | C23: =G12 -> ug/kg/day

Sheet age grps (hidden)
A2: Proposal | B2: Lead | C2: Tool | D2: Default BW (kg) | G2: FITS age groups | H2: Default BW (kg)
A3: US 2+ | B3: Adults | C3: US 2+ | D3: =D28 -> 71.7 | G3: 4-5m | H3: =D36 -> 7.7
A4: Inf 6m-2y | B4: Children (0-6 y) | C4: Inf 6m-2y | D4: =D14 -> 10.5 | G4: 6-8m | H4: =D37 -> 8.5
A5: Kids 2-12 | C5: Kids 2-6 | D5: =D13 -> 18.5 | G5: 9-11m | H5: =D38 -> 9.6
B6: Children (7+ y) | C6: Kids 7-12 | D6: =D15 -> 39.2 | G6: 12-14m | H6: =D33 -> 10.2
B7: Pregn & lact Females | C7: WCBA | D7: =D22 -> 72.3 | G7: 15-18m | H7: =D34 -> 11
G8: 19-24 | H8: =D35 -> 12.2
A9: BW data from NHANES 2005-10
A10: Row Labels | B10: Sum of MEC wgt * BW | C10: Sum of WTMEC2YR
A11: <6m | B11: 39088757.15 | C11: 6063021.885 | D11: =ROUND(B11/C11,1) -> 6.4
A12: 13+y | B12: 5.793537108e+10 | C12: 730066420.5 | D12: =ROUND(B12/C12,1) -> 79.4
A13: 2-6y | B13: 1121264622 | C13: 60515657.92 | D13: 18.5
A14: 6m-2y | B14: 205921242 | C14: 19533748.32 | D14: 10.5
A15: 7-12y | B15: 2829415091 | C15: 72106962.51 | D15: 39.2
A16: Grand Total | B16: 6.213106079e+10 | C16: 888285811.2
A20: Row Labels | B20: Sum of MEC wgt * BW | C20: Sum of WTMEC2YR
A21: F<14 | B21: 2366589139 | C21: 82939629.75 | D21: =ROUND(B21/C21,1) -> 28.5
A22: Fem 14-45 | B22: 1.44850455e+10 | C22: 200315289 | D22: 72.3
A23: Fem>45 | B23: 1.271413036e+10 | C23: 170137194.2 | D23: 74.7
A24: M | B24: 3.256529579e+10 | C24: 434893698.2 | D24: 74.9
A25: Grand Total | B25: 6.213106079e+10 | C25: 888285811.2
A27: Sum of MEC wgt * BW | B27: Sum of WTMEC2YR | C27: 2+yrs old
A28: 6.188605079e+10 | B28: 862689041 | D28: =ROUND(A28/B28,1) -> 71.7
A30: Row Labels | B30: Sum of MEC wgt * BW | C30: Sum of WTMEC2YR
A31: <4m | B31: 23097623.17 | C31: 3987280.545 | D31: =ROUND(B31/C31,1) -> 5.8
A32: >24m | B32: 6.187353447e+10 | C32: 861698804.8 | D32: 71.8
A33: 12-14m | B33: 31935727.43 | C33: 3127168.273 | D33: 10.2
A34: 15-18m | B34: 53536171.92 | C34: 4881118.239 | D34: 11
A35: 19-24m | B35: 75263690.39 | C35: 6153167.633 | D35: 12.2
A36: 4-5m | B36: 15991133.98 | C36: 2075741.34 | D36: 7.7
A37: 6-8m | B37: 25180533.13 | C37: 2968949.368 | D37: 8.5
A38: 9-11m | B38: 32521441.57 | C38: 3393580.932 | D38: 9.6
A39: Grand Total | B39: 6.213106079e+10 | C39: 888285811.2

Sheet Sheet2 (hidden)
A1: Consumption data | L1: DefaultPTDI/Fraction?
A2: data sheet | B2: Food consumption data | C2: NA | D2: NA | E2: NA | F2: datasheet_C | G2: Data sheet_A | L2: Yes
A3: CFRBroad | B3: CFR (categories) | C3: NA | D3: NA | E3: NA | F3: =A3&"_C" -> CFRBroad_C | G3: =A3&"_A" -> CFRBroad_A | L3: No
A4: CFRRefined | B4: CFR (sub-categories) | C4: NA | D4: NA | E4: NA | F4: =A4&"_C" -> CFRRefined_C | G4: =A4&"_A" -> CFRRefined_A
A5: FCID | B5: Raw Agricultural Commodities | C5: NA | D5: NA | E5: NA | F5: =A5&"_C" -> FCID_C | G5: =A5&"_A" -> FCID_A
A6: TDS | B6: TDS (per capita only) | C6: NA | D6: NA | E6: NA | F6: =A6&"_C" -> TDS_C | G6: =A6&"_A" -> TDS_A | H6: not TDS per user not applicable
A7: FITS1 | B7: FITS data (4-11m) | C7: NA | D7: NA | E7: NA | F7: FITS1_C | G7: FITS1_A
A8: FITS2 | B8: FITS data (12-24m) | C8: NA | D8: NA | E8: NA | F8: FITS2_C | G8: FITS2_A
C9: don’t delete empty column | F9: C=per capita intake | G9: A=per user intake
L10: Select Food
L11: Yes
D15: matrix
A16: Compound | D16: Finished product | F16: measured arsenic
A17: Inorganic Arsenic | D17: Ingredient | F17: Total arsenic
A18: Cadmium | F18: Inorganic arsenic
A19: Chromium III
A20: Chromium VI
A21: Lead | D21: Cadmium/mecury background
A22: Mercury | D22: Mean
D23: 90th percentile

Sheet per serving calculations (hidden)
A1: Used? | B1: ='Module 2-Step 1'!B9 -> CFR (categories) | C1: Concentration | D1: serving | E1: intake per serving | F1: per capita intake (US pop) | G1: per capita intake (infants) | H1: per capita intake (k2-6) | I1: per capita intake (k7-12) | J1: per capita intake (f14-45) | K1: per capita intake (US pop) | L1: per capita intake (infants) | M1: per capita intake (k2-6) | N1: per capita intake (k7-12) | O1: per capita intake (f14-45)
A2: =IF(C2>0,1,0) -> 0 | B2: ='Module 2-Step 2'!B11 ->  | C2: =IF(B2<>"",IF(LEFT(B$1,3)="CFR",VLOOKUP(B2,'for concentration'!A$4:E$503,5,FALSE),0),0) -> 0 | D2: =IF(C2>0,IF('Module 2-Step 3'!F7>0,'Module 2-Step 3'!F7,'Module 2-Step 3'!D7),0) -> 0 | E2: =D2*C2 -> 0 | F2: =IF($A2>0,IF(K$502>0,K2/K$502,"NC"),"") ->  | G2: =IF($A2>0,IF(L$502>0,L2/L$502,"NC"),"") ->  | K2: =IF($A2>0,VLOOKUP($B2,'calculation sheet_per capita'!$A$4:$G$503,3, FALSE),"") ->  | L2: =IF($A2>0,VLOOKUP($B2,'calculation sheet_per capita'!$A$4:$G$503,4, FALSE),"") ->  | M2: =IF($A2>0,VLOOKUP($B2,'calculation sheet_per capita'!$A$4:$G$503,5, FALSE),"") ->  | N2: =IF($A2>0,VLOOKUP($B2,'calculation sheet_per capita'!$A$4:$G$503,6, FALSE),"") ->  | O2: =IF($A2>0,VLOOKUP($B2,'calculation sheet_per capita'!$A$4:$G$503,7, FALSE),"") -> 
A3: =IF(C3>0,MAX(A$2:A2)+1,0) -> 0 | B3: ='Module 2-Step 2'!B12 ->  | C3: =IF(B3<>"",IF(LEFT(B$1,3)="CFR",VLOOKUP(B3,'for concentration'!A$4:E$503,5,FALSE),0),0) -> 0 | D3: =IF(C3>0,IF('Module 2-Step 3'!F8>0,'Module 2-Step 3'!F8,'Module 2-Step 3'!D8),0) -> 0 | E3: 0 | F3: =IF($A3>0,IF(K$502>0,K3/K$502,"NC"),"") ->  | K3: =IF($A3>0,VLOOKUP($B3,'calculation sheet_per capita'!$A$4:$G$503,3, FALSE),"") ->  | L3: =IF($A3>0,VLOOKUP($B3,'calculation sheet_per capita'!$A$4:$G$503,4, FALSE),"") ->  | M3: =IF($A3>0,VLOOKUP($B3,'calculation sheet_per capita'!$A$4:$G$503,5, FALSE),"") ->  | N3: =IF($A3>0,VLOOKUP($B3,'calculation sheet_per capita'!$A$4:$G$503,6, FALSE),"") ->  | O3: =IF($A3>0,VLOOKUP($B3,'calculation sheet_per capita'!$A$4:$G$503,7, FALSE),"") -> 
A4: =IF(C4>0,MAX(A$2:A3)+1,0) -> 0 | B4: ='Module 2-Step 2'!B13 ->  | C4: =IF(B4<>"",IF(LEFT(B$1,3)="CFR",VLOOKUP(B4,'for concentration'!A$4:E$503,5,FALSE),0),0) -> 0 | D4: =IF(C4>0,IF('Module 2-Step 3'!F9>0,'Module 2-Step 3'!F9,'Module 2-Step 3'!D9),0) -> 0 | E4: 0 | K4: =IF($A4>0,VLOOKUP($B4,'calculation sheet_per capita'!$A$4:$G$503,3, FALSE),"") ->  | L4: =IF($A4>0,VLOOKUP($B4,'calculation sheet_per capita'!$A$4:$G$503,4, FALSE),"") ->  | M4: =IF($A4>0,VLOOKUP($B4,'calculation sheet_per capita'!$A$4:$G$503,5, FALSE),"") ->  | N4: =IF($A4>0,VLOOKUP($B4,'calculation sheet_per capita'!$A$4:$G$503,6, FALSE),"") ->  | O4: =IF($A4>0,VLOOKUP($B4,'calculation sheet_per capita'!$A$4:$G$503,7, FALSE),"") -> 
A5: =IF(C5>0,MAX(A$2:A4)+1,0) -> 0 | B5: ='Module 2-Step 2'!B14 ->  | C5: =IF(B5<>"",IF(LEFT(B$1,3)="CFR",VLOOKUP(B5,'for concentration'!A$4:E$503,5,FALSE),0),0) -> 0 | D5: =IF(C5>0,IF('Module 2-Step 3'!F10>0,'Module 2-Step 3'!F10,'Module 2-Step 3'!D10),0) -> 0 | E5: 0 | K5: =IF($A5>0,VLOOKUP($B5,'calculation sheet_per capita'!$A$4:$G$503,3, FALSE),"") ->  | L5: =IF($A5>0,VLOOKUP($B5,'calculation sheet_per capita'!$A$4:$G$503,4, FALSE),"") ->  | M5: =IF($A5>0,VLOOKUP($B5,'calculation sheet_per capita'!$A$4:$G$503,5, FALSE),"") ->  | N5: =IF($A5>0,VLOOKUP($B5,'calculation sheet_per capita'!$A$4:$G$503,6, FALSE),"") ->  | O5: =IF($A5>0,VLOOKUP($B5,'calculation sheet_per capita'!$A$4:$G$503,7, FALSE),"") -> 
A6: =IF(C6>0,MAX(A$2:A5)+1,0) -> 0 | B6: ='Module 2-Step 2'!B15 ->  | C6: =IF(B6<>"",IF(LEFT(B$1,3)="CFR",VLOOKUP(B6,'for concentration'!A$4:E$503,5,FALSE),0),0) -> 0 | D6: =IF(C6>0,IF('Module 2-Step 3'!F11>0,'Module 2-Step 3'!F11,'Module 2-Step 3'!D11),0) -> 0 | E6: 0 | K6: =IF($A6>0,VLOOKUP($B6,'calculation sheet_per capita'!$A$4:$G$503,3, FALSE),"") ->  | L6: =IF($A6>0,VLOOKUP($B6,'calculation sheet_per capita'!$A$4:$G$503,4, FALSE),"") ->  | M6: =IF($A6>0,VLOOKUP($B6,'calculation sheet_per capita'!$A$4:$G$503,5, FALSE),"") ->  | N6: =IF($A6>0,VLOOKUP($B6,'calculation sheet_per capita'!$A$4:$G$503,6, FALSE),"") ->  | O6: =IF($A6>0,VLOOKUP($B6,'calculation sheet_per capita'!$A$4:$G$503,7, FALSE),"") -> 
A7: =IF(C7>0,MAX(A$2:A6)+1,0) -> 0 | B7: ='Module 2-Step 2'!B16 ->  | C7: =IF(B7<>"",IF(LEFT(B$1,3)="CFR",VLOOKUP(B7,'for concentration'!A$4:E$503,5,FALSE),0),0) -> 0 | D7: =IF(C7>0,IF('Module 2-Step 3'!F12>0,'Module 2-Step 3'!F12,'Module 2-Step 3'!D12),0) -> 0 | E7: 0 | K7: =IF($A7>0,VLOOKUP($B7,'calculation sheet_per capita'!$A$4:$G$503,3, FALSE),"") ->  | L7: =IF($A7>0,VLOOKUP($B7,'calculation sheet_per capita'!$A$4:$G$503,4, FALSE),"") ->  | M7: =IF($A7>0,VLOOKUP($B7,'calculation sheet_per capita'!$A$4:$G$503,5, FALSE),"") ->  | N7: =IF($A7>0,VLOOKUP($B7,'calculation sheet_per capita'!$A$4:$G$503,6, FALSE),"") ->  | O7: =IF($A7>0,VLOOKUP($B7,'calculation sheet_per capita'!$A$4:$G$503,7, FALSE),"") -> 
A8: =IF(C8>0,MAX(A$2:A7)+1,0) -> 0 | B8: ='Module 2-Step 2'!B17 ->  | C8: =IF(B8<>"",IF(LEFT(B$1,3)="CFR",VLOOKUP(B8,'for concentration'!A$4:E$503,5,FALSE),0),0) -> 0 | D8: =IF(C8>0,IF('Module 2-Step 3'!F13>0,'Module 2-Step 3'!F13,'Module 2-Step 3'!D13),0) -> 0 | E8: 0 | K8: =IF($A8>0,VLOOKUP($B8,'calculation sheet_per capita'!$A$4:$G$503,3, FALSE),"") ->  | L8: =IF($A8>0,VLOOKUP($B8,'calculation sheet_per capita'!$A$4:$G$503,4, FALSE),"") ->  | M8: =IF($A8>0,VLOOKUP($B8,'calculation sheet_per capita'!$A$4:$G$503,5, FALSE),"") ->  | N8: =IF($A8>0,VLOOKUP($B8,'calculation sheet_per capita'!$A$4:$G$503,6, FALSE),"") ->  | O8: =IF($A8>0,VLOOKUP($B8,'calculation sheet_per capita'!$A$4:$G$503,7, FALSE),"") -> 
A9: =IF(C9>0,MAX(A$2:A8)+1,0) -> 0 | B9: ='Module 2-Step 2'!B18 ->  | C9: =IF(B9<>"",IF(LEFT(B$1,3)="CFR",VLOOKUP(B9,'for concentration'!A$4:E$503,5,FALSE),0),0) -> 0 | D9: =IF(C9>0,IF('Module 2-Step 3'!F14>0,'Module 2-Step 3'!F14,'Module 2-Step 3'!D14),0) -> 0 | E9: 0 | K9: =IF($A9>0,VLOOKUP($B9,'calculation sheet_per capita'!$A$4:$G$503,3, FALSE),"") ->  | L9: =IF($A9>0,VLOOKUP($B9,'calculation sheet_per capita'!$A$4:$G$503,4, FALSE),"") ->  | M9: =IF($A9>0,VLOOKUP($B9,'calculation sheet_per capita'!$A$4:$G$503,5, FALSE),"") ->  | N9: =IF($A9>0,VLOOKUP($B9,'calculation sheet_per capita'!$A$4:$G$503,6, FALSE),"") ->  | O9: =IF($A9>0,VLOOKUP($B9,'calculation sheet_per capita'!$A$4:$G$503,7, FALSE),"") -> 
A10: =IF(C10>0,MAX(A$2:A9)+1,0) -> 0 | B10: ='Module 2-Step 2'!B19 ->  | C10: =IF(B10<>"",IF(LEFT(B$1,3)="CFR",VLOOKUP(B10,'for concentration'!A$4:E$503,5,FALSE),0),0) -> 0 | D10: =IF(C10>0,IF('Module 2-Step 3'!F15>0,'Module 2-Step 3'!F15,'Module 2-Step 3'!D15),0) -> 0 | E10: 0 | K10: =IF($A10>0,VLOOKUP($B10,'calculation sheet_per capita'!$A$4:$G$503,3, FALSE),"") ->  | L10: =IF($A10>0,VLOOKUP($B10,'calculation sheet_per capita'!$A$4:$G$503,4, FALSE),"") ->  | M10: =IF($A10>0,VLOOKUP($B10,'calculation sheet_per capita'!$A$4:$G$503,5, FALSE),"") ->  | N10: =IF($A10>0,VLOOKUP($B10,'calculation sheet_per capita'!$A$4:$G$503,6, FALSE),"") ->  | O10: =IF($A10>0,VLOOKUP($B10,'calculation sheet_per capita'!$A$4:$G$503,7, FALSE),"") -> 
A11: =IF(C11>0,MAX(A$2:A10)+1,0) -> 0 | B11: ='Module 2-Step 2'!B20 ->  | C11: =IF(B11<>"",IF(LEFT(B$1,3)="CFR",VLOOKUP(B11,'for concentration'!A$4:E$503,5,FALSE),0),0) -> 0 | D11: =IF(C11>0,IF('Module 2-Step 3'!F16>0,'Module 2-Step 3'!F16,'Module 2-Step 3'!D16),0) -> 0 | E11: 0 | K11: =IF($A11>0,VLOOKUP($B11,'calculation sheet_per capita'!$A$4:$G$503,3, FALSE),"") ->  | L11: =IF($A11>0,VLOOKUP($B11,'calculation sheet_per capita'!$A$4:$G$503,4, FALSE),"") ->  | M11: =IF($A11>0,VLOOKUP($B11,'calculation sheet_per capita'!$A$4:$G$503,5, FALSE),"") ->  | N11: =IF($A11>0,VLOOKUP($B11,'calculation sheet_per capita'!$A$4:$G$503,6, FALSE),"") ->  | O11: =IF($A11>0,VLOOKUP($B11,'calculation sheet_per capita'!$A$4:$G$503,7, FALSE),"") -> 
A12: =IF(C12>0,MAX(A$2:A11)+1,0) -> 0 | B12: ='Module 2-Step 2'!B21 ->  | C12: =IF(B12<>"",IF(LEFT(B$1,3)="CFR",VLOOKUP(B12,'for concentration'!A$4:E$503,5,FALSE),0),0) -> 0 | D12: =IF(C12>0,IF('Module 2-Step 3'!F17>0,'Module 2-Step 3'!F17,'Module 2-Step 3'!D17),0) -> 0 | E12: 0 | K12: =IF($A12>0,VLOOKUP($B12,'calculation sheet_per capita'!$A$4:$G$503,3, FALSE),"") ->  | L12: =IF($A12>0,VLOOKUP($B12,'calculation sheet_per capita'!$A$4:$G$503,4, FALSE),"") ->  | M12: =IF($A12>0,VLOOKUP($B12,'calculation sheet_per capita'!$A$4:$G$503,5, FALSE),"") ->  | N12: =IF($A12>0,VLOOKUP($B12,'calculation sheet_per capita'!$A$4:$G$503,6, FALSE),"") ->  | O12: =IF($A12>0,VLOOKUP($B12,'calculation sheet_per capita'!$A$4:$G$503,7, FALSE),"") -> 
A13: =IF(C13>0,MAX(A$2:A12)+1,0) -> 0 | B13: ='Module 2-Step 2'!B22 ->  | C13: =IF(B13<>"",IF(LEFT(B$1,3)="CFR",VLOOKUP(B13,'for concentration'!A$4:E$503,5,FALSE),0),0) -> 0 | D13: =IF(C13>0,IF('Module 2-Step 3'!F18>0,'Module 2-Step 3'!F18,'Module 2-Step 3'!D18),0) -> 0 | E13: 0 | K13: =IF($A13>0,VLOOKUP($B13,'calculation sheet_per capita'!$A$4:$G$503,3, FALSE),"") ->  | L13: =IF($A13>0,VLOOKUP($B13,'calculation sheet_per capita'!$A$4:$G$503,4, FALSE),"") ->  | M13: =IF($A13>0,VLOOKUP($B13,'calculation sheet_per capita'!$A$4:$G$503,5, FALSE),"") ->  | N13: =IF($A13>0,VLOOKUP($B13,'calculation sheet_per capita'!$A$4:$G$503,6, FALSE),"") ->  | O13: =IF($A13>0,VLOOKUP($B13,'calculation sheet_per capita'!$A$4:$G$503,7, FALSE),"") -> 
A14: =IF(C14>0,MAX(A$2:A13)+1,0) -> 0 | B14: ='Module 2-Step 2'!B23 ->  | C14: =IF(B14<>"",IF(LEFT(B$1,3)="CFR",VLOOKUP(B14,'for concentration'!A$4:E$503,5,FALSE),0),0) -> 0 | D14: =IF(C14>0,IF('Module 2-Step 3'!F19>0,'Module 2-Step 3'!F19,'Module 2-Step 3'!D19),0) -> 0 | E14: 0 | K14: =IF($A14>0,VLOOKUP($B14,'calculation sheet_per capita'!$A$4:$G$503,3, FALSE),"") ->  | L14: =IF($A14>0,VLOOKUP($B14,'calculation sheet_per capita'!$A$4:$G$503,4, FALSE),"") ->  | M14: =IF($A14>0,VLOOKUP($B14,'calculation sheet_per capita'!$A$4:$G$503,5, FALSE),"") ->  | N14: =IF($A14>0,VLOOKUP($B14,'calculation sheet_per capita'!$A$4:$G$503,6, FALSE),"") ->  | O14: =IF($A14>0,VLOOKUP($B14,'calculation sheet_per capita'!$A$4:$G$503,7, FALSE),"") -> 
A15: =IF(C15>0,MAX(A$2:A14)+1,0) -> 0 | B15: ='Module 2-Step 2'!B24 ->  | C15: =IF(B15<>"",IF(LEFT(B$1,3)="CFR",VLOOKUP(B15,'for concentration'!A$4:E$503,5,FALSE),0),0) -> 0 | D15: =IF(C15>0,IF('Module 2-Step 3'!F20>0,'Module 2-Step 3'!F20,'Module 2-Step 3'!D20),0) -> 0 | E15: 0 | K15: =IF($A15>0,VLOOKUP($B15,'calculation sheet_per capita'!$A$4:$G$503,3, FALSE),"") ->  | L15: =IF($A15>0,VLOOKUP($B15,'calculation sheet_per capita'!$A$4:$G$503,4, FALSE),"") ->  | M15: =IF($A15>0,VLOOKUP($B15,'calculation sheet_per capita'!$A$4:$G$503,5, FALSE),"") ->  | N15: =IF($A15>0,VLOOKUP($B15,'calculation sheet_per capita'!$A$4:$G$503,6, FALSE),"") ->  | O15: =IF($A15>0,VLOOKUP($B15,'calculation sheet_per capita'!$A$4:$G$503,7, FALSE),"") -> 
A16: =IF(C16>0,MAX(A$2:A15)+1,0) -> 0 | B16: ='Module 2-Step 2'!B25 ->  | C16: =IF(B16<>"",IF(LEFT(B$1,3)="CFR",VLOOKUP(B16,'for concentration'!A$4:E$503,5,FALSE),0),0) -> 0 | D16: =IF(C16>0,IF('Module 2-Step 3'!F21>0,'Module 2-Step 3'!F21,'Module 2-Step 3'!D21),0) -> 0 | E16: 0 | K16: =IF($A16>0,VLOOKUP($B16,'calculation sheet_per capita'!$A$4:$G$503,3, FALSE),"") ->  | L16: =IF($A16>0,VLOOKUP($B16,'calculation sheet_per capita'!$A$4:$G$503,4, FALSE),"") ->  | M16: =IF($A16>0,VLOOKUP($B16,'calculation sheet_per capita'!$A$4:$G$503,5, FALSE),"") ->  | N16: =IF($A16>0,VLOOKUP($B16,'calculation sheet_per capita'!$A$4:$G$503,6, FALSE),"") ->  | O16: =IF($A16>0,VLOOKUP($B16,'calculation sheet_per capita'!$A$4:$G$503,7, FALSE),"") -> 
A17: =IF(C17>0,MAX(A$2:A16)+1,0) -> 0 | B17: ='Module 2-Step 2'!B26 ->  | C17: =IF(B17<>"",IF(LEFT(B$1,3)="CFR",VLOOKUP(B17,'for concentration'!A$4:E$503,5,FALSE),0),0) -> 0 | D17: =IF(C17>0,IF('Module 2-Step 3'!F22>0,'Module 2-Step 3'!F22,'Module 2-Step 3'!D22),0) -> 0 | E17: 0 | K17: =IF($A17>0,VLOOKUP($B17,'calculation sheet_per capita'!$A$4:$G$503,3, FALSE),"") ->  | L17: =IF($A17>0,VLOOKUP($B17,'calculation sheet_per capita'!$A$4:$G$503,4, FALSE),"") ->  | M17: =IF($A17>0,VLOOKUP($B17,'calculation sheet_per capita'!$A$4:$G$503,5, FALSE),"") ->  | N17: =IF($A17>0,VLOOKUP($B17,'calculation sheet_per capita'!$A$4:$G$503,6, FALSE),"") ->  | O17: =IF($A17>0,VLOOKUP($B17,'calculation sheet_per capita'!$A$4:$G$503,7, FALSE),"") -> 
A18: =IF(C18>0,MAX(A$2:A17)+1,0) -> 0 | B18: ='Module 2-Step 2'!B27 ->  | C18: =IF(B18<>"",IF(LEFT(B$1,3)="CFR",VLOOKUP(B18,'for concentration'!A$4:E$503,5,FALSE),0),0) -> 0 | D18: =IF(C18>0,IF('Module 2-Step 3'!F23>0,'Module 2-Step 3'!F23,'Module 2-Step 3'!D23),0) -> 0 | E18: 0 | G18: =IF($A18>0,IF(L$502>0,L18/L$502,"NC"),"") ->  | H18: =IF($A18>0,IF(M$502>0,M18/M$502,"NC"),"") ->  | I18: =IF($A18>0,IF(N$502>0,N18/N$502,"NC"),"") ->  | J18: =IF($A18>0,IF(O$502>0,O18/O$502,"NC"),"") ->  | K18: =IF($A18>0,VLOOKUP($B18,'calculation sheet_per capita'!$A$4:$G$503,3, FALSE),"") ->  | L18: =IF($A18>0,VLOOKUP($B18,'calculation sheet_per capita'!$A$4:$G$503,4, FALSE),"") ->  | M18: =IF($A18>0,VLOOKUP($B18,'calculation sheet_per capita'!$A$4:$G$503,5, FALSE),"") ->  | N18: =IF($A18>0,VLOOKUP($B18,'calculation sheet_per capita'!$A$4:$G$503,6, FALSE),"") ->  | O18: =IF($A18>0,VLOOKUP($B18,'calculation sheet_per capita'!$A$4:$G$503,7, FALSE),"") -> 
A19: =IF(C19>0,MAX(A$2:A18)+1,0) -> 0 | B19: ='Module 2-Step 2'!B28 ->  | C19: =IF(B19<>"",IF(LEFT(B$1,3)="CFR",VLOOKUP(B19,'for concentration'!A$4:E$503,5,FALSE),0),0) -> 0 | D19: =IF(C19>0,IF('Module 2-Step 3'!F24>0,'Module 2-Step 3'!F24,'Module 2-Step 3'!D24),0) -> 0 | E19: 0 | K19: =IF($A19>0,VLOOKUP($B19,'calculation sheet_per capita'!$A$4:$G$503,3, FALSE),"") ->  | L19: =IF($A19>0,VLOOKUP($B19,'calculation sheet_per capita'!$A$4:$G$503,4, FALSE),"") ->  | M19: =IF($A19>0,VLOOKUP($B19,'calculation sheet_per capita'!$A$4:$G$503,5, FALSE),"") ->  | N19: =IF($A19>0,VLOOKUP($B19,'calculation sheet_per capita'!$A$4:$G$503,6, FALSE),"") ->  | O19: =IF($A19>0,VLOOKUP($B19,'calculation sheet_per capita'!$A$4:$G$503,7, FALSE),"") -> 
A20: =IF(C20>0,MAX(A$2:A19)+1,0) -> 0 | B20: ='Module 2-Step 2'!B29 ->  | C20: =IF(B20<>"",IF(LEFT(B$1,3)="CFR",VLOOKUP(B20,'for concentration'!A$4:E$503,5,FALSE),0),0) -> 0 | D20: =IF(C20>0,IF('Module 2-Step 3'!F25>0,'Module 2-Step 3'!F25,'Module 2-Step 3'!D25),0) -> 0 | E20: 0 | K20: =IF($A20>0,VLOOKUP($B20,'calculation sheet_per capita'!$A$4:$G$503,3, FALSE),"") ->  | L20: =IF($A20>0,VLOOKUP($B20,'calculation sheet_per capita'!$A$4:$G$503,4, FALSE),"") ->  | M20: =IF($A20>0,VLOOKUP($B20,'calculation sheet_per capita'!$A$4:$G$503,5, FALSE),"") ->  | N20: =IF($A20>0,VLOOKUP($B20,'calculation sheet_per capita'!$A$4:$G$503,6, FALSE),"") ->  | O20: =IF($A20>0,VLOOKUP($B20,'calculation sheet_per capita'!$A$4:$G$503,7, FALSE),"") -> 
A21: =IF(C21>0,MAX(A$2:A20)+1,0) -> 0 | B21: ='Module 2-Step 2'!B30 ->  | C21: =IF(B21<>"",IF(LEFT(B$1,3)="CFR",VLOOKUP(B21,'for concentration'!A$4:E$503,5,FALSE),0),0) -> 0 | D21: =IF(C21>0,IF('Module 2-Step 3'!F26>0,'Module 2-Step 3'!F26,'Module 2-Step 3'!D26),0) -> 0 | E21: 0 | K21: =IF($A21>0,VLOOKUP($B21,'calculation sheet_per capita'!$A$4:$G$503,3, FALSE),"") ->  | L21: =IF($A21>0,VLOOKUP($B21,'calculation sheet_per capita'!$A$4:$G$503,4, FALSE),"") ->  | M21: =IF($A21>0,VLOOKUP($B21,'calculation sheet_per capita'!$A$4:$G$503,5, FALSE),"") ->  | N21: =IF($A21>0,VLOOKUP($B21,'calculation sheet_per capita'!$A$4:$G$503,6, FALSE),"") ->  | O21: =IF($A21>0,VLOOKUP($B21,'calculation sheet_per capita'!$A$4:$G$503,7, FALSE),"") -> 
A22: =IF(C22>0,MAX(A$2:A21)+1,0) -> 0 | B22: ='Module 2-Step 2'!B31 ->  | C22: =IF(B22<>"",IF(LEFT(B$1,3)="CFR",VLOOKUP(B22,'for concentration'!A$4:E$503,5,FALSE),0),0) -> 0 | D22: =IF(C22>0,IF('Module 2-Step 3'!F27>0,'Module 2-Step 3'!F27,'Module 2-Step 3'!D27),0) -> 0 | E22: 0 | K22: =IF($A22>0,VLOOKUP($B22,'calculation sheet_per capita'!$A$4:$G$503,3, FALSE),"") ->  | L22: =IF($A22>0,VLOOKUP($B22,'calculation sheet_per capita'!$A$4:$G$503,4, FALSE),"") ->  | M22: =IF($A22>0,VLOOKUP($B22,'calculation sheet_per capita'!$A$4:$G$503,5, FALSE),"") ->  | N22: =IF($A22>0,VLOOKUP($B22,'calculation sheet_per capita'!$A$4:$G$503,6, FALSE),"") ->  | O22: =IF($A22>0,VLOOKUP($B22,'calculation sheet_per capita'!$A$4:$G$503,7, FALSE),"") -> 
A23: =IF(C23>0,MAX(A$2:A22)+1,0) -> 0 | B23: ='Module 2-Step 2'!B32 ->  | C23: =IF(B23<>"",IF(LEFT(B$1,3)="CFR",VLOOKUP(B23,'for concentration'!A$4:E$503,5,FALSE),0),0) -> 0 | D23: =IF(C23>0,IF('Module 2-Step 3'!F28>0,'Module 2-Step 3'!F28,'Module 2-Step 3'!D28),0) -> 0 | E23: 0 | K23: =IF($A23>0,VLOOKUP($B23,'calculation sheet_per capita'!$A$4:$G$503,3, FALSE),"") ->  | L23: =IF($A23>0,VLOOKUP($B23,'calculation sheet_per capita'!$A$4:$G$503,4, FALSE),"") ->  | M23: =IF($A23>0,VLOOKUP($B23,'calculation sheet_per capita'!$A$4:$G$503,5, FALSE),"") ->  | N23: =IF($A23>0,VLOOKUP($B23,'calculation sheet_per capita'!$A$4:$G$503,6, FALSE),"") ->  | O23: =IF($A23>0,VLOOKUP($B23,'calculation sheet_per capita'!$A$4:$G$503,7, FALSE),"") -> 
A24: =IF(C24>0,MAX(A$2:A23)+1,0) -> 0 | B24: ='Module 2-Step 2'!B33 ->  | C24: =IF(B24<>"",IF(LEFT(B$1,3)="CFR",VLOOKUP(B24,'for concentration'!A$4:E$503,5,FALSE),0),0) -> 0 | D24: =IF(C24>0,IF('Module 2-Step 3'!F29>0,'Module 2-Step 3'!F29,'Module 2-Step 3'!D29),0) -> 0 | E24: 0 | K24: =IF($A24>0,VLOOKUP($B24,'calculation sheet_per capita'!$A$4:$G$503,3, FALSE),"") ->  | L24: =IF($A24>0,VLOOKUP($B24,'calculation sheet_per capita'!$A$4:$G$503,4, FALSE),"") ->  | M24: =IF($A24>0,VLOOKUP($B24,'calculation sheet_per capita'!$A$4:$G$503,5, FALSE),"") ->  | N24: =IF($A24>0,VLOOKUP($B24,'calculation sheet_per capita'!$A$4:$G$503,6, FALSE),"") ->  | O24: =IF($A24>0,VLOOKUP($B24,'calculation sheet_per capita'!$A$4:$G$503,7, FALSE),"") -> 
A25: =IF(C25>0,MAX(A$2:A24)+1,0) -> 0 | B25: ='Module 2-Step 2'!B34 ->  | C25: =IF(B25<>"",IF(LEFT(B$1,3)="CFR",VLOOKUP(B25,'for concentration'!A$4:E$503,5,FALSE),0),0) -> 0 | D25: =IF(C25>0,IF('Module 2-Step 3'!F30>0,'Module 2-Step 3'!F30,'Module 2-Step 3'!D30),0) -> 0 | E25: 0 | K25: =IF($A25>0,VLOOKUP($B25,'calculation sheet_per capita'!$A$4:$G$503,3, FALSE),"") ->  | L25: =IF($A25>0,VLOOKUP($B25,'calculation sheet_per capita'!$A$4:$G$503,4, FALSE),"") ->  | M25: =IF($A25>0,VLOOKUP($B25,'calculation sheet_per capita'!$A$4:$G$503,5, FALSE),"") ->  | N25: =IF($A25>0,VLOOKUP($B25,'calculation sheet_per capita'!$A$4:$G$503,6, FALSE),"") ->  | O25: =IF($A25>0,VLOOKUP($B25,'calculation sheet_per capita'!$A$4:$G$503,7, FALSE),"") -> 
A26: =IF(C26>0,MAX(A$2:A25)+1,0) -> 0 | B26: ='Module 2-Step 2'!B35 ->  | C26: =IF(B26<>"",IF(LEFT(B$1,3)="CFR",VLOOKUP(B26,'for concentration'!A$4:E$503,5,FALSE),0),0) -> 0 | D26: =IF(C26>0,IF('Module 2-Step 3'!F31>0,'Module 2-Step 3'!F31,'Module 2-Step 3'!D31),0) -> 0 | E26: 0 | K26: =IF($A26>0,VLOOKUP($B26,'calculation sheet_per capita'!$A$4:$G$503,3, FALSE),"") ->  | L26: =IF($A26>0,VLOOKUP($B26,'calculation sheet_per capita'!$A$4:$G$503,4, FALSE),"") ->  | M26: =IF($A26>0,VLOOKUP($B26,'calculation sheet_per capita'!$A$4:$G$503,5, FALSE),"") ->  | N26: =IF($A26>0,VLOOKUP($B26,'calculation sheet_per capita'!$A$4:$G$503,6, FALSE),"") ->  | O26: =IF($A26>0,VLOOKUP($B26,'calculation sheet_per capita'!$A$4:$G$503,7, FALSE),"") -> 
A27: =IF(C27>0,MAX(A$2:A26)+1,0) -> 0 | B27: ='Module 2-Step 2'!B36 ->  | C27: =IF(B27<>"",IF(LEFT(B$1,3)="CFR",VLOOKUP(B27,'for concentration'!A$4:E$503,5,FALSE),0),0) -> 0 | D27: =IF(C27>0,IF('Module 2-Step 3'!F32>0,'Module 2-Step 3'!F32,'Module 2-Step 3'!D32),0) -> 0 | E27: 0 | K27: =IF($A27>0,VLOOKUP($B27,'calculation sheet_per capita'!$A$4:$G$503,3, FALSE),"") ->  | L27: =IF($A27>0,VLOOKUP($B27,'calculation sheet_per capita'!$A$4:$G$503,4, FALSE),"") ->  | M27: =IF($A27>0,VLOOKUP($B27,'calculation sheet_per capita'!$A$4:$G$503,5, FALSE),"") ->  | N27: =IF($A27>0,VLOOKUP($B27,'calculation sheet_per capita'!$A$4:$G$503,6, FALSE),"") ->  | O27: =IF($A27>0,VLOOKUP($B27,'calculation sheet_per capita'!$A$4:$G$503,7, FALSE),"") -> 
A28: =IF(C28>0,MAX(A$2:A27)+1,0) -> 0 | B28: ='Module 2-Step 2'!B37 ->  | C28: =IF(B28<>"",IF(LEFT(B$1,3)="CFR",VLOOKUP(B28,'for concentration'!A$4:E$503,5,FALSE),0),0) -> 0 | D28: =IF(C28>0,IF('Module 2-Step 3'!F33>0,'Module 2-Step 3'!F33,'Module 2-Step 3'!D33),0) -> 0 | E28: 0 | K28: =IF($A28>0,VLOOKUP($B28,'calculation sheet_per capita'!$A$4:$G$503,3, FALSE),"") ->  | L28: =IF($A28>0,VLOOKUP($B28,'calculation sheet_per capita'!$A$4:$G$503,4, FALSE),"") ->  | M28: =IF($A28>0,VLOOKUP($B28,'calculation sheet_per capita'!$A$4:$G$503,5, FALSE),"") ->  | N28: =IF($A28>0,VLOOKUP($B28,'calculation sheet_per capita'!$A$4:$G$503,6, FALSE),"") ->  | O28: =IF($A28>0,VLOOKUP($B28,'calculation sheet_per capita'!$A$4:$G$503,7, FALSE),"") -> 
A29: =IF(C29>0,MAX(A$2:A28)+1,0) -> 0 | B29: ='Module 2-Step 2'!B38 ->  | C29: =IF(B29<>"",IF(LEFT(B$1,3)="CFR",VLOOKUP(B29,'for concentration'!A$4:E$503,5,FALSE),0),0) -> 0 | D29: =IF(C29>0,IF('Module 2-Step 3'!F34>0,'Module 2-Step 3'!F34,'Module 2-Step 3'!D34),0) -> 0 | E29: 0 | K29: =IF($A29>0,VLOOKUP($B29,'calculation sheet_per capita'!$A$4:$G$503,3, FALSE),"") ->  | L29: =IF($A29>0,VLOOKUP($B29,'calculation sheet_per capita'!$A$4:$G$503,4, FALSE),"") ->  | M29: =IF($A29>0,VLOOKUP($B29,'calculation sheet_per capita'!$A$4:$G$503,5, FALSE),"") ->  | N29: =IF($A29>0,VLOOKUP($B29,'calculation sheet_per capita'!$A$4:$G$503,6, FALSE),"") ->  | O29: =IF($A29>0,VLOOKUP($B29,'calculation sheet_per capita'!$A$4:$G$503,7, FALSE),"") -> 
A30: =IF(C30>0,MAX(A$2:A29)+1,0) -> 0 | B30: ='Module 2-Step 2'!B39 ->  | C30: =IF(B30<>"",IF(LEFT(B$1,3)="CFR",VLOOKUP(B30,'for concentration'!A$4:E$503,5,FALSE),0),0) -> 0 | D30: =IF(C30>0,IF('Module 2-Step 3'!F35>0,'Module 2-Step 3'!F35,'Module 2-Step 3'!D35),0) -> 0 | E30: 0 | K30: =IF($A30>0,VLOOKUP($B30,'calculation sheet_per capita'!$A$4:$G$503,3, FALSE),"") ->  | L30: =IF($A30>0,VLOOKUP($B30,'calculation sheet_per capita'!$A$4:$G$503,4, FALSE),"") ->  | M30: =IF($A30>0,VLOOKUP($B30,'calculation sheet_per capita'!$A$4:$G$503,5, FALSE),"") ->  | N30: =IF($A30>0,VLOOKUP($B30,'calculation sheet_per capita'!$A$4:$G$503,6, FALSE),"") ->  | O30: =IF($A30>0,VLOOKUP($B30,'calculation sheet_per capita'!$A$4:$G$503,7, FALSE),"") -> 
A31: =IF(C31>0,MAX(A$2:A30)+1,0) -> 0 | B31: ='Module 2-Step 2'!B40 ->  | C31: =IF(B31<>"",IF(LEFT(B$1,3)="CFR",VLOOKUP(B31,'for concentration'!A$4:E$503,5,FALSE),0),0) -> 0 | D31: =IF(C31>0,IF('Module 2-Step 3'!F36>0,'Module 2-Step 3'!F36,'Module 2-Step 3'!D36),0) -> 0 | E31: 0 | K31: =IF($A31>0,VLOOKUP($B31,'calculation sheet_per capita'!$A$4:$G$503,3, FALSE),"") ->  | L31: =IF($A31>0,VLOOKUP($B31,'calculation sheet_per capita'!$A$4:$G$503,4, FALSE),"") ->  | M31: =IF($A31>0,VLOOKUP($B31,'calculation sheet_per capita'!$A$4:$G$503,5, FALSE),"") ->  | N31: =IF($A31>0,VLOOKUP($B31,'calculation sheet_per capita'!$A$4:$G$503,6, FALSE),"") ->  | O31: =IF($A31>0,VLOOKUP($B31,'calculation sheet_per capita'!$A$4:$G$503,7, FALSE),"") -> 
A32: =IF(C32>0,MAX(A$2:A31)+1,0) -> 0 | B32: ='Module 2-Step 2'!B41 ->  | C32: =IF(B32<>"",IF(LEFT(B$1,3)="CFR",VLOOKUP(B32,'for concentration'!A$4:E$503,5,FALSE),0),0) -> 0 | D32: =IF(C32>0,IF('Module 2-Step 3'!F37>0,'Module 2-Step 3'!F37,'Module 2-Step 3'!D37),0) -> 0 | E32: 0 | K32: =IF($A32>0,VLOOKUP($B32,'calculation sheet_per capita'!$A$4:$G$503,3, FALSE),"") ->  | L32: =IF($A32>0,VLOOKUP($B32,'calculation sheet_per capita'!$A$4:$G$503,4, FALSE),"") ->  | M32: =IF($A32>0,VLOOKUP($B32,'calculation sheet_per capita'!$A$4:$G$503,5, FALSE),"") ->  | N32: =IF($A32>0,VLOOKUP($B32,'calculation sheet_per capita'!$A$4:$G$503,6, FALSE),"") ->  | O32: =IF($A32>0,VLOOKUP($B32,'calculation sheet_per capita'!$A$4:$G$503,7, FALSE),"") -> 
A33: =IF(C33>0,MAX(A$2:A32)+1,0) -> 0 | B33: ='Module 2-Step 2'!B42 ->  | C33: =IF(B33<>"",IF(LEFT(B$1,3)="CFR",VLOOKUP(B33,'for concentration'!A$4:E$503,5,FALSE),0),0) -> 0 | D33: =IF(C33>0,IF('Module 2-Step 3'!F38>0,'Module 2-Step 3'!F38,'Module 2-Step 3'!D38),0) -> 0 | E33: 0 | K33: =IF($A33>0,VLOOKUP($B33,'calculation sheet_per capita'!$A$4:$G$503,3, FALSE),"") ->  | L33: =IF($A33>0,VLOOKUP($B33,'calculation sheet_per capita'!$A$4:$G$503,4, FALSE),"") ->  | M33: =IF($A33>0,VLOOKUP($B33,'calculation sheet_per capita'!$A$4:$G$503,5, FALSE),"") ->  | N33: =IF($A33>0,VLOOKUP($B33,'calculation sheet_per capita'!$A$4:$G$503,6, FALSE),"") ->  | O33: =IF($A33>0,VLOOKUP($B33,'calculation sheet_per capita'!$A$4:$G$503,7, FALSE),"") -> 
A34: =IF(C34>0,MAX(A$2:A33)+1,0) -> 0 | B34: ='Module 2-Step 2'!B43 ->  | C34: =IF(B34<>"",IF(LEFT(B$1,3)="CFR",VLOOKUP(B34,'for concentration'!A$4:E$503,5,FALSE),0),0) -> 0 | D34: =IF(C34>0,IF('Module 2-Step 3'!F39>0,'Module 2-Step 3'!F39,'Module 2-Step 3'!D39),0) -> 0 | E34: 0 | K34: =IF($A34>0,VLOOKUP($B34,'calculation sheet_per capita'!$A$4:$G$503,3, FALSE),"") ->  | L34: =IF($A34>0,VLOOKUP($B34,'calculation sheet_per capita'!$A$4:$G$503,4, FALSE),"") ->  | M34: =IF($A34>0,VLOOKUP($B34,'calculation sheet_per capita'!$A$4:$G$503,5, FALSE),"") ->  | N34: =IF($A34>0,VLOOKUP($B34,'calculation sheet_per capita'!$A$4:$G$503,6, FALSE),"") ->  | O34: =IF($A34>0,VLOOKUP($B34,'calculation sheet_per capita'!$A$4:$G$503,7, FALSE),"") -> 
A35: =IF(C35>0,MAX(A$2:A34)+1,0) -> 0 | B35: ='Module 2-Step 2'!B44 ->  | C35: =IF(B35<>"",IF(LEFT(B$1,3)="CFR",VLOOKUP(B35,'for concentration'!A$4:E$503,5,FALSE),0),0) -> 0 | D35: =IF(C35>0,IF('Module 2-Step 3'!F40>0,'Module 2-Step 3'!F40,'Module 2-Step 3'!D40),0) -> 0 | E35: 0 | K35: =IF($A35>0,VLOOKUP($B35,'calculation sheet_per capita'!$A$4:$G$503,3, FALSE),"") ->  | L35: =IF($A35>0,VLOOKUP($B35,'calculation sheet_per capita'!$A$4:$G$503,4, FALSE),"") ->  | M35: =IF($A35>0,VLOOKUP($B35,'calculation sheet_per capita'!$A$4:$G$503,5, FALSE),"") ->  | N35: =IF($A35>0,VLOOKUP($B35,'calculation sheet_per capita'!$A$4:$G$503,6, FALSE),"") ->  | O35: =IF($A35>0,VLOOKUP($B35,'calculation sheet_per capita'!$A$4:$G$503,7, FALSE),"") -> 
A36: =IF(C36>0,MAX(A$2:A35)+1,0) -> 0 | B36: ='Module 2-Step 2'!B45 ->  | C36: =IF(B36<>"",IF(LEFT(B$1,3)="CFR",VLOOKUP(B36,'for concentration'!A$4:E$503,5,FALSE),0),0) -> 0 | D36: =IF(C36>0,IF('Module 2-Step 3'!F41>0,'Module 2-Step 3'!F41,'Module 2-Step 3'!D41),0) -> 0 | E36: 0 | K36: =IF($A36>0,VLOOKUP($B36,'calculation sheet_per capita'!$A$4:$G$503,3, FALSE),"") ->  | L36: =IF($A36>0,VLOOKUP($B36,'calculation sheet_per capita'!$A$4:$G$503,4, FALSE),"") ->  | M36: =IF($A36>0,VLOOKUP($B36,'calculation sheet_per capita'!$A$4:$G$503,5, FALSE),"") ->  | N36: =IF($A36>0,VLOOKUP($B36,'calculation sheet_per capita'!$A$4:$G$503,6, FALSE),"") ->  | O36: =IF($A36>0,VLOOKUP($B36,'calculation sheet_per capita'!$A$4:$G$503,7, FALSE),"") -> 
A37: =IF(C37>0,MAX(A$2:A36)+1,0) -> 0 | B37: ='Module 2-Step 2'!B46 ->  | C37: =IF(B37<>"",IF(LEFT(B$1,3)="CFR",VLOOKUP(B37,'for concentration'!A$4:E$503,5,FALSE),0),0) -> 0 | D37: =IF(C37>0,IF('Module 2-Step 3'!F42>0,'Module 2-Step 3'!F42,'Module 2-Step 3'!D42),0) -> 0 | E37: 0 | K37: =IF($A37>0,VLOOKUP($B37,'calculation sheet_per capita'!$A$4:$G$503,3, FALSE),"") ->  | L37: =IF($A37>0,VLOOKUP($B37,'calculation sheet_per capita'!$A$4:$G$503,4, FALSE),"") ->  | M37: =IF($A37>0,VLOOKUP($B37,'calculation sheet_per capita'!$A$4:$G$503,5, FALSE),"") ->  | N37: =IF($A37>0,VLOOKUP($B37,'calculation sheet_per capita'!$A$4:$G$503,6, FALSE),"") ->  | O37: =IF($A37>0,VLOOKUP($B37,'calculation sheet_per capita'!$A$4:$G$503,7, FALSE),"") -> 
A38: =IF(C38>0,MAX(A$2:A37)+1,0) -> 0 | B38: ='Module 2-Step 2'!B47 ->  | C38: =IF(B38<>"",IF(LEFT(B$1,3)="CFR",VLOOKUP(B38,'for concentration'!A$4:E$503,5,FALSE),0),0) -> 0 | D38: =IF(C38>0,IF('Module 2-Step 3'!F43>0,'Module 2-Step 3'!F43,'Module 2-Step 3'!D43),0) -> 0 | E38: 0 | K38: =IF($A38>0,VLOOKUP($B38,'calculation sheet_per capita'!$A$4:$G$503,3, FALSE),"") ->  | L38: =IF($A38>0,VLOOKUP($B38,'calculation sheet_per capita'!$A$4:$G$503,4, FALSE),"") ->  | M38: =IF($A38>0,VLOOKUP($B38,'calculation sheet_per capita'!$A$4:$G$503,5, FALSE),"") ->  | N38: =IF($A38>0,VLOOKUP($B38,'calculation sheet_per capita'!$A$4:$G$503,6, FALSE),"") ->  | O38: =IF($A38>0,VLOOKUP($B38,'calculation sheet_per capita'!$A$4:$G$503,7, FALSE),"") -> 
A39: =IF(C39>0,MAX(A$2:A38)+1,0) -> 0 | B39: ='Module 2-Step 2'!B48 ->  | C39: =IF(B39<>"",IF(LEFT(B$1,3)="CFR",VLOOKUP(B39,'for concentration'!A$4:E$503,5,FALSE),0),0) -> 0 | D39: =IF(C39>0,IF('Module 2-Step 3'!F44>0,'Module 2-Step 3'!F44,'Module 2-Step 3'!D44),0) -> 0 | E39: 0 | K39: =IF($A39>0,VLOOKUP($B39,'calculation sheet_per capita'!$A$4:$G$503,3, FALSE),"") ->  | L39: =IF($A39>0,VLOOKUP($B39,'calculation sheet_per capita'!$A$4:$G$503,4, FALSE),"") ->  | M39: =IF($A39>0,VLOOKUP($B39,'calculation sheet_per capita'!$A$4:$G$503,5, FALSE),"") ->  | N39: =IF($A39>0,VLOOKUP($B39,'calculation sheet_per capita'!$A$4:$G$503,6, FALSE),"") ->  | O39: =IF($A39>0,VLOOKUP($B39,'calculation sheet_per capita'!$A$4:$G$503,7, FALSE),"") -> 
A40: =IF(C40>0,MAX(A$2:A39)+1,0) -> 0 | B40: ='Module 2-Step 2'!B49 ->  | C40: =IF(B40<>"",IF(LEFT(B$1,3)="CFR",VLOOKUP(B40,'for concentration'!A$4:E$503,5,FALSE),0),0) -> 0 | D40: =IF(C40>0,IF('Module 2-Step 3'!F45>0,'Module 2-Step 3'!F45,'Module 2-Step 3'!D45),0) -> 0 | E40: 0 | K40: =IF($A40>0,VLOOKUP($B40,'calculation sheet_per capita'!$A$4:$G$503,3, FALSE),"") ->  | L40: =IF($A40>0,VLOOKUP($B40,'calculation sheet_per capita'!$A$4:$G$503,4, FALSE),"") ->  | M40: =IF($A40>0,VLOOKUP($B40,'calculation sheet_per capita'!$A$4:$G$503,5, FALSE),"") ->  | N40: =IF($A40>0,VLOOKUP($B40,'calculation sheet_per capita'!$A$4:$G$503,6, FALSE),"") ->  | O40: =IF($A40>0,VLOOKUP($B40,'calculation sheet_per capita'!$A$4:$G$503,7, FALSE),"") -> 
A41: =IF(C41>0,MAX(A$2:A40)+1,0) -> 0 | B41: ='Module 2-Step 2'!B50 ->  | C41: =IF(B41<>"",IF(LEFT(B$1,3)="CFR",VLOOKUP(B41,'for concentration'!A$4:E$503,5,FALSE),0),0) -> 0 | D41: =IF(C41>0,IF('Module 2-Step 3'!F46>0,'Module 2-Step 3'!F46,'Module 2-Step 3'!D46),0) -> 0 | E41: 0 | K41: =IF($A41>0,VLOOKUP($B41,'calculation sheet_per capita'!$A$4:$G$503,3, FALSE),"") ->  | L41: =IF($A41>0,VLOOKUP($B41,'calculation sheet_per capita'!$A$4:$G$503,4, FALSE),"") ->  | M41: =IF($A41>0,VLOOKUP($B41,'calculation sheet_per capita'!$A$4:$G$503,5, FALSE),"") ->  | N41: =IF($A41>0,VLOOKUP($B41,'calculation sheet_per capita'!$A$4:$G$503,6, FALSE),"") ->  | O41: =IF($A41>0,VLOOKUP($B41,'calculation sheet_per capita'!$A$4:$G$503,7, FALSE),"") -> 
A42: =IF(C42>0,MAX(A$2:A41)+1,0) -> 0 | B42: ='Module 2-Step 2'!B51 ->  | C42: =IF(B42<>"",IF(LEFT(B$1,3)="CFR",VLOOKUP(B42,'for concentration'!A$4:E$503,5,FALSE),0),0) -> 0 | D42: =IF(C42>0,IF('Module 2-Step 3'!F47>0,'Module 2-Step 3'!F47,'Module 2-Step 3'!D47),0) -> 0 | E42: 0 | K42: =IF($A42>0,VLOOKUP($B42,'calculation sheet_per capita'!$A$4:$G$503,3, FALSE),"") ->  | L42: =IF($A42>0,VLOOKUP($B42,'calculation sheet_per capita'!$A$4:$G$503,4, FALSE),"") ->  | M42: =IF($A42>0,VLOOKUP($B42,'calculation sheet_per capita'!$A$4:$G$503,5, FALSE),"") ->  | N42: =IF($A42>0,VLOOKUP($B42,'calculation sheet_per capita'!$A$4:$G$503,6, FALSE),"") ->  | O42: =IF($A42>0,VLOOKUP($B42,'calculation sheet_per capita'!$A$4:$G$503,7, FALSE),"") -> 
A43: =IF(C43>0,MAX(A$2:A42)+1,0) -> 0 | B43: ='Module 2-Step 2'!B52 ->  | C43: =IF(B43<>"",IF(LEFT(B$1,3)="CFR",VLOOKUP(B43,'for concentration'!A$4:E$503,5,FALSE),0),0) -> 0 | D43: =IF(C43>0,IF('Module 2-Step 3'!F48>0,'Module 2-Step 3'!F48,'Module 2-Step 3'!D48),0) -> 0 | E43: 0 | K43: =IF($A43>0,VLOOKUP($B43,'calculation sheet_per capita'!$A$4:$G$503,3, FALSE),"") ->  | L43: =IF($A43>0,VLOOKUP($B43,'calculation sheet_per capita'!$A$4:$G$503,4, FALSE),"") ->  | M43: =IF($A43>0,VLOOKUP($B43,'calculation sheet_per capita'!$A$4:$G$503,5, FALSE),"") ->  | N43: =IF($A43>0,VLOOKUP($B43,'calculation sheet_per capita'!$A$4:$G$503,6, FALSE),"") ->  | O43: =IF($A43>0,VLOOKUP($B43,'calculation sheet_per capita'!$A$4:$G$503,7, FALSE),"") -> 
A44: =IF(C44>0,MAX(A$2:A43)+1,0) -> 0 | B44: ='Module 2-Step 2'!B53 ->  | C44: =IF(B44<>"",IF(LEFT(B$1,3)="CFR",VLOOKUP(B44,'for concentration'!A$4:E$503,5,FALSE),0),0) -> 0 | D44: =IF(C44>0,IF('Module 2-Step 3'!F49>0,'Module 2-Step 3'!F49,'Module 2-Step 3'!D49),0) -> 0 | E44: 0 | K44: =IF($A44>0,VLOOKUP($B44,'calculation sheet_per capita'!$A$4:$G$503,3, FALSE),"") ->  | L44: =IF($A44>0,VLOOKUP($B44,'calculation sheet_per capita'!$A$4:$G$503,4, FALSE),"") ->  | M44: =IF($A44>0,VLOOKUP($B44,'calculation sheet_per capita'!$A$4:$G$503,5, FALSE),"") ->  | N44: =IF($A44>0,VLOOKUP($B44,'calculation sheet_per capita'!$A$4:$G$503,6, FALSE),"") ->  | O44: =IF($A44>0,VLOOKUP($B44,'calculation sheet_per capita'!$A$4:$G$503,7, FALSE),"") -> 
A45: =IF(C45>0,MAX(A$2:A44)+1,0) -> 0 | B45: ='Module 2-Step 2'!B54 ->  | C45: =IF(B45<>"",IF(LEFT(B$1,3)="CFR",VLOOKUP(B45,'for concentration'!A$4:E$503,5,FALSE),0),0) -> 0 | D45: =IF(C45>0,IF('Module 2-Step 3'!F50>0,'Module 2-Step 3'!F50,'Module 2-Step 3'!D50),0) -> 0 | E45: 0 | K45: =IF($A45>0,VLOOKUP($B45,'calculation sheet_per capita'!$A$4:$G$503,3, FALSE),"") ->  | L45: =IF($A45>0,VLOOKUP($B45,'calculation sheet_per capita'!$A$4:$G$503,4, FALSE),"") ->  | M45: =IF($A45>0,VLOOKUP($B45,'calculation sheet_per capita'!$A$4:$G$503,5, FALSE),"") ->  | N45: =IF($A45>0,VLOOKUP($B45,'calculation sheet_per capita'!$A$4:$G$503,6, FALSE),"") ->  | O45: =IF($A45>0,VLOOKUP($B45,'calculation sheet_per capita'!$A$4:$G$503,7, FALSE),"") -> 
A46: =IF(C46>0,MAX(A$2:A45)+1,0) -> 0 | B46: ='Module 2-Step 2'!B55 ->  | C46: =IF(B46<>"",IF(LEFT(B$1,3)="CFR",VLOOKUP(B46,'for concentration'!A$4:E$503,5,FALSE),0),0) -> 0 | D46: =IF(C46>0,IF('Module 2-Step 3'!F51>0,'Module 2-Step 3'!F51,'Module 2-Step 3'!D51),0) -> 0 | E46: 0 | K46: =IF($A46>0,VLOOKUP($B46,'calculation sheet_per capita'!$A$4:$G$503,3, FALSE),"") ->  | L46: =IF($A46>0,VLOOKUP($B46,'calculation sheet_per capita'!$A$4:$G$503,4, FALSE),"") ->  | M46: =IF($A46>0,VLOOKUP($B46,'calculation sheet_per capita'!$A$4:$G$503,5, FALSE),"") ->  | N46: =IF($A46>0,VLOOKUP($B46,'calculation sheet_per capita'!$A$4:$G$503,6, FALSE),"") ->  | O46: =IF($A46>0,VLOOKUP($B46,'calculation sheet_per capita'!$A$4:$G$503,7, FALSE),"") -> 
A47: =IF(C47>0,MAX(A$2:A46)+1,0) -> 0 | B47: ='Module 2-Step 2'!B56 ->  | C47: =IF(B47<>"",IF(LEFT(B$1,3)="CFR",VLOOKUP(B47,'for concentration'!A$4:E$503,5,FALSE),0),0) -> 0 | D47: =IF(C47>0,IF('Module 2-Step 3'!F52>0,'Module 2-Step 3'!F52,'Module 2-Step 3'!D52),0) -> 0 | E47: 0 | K47: =IF($A47>0,VLOOKUP($B47,'calculation sheet_per capita'!$A$4:$G$503,3, FALSE),"") ->  | L47: =IF($A47>0,VLOOKUP($B47,'calculation sheet_per capita'!$A$4:$G$503,4, FALSE),"") ->  | M47: =IF($A47>0,VLOOKUP($B47,'calculation sheet_per capita'!$A$4:$G$503,5, FALSE),"") ->  | N47: =IF($A47>0,VLOOKUP($B47,'calculation sheet_per capita'!$A$4:$G$503,6, FALSE),"") ->  | O47: =IF($A47>0,VLOOKUP($B47,'calculation sheet_per capita'!$A$4:$G$503,7, FALSE),"") -> 
A48: =IF(C48>0,MAX(A$2:A47)+1,0) -> 0 | B48: ='Module 2-Step 2'!B57 ->  | C48: =IF(B48<>"",IF(LEFT(B$1,3)="CFR",VLOOKUP(B48,'for concentration'!A$4:E$503,5,FALSE),0),0) -> 0 | D48: =IF(C48>0,IF('Module 2-Step 3'!F53>0,'Module 2-Step 3'!F53,'Module 2-Step 3'!D53),0) -> 0 | E48: 0 | K48: =IF($A48>0,VLOOKUP($B48,'calculation sheet_per capita'!$A$4:$G$503,3, FALSE),"") ->  | L48: =IF($A48>0,VLOOKUP($B48,'calculation sheet_per capita'!$A$4:$G$503,4, FALSE),"") ->  | M48: =IF($A48>0,VLOOKUP($B48,'calculation sheet_per capita'!$A$4:$G$503,5, FALSE),"") ->  | N48: =IF($A48>0,VLOOKUP($B48,'calculation sheet_per capita'!$A$4:$G$503,6, FALSE),"") ->  | O48: =IF($A48>0,VLOOKUP($B48,'calculation sheet_per capita'!$A$4:$G$503,7, FALSE),"") -> 
A49: =IF(C49>0,MAX(A$2:A48)+1,0) -> 0 | B49: ='Module 2-Step 2'!B58 ->  | C49: =IF(B49<>"",IF(LEFT(B$1,3)="CFR",VLOOKUP(B49,'for concentration'!A$4:E$503,5,FALSE),0),0) -> 0 | D49: =IF(C49>0,IF('Module 2-Step 3'!F54>0,'Module 2-Step 3'!F54,'Module 2-Step 3'!D54),0) -> 0 | E49: 0 | K49: =IF($A49>0,VLOOKUP($B49,'calculation sheet_per capita'!$A$4:$G$503,3, FALSE),"") ->  | L49: =IF($A49>0,VLOOKUP($B49,'calculation sheet_per capita'!$A$4:$G$503,4, FALSE),"") ->  | M49: =IF($A49>0,VLOOKUP($B49,'calculation sheet_per capita'!$A$4:$G$503,5, FALSE),"") ->  | N49: =IF($A49>0,VLOOKUP($B49,'calculation sheet_per capita'!$A$4:$G$503,6, FALSE),"") ->  | O49: =IF($A49>0,VLOOKUP($B49,'calculation sheet_per capita'!$A$4:$G$503,7, FALSE),"") -> 
A50: =IF(C50>0,MAX(A$2:A49)+1,0) -> 0 | B50: ='Module 2-Step 2'!B59 ->  | C50: =IF(B50<>"",IF(LEFT(B$1,3)="CFR",VLOOKUP(B50,'for concentration'!A$4:E$503,5,FALSE),0),0) -> 0 | D50: =IF(C50>0,IF('Module 2-Step 3'!F55>0,'Module 2-Step 3'!F55,'Module 2-Step 3'!D55),0) -> 0 | E50: 0 | K50: =IF($A50>0,VLOOKUP($B50,'calculation sheet_per capita'!$A$4:$G$503,3, FALSE),"") ->  | L50: =IF($A50>0,VLOOKUP($B50,'calculation sheet_per capita'!$A$4:$G$503,4, FALSE),"") ->  | M50: =IF($A50>0,VLOOKUP($B50,'calculation sheet_per capita'!$A$4:$G$503,5, FALSE),"") ->  | N50: =IF($A50>0,VLOOKUP($B50,'calculation sheet_per capita'!$A$4:$G$503,6, FALSE),"") ->  | O50: =IF($A50>0,VLOOKUP($B50,'calculation sheet_per capita'!$A$4:$G$503,7, FALSE),"") -> 
A51: =IF(C51>0,MAX(A$2:A50)+1,0) -> 0 | B51: ='Module 2-Step 2'!B60 ->  | C51: =IF(B51<>"",IF(LEFT(B$1,3)="CFR",VLOOKUP(B51,'for concentration'!A$4:E$503,5,FALSE),0),0) -> 0 | D51: =IF(C51>0,IF('Module 2-Step 3'!F56>0,'Module 2-Step 3'!F56,'Module 2-Step 3'!D56),0) -> 0 | E51: 0 | K51: =IF($A51>0,VLOOKUP($B51,'calculation sheet_per capita'!$A$4:$G$503,3, FALSE),"") ->  | L51: =IF($A51>0,VLOOKUP($B51,'calculation sheet_per capita'!$A$4:$G$503,4, FALSE),"") ->  | M51: =IF($A51>0,VLOOKUP($B51,'calculation sheet_per capita'!$A$4:$G$503,5, FALSE),"") ->  | N51: =IF($A51>0,VLOOKUP($B51,'calculation sheet_per capita'!$A$4:$G$503,6, FALSE),"") ->  | O51: =IF($A51>0,VLOOKUP($B51,'calculation sheet_per capita'!$A$4:$G$503,7, FALSE),"") -> 
A52: =IF(C52>0,MAX(A$2:A51)+1,0) -> 0 | B52: ='Module 2-Step 2'!B61 ->  | C52: =IF(B52<>"",IF(LEFT(B$1,3)="CFR",VLOOKUP(B52,'for concentration'!A$4:E$503,5,FALSE),0),0) -> 0 | D52: =IF(C52>0,IF('Module 2-Step 3'!F57>0,'Module 2-Step 3'!F57,'Module 2-Step 3'!D57),0) -> 0 | E52: 0 | K52: =IF($A52>0,VLOOKUP($B52,'calculation sheet_per capita'!$A$4:$G$503,3, FALSE),"") ->  | L52: =IF($A52>0,VLOOKUP($B52,'calculation sheet_per capita'!$A$4:$G$503,4, FALSE),"") ->  | M52: =IF($A52>0,VLOOKUP($B52,'calculation sheet_per capita'!$A$4:$G$503,5, FALSE),"") ->  | N52: =IF($A52>0,VLOOKUP($B52,'calculation sheet_per capita'!$A$4:$G$503,6, FALSE),"") ->  | O52: =IF($A52>0,VLOOKUP($B52,'calculation sheet_per capita'!$A$4:$G$503,7, FALSE),"") -> 
A53: =IF(C53>0,MAX(A$2:A52)+1,0) -> 0 | B53: ='Module 2-Step 2'!B62 ->  | C53: =IF(B53<>"",IF(LEFT(B$1,3)="CFR",VLOOKUP(B53,'for concentration'!A$4:E$503,5,FALSE),0),0) -> 0 | D53: =IF(C53>0,IF('Module 2-Step 3'!F58>0,'Module 2-Step 3'!F58,'Module 2-Step 3'!D58),0) -> 0 | E53: 0 | K53: =IF($A53>0,VLOOKUP($B53,'calculation sheet_per capita'!$A$4:$G$503,3, FALSE),"") ->  | L53: =IF($A53>0,VLOOKUP($B53,'calculation sheet_per capita'!$A$4:$G$503,4, FALSE),"") ->  | M53: =IF($A53>0,VLOOKUP($B53,'calculation sheet_per capita'!$A$4:$G$503,5, FALSE),"") ->  | N53: =IF($A53>0,VLOOKUP($B53,'calculation sheet_per capita'!$A$4:$G$503,6, FALSE),"") ->  | O53: =IF($A53>0,VLOOKUP($B53,'calculation sheet_per capita'!$A$4:$G$503,7, FALSE),"") -> 
A54: =IF(C54>0,MAX(A$2:A53)+1,0) -> 0 | B54: ='Module 2-Step 2'!B63 ->  | C54: =IF(B54<>"",IF(LEFT(B$1,3)="CFR",VLOOKUP(B54,'for concentration'!A$4:E$503,5,FALSE),0),0) -> 0 | D54: =IF(C54>0,IF('Module 2-Step 3'!F59>0,'Module 2-Step 3'!F59,'Module 2-Step 3'!D59),0) -> 0 | E54: 0 | K54: =IF($A54>0,VLOOKUP($B54,'calculation sheet_per capita'!$A$4:$G$503,3, FALSE),"") ->  | L54: =IF($A54>0,VLOOKUP($B54,'calculation sheet_per capita'!$A$4:$G$503,4, FALSE),"") ->  | M54: =IF($A54>0,VLOOKUP($B54,'calculation sheet_per capita'!$A$4:$G$503,5, FALSE),"") ->  | N54: =IF($A54>0,VLOOKUP($B54,'calculation sheet_per capita'!$A$4:$G$503,6, FALSE),"") ->  | O54: =IF($A54>0,VLOOKUP($B54,'calculation sheet_per capita'!$A$4:$G$503,7, FALSE),"") -> 
A55: =IF(C55>0,MAX(A$2:A54)+1,0) -> 0 | B55: ='Module 2-Step 2'!B64 ->  | C55: =IF(B55<>"",IF(LEFT(B$1,3)="CFR",VLOOKUP(B55,'for concentration'!A$4:E$503,5,FALSE),0),0) -> 0 | D55: =IF(C55>0,IF('Module 2-Step 3'!F60>0,'Module 2-Step 3'!F60,'Module 2-Step 3'!D60),0) -> 0 | E55: 0 | K55: =IF($A55>0,VLOOKUP($B55,'calculation sheet_per capita'!$A$4:$G$503,3, FALSE),"") ->  | L55: =IF($A55>0,VLOOKUP($B55,'calculation sheet_per capita'!$A$4:$G$503,4, FALSE),"") ->  | M55: =IF($A55>0,VLOOKUP($B55,'calculation sheet_per capita'!$A$4:$G$503,5, FALSE),"") ->  | N55: =IF($A55>0,VLOOKUP($B55,'calculation sheet_per capita'!$A$4:$G$503,6, FALSE),"") ->  | O55: =IF($A55>0,VLOOKUP($B55,'calculation sheet_per capita'!$A$4:$G$503,7, FALSE),"") -> 
A56: =IF(C56>0,MAX(A$2:A55)+1,0) -> 0 | B56: ='Module 2-Step 2'!B65 ->  | C56: =IF(B56<>"",IF(LEFT(B$1,3)="CFR",VLOOKUP(B56,'for concentration'!A$4:E$503,5,FALSE),0),0) -> 0 | D56: =IF(C56>0,IF('Module 2-Step 3'!F61>0,'Module 2-Step 3'!F61,'Module 2-Step 3'!D61),0) -> 0 | E56: 0 | K56: =IF($A56>0,VLOOKUP($B56,'calculation sheet_per capita'!$A$4:$G$503,3, FALSE),"") ->  | L56: =IF($A56>0,VLOOKUP($B56,'calculation sheet_per capita'!$A$4:$G$503,4, FALSE),"") ->  | M56: =IF($A56>0,VLOOKUP($B56,'calculation sheet_per capita'!$A$4:$G$503,5, FALSE),"") ->  | N56: =IF($A56>0,VLOOKUP($B56,'calculation sheet_per capita'!$A$4:$G$503,6, FALSE),"") ->  | O56: =IF($A56>0,VLOOKUP($B56,'calculation sheet_per capita'!$A$4:$G$503,7, FALSE),"") -> 
A57: =IF(C57>0,MAX(A$2:A56)+1,0) -> 0 | B57: ='Module 2-Step 2'!B66 ->  | C57: =IF(B57<>"",IF(LEFT(B$1,3)="CFR",VLOOKUP(B57,'for concentration'!A$4:E$503,5,FALSE),0),0) -> 0 | D57: =IF(C57>0,IF('Module 2-Step 3'!F62>0,'Module 2-Step 3'!F62,'Module 2-Step 3'!D62),0) -> 0 | E57: 0 | K57: =IF($A57>0,VLOOKUP($B57,'calculation sheet_per capita'!$A$4:$G$503,3, FALSE),"") ->  | L57: =IF($A57>0,VLOOKUP($B57,'calculation sheet_per capita'!$A$4:$G$503,4, FALSE),"") ->  | M57: =IF($A57>0,VLOOKUP($B57,'calculation sheet_per capita'!$A$4:$G$503,5, FALSE),"") ->  | N57: =IF($A57>0,VLOOKUP($B57,'calculation sheet_per capita'!$A$4:$G$503,6, FALSE),"") ->  | O57: =IF($A57>0,VLOOKUP($B57,'calculation sheet_per capita'!$A$4:$G$503,7, FALSE),"") -> 
A58: =IF(C58>0,MAX(A$2:A57)+1,0) -> 0 | B58: ='Module 2-Step 2'!B67 ->  | C58: =IF(B58<>"",IF(LEFT(B$1,3)="CFR",VLOOKUP(B58,'for concentration'!A$4:E$503,5,FALSE),0),0) -> 0 | D58: =IF(C58>0,IF('Module 2-Step 3'!F63>0,'Module 2-Step 3'!F63,'Module 2-Step 3'!D63),0) -> 0 | E58: 0 | K58: =IF($A58>0,VLOOKUP($B58,'calculation sheet_per capita'!$A$4:$G$503,3, FALSE),"") ->  | L58: =IF($A58>0,VLOOKUP($B58,'calculation sheet_per capita'!$A$4:$G$503,4, FALSE),"") ->  | M58: =IF($A58>0,VLOOKUP($B58,'calculation sheet_per capita'!$A$4:$G$503,5, FALSE),"") ->  | N58: =IF($A58>0,VLOOKUP($B58,'calculation sheet_per capita'!$A$4:$G$503,6, FALSE),"") ->  | O58: =IF($A58>0,VLOOKUP($B58,'calculation sheet_per capita'!$A$4:$G$503,7, FALSE),"") -> 
A59: =IF(C59>0,MAX(A$2:A58)+1,0) -> 0 | B59: ='Module 2-Step 2'!B68 ->  | C59: =IF(B59<>"",IF(LEFT(B$1,3)="CFR",VLOOKUP(B59,'for concentration'!A$4:E$503,5,FALSE),0),0) -> 0 | D59: =IF(C59>0,IF('Module 2-Step 3'!F64>0,'Module 2-Step 3'!F64,'Module 2-Step 3'!D64),0) -> 0 | E59: 0 | K59: =IF($A59>0,VLOOKUP($B59,'calculation sheet_per capita'!$A$4:$G$503,3, FALSE),"") ->  | L59: =IF($A59>0,VLOOKUP($B59,'calculation sheet_per capita'!$A$4:$G$503,4, FALSE),"") ->  | M59: =IF($A59>0,VLOOKUP($B59,'calculation sheet_per capita'!$A$4:$G$503,5, FALSE),"") ->  | N59: =IF($A59>0,VLOOKUP($B59,'calculation sheet_per capita'!$A$4:$G$503,6, FALSE),"") ->  | O59: =IF($A59>0,VLOOKUP($B59,'calculation sheet_per capita'!$A$4:$G$503,7, FALSE),"") -> 
A60: =IF(C60>0,MAX(A$2:A59)+1,0) -> 0 | B60: ='Module 2-Step 2'!B69 ->  | C60: =IF(B60<>"",IF(LEFT(B$1,3)="CFR",VLOOKUP(B60,'for concentration'!A$4:E$503,5,FALSE),0),0) -> 0 | D60: =IF(C60>0,IF('Module 2-Step 3'!F65>0,'Module 2-Step 3'!F65,'Module 2-Step 3'!D65),0) -> 0 | E60: 0 | K60: =IF($A60>0,VLOOKUP($B60,'calculation sheet_per capita'!$A$4:$G$503,3, FALSE),"") ->  | L60: =IF($A60>0,VLOOKUP($B60,'calculation sheet_per capita'!$A$4:$G$503,4, FALSE),"") ->  | M60: =IF($A60>0,VLOOKUP($B60,'calculation sheet_per capita'!$A$4:$G$503,5, FALSE),"") ->  | N60: =IF($A60>0,VLOOKUP($B60,'calculation sheet_per capita'!$A$4:$G$503,6, FALSE),"") ->  | O60: =IF($A60>0,VLOOKUP($B60,'calculation sheet_per capita'!$A$4:$G$503,7, FALSE),"") -> 
A61: =IF(C61>0,MAX(A$2:A60)+1,0) -> 0 | B61: ='Module 2-Step 2'!B70 ->  | C61: =IF(B61<>"",IF(LEFT(B$1,3)="CFR",VLOOKUP(B61,'for concentration'!A$4:E$503,5,FALSE),0),0) -> 0 | D61: =IF(C61>0,IF('Module 2-Step 3'!F66>0,'Module 2-Step 3'!F66,'Module 2-Step 3'!D66),0) -> 0 | E61: 0 | K61: =IF($A61>0,VLOOKUP($B61,'calculation sheet_per capita'!$A$4:$G$503,3, FALSE),"") ->  | L61: =IF($A61>0,VLOOKUP($B61,'calculation sheet_per capita'!$A$4:$G$503,4, FALSE),"") ->  | M61: =IF($A61>0,VLOOKUP($B61,'calculation sheet_per capita'!$A$4:$G$503,5, FALSE),"") ->  | N61: =IF($A61>0,VLOOKUP($B61,'calculation sheet_per capita'!$A$4:$G$503,6, FALSE),"") ->  | O61: =IF($A61>0,VLOOKUP($B61,'calculation sheet_per capita'!$A$4:$G$503,7, FALSE),"") -> 
A62: =IF(C62>0,MAX(A$2:A61)+1,0) -> 0 | B62: ='Module 2-Step 2'!B71 ->  | C62: =IF(B62<>"",IF(LEFT(B$1,3)="CFR",VLOOKUP(B62,'for concentration'!A$4:E$503,5,FALSE),0),0) -> 0 | D62: =IF(C62>0,IF('Module 2-Step 3'!F67>0,'Module 2-Step 3'!F67,'Module 2-Step 3'!D67),0) -> 0 | E62: 0 | K62: =IF($A62>0,VLOOKUP($B62,'calculation sheet_per capita'!$A$4:$G$503,3, FALSE),"") ->  | L62: =IF($A62>0,VLOOKUP($B62,'calculation sheet_per capita'!$A$4:$G$503,4, FALSE),"") ->  | M62: =IF($A62>0,VLOOKUP($B62,'calculation sheet_per capita'!$A$4:$G$503,5, FALSE),"") ->  | N62: =IF($A62>0,VLOOKUP($B62,'calculation sheet_per capita'!$A$4:$G$503,6, FALSE),"") ->  | O62: =IF($A62>0,VLOOKUP($B62,'calculation sheet_per capita'!$A$4:$G$503,7, FALSE),"") -> 
A63: =IF(C63>0,MAX(A$2:A62)+1,0) -> 0 | B63: ='Module 2-Step 2'!B72 ->  | C63: =IF(B63<>"",IF(LEFT(B$1,3)="CFR",VLOOKUP(B63,'for concentration'!A$4:E$503,5,FALSE),0),0) -> 0 | D63: =IF(C63>0,IF('Module 2-Step 3'!F68>0,'Module 2-Step 3'!F68,'Module 2-Step 3'!D68),0) -> 0 | E63: 0 | K63: =IF($A63>0,VLOOKUP($B63,'calculation sheet_per capita'!$A$4:$G$503,3, FALSE),"") ->  | L63: =IF($A63>0,VLOOKUP($B63,'calculation sheet_per capita'!$A$4:$G$503,4, FALSE),"") ->  | M63: =IF($A63>0,VLOOKUP($B63,'calculation sheet_per capita'!$A$4:$G$503,5, FALSE),"") ->  | N63: =IF($A63>0,VLOOKUP($B63,'calculation sheet_per capita'!$A$4:$G$503,6, FALSE),"") ->  | O63: =IF($A63>0,VLOOKUP($B63,'calculation sheet_per capita'!$A$4:$G$503,7, FALSE),"") -> 
A64: =IF(C64>0,MAX(A$2:A63)+1,0) -> 0 | B64: ='Module 2-Step 2'!B73 ->  | C64: =IF(B64<>"",IF(LEFT(B$1,3)="CFR",VLOOKUP(B64,'for concentration'!A$4:E$503,5,FALSE),0),0) -> 0 | D64: =IF(C64>0,IF('Module 2-Step 3'!F69>0,'Module 2-Step 3'!F69,'Module 2-Step 3'!D69),0) -> 0 | E64: 0 | K64: =IF($A64>0,VLOOKUP($B64,'calculation sheet_per capita'!$A$4:$G$503,3, FALSE),"") ->  | L64: =IF($A64>0,VLOOKUP($B64,'calculation sheet_per capita'!$A$4:$G$503,4, FALSE),"") ->  | M64: =IF($A64>0,VLOOKUP($B64,'calculation sheet_per capita'!$A$4:$G$503,5, FALSE),"") ->  | N64: =IF($A64>0,VLOOKUP($B64,'calculation sheet_per capita'!$A$4:$G$503,6, FALSE),"") ->  | O64: =IF($A64>0,VLOOKUP($B64,'calculation sheet_per capita'!$A$4:$G$503,7, FALSE),"") -> 
A65: =IF(C65>0,MAX(A$2:A64)+1,0) -> 0 | B65: ='Module 2-Step 2'!B74 ->  | C65: =IF(B65<>"",IF(LEFT(B$1,3)="CFR",VLOOKUP(B65,'for concentration'!A$4:E$503,5,FALSE),0),0) -> 0 | D65: =IF(C65>0,IF('Module 2-Step 3'!F70>0,'Module 2-Step 3'!F70,'Module 2-Step 3'!D70),0) -> 0 | E65: 0 | K65: =IF($A65>0,VLOOKUP($B65,'calculation sheet_per capita'!$A$4:$G$503,3, FALSE),"") ->  | L65: =IF($A65>0,VLOOKUP($B65,'calculation sheet_per capita'!$A$4:$G$503,4, FALSE),"") ->  | M65: =IF($A65>0,VLOOKUP($B65,'calculation sheet_per capita'!$A$4:$G$503,5, FALSE),"") ->  | N65: =IF($A65>0,VLOOKUP($B65,'calculation sheet_per capita'!$A$4:$G$503,6, FALSE),"") ->  | O65: =IF($A65>0,VLOOKUP($B65,'calculation sheet_per capita'!$A$4:$G$503,7, FALSE),"") -> 
A66: =IF(C66>0,MAX(A$2:A65)+1,0) -> 0 | B66: ='Module 2-Step 2'!B75 ->  | C66: =IF(B66<>"",IF(LEFT(B$1,3)="CFR",VLOOKUP(B66,'for concentration'!A$4:E$503,5,FALSE),0),0) -> 0 | D66: =IF(C66>0,IF('Module 2-Step 3'!F71>0,'Module 2-Step 3'!F71,'Module 2-Step 3'!D71),0) -> 0 | E66: =D66*C66 -> 0 | K66: =IF($A66>0,VLOOKUP($B66,'calculation sheet_per capita'!$A$4:$G$503,3, FALSE),"") ->  | L66: =IF($A66>0,VLOOKUP($B66,'calculation sheet_per capita'!$A$4:$G$503,4, FALSE),"") ->  | M66: =IF($A66>0,VLOOKUP($B66,'calculation sheet_per capita'!$A$4:$G$503,5, FALSE),"") ->  | N66: =IF($A66>0,VLOOKUP($B66,'calculation sheet_per capita'!$A$4:$G$503,6, FALSE),"") ->  | O66: =IF($A66>0,VLOOKUP($B66,'calculation sheet_per capita'!$A$4:$G$503,7, FALSE),"") -> 
A67: =IF(C67>0,MAX(A$2:A66)+1,0) -> 0 | B67: ='Module 2-Step 2'!B76 ->  | C67: =IF(B67<>"",IF(LEFT(B$1,3)="CFR",VLOOKUP(B67,'for concentration'!A$4:E$503,5,FALSE),0),0) -> 0 | D67: =IF(C67>0,IF('Module 2-Step 3'!F72>0,'Module 2-Step 3'!F72,'Module 2-Step 3'!D72),0) -> 0 | E67: 0 | F67: =IF($A67>0,IF(K$502>0,K67/K$502,"NC"),"") ->  | K67: =IF($A67>0,VLOOKUP($B67,'calculation sheet_per capita'!$A$4:$G$503,3, FALSE),"") ->  | L67: =IF($A67>0,VLOOKUP($B67,'calculation sheet_per capita'!$A$4:$G$503,4, FALSE),"") ->  | M67: =IF($A67>0,VLOOKUP($B67,'calculation sheet_per capita'!$A$4:$G$503,5, FALSE),"") ->  | N67: =IF($A67>0,VLOOKUP($B67,'calculation sheet_per capita'!$A$4:$G$503,6, FALSE),"") ->  | O67: =IF($A67>0,VLOOKUP($B67,'calculation sheet_per capita'!$A$4:$G$503,7, FALSE),"") -> 
A68: =IF(C68>0,MAX(A$2:A67)+1,0) -> 0 | B68: ='Module 2-Step 2'!B77 ->  | C68: =IF(B68<>"",IF(LEFT(B$1,3)="CFR",VLOOKUP(B68,'for concentration'!A$4:E$503,5,FALSE),0),0) -> 0 | D68: =IF(C68>0,IF('Module 2-Step 3'!F73>0,'Module 2-Step 3'!F73,'Module 2-Step 3'!D73),0) -> 0 | E68: 0 | K68: =IF($A68>0,VLOOKUP($B68,'calculation sheet_per capita'!$A$4:$G$503,3, FALSE),"") ->  | L68: =IF($A68>0,VLOOKUP($B68,'calculation sheet_per capita'!$A$4:$G$503,4, FALSE),"") ->  | M68: =IF($A68>0,VLOOKUP($B68,'calculation sheet_per capita'!$A$4:$G$503,5, FALSE),"") ->  | N68: =IF($A68>0,VLOOKUP($B68,'calculation sheet_per capita'!$A$4:$G$503,6, FALSE),"") ->  | O68: =IF($A68>0,VLOOKUP($B68,'calculation sheet_per capita'!$A$4:$G$503,7, FALSE),"") -> 
A69: =IF(C69>0,MAX(A$2:A68)+1,0) -> 0 | B69: ='Module 2-Step 2'!B78 ->  | C69: =IF(B69<>"",IF(LEFT(B$1,3)="CFR",VLOOKUP(B69,'for concentration'!A$4:E$503,5,FALSE),0),0) -> 0 | D69: =IF(C69>0,IF('Module 2-Step 3'!F74>0,'Module 2-Step 3'!F74,'Module 2-Step 3'!D74),0) -> 0 | E69: 0 | K69: =IF($A69>0,VLOOKUP($B69,'calculation sheet_per capita'!$A$4:$G$503,3, FALSE),"") ->  | L69: =IF($A69>0,VLOOKUP($B69,'calculation sheet_per capita'!$A$4:$G$503,4, FALSE),"") ->  | M69: =IF($A69>0,VLOOKUP($B69,'calculation sheet_per capita'!$A$4:$G$503,5, FALSE),"") ->  | N69: =IF($A69>0,VLOOKUP($B69,'calculation sheet_per capita'!$A$4:$G$503,6, FALSE),"") ->  | O69: =IF($A69>0,VLOOKUP($B69,'calculation sheet_per capita'!$A$4:$G$503,7, FALSE),"") -> 
A70: =IF(C70>0,MAX(A$2:A69)+1,0) -> 0 | B70: ='Module 2-Step 2'!B79 ->  | C70: =IF(B70<>"",IF(LEFT(B$1,3)="CFR",VLOOKUP(B70,'for concentration'!A$4:E$503,5,FALSE),0),0) -> 0 | D70: =IF(C70>0,IF('Module 2-Step 3'!F75>0,'Module 2-Step 3'!F75,'Module 2-Step 3'!D75),0) -> 0 | E70: 0 | K70: =IF($A70>0,VLOOKUP($B70,'calculation sheet_per capita'!$A$4:$G$503,3, FALSE),"") ->  | L70: =IF($A70>0,VLOOKUP($B70,'calculation sheet_per capita'!$A$4:$G$503,4, FALSE),"") ->  | M70: =IF($A70>0,VLOOKUP($B70,'calculation sheet_per capita'!$A$4:$G$503,5, FALSE),"") ->  | N70: =IF($A70>0,VLOOKUP($B70,'calculation sheet_per capita'!$A$4:$G$503,6, FALSE),"") ->  | O70: =IF($A70>0,VLOOKUP($B70,'calculation sheet_per capita'!$A$4:$G$503,7, FALSE),"") -> 
A71: =IF(C71>0,MAX(A$2:A70)+1,0) -> 0 | B71: ='Module 2-Step 2'!B80 ->  | C71: =IF(B71<>"",IF(LEFT(B$1,3)="CFR",VLOOKUP(B71,'for concentration'!A$4:E$503,5,FALSE),0),0) -> 0 | D71: =IF(C71>0,IF('Module 2-Step 3'!F76>0,'Module 2-Step 3'!F76,'Module 2-Step 3'!D76),0) -> 0 | E71: 0 | K71: =IF($A71>0,VLOOKUP($B71,'calculation sheet_per capita'!$A$4:$G$503,3, FALSE),"") ->  | L71: =IF($A71>0,VLOOKUP($B71,'calculation sheet_per capita'!$A$4:$G$503,4, FALSE),"") ->  | M71: =IF($A71>0,VLOOKUP($B71,'calculation sheet_per capita'!$A$4:$G$503,5, FALSE),"") ->  | N71: =IF($A71>0,VLOOKUP($B71,'calculation sheet_per capita'!$A$4:$G$503,6, FALSE),"") ->  | O71: =IF($A71>0,VLOOKUP($B71,'calculation sheet_per capita'!$A$4:$G$503,7, FALSE),"") -> 
A72: =IF(C72>0,MAX(A$2:A71)+1,0) -> 0 | B72: ='Module 2-Step 2'!B81 ->  | C72: =IF(B72<>"",IF(LEFT(B$1,3)="CFR",VLOOKUP(B72,'for concentration'!A$4:E$503,5,FALSE),0),0) -> 0 | D72: =IF(C72>0,IF('Module 2-Step 3'!F77>0,'Module 2-Step 3'!F77,'Module 2-Step 3'!D77),0) -> 0 | E72: 0 | K72: =IF($A72>0,VLOOKUP($B72,'calculation sheet_per capita'!$A$4:$G$503,3, FALSE),"") ->  | L72: =IF($A72>0,VLOOKUP($B72,'calculation sheet_per capita'!$A$4:$G$503,4, FALSE),"") ->  | M72: =IF($A72>0,VLOOKUP($B72,'calculation sheet_per capita'!$A$4:$G$503,5, FALSE),"") ->  | N72: =IF($A72>0,VLOOKUP($B72,'calculation sheet_per capita'!$A$4:$G$503,6, FALSE),"") ->  | O72: =IF($A72>0,VLOOKUP($B72,'calculation sheet_per capita'!$A$4:$G$503,7, FALSE),"") -> 
A73: =IF(C73>0,MAX(A$2:A72)+1,0) -> 0 | B73: ='Module 2-Step 2'!B82 ->  | C73: =IF(B73<>"",IF(LEFT(B$1,3)="CFR",VLOOKUP(B73,'for concentration'!A$4:E$503,5,FALSE),0),0) -> 0 | D73: =IF(C73>0,IF('Module 2-Step 3'!F78>0,'Module 2-Step 3'!F78,'Module 2-Step 3'!D78),0) -> 0 | E73: 0 | K73: =IF($A73>0,VLOOKUP($B73,'calculation sheet_per capita'!$A$4:$G$503,3, FALSE),"") ->  | L73: =IF($A73>0,VLOOKUP($B73,'calculation sheet_per capita'!$A$4:$G$503,4, FALSE),"") ->  | M73: =IF($A73>0,VLOOKUP($B73,'calculation sheet_per capita'!$A$4:$G$503,5, FALSE),"") ->  | N73: =IF($A73>0,VLOOKUP($B73,'calculation sheet_per capita'!$A$4:$G$503,6, FALSE),"") ->  | O73: =IF($A73>0,VLOOKUP($B73,'calculation sheet_per capita'!$A$4:$G$503,7, FALSE),"") -> 
A74: =IF(C74>0,MAX(A$2:A73)+1,0) -> 0 | B74: ='Module 2-Step 2'!B83 ->  | C74: =IF(B74<>"",IF(LEFT(B$1,3)="CFR",VLOOKUP(B74,'for concentration'!A$4:E$503,5,FALSE),0),0) -> 0 | D74: =IF(C74>0,IF('Module 2-Step 3'!F79>0,'Module 2-Step 3'!F79,'Module 2-Step 3'!D79),0) -> 0 | E74: 0 | K74: =IF($A74>0,VLOOKUP($B74,'calculation sheet_per capita'!$A$4:$G$503,3, FALSE),"") ->  | L74: =IF($A74>0,VLOOKUP($B74,'calculation sheet_per capita'!$A$4:$G$503,4, FALSE),"") ->  | M74: =IF($A74>0,VLOOKUP($B74,'calculation sheet_per capita'!$A$4:$G$503,5, FALSE),"") ->  | N74: =IF($A74>0,VLOOKUP($B74,'calculation sheet_per capita'!$A$4:$G$503,6, FALSE),"") ->  | O74: =IF($A74>0,VLOOKUP($B74,'calculation sheet_per capita'!$A$4:$G$503,7, FALSE),"") -> 
A75: =IF(C75>0,MAX(A$2:A74)+1,0) -> 0 | B75: ='Module 2-Step 2'!B84 ->  | C75: =IF(B75<>"",IF(LEFT(B$1,3)="CFR",VLOOKUP(B75,'for concentration'!A$4:E$503,5,FALSE),0),0) -> 0 | D75: =IF(C75>0,IF('Module 2-Step 3'!F80>0,'Module 2-Step 3'!F80,'Module 2-Step 3'!D80),0) -> 0 | E75: 0 | K75: =IF($A75>0,VLOOKUP($B75,'calculation sheet_per capita'!$A$4:$G$503,3, FALSE),"") ->  | L75: =IF($A75>0,VLOOKUP($B75,'calculation sheet_per capita'!$A$4:$G$503,4, FALSE),"") ->  | M75: =IF($A75>0,VLOOKUP($B75,'calculation sheet_per capita'!$A$4:$G$503,5, FALSE),"") ->  | N75: =IF($A75>0,VLOOKUP($B75,'calculation sheet_per capita'!$A$4:$G$503,6, FALSE),"") ->  | O75: =IF($A75>0,VLOOKUP($B75,'calculation sheet_per capita'!$A$4:$G$503,7, FALSE),"") -> 
A76: =IF(C76>0,MAX(A$2:A75)+1,0) -> 0 | B76: ='Module 2-Step 2'!B85 ->  | C76: =IF(B76<>"",IF(LEFT(B$1,3)="CFR",VLOOKUP(B76,'for concentration'!A$4:E$503,5,FALSE),0),0) -> 0 | D76: =IF(C76>0,IF('Module 2-Step 3'!F81>0,'Module 2-Step 3'!F81,'Module 2-Step 3'!D81),0) -> 0 | E76: 0 | K76: =IF($A76>0,VLOOKUP($B76,'calculation sheet_per capita'!$A$4:$G$503,3, FALSE),"") ->  | L76: =IF($A76>0,VLOOKUP($B76,'calculation sheet_per capita'!$A$4:$G$503,4, FALSE),"") ->  | M76: =IF($A76>0,VLOOKUP($B76,'calculation sheet_per capita'!$A$4:$G$503,5, FALSE),"") ->  | N76: =IF($A76>0,VLOOKUP($B76,'calculation sheet_per capita'!$A$4:$G$503,6, FALSE),"") ->  | O76: =IF($A76>0,VLOOKUP($B76,'calculation sheet_per capita'!$A$4:$G$503,7, FALSE),"") -> 
A77: =IF(C77>0,MAX(A$2:A76)+1,0) -> 0 | B77: ='Module 2-Step 2'!B86 ->  | C77: =IF(B77<>"",IF(LEFT(B$1,3)="CFR",VLOOKUP(B77,'for concentration'!A$4:E$503,5,FALSE),0),0) -> 0 | D77: =IF(C77>0,IF('Module 2-Step 3'!F82>0,'Module 2-Step 3'!F82,'Module 2-Step 3'!D82),0) -> 0 | E77: 0 | K77: =IF($A77>0,VLOOKUP($B77,'calculation sheet_per capita'!$A$4:$G$503,3, FALSE),"") ->  | L77: =IF($A77>0,VLOOKUP($B77,'calculation sheet_per capita'!$A$4:$G$503,4, FALSE),"") ->  | M77: =IF($A77>0,VLOOKUP($B77,'calculation sheet_per capita'!$A$4:$G$503,5, FALSE),"") ->  | N77: =IF($A77>0,VLOOKUP($B77,'calculation sheet_per capita'!$A$4:$G$503,6, FALSE),"") ->  | O77: =IF($A77>0,VLOOKUP($B77,'calculation sheet_per capita'!$A$4:$G$503,7, FALSE),"") -> 
A78: =IF(C78>0,MAX(A$2:A77)+1,0) -> 0 | B78: ='Module 2-Step 2'!B87 ->  | C78: =IF(B78<>"",IF(LEFT(B$1,3)="CFR",VLOOKUP(B78,'for concentration'!A$4:E$503,5,FALSE),0),0) -> 0 | D78: =IF(C78>0,IF('Module 2-Step 3'!F83>0,'Module 2-Step 3'!F83,'Module 2-Step 3'!D83),0) -> 0 | E78: 0 | K78: =IF($A78>0,VLOOKUP($B78,'calculation sheet_per capita'!$A$4:$G$503,3, FALSE),"") ->  | L78: =IF($A78>0,VLOOKUP($B78,'calculation sheet_per capita'!$A$4:$G$503,4, FALSE),"") ->  | M78: =IF($A78>0,VLOOKUP($B78,'calculation sheet_per capita'!$A$4:$G$503,5, FALSE),"") ->  | N78: =IF($A78>0,VLOOKUP($B78,'calculation sheet_per capita'!$A$4:$G$503,6, FALSE),"") ->  | O78: =IF($A78>0,VLOOKUP($B78,'calculation sheet_per capita'!$A$4:$G$503,7, FALSE),"") -> 
A79: =IF(C79>0,MAX(A$2:A78)+1,0) -> 0 | B79: ='Module 2-Step 2'!B88 ->  | C79: =IF(B79<>"",IF(LEFT(B$1,3)="CFR",VLOOKUP(B79,'for concentration'!A$4:E$503,5,FALSE),0),0) -> 0 | D79: =IF(C79>0,IF('Module 2-Step 3'!F84>0,'Module 2-Step 3'!F84,'Module 2-Step 3'!D84),0) -> 0 | E79: 0 | K79: =IF($A79>0,VLOOKUP($B79,'calculation sheet_per capita'!$A$4:$G$503,3, FALSE),"") ->  | L79: =IF($A79>0,VLOOKUP($B79,'calculation sheet_per capita'!$A$4:$G$503,4, FALSE),"") ->  | M79: =IF($A79>0,VLOOKUP($B79,'calculation sheet_per capita'!$A$4:$G$503,5, FALSE),"") ->  | N79: =IF($A79>0,VLOOKUP($B79,'calculation sheet_per capita'!$A$4:$G$503,6, FALSE),"") ->  | O79: =IF($A79>0,VLOOKUP($B79,'calculation sheet_per capita'!$A$4:$G$503,7, FALSE),"") -> 
A80: =IF(C80>0,MAX(A$2:A79)+1,0) -> 0 | B80: ='Module 2-Step 2'!B89 ->  | C80: =IF(B80<>"",IF(LEFT(B$1,3)="CFR",VLOOKUP(B80,'for concentration'!A$4:E$503,5,FALSE),0),0) -> 0 | D80: =IF(C80>0,IF('Module 2-Step 3'!F85>0,'Module 2-Step 3'!F85,'Module 2-Step 3'!D85),0) -> 0 | E80: 0 | K80: =IF($A80>0,VLOOKUP($B80,'calculation sheet_per capita'!$A$4:$G$503,3, FALSE),"") ->  | L80: =IF($A80>0,VLOOKUP($B80,'calculation sheet_per capita'!$A$4:$G$503,4, FALSE),"") ->  | M80: =IF($A80>0,VLOOKUP($B80,'calculation sheet_per capita'!$A$4:$G$503,5, FALSE),"") ->  | N80: =IF($A80>0,VLOOKUP($B80,'calculation sheet_per capita'!$A$4:$G$503,6, FALSE),"") ->  | O80: =IF($A80>0,VLOOKUP($B80,'calculation sheet_per capita'!$A$4:$G$503,7, FALSE),"") -> 
A81: =IF(C81>0,MAX(A$2:A80)+1,0) -> 0 | B81: ='Module 2-Step 2'!B90 ->  | C81: =IF(B81<>"",IF(LEFT(B$1,3)="CFR",VLOOKUP(B81,'for concentration'!A$4:E$503,5,FALSE),0),0) -> 0 | D81: =IF(C81>0,IF('Module 2-Step 3'!F86>0,'Module 2-Step 3'!F86,'Module 2-Step 3'!D86),0) -> 0 | E81: 0 | K81: =IF($A81>0,VLOOKUP($B81,'calculation sheet_per capita'!$A$4:$G$503,3, FALSE),"") ->  | L81: =IF($A81>0,VLOOKUP($B81,'calculation sheet_per capita'!$A$4:$G$503,4, FALSE),"") ->  | M81: =IF($A81>0,VLOOKUP($B81,'calculation sheet_per capita'!$A$4:$G$503,5, FALSE),"") ->  | N81: =IF($A81>0,VLOOKUP($B81,'calculation sheet_per capita'!$A$4:$G$503,6, FALSE),"") ->  | O81: =IF($A81>0,VLOOKUP($B81,'calculation sheet_per capita'!$A$4:$G$503,7, FALSE),"") -> 
A82: =IF(C82>0,MAX(A$2:A81)+1,0) -> 0 | B82: ='Module 2-Step 2'!B91 ->  | C82: =IF(B82<>"",IF(LEFT(B$1,3)="CFR",VLOOKUP(B82,'for concentration'!A$4:E$503,5,FALSE),0),0) -> 0 | D82: =IF(C82>0,IF('Module 2-Step 3'!F87>0,'Module 2-Step 3'!F87,'Module 2-Step 3'!D87),0) -> 0 | E82: 0 | G82: =IF($A82>0,IF(L$502>0,L82/L$502,"NC"),"") ->  | H82: =IF($A82>0,IF(M$502>0,M82/M$502,"NC"),"") ->  | I82: =IF($A82>0,IF(N$502>0,N82/N$502,"NC"),"") ->  | J82: =IF($A82>0,IF(O$502>0,O82/O$502,"NC"),"") ->  | K82: =IF($A82>0,VLOOKUP($B82,'calculation sheet_per capita'!$A$4:$G$503,3, FALSE),"") ->  | L82: =IF($A82>0,VLOOKUP($B82,'calculation sheet_per capita'!$A$4:$G$503,4, FALSE),"") ->  | M82: =IF($A82>0,VLOOKUP($B82,'calculation sheet_per capita'!$A$4:$G$503,5, FALSE),"") ->  | N82: =IF($A82>0,VLOOKUP($B82,'calculation sheet_per capita'!$A$4:$G$503,6, FALSE),"") ->  | O82: =IF($A82>0,VLOOKUP($B82,'calculation sheet_per capita'!$A$4:$G$503,7, FALSE),"") -> 
A83: =IF(C83>0,MAX(A$2:A82)+1,0) -> 0 | B83: ='Module 2-Step 2'!B92 ->  | C83: =IF(B83<>"",IF(LEFT(B$1,3)="CFR",VLOOKUP(B83,'for concentration'!A$4:E$503,5,FALSE),0),0) -> 0 | D83: =IF(C83>0,IF('Module 2-Step 3'!F88>0,'Module 2-Step 3'!F88,'Module 2-Step 3'!D88),0) -> 0 | E83: 0 | K83: =IF($A83>0,VLOOKUP($B83,'calculation sheet_per capita'!$A$4:$G$503,3, FALSE),"") ->  | L83: =IF($A83>0,VLOOKUP($B83,'calculation sheet_per capita'!$A$4:$G$503,4, FALSE),"") ->  | M83: =IF($A83>0,VLOOKUP($B83,'calculation sheet_per capita'!$A$4:$G$503,5, FALSE),"") ->  | N83: =IF($A83>0,VLOOKUP($B83,'calculation sheet_per capita'!$A$4:$G$503,6, FALSE),"") ->  | O83: =IF($A83>0,VLOOKUP($B83,'calculation sheet_per capita'!$A$4:$G$503,7, FALSE),"") -> 
A84: =IF(C84>0,MAX(A$2:A83)+1,0) -> 0 | B84: ='Module 2-Step 2'!B93 ->  | C84: =IF(B84<>"",IF(LEFT(B$1,3)="CFR",VLOOKUP(B84,'for concentration'!A$4:E$503,5,FALSE),0),0) -> 0 | D84: =IF(C84>0,IF('Module 2-Step 3'!F89>0,'Module 2-Step 3'!F89,'Module 2-Step 3'!D89),0) -> 0 | E84: 0 | K84: =IF($A84>0,VLOOKUP($B84,'calculation sheet_per capita'!$A$4:$G$503,3, FALSE),"") ->  | L84: =IF($A84>0,VLOOKUP($B84,'calculation sheet_per capita'!$A$4:$G$503,4, FALSE),"") ->  | M84: =IF($A84>0,VLOOKUP($B84,'calculation sheet_per capita'!$A$4:$G$503,5, FALSE),"") ->  | N84: =IF($A84>0,VLOOKUP($B84,'calculation sheet_per capita'!$A$4:$G$503,6, FALSE),"") ->  | O84: =IF($A84>0,VLOOKUP($B84,'calculation sheet_per capita'!$A$4:$G$503,7, FALSE),"") -> 
A85: =IF(C85>0,MAX(A$2:A84)+1,0) -> 0 | B85: ='Module 2-Step 2'!B94 ->  | C85: =IF(B85<>"",IF(LEFT(B$1,3)="CFR",VLOOKUP(B85,'for concentration'!A$4:E$503,5,FALSE),0),0) -> 0 | D85: =IF(C85>0,IF('Module 2-Step 3'!F90>0,'Module 2-Step 3'!F90,'Module 2-Step 3'!D90),0) -> 0 | E85: 0 | K85: =IF($A85>0,VLOOKUP($B85,'calculation sheet_per capita'!$A$4:$G$503,3, FALSE),"") ->  | L85: =IF($A85>0,VLOOKUP($B85,'calculation sheet_per capita'!$A$4:$G$503,4, FALSE),"") ->  | M85: =IF($A85>0,VLOOKUP($B85,'calculation sheet_per capita'!$A$4:$G$503,5, FALSE),"") ->  | N85: =IF($A85>0,VLOOKUP($B85,'calculation sheet_per capita'!$A$4:$G$503,6, FALSE),"") ->  | O85: =IF($A85>0,VLOOKUP($B85,'calculation sheet_per capita'!$A$4:$G$503,7, FALSE),"") -> 
A86: =IF(C86>0,MAX(A$2:A85)+1,0) -> 0 | B86: ='Module 2-Step 2'!B95 ->  | C86: =IF(B86<>"",IF(LEFT(B$1,3)="CFR",VLOOKUP(B86,'for concentration'!A$4:E$503,5,FALSE),0),0) -> 0 | D86: =IF(C86>0,IF('Module 2-Step 3'!F91>0,'Module 2-Step 3'!F91,'Module 2-Step 3'!D91),0) -> 0 | E86: 0 | K86: =IF($A86>0,VLOOKUP($B86,'calculation sheet_per capita'!$A$4:$G$503,3, FALSE),"") ->  | L86: =IF($A86>0,VLOOKUP($B86,'calculation sheet_per capita'!$A$4:$G$503,4, FALSE),"") ->  | M86: =IF($A86>0,VLOOKUP($B86,'calculation sheet_per capita'!$A$4:$G$503,5, FALSE),"") ->  | N86: =IF($A86>0,VLOOKUP($B86,'calculation sheet_per capita'!$A$4:$G$503,6, FALSE),"") ->  | O86: =IF($A86>0,VLOOKUP($B86,'calculation sheet_per capita'!$A$4:$G$503,7, FALSE),"") -> 
A87: =IF(C87>0,MAX(A$2:A86)+1,0) -> 0 | B87: ='Module 2-Step 2'!B96 ->  | C87: =IF(B87<>"",IF(LEFT(B$1,3)="CFR",VLOOKUP(B87,'for concentration'!A$4:E$503,5,FALSE),0),0) -> 0 | D87: =IF(C87>0,IF('Module 2-Step 3'!F92>0,'Module 2-Step 3'!F92,'Module 2-Step 3'!D92),0) -> 0 | E87: 0 | K87: =IF($A87>0,VLOOKUP($B87,'calculation sheet_per capita'!$A$4:$G$503,3, FALSE),"") ->  | L87: =IF($A87>0,VLOOKUP($B87,'calculation sheet_per capita'!$A$4:$G$503,4, FALSE),"") ->  | M87: =IF($A87>0,VLOOKUP($B87,'calculation sheet_per capita'!$A$4:$G$503,5, FALSE),"") ->  | N87: =IF($A87>0,VLOOKUP($B87,'calculation sheet_per capita'!$A$4:$G$503,6, FALSE),"") ->  | O87: =IF($A87>0,VLOOKUP($B87,'calculation sheet_per capita'!$A$4:$G$503,7, FALSE),"") -> 
A88: =IF(C88>0,MAX(A$2:A87)+1,0) -> 0 | B88: ='Module 2-Step 2'!B97 ->  | C88: =IF(B88<>"",IF(LEFT(B$1,3)="CFR",VLOOKUP(B88,'for concentration'!A$4:E$503,5,FALSE),0),0) -> 0 | D88: =IF(C88>0,IF('Module 2-Step 3'!F93>0,'Module 2-Step 3'!F93,'Module 2-Step 3'!D93),0) -> 0 | E88: 0 | K88: =IF($A88>0,VLOOKUP($B88,'calculation sheet_per capita'!$A$4:$G$503,3, FALSE),"") ->  | L88: =IF($A88>0,VLOOKUP($B88,'calculation sheet_per capita'!$A$4:$G$503,4, FALSE),"") ->  | M88: =IF($A88>0,VLOOKUP($B88,'calculation sheet_per capita'!$A$4:$G$503,5, FALSE),"") ->  | N88: =IF($A88>0,VLOOKUP($B88,'calculation sheet_per capita'!$A$4:$G$503,6, FALSE),"") ->  | O88: =IF($A88>0,VLOOKUP($B88,'calculation sheet_per capita'!$A$4:$G$503,7, FALSE),"") -> 
A89: =IF(C89>0,MAX(A$2:A88)+1,0) -> 0 | B89: ='Module 2-Step 2'!B98 ->  | C89: =IF(B89<>"",IF(LEFT(B$1,3)="CFR",VLOOKUP(B89,'for concentration'!A$4:E$503,5,FALSE),0),0) -> 0 | D89: =IF(C89>0,IF('Module 2-Step 3'!F94>0,'Module 2-Step 3'!F94,'Module 2-Step 3'!D94),0) -> 0 | E89: 0 | K89: =IF($A89>0,VLOOKUP($B89,'calculation sheet_per capita'!$A$4:$G$503,3, FALSE),"") ->  | L89: =IF($A89>0,VLOOKUP($B89,'calculation sheet_per capita'!$A$4:$G$503,4, FALSE),"") ->  | M89: =IF($A89>0,VLOOKUP($B89,'calculation sheet_per capita'!$A$4:$G$503,5, FALSE),"") ->  | N89: =IF($A89>0,VLOOKUP($B89,'calculation sheet_per capita'!$A$4:$G$503,6, FALSE),"") ->  | O89: =IF($A89>0,VLOOKUP($B89,'calculation sheet_per capita'!$A$4:$G$503,7, FALSE),"") -> 
A90: =IF(C90>0,MAX(A$2:A89)+1,0) -> 0 | B90: ='Module 2-Step 2'!B99 ->  | C90: =IF(B90<>"",IF(LEFT(B$1,3)="CFR",VLOOKUP(B90,'for concentration'!A$4:E$503,5,FALSE),0),0) -> 0 | D90: =IF(C90>0,IF('Module 2-Step 3'!F95>0,'Module 2-Step 3'!F95,'Module 2-Step 3'!D95),0) -> 0 | E90: 0 | K90: =IF($A90>0,VLOOKUP($B90,'calculation sheet_per capita'!$A$4:$G$503,3, FALSE),"") ->  | L90: =IF($A90>0,VLOOKUP($B90,'calculation sheet_per capita'!$A$4:$G$503,4, FALSE),"") ->  | M90: =IF($A90>0,VLOOKUP($B90,'calculation sheet_per capita'!$A$4:$G$503,5, FALSE),"") ->  | N90: =IF($A90>0,VLOOKUP($B90,'calculation sheet_per capita'!$A$4:$G$503,6, FALSE),"") ->  | O90: =IF($A90>0,VLOOKUP($B90,'calculation sheet_per capita'!$A$4:$G$503,7, FALSE),"") -> 
A91: =IF(C91>0,MAX(A$2:A90)+1,0) -> 0 | B91: ='Module 2-Step 2'!B100 ->  | C91: =IF(B91<>"",IF(LEFT(B$1,3)="CFR",VLOOKUP(B91,'for concentration'!A$4:E$503,5,FALSE),0),0) -> 0 | D91: =IF(C91>0,IF('Module 2-Step 3'!F96>0,'Module 2-Step 3'!F96,'Module 2-Step 3'!D96),0) -> 0 | E91: 0 | K91: =IF($A91>0,VLOOKUP($B91,'calculation sheet_per capita'!$A$4:$G$503,3, FALSE),"") ->  | L91: =IF($A91>0,VLOOKUP($B91,'calculation sheet_per capita'!$A$4:$G$503,4, FALSE),"") ->  | M91: =IF($A91>0,VLOOKUP($B91,'calculation sheet_per capita'!$A$4:$G$503,5, FALSE),"") ->  | N91: =IF($A91>0,VLOOKUP($B91,'calculation sheet_per capita'!$A$4:$G$503,6, FALSE),"") ->  | O91: =IF($A91>0,VLOOKUP($B91,'calculation sheet_per capita'!$A$4:$G$503,7, FALSE),"") -> 
A92: =IF(C92>0,MAX(A$2:A91)+1,0) -> 0 | B92: ='Module 2-Step 2'!B101 ->  | C92: =IF(B92<>"",IF(LEFT(B$1,3)="CFR",VLOOKUP(B92,'for concentration'!A$4:E$503,5,FALSE),0),0) -> 0 | D92: =IF(C92>0,IF('Module 2-Step 3'!F97>0,'Module 2-Step 3'!F97,'Module 2-Step 3'!D97),0) -> 0 | E92: 0 | K92: =IF($A92>0,VLOOKUP($B92,'calculation sheet_per capita'!$A$4:$G$503,3, FALSE),"") ->  | L92: =IF($A92>0,VLOOKUP($B92,'calculation sheet_per capita'!$A$4:$G$503,4, FALSE),"") ->  | M92: =IF($A92>0,VLOOKUP($B92,'calculation sheet_per capita'!$A$4:$G$503,5, FALSE),"") ->  | N92: =IF($A92>0,VLOOKUP($B92,'calculation sheet_per capita'!$A$4:$G$503,6, FALSE),"") ->  | O92: =IF($A92>0,VLOOKUP($B92,'calculation sheet_per capita'!$A$4:$G$503,7, FALSE),"") -> 
A93: =IF(C93>0,MAX(A$2:A92)+1,0) -> 0 | B93: ='Module 2-Step 2'!B102 ->  | C93: =IF(B93<>"",IF(LEFT(B$1,3)="CFR",VLOOKUP(B93,'for concentration'!A$4:E$503,5,FALSE),0),0) -> 0 | D93: =IF(C93>0,IF('Module 2-Step 3'!F98>0,'Module 2-Step 3'!F98,'Module 2-Step 3'!D98),0) -> 0 | E93: 0 | K93: =IF($A93>0,VLOOKUP($B93,'calculation sheet_per capita'!$A$4:$G$503,3, FALSE),"") ->  | L93: =IF($A93>0,VLOOKUP($B93,'calculation sheet_per capita'!$A$4:$G$503,4, FALSE),"") ->  | M93: =IF($A93>0,VLOOKUP($B93,'calculation sheet_per capita'!$A$4:$G$503,5, FALSE),"") ->  | N93: =IF($A93>0,VLOOKUP($B93,'calculation sheet_per capita'!$A$4:$G$503,6, FALSE),"") ->  | O93: =IF($A93>0,VLOOKUP($B93,'calculation sheet_per capita'!$A$4:$G$503,7, FALSE),"") -> 
A94: =IF(C94>0,MAX(A$2:A93)+1,0) -> 0 | B94: ='Module 2-Step 2'!B103 ->  | C94: =IF(B94<>"",IF(LEFT(B$1,3)="CFR",VLOOKUP(B94,'for concentration'!A$4:E$503,5,FALSE),0),0) -> 0 | D94: =IF(C94>0,IF('Module 2-Step 3'!F99>0,'Module 2-Step 3'!F99,'Module 2-Step 3'!D99),0) -> 0 | E94: 0 | K94: =IF($A94>0,VLOOKUP($B94,'calculation sheet_per capita'!$A$4:$G$503,3, FALSE),"") ->  | L94: =IF($A94>0,VLOOKUP($B94,'calculation sheet_per capita'!$A$4:$G$503,4, FALSE),"") ->  | M94: =IF($A94>0,VLOOKUP($B94,'calculation sheet_per capita'!$A$4:$G$503,5, FALSE),"") ->  | N94: =IF($A94>0,VLOOKUP($B94,'calculation sheet_per capita'!$A$4:$G$503,6, FALSE),"") ->  | O94: =IF($A94>0,VLOOKUP($B94,'calculation sheet_per capita'!$A$4:$G$503,7, FALSE),"") -> 
A95: =IF(C95>0,MAX(A$2:A94)+1,0) -> 0 | B95: ='Module 2-Step 2'!B104 ->  | C95: =IF(B95<>"",IF(LEFT(B$1,3)="CFR",VLOOKUP(B95,'for concentration'!A$4:E$503,5,FALSE),0),0) -> 0 | D95: =IF(C95>0,IF('Module 2-Step 3'!F100>0,'Module 2-Step 3'!F100,'Module 2-Step 3'!D100),0) -> 0 | E95: 0 | K95: =IF($A95>0,VLOOKUP($B95,'calculation sheet_per capita'!$A$4:$G$503,3, FALSE),"") ->  | L95: =IF($A95>0,VLOOKUP($B95,'calculation sheet_per capita'!$A$4:$G$503,4, FALSE),"") ->  | M95: =IF($A95>0,VLOOKUP($B95,'calculation sheet_per capita'!$A$4:$G$503,5, FALSE),"") ->  | N95: =IF($A95>0,VLOOKUP($B95,'calculation sheet_per capita'!$A$4:$G$503,6, FALSE),"") ->  | O95: =IF($A95>0,VLOOKUP($B95,'calculation sheet_per capita'!$A$4:$G$503,7, FALSE),"") -> 
A96: =IF(C96>0,MAX(A$2:A95)+1,0) -> 0 | B96: ='Module 2-Step 2'!B105 ->  | C96: =IF(B96<>"",IF(LEFT(B$1,3)="CFR",VLOOKUP(B96,'for concentration'!A$4:E$503,5,FALSE),0),0) -> 0 | D96: =IF(C96>0,IF('Module 2-Step 3'!F101>0,'Module 2-Step 3'!F101,'Module 2-Step 3'!D101),0) -> 0 | E96: 0 | K96: =IF($A96>0,VLOOKUP($B96,'calculation sheet_per capita'!$A$4:$G$503,3, FALSE),"") ->  | L96: =IF($A96>0,VLOOKUP($B96,'calculation sheet_per capita'!$A$4:$G$503,4, FALSE),"") ->  | M96: =IF($A96>0,VLOOKUP($B96,'calculation sheet_per capita'!$A$4:$G$503,5, FALSE),"") ->  | N96: =IF($A96>0,VLOOKUP($B96,'calculation sheet_per capita'!$A$4:$G$503,6, FALSE),"") ->  | O96: =IF($A96>0,VLOOKUP($B96,'calculation sheet_per capita'!$A$4:$G$503,7, FALSE),"") -> 
A97: =IF(C97>0,MAX(A$2:A96)+1,0) -> 0 | B97: ='Module 2-Step 2'!B106 ->  | C97: =IF(B97<>"",IF(LEFT(B$1,3)="CFR",VLOOKUP(B97,'for concentration'!A$4:E$503,5,FALSE),0),0) -> 0 | D97: =IF(C97>0,IF('Module 2-Step 3'!F102>0,'Module 2-Step 3'!F102,'Module 2-Step 3'!D102),0) -> 0 | E97: 0 | K97: =IF($A97>0,VLOOKUP($B97,'calculation sheet_per capita'!$A$4:$G$503,3, FALSE),"") ->  | L97: =IF($A97>0,VLOOKUP($B97,'calculation sheet_per capita'!$A$4:$G$503,4, FALSE),"") ->  | M97: =IF($A97>0,VLOOKUP($B97,'calculation sheet_per capita'!$A$4:$G$503,5, FALSE),"") ->  | N97: =IF($A97>0,VLOOKUP($B97,'calculation sheet_per capita'!$A$4:$G$503,6, FALSE),"") ->  | O97: =IF($A97>0,VLOOKUP($B97,'calculation sheet_per capita'!$A$4:$G$503,7, FALSE),"") -> 
A98: =IF(C98>0,MAX(A$2:A97)+1,0) -> 0 | B98: ='Module 2-Step 2'!B107 ->  | C98: =IF(B98<>"",IF(LEFT(B$1,3)="CFR",VLOOKUP(B98,'for concentration'!A$4:E$503,5,FALSE),0),0) -> 0 | D98: =IF(C98>0,IF('Module 2-Step 3'!F103>0,'Module 2-Step 3'!F103,'Module 2-Step 3'!D103),0) -> 0 | E98: 0 | K98: =IF($A98>0,VLOOKUP($B98,'calculation sheet_per capita'!$A$4:$G$503,3, FALSE),"") ->  | L98: =IF($A98>0,VLOOKUP($B98,'calculation sheet_per capita'!$A$4:$G$503,4, FALSE),"") ->  | M98: =IF($A98>0,VLOOKUP($B98,'calculation sheet_per capita'!$A$4:$G$503,5, FALSE),"") ->  | N98: =IF($A98>0,VLOOKUP($B98,'calculation sheet_per capita'!$A$4:$G$503,6, FALSE),"") ->  | O98: =IF($A98>0,VLOOKUP($B98,'calculation sheet_per capita'!$A$4:$G$503,7, FALSE),"") -> 
A99: =IF(C99>0,MAX(A$2:A98)+1,0) -> 0 | B99: ='Module 2-Step 2'!B108 ->  | C99: =IF(B99<>"",IF(LEFT(B$1,3)="CFR",VLOOKUP(B99,'for concentration'!A$4:E$503,5,FALSE),0),0) -> 0 | D99: =IF(C99>0,IF('Module 2-Step 3'!F104>0,'Module 2-Step 3'!F104,'Module 2-Step 3'!D104),0) -> 0 | E99: 0 | K99: =IF($A99>0,VLOOKUP($B99,'calculation sheet_per capita'!$A$4:$G$503,3, FALSE),"") ->  | L99: =IF($A99>0,VLOOKUP($B99,'calculation sheet_per capita'!$A$4:$G$503,4, FALSE),"") ->  | M99: =IF($A99>0,VLOOKUP($B99,'calculation sheet_per capita'!$A$4:$G$503,5, FALSE),"") ->  | N99: =IF($A99>0,VLOOKUP($B99,'calculation sheet_per capita'!$A$4:$G$503,6, FALSE),"") ->  | O99: =IF($A99>0,VLOOKUP($B99,'calculation sheet_per capita'!$A$4:$G$503,7, FALSE),"") -> 
A100: =IF(C100>0,MAX(A$2:A99)+1,0) -> 0 | B100: ='Module 2-Step 2'!B109 ->  | C100: =IF(B100<>"",IF(LEFT(B$1,3)="CFR",VLOOKUP(B100,'for concentration'!A$4:E$503,5,FALSE),0),0) -> 0 | D100: =IF(C100>0,IF('Module 2-Step 3'!F105>0,'Module 2-Step 3'!F105,'Module 2-Step 3'!D105),0) -> 0 | E100: 0 | K100: =IF($A100>0,VLOOKUP($B100,'calculation sheet_per capita'!$A$4:$G$503,3, FALSE),"") ->  | L100: =IF($A100>0,VLOOKUP($B100,'calculation sheet_per capita'!$A$4:$G$503,4, FALSE),"") ->  | M100: =IF($A100>0,VLOOKUP($B100,'calculation sheet_per capita'!$A$4:$G$503,5, FALSE),"") ->  | N100: =IF($A100>0,VLOOKUP($B100,'calculation sheet_per capita'!$A$4:$G$503,6, FALSE),"") ->  | O100: =IF($A100>0,VLOOKUP($B100,'calculation sheet_per capita'!$A$4:$G$503,7, FALSE),"") -> 
A101: =IF(C101>0,MAX(A$2:A100)+1,0) -> 0 | B101: ='Module 2-Step 2'!B110 ->  | C101: =IF(B101<>"",IF(LEFT(B$1,3)="CFR",VLOOKUP(B101,'for concentration'!A$4:E$503,5,FALSE),0),0) -> 0 | D101: =IF(C101>0,IF('Module 2-Step 3'!F106>0,'Module 2-Step 3'!F106,'Module 2-Step 3'!D106),0) -> 0 | E101: 0 | K101: =IF($A101>0,VLOOKUP($B101,'calculation sheet_per capita'!$A$4:$G$503,3, FALSE),"") ->  | L101: =IF($A101>0,VLOOKUP($B101,'calculation sheet_per capita'!$A$4:$G$503,4, FALSE),"") ->  | M101: =IF($A101>0,VLOOKUP($B101,'calculation sheet_per capita'!$A$4:$G$503,5, FALSE),"") ->  | N101: =IF($A101>0,VLOOKUP($B101,'calculation sheet_per capita'!$A$4:$G$503,6, FALSE),"") ->  | O101: =IF($A101>0,VLOOKUP($B101,'calculation sheet_per capita'!$A$4:$G$503,7, FALSE),"") -> 
A102: =IF(C102>0,MAX(A$2:A101)+1,0) -> 0 | B102: ='Module 2-Step 2'!B111 ->  | C102: =IF(B102<>"",IF(LEFT(B$1,3)="CFR",VLOOKUP(B102,'for concentration'!A$4:E$503,5,FALSE),0),0) -> 0 | D102: =IF(C102>0,IF('Module 2-Step 3'!F107>0,'Module 2-Step 3'!F107,'Module 2-Step 3'!D107),0) -> 0 | E102: 0 | K102: =IF($A102>0,VLOOKUP($B102,'calculation sheet_per capita'!$A$4:$G$503,3, FALSE),"") ->  | L102: =IF($A102>0,VLOOKUP($B102,'calculation sheet_per capita'!$A$4:$G$503,4, FALSE),"") ->  | M102: =IF($A102>0,VLOOKUP($B102,'calculation sheet_per capita'!$A$4:$G$503,5, FALSE),"") ->  | N102: =IF($A102>0,VLOOKUP($B102,'calculation sheet_per capita'!$A$4:$G$503,6, FALSE),"") ->  | O102: =IF($A102>0,VLOOKUP($B102,'calculation sheet_per capita'!$A$4:$G$503,7, FALSE),"") -> 
A103: =IF(C103>0,MAX(A$2:A102)+1,0) -> 0 | B103: ='Module 2-Step 2'!B112 ->  | C103: =IF(B103<>"",IF(LEFT(B$1,3)="CFR",VLOOKUP(B103,'for concentration'!A$4:E$503,5,FALSE),0),0) -> 0 | D103: =IF(C103>0,IF('Module 2-Step 3'!F108>0,'Module 2-Step 3'!F108,'Module 2-Step 3'!D108),0) -> 0 | E103: 0 | K103: =IF($A103>0,VLOOKUP($B103,'calculation sheet_per capita'!$A$4:$G$503,3, FALSE),"") ->  | L103: =IF($A103>0,VLOOKUP($B103,'calculation sheet_per capita'!$A$4:$G$503,4, FALSE),"") ->  | M103: =IF($A103>0,VLOOKUP($B103,'calculation sheet_per capita'!$A$4:$G$503,5, FALSE),"") ->  | N103: =IF($A103>0,VLOOKUP($B103,'calculation sheet_per capita'!$A$4:$G$503,6, FALSE),"") ->  | O103: =IF($A103>0,VLOOKUP($B103,'calculation sheet_per capita'!$A$4:$G$503,7, FALSE),"") -> 
A104: =IF(C104>0,MAX(A$2:A103)+1,0) -> 0 | B104: ='Module 2-Step 2'!B113 ->  | C104: =IF(B104<>"",IF(LEFT(B$1,3)="CFR",VLOOKUP(B104,'for concentration'!A$4:E$503,5,FALSE),0),0) -> 0 | D104: =IF(C104>0,IF('Module 2-Step 3'!F109>0,'Module 2-Step 3'!F109,'Module 2-Step 3'!D109),0) -> 0 | E104: 0 | K104: =IF($A104>0,VLOOKUP($B104,'calculation sheet_per capita'!$A$4:$G$503,3, FALSE),"") ->  | L104: =IF($A104>0,VLOOKUP($B104,'calculation sheet_per capita'!$A$4:$G$503,4, FALSE),"") ->  | M104: =IF($A104>0,VLOOKUP($B104,'calculation sheet_per capita'!$A$4:$G$503,5, FALSE),"") ->  | N104: =IF($A104>0,VLOOKUP($B104,'calculation sheet_per capita'!$A$4:$G$503,6, FALSE),"") ->  | O104: =IF($A104>0,VLOOKUP($B104,'calculation sheet_per capita'!$A$4:$G$503,7, FALSE),"") -> 
A105: =IF(C105>0,MAX(A$2:A104)+1,0) -> 0 | B105: ='Module 2-Step 2'!B114 ->  | C105: =IF(B105<>"",IF(LEFT(B$1,3)="CFR",VLOOKUP(B105,'for concentration'!A$4:E$503,5,FALSE),0),0) -> 0 | D105: =IF(C105>0,IF('Module 2-Step 3'!F110>0,'Module 2-Step 3'!F110,'Module 2-Step 3'!D110),0) -> 0 | E105: 0 | K105: =IF($A105>0,VLOOKUP($B105,'calculation sheet_per capita'!$A$4:$G$503,3, FALSE),"") ->  | L105: =IF($A105>0,VLOOKUP($B105,'calculation sheet_per capita'!$A$4:$G$503,4, FALSE),"") ->  | M105: =IF($A105>0,VLOOKUP($B105,'calculation sheet_per capita'!$A$4:$G$503,5, FALSE),"") ->  | N105: =IF($A105>0,VLOOKUP($B105,'calculation sheet_per capita'!$A$4:$G$503,6, FALSE),"") ->  | O105: =IF($A105>0,VLOOKUP($B105,'calculation sheet_per capita'!$A$4:$G$503,7, FALSE),"") -> 
A106: =IF(C106>0,MAX(A$2:A105)+1,0) -> 0 | B106: ='Module 2-Step 2'!B115 ->  | C106: =IF(B106<>"",IF(LEFT(B$1,3)="CFR",VLOOKUP(B106,'for concentration'!A$4:E$503,5,FALSE),0),0) -> 0 | D106: =IF(C106>0,IF('Module 2-Step 3'!F111>0,'Module 2-Step 3'!F111,'Module 2-Step 3'!D111),0) -> 0 | E106: 0 | K106: =IF($A106>0,VLOOKUP($B106,'calculation sheet_per capita'!$A$4:$G$503,3, FALSE),"") ->  | L106: =IF($A106>0,VLOOKUP($B106,'calculation sheet_per capita'!$A$4:$G$503,4, FALSE),"") ->  | M106: =IF($A106>0,VLOOKUP($B106,'calculation sheet_per capita'!$A$4:$G$503,5, FALSE),"") ->  | N106: =IF($A106>0,VLOOKUP($B106,'calculation sheet_per capita'!$A$4:$G$503,6, FALSE),"") ->  | O106: =IF($A106>0,VLOOKUP($B106,'calculation sheet_per capita'!$A$4:$G$503,7, FALSE),"") -> 
A107: =IF(C107>0,MAX(A$2:A106)+1,0) -> 0 | B107: ='Module 2-Step 2'!B116 ->  | C107: =IF(B107<>"",IF(LEFT(B$1,3)="CFR",VLOOKUP(B107,'for concentration'!A$4:E$503,5,FALSE),0),0) -> 0 | D107: =IF(C107>0,IF('Module 2-Step 3'!F112>0,'Module 2-Step 3'!F112,'Module 2-Step 3'!D112),0) -> 0 | E107: 0 | K107: =IF($A107>0,VLOOKUP($B107,'calculation sheet_per capita'!$A$4:$G$503,3, FALSE),"") ->  | L107: =IF($A107>0,VLOOKUP($B107,'calculation sheet_per capita'!$A$4:$G$503,4, FALSE),"") ->  | M107: =IF($A107>0,VLOOKUP($B107,'calculation sheet_per capita'!$A$4:$G$503,5, FALSE),"") ->  | N107: =IF($A107>0,VLOOKUP($B107,'calculation sheet_per capita'!$A$4:$G$503,6, FALSE),"") ->  | O107: =IF($A107>0,VLOOKUP($B107,'calculation sheet_per capita'!$A$4:$G$503,7, FALSE),"") -> 
A108: =IF(C108>0,MAX(A$2:A107)+1,0) -> 0 | B108: ='Module 2-Step 2'!B117 ->  | C108: =IF(B108<>"",IF(LEFT(B$1,3)="CFR",VLOOKUP(B108,'for concentration'!A$4:E$503,5,FALSE),0),0) -> 0 | D108: =IF(C108>0,IF('Module 2-Step 3'!F113>0,'Module 2-Step 3'!F113,'Module 2-Step 3'!D113),0) -> 0 | E108: 0 | K108: =IF($A108>0,VLOOKUP($B108,'calculation sheet_per capita'!$A$4:$G$503,3, FALSE),"") ->  | L108: =IF($A108>0,VLOOKUP($B108,'calculation sheet_per capita'!$A$4:$G$503,4, FALSE),"") ->  | M108: =IF($A108>0,VLOOKUP($B108,'calculation sheet_per capita'!$A$4:$G$503,5, FALSE),"") ->  | N108: =IF($A108>0,VLOOKUP($B108,'calculation sheet_per capita'!$A$4:$G$503,6, FALSE),"") ->  | O108: =IF($A108>0,VLOOKUP($B108,'calculation sheet_per capita'!$A$4:$G$503,7, FALSE),"") -> 
A109: =IF(C109>0,MAX(A$2:A108)+1,0) -> 0 | B109: ='Module 2-Step 2'!B118 ->  | C109: =IF(B109<>"",IF(LEFT(B$1,3)="CFR",VLOOKUP(B109,'for concentration'!A$4:E$503,5,FALSE),0),0) -> 0 | D109: =IF(C109>0,IF('Module 2-Step 3'!F114>0,'Module 2-Step 3'!F114,'Module 2-Step 3'!D114),0) -> 0 | E109: 0 | K109: =IF($A109>0,VLOOKUP($B109,'calculation sheet_per capita'!$A$4:$G$503,3, FALSE),"") ->  | L109: =IF($A109>0,VLOOKUP($B109,'calculation sheet_per capita'!$A$4:$G$503,4, FALSE),"") ->  | M109: =IF($A109>0,VLOOKUP($B109,'calculation sheet_per capita'!$A$4:$G$503,5, FALSE),"") ->  | N109: =IF($A109>0,VLOOKUP($B109,'calculation sheet_per capita'!$A$4:$G$503,6, FALSE),"") ->  | O109: =IF($A109>0,VLOOKUP($B109,'calculation sheet_per capita'!$A$4:$G$503,7, FALSE),"") -> 
A110: =IF(C110>0,MAX(A$2:A109)+1,0) -> 0 | B110: ='Module 2-Step 2'!B119 ->  | C110: =IF(B110<>"",IF(LEFT(B$1,3)="CFR",VLOOKUP(B110,'for concentration'!A$4:E$503,5,FALSE),0),0) -> 0 | D110: =IF(C110>0,IF('Module 2-Step 3'!F115>0,'Module 2-Step 3'!F115,'Module 2-Step 3'!D115),0) -> 0 | E110: 0 | K110: =IF($A110>0,VLOOKUP($B110,'calculation sheet_per capita'!$A$4:$G$503,3, FALSE),"") ->  | L110: =IF($A110>0,VLOOKUP($B110,'calculation sheet_per capita'!$A$4:$G$503,4, FALSE),"") ->  | M110: =IF($A110>0,VLOOKUP($B110,'calculation sheet_per capita'!$A$4:$G$503,5, FALSE),"") ->  | N110: =IF($A110>0,VLOOKUP($B110,'calculation sheet_per capita'!$A$4:$G$503,6, FALSE),"") ->  | O110: =IF($A110>0,VLOOKUP($B110,'calculation sheet_per capita'!$A$4:$G$503,7, FALSE),"") -> 
A111: =IF(C111>0,MAX(A$2:A110)+1,0) -> 0 | B111: ='Module 2-Step 2'!B120 ->  | C111: =IF(B111<>"",IF(LEFT(B$1,3)="CFR",VLOOKUP(B111,'for concentration'!A$4:E$503,5,FALSE),0),0) -> 0 | D111: =IF(C111>0,IF('Module 2-Step 3'!F116>0,'Module 2-Step 3'!F116,'Module 2-Step 3'!D116),0) -> 0 | E111: 0 | K111: =IF($A111>0,VLOOKUP($B111,'calculation sheet_per capita'!$A$4:$G$503,3, FALSE),"") ->  | L111: =IF($A111>0,VLOOKUP($B111,'calculation sheet_per capita'!$A$4:$G$503,4, FALSE),"") ->  | M111: =IF($A111>0,VLOOKUP($B111,'calculation sheet_per capita'!$A$4:$G$503,5, FALSE),"") ->  | N111: =IF($A111>0,VLOOKUP($B111,'calculation sheet_per capita'!$A$4:$G$503,6, FALSE),"") ->  | O111: =IF($A111>0,VLOOKUP($B111,'calculation sheet_per capita'!$A$4:$G$503,7, FALSE),"") -> 
A112: =IF(C112>0,MAX(A$2:A111)+1,0) -> 0 | B112: ='Module 2-Step 2'!B121 ->  | C112: =IF(B112<>"",IF(LEFT(B$1,3)="CFR",VLOOKUP(B112,'for concentration'!A$4:E$503,5,FALSE),0),0) -> 0 | D112: =IF(C112>0,IF('Module 2-Step 3'!F117>0,'Module 2-Step 3'!F117,'Module 2-Step 3'!D117),0) -> 0 | E112: 0 | K112: =IF($A112>0,VLOOKUP($B112,'calculation sheet_per capita'!$A$4:$G$503,3, FALSE),"") ->  | L112: =IF($A112>0,VLOOKUP($B112,'calculation sheet_per capita'!$A$4:$G$503,4, FALSE),"") ->  | M112: =IF($A112>0,VLOOKUP($B112,'calculation sheet_per capita'!$A$4:$G$503,5, FALSE),"") ->  | N112: =IF($A112>0,VLOOKUP($B112,'calculation sheet_per capita'!$A$4:$G$503,6, FALSE),"") ->  | O112: =IF($A112>0,VLOOKUP($B112,'calculation sheet_per capita'!$A$4:$G$503,7, FALSE),"") -> 
A113: =IF(C113>0,MAX(A$2:A112)+1,0) -> 0 | B113: ='Module 2-Step 2'!B122 ->  | C113: =IF(B113<>"",IF(LEFT(B$1,3)="CFR",VLOOKUP(B113,'for concentration'!A$4:E$503,5,FALSE),0),0) -> 0 | D113: =IF(C113>0,IF('Module 2-Step 3'!F118>0,'Module 2-Step 3'!F118,'Module 2-Step 3'!D118),0) -> 0 | E113: 0 | K113: =IF($A113>0,VLOOKUP($B113,'calculation sheet_per capita'!$A$4:$G$503,3, FALSE),"") ->  | L113: =IF($A113>0,VLOOKUP($B113,'calculation sheet_per capita'!$A$4:$G$503,4, FALSE),"") ->  | M113: =IF($A113>0,VLOOKUP($B113,'calculation sheet_per capita'!$A$4:$G$503,5, FALSE),"") ->  | N113: =IF($A113>0,VLOOKUP($B113,'calculation sheet_per capita'!$A$4:$G$503,6, FALSE),"") ->  | O113: =IF($A113>0,VLOOKUP($B113,'calculation sheet_per capita'!$A$4:$G$503,7, FALSE),"") -> 
A114: =IF(C114>0,MAX(A$2:A113)+1,0) -> 0 | B114: ='Module 2-Step 2'!B123 ->  | C114: =IF(B114<>"",IF(LEFT(B$1,3)="CFR",VLOOKUP(B114,'for concentration'!A$4:E$503,5,FALSE),0),0) -> 0 | D114: =IF(C114>0,IF('Module 2-Step 3'!F119>0,'Module 2-Step 3'!F119,'Module 2-Step 3'!D119),0) -> 0 | E114: 0 | K114: =IF($A114>0,VLOOKUP($B114,'calculation sheet_per capita'!$A$4:$G$503,3, FALSE),"") ->  | L114: =IF($A114>0,VLOOKUP($B114,'calculation sheet_per capita'!$A$4:$G$503,4, FALSE),"") ->  | M114: =IF($A114>0,VLOOKUP($B114,'calculation sheet_per capita'!$A$4:$G$503,5, FALSE),"") ->  | N114: =IF($A114>0,VLOOKUP($B114,'calculation sheet_per capita'!$A$4:$G$503,6, FALSE),"") ->  | O114: =IF($A114>0,VLOOKUP($B114,'calculation sheet_per capita'!$A$4:$G$503,7, FALSE),"") -> 
A115: =IF(C115>0,MAX(A$2:A114)+1,0) -> 0 | B115: ='Module 2-Step 2'!B124 ->  | C115: =IF(B115<>"",IF(LEFT(B$1,3)="CFR",VLOOKUP(B115,'for concentration'!A$4:E$503,5,FALSE),0),0) -> 0 | D115: =IF(C115>0,IF('Module 2-Step 3'!F120>0,'Module 2-Step 3'!F120,'Module 2-Step 3'!D120),0) -> 0 | E115: 0 | K115: =IF($A115>0,VLOOKUP($B115,'calculation sheet_per capita'!$A$4:$G$503,3, FALSE),"") ->  | L115: =IF($A115>0,VLOOKUP($B115,'calculation sheet_per capita'!$A$4:$G$503,4, FALSE),"") ->  | M115: =IF($A115>0,VLOOKUP($B115,'calculation sheet_per capita'!$A$4:$G$503,5, FALSE),"") ->  | N115: =IF($A115>0,VLOOKUP($B115,'calculation sheet_per capita'!$A$4:$G$503,6, FALSE),"") ->  | O115: =IF($A115>0,VLOOKUP($B115,'calculation sheet_per capita'!$A$4:$G$503,7, FALSE),"") -> 
A116: =IF(C116>0,MAX(A$2:A115)+1,0) -> 0 | B116: ='Module 2-Step 2'!B125 ->  | C116: =IF(B116<>"",IF(LEFT(B$1,3)="CFR",VLOOKUP(B116,'for concentration'!A$4:E$503,5,FALSE),0),0) -> 0 | D116: =IF(C116>0,IF('Module 2-Step 3'!F121>0,'Module 2-Step 3'!F121,'Module 2-Step 3'!D121),0) -> 0 | E116: 0 | K116: =IF($A116>0,VLOOKUP($B116,'calculation sheet_per capita'!$A$4:$G$503,3, FALSE),"") ->  | L116: =IF($A116>0,VLOOKUP($B116,'calculation sheet_per capita'!$A$4:$G$503,4, FALSE),"") ->  | M116: =IF($A116>0,VLOOKUP($B116,'calculation sheet_per capita'!$A$4:$G$503,5, FALSE),"") ->  | N116: =IF($A116>0,VLOOKUP($B116,'calculation sheet_per capita'!$A$4:$G$503,6, FALSE),"") ->  | O116: =IF($A116>0,VLOOKUP($B116,'calculation sheet_per capita'!$A$4:$G$503,7, FALSE),"") -> 
A117: =IF(C117>0,MAX(A$2:A116)+1,0) -> 0 | B117: ='Module 2-Step 2'!B126 ->  | C117: =IF(B117<>"",IF(LEFT(B$1,3)="CFR",VLOOKUP(B117,'for concentration'!A$4:E$503,5,FALSE),0),0) -> 0 | D117: =IF(C117>0,IF('Module 2-Step 3'!F122>0,'Module 2-Step 3'!F122,'Module 2-Step 3'!D122),0) -> 0 | E117: 0 | K117: =IF($A117>0,VLOOKUP($B117,'calculation sheet_per capita'!$A$4:$G$503,3, FALSE),"") ->  | L117: =IF($A117>0,VLOOKUP($B117,'calculation sheet_per capita'!$A$4:$G$503,4, FALSE),"") ->  | M117: =IF($A117>0,VLOOKUP($B117,'calculation sheet_per capita'!$A$4:$G$503,5, FALSE),"") ->  | N117: =IF($A117>0,VLOOKUP($B117,'calculation sheet_per capita'!$A$4:$G$503,6, FALSE),"") ->  | O117: =IF($A117>0,VLOOKUP($B117,'calculation sheet_per capita'!$A$4:$G$503,7, FALSE),"") -> 
A118: =IF(C118>0,MAX(A$2:A117)+1,0) -> 0 | B118: ='Module 2-Step 2'!B127 ->  | C118: =IF(B118<>"",IF(LEFT(B$1,3)="CFR",VLOOKUP(B118,'for concentration'!A$4:E$503,5,FALSE),0),0) -> 0 | D118: =IF(C118>0,IF('Module 2-Step 3'!F123>0,'Module 2-Step 3'!F123,'Module 2-Step 3'!D123),0) -> 0 | E118: 0 | K118: =IF($A118>0,VLOOKUP($B118,'calculation sheet_per capita'!$A$4:$G$503,3, FALSE),"") ->  | L118: =IF($A118>0,VLOOKUP($B118,'calculation sheet_per capita'!$A$4:$G$503,4, FALSE),"") ->  | M118: =IF($A118>0,VLOOKUP($B118,'calculation sheet_per capita'!$A$4:$G$503,5, FALSE),"") ->  | N118: =IF($A118>0,VLOOKUP($B118,'calculation sheet_per capita'!$A$4:$G$503,6, FALSE),"") ->  | O118: =IF($A118>0,VLOOKUP($B118,'calculation sheet_per capita'!$A$4:$G$503,7, FALSE),"") -> 
A119: =IF(C119>0,MAX(A$2:A118)+1,0) -> 0 | B119: ='Module 2-Step 2'!B128 ->  | C119: =IF(B119<>"",IF(LEFT(B$1,3)="CFR",VLOOKUP(B119,'for concentration'!A$4:E$503,5,FALSE),0),0) -> 0 | D119: =IF(C119>0,IF('Module 2-Step 3'!F124>0,'Module 2-Step 3'!F124,'Module 2-Step 3'!D124),0) -> 0 | E119: 0 | K119: =IF($A119>0,VLOOKUP($B119,'calculation sheet_per capita'!$A$4:$G$503,3, FALSE),"") ->  | L119: =IF($A119>0,VLOOKUP($B119,'calculation sheet_per capita'!$A$4:$G$503,4, FALSE),"") ->  | M119: =IF($A119>0,VLOOKUP($B119,'calculation sheet_per capita'!$A$4:$G$503,5, FALSE),"") ->  | N119: =IF($A119>0,VLOOKUP($B119,'calculation sheet_per capita'!$A$4:$G$503,6, FALSE),"") ->  | O119: =IF($A119>0,VLOOKUP($B119,'calculation sheet_per capita'!$A$4:$G$503,7, FALSE),"") -> 
A120: =IF(C120>0,MAX(A$2:A119)+1,0) -> 0 | B120: ='Module 2-Step 2'!B129 ->  | C120: =IF(B120<>"",IF(LEFT(B$1,3)="CFR",VLOOKUP(B120,'for concentration'!A$4:E$503,5,FALSE),0),0) -> 0 | D120: =IF(C120>0,IF('Module 2-Step 3'!F125>0,'Module 2-Step 3'!F125,'Module 2-Step 3'!D125),0) -> 0 | E120: 0 | K120: =IF($A120>0,VLOOKUP($B120,'calculation sheet_per capita'!$A$4:$G$503,3, FALSE),"") ->  | L120: =IF($A120>0,VLOOKUP($B120,'calculation sheet_per capita'!$A$4:$G$503,4, FALSE),"") ->  | M120: =IF($A120>0,VLOOKUP($B120,'calculation sheet_per capita'!$A$4:$G$503,5, FALSE),"") ->  | N120: =IF($A120>0,VLOOKUP($B120,'calculation sheet_per capita'!$A$4:$G$503,6, FALSE),"") ->  | O120: =IF($A120>0,VLOOKUP($B120,'calculation sheet_per capita'!$A$4:$G$503,7, FALSE),"") -> 
A121: =IF(C121>0,MAX(A$2:A120)+1,0) -> 0 | B121: ='Module 2-Step 2'!B130 ->  | C121: =IF(B121<>"",IF(LEFT(B$1,3)="CFR",VLOOKUP(B121,'for concentration'!A$4:E$503,5,FALSE),0),0) -> 0 | D121: =IF(C121>0,IF('Module 2-Step 3'!F126>0,'Module 2-Step 3'!F126,'Module 2-Step 3'!D126),0) -> 0 | E121: 0 | K121: =IF($A121>0,VLOOKUP($B121,'calculation sheet_per capita'!$A$4:$G$503,3, FALSE),"") ->  | L121: =IF($A121>0,VLOOKUP($B121,'calculation sheet_per capita'!$A$4:$G$503,4, FALSE),"") ->  | M121: =IF($A121>0,VLOOKUP($B121,'calculation sheet_per capita'!$A$4:$G$503,5, FALSE),"") ->  | N121: =IF($A121>0,VLOOKUP($B121,'calculation sheet_per capita'!$A$4:$G$503,6, FALSE),"") ->  | O121: =IF($A121>0,VLOOKUP($B121,'calculation sheet_per capita'!$A$4:$G$503,7, FALSE),"") -> 
A122: =IF(C122>0,MAX(A$2:A121)+1,0) -> 0 | B122: ='Module 2-Step 2'!B131 ->  | C122: =IF(B122<>"",IF(LEFT(B$1,3)="CFR",VLOOKUP(B122,'for concentration'!A$4:E$503,5,FALSE),0),0) -> 0 | D122: =IF(C122>0,IF('Module 2-Step 3'!F127>0,'Module 2-Step 3'!F127,'Module 2-Step 3'!D127),0) -> 0 | E122: 0 | K122: =IF($A122>0,VLOOKUP($B122,'calculation sheet_per capita'!$A$4:$G$503,3, FALSE),"") ->  | L122: =IF($A122>0,VLOOKUP($B122,'calculation sheet_per capita'!$A$4:$G$503,4, FALSE),"") ->  | M122: =IF($A122>0,VLOOKUP($B122,'calculation sheet_per capita'!$A$4:$G$503,5, FALSE),"") ->  | N122: =IF($A122>0,VLOOKUP($B122,'calculation sheet_per capita'!$A$4:$G$503,6, FALSE),"") ->  | O122: =IF($A122>0,VLOOKUP($B122,'calculation sheet_per capita'!$A$4:$G$503,7, FALSE),"") -> 
A123: =IF(C123>0,MAX(A$2:A122)+1,0) -> 0 | B123: ='Module 2-Step 2'!B132 ->  | C123: =IF(B123<>"",IF(LEFT(B$1,3)="CFR",VLOOKUP(B123,'for concentration'!A$4:E$503,5,FALSE),0),0) -> 0 | D123: =IF(C123>0,IF('Module 2-Step 3'!F128>0,'Module 2-Step 3'!F128,'Module 2-Step 3'!D128),0) -> 0 | E123: 0 | K123: =IF($A123>0,VLOOKUP($B123,'calculation sheet_per capita'!$A$4:$G$503,3, FALSE),"") ->  | L123: =IF($A123>0,VLOOKUP($B123,'calculation sheet_per capita'!$A$4:$G$503,4, FALSE),"") ->  | M123: =IF($A123>0,VLOOKUP($B123,'calculation sheet_per capita'!$A$4:$G$503,5, FALSE),"") ->  | N123: =IF($A123>0,VLOOKUP($B123,'calculation sheet_per capita'!$A$4:$G$503,6, FALSE),"") ->  | O123: =IF($A123>0,VLOOKUP($B123,'calculation sheet_per capita'!$A$4:$G$503,7, FALSE),"") -> 
A124: =IF(C124>0,MAX(A$2:A123)+1,0) -> 0 | B124: ='Module 2-Step 2'!B133 ->  | C124: =IF(B124<>"",IF(LEFT(B$1,3)="CFR",VLOOKUP(B124,'for concentration'!A$4:E$503,5,FALSE),0),0) -> 0 | D124: =IF(C124>0,IF('Module 2-Step 3'!F129>0,'Module 2-Step 3'!F129,'Module 2-Step 3'!D129),0) -> 0 | E124: 0 | K124: =IF($A124>0,VLOOKUP($B124,'calculation sheet_per capita'!$A$4:$G$503,3, FALSE),"") ->  | L124: =IF($A124>0,VLOOKUP($B124,'calculation sheet_per capita'!$A$4:$G$503,4, FALSE),"") ->  | M124: =IF($A124>0,VLOOKUP($B124,'calculation sheet_per capita'!$A$4:$G$503,5, FALSE),"") ->  | N124: =IF($A124>0,VLOOKUP($B124,'calculation sheet_per capita'!$A$4:$G$503,6, FALSE),"") ->  | O124: =IF($A124>0,VLOOKUP($B124,'calculation sheet_per capita'!$A$4:$G$503,7, FALSE),"") -> 
A125: =IF(C125>0,MAX(A$2:A124)+1,0) -> 0 | B125: ='Module 2-Step 2'!B134 ->  | C125: =IF(B125<>"",IF(LEFT(B$1,3)="CFR",VLOOKUP(B125,'for concentration'!A$4:E$503,5,FALSE),0),0) -> 0 | D125: =IF(C125>0,IF('Module 2-Step 3'!F130>0,'Module 2-Step 3'!F130,'Module 2-Step 3'!D130),0) -> 0 | E125: 0 | K125: =IF($A125>0,VLOOKUP($B125,'calculation sheet_per capita'!$A$4:$G$503,3, FALSE),"") ->  | L125: =IF($A125>0,VLOOKUP($B125,'calculation sheet_per capita'!$A$4:$G$503,4, FALSE),"") ->  | M125: =IF($A125>0,VLOOKUP($B125,'calculation sheet_per capita'!$A$4:$G$503,5, FALSE),"") ->  | N125: =IF($A125>0,VLOOKUP($B125,'calculation sheet_per capita'!$A$4:$G$503,6, FALSE),"") ->  | O125: =IF($A125>0,VLOOKUP($B125,'calculation sheet_per capita'!$A$4:$G$503,7, FALSE),"") -> 
A126: =IF(C126>0,MAX(A$2:A125)+1,0) -> 0 | B126: ='Module 2-Step 2'!B135 ->  | C126: =IF(B126<>"",IF(LEFT(B$1,3)="CFR",VLOOKUP(B126,'for concentration'!A$4:E$503,5,FALSE),0),0) -> 0 | D126: =IF(C126>0,IF('Module 2-Step 3'!F131>0,'Module 2-Step 3'!F131,'Module 2-Step 3'!D131),0) -> 0 | E126: 0 | K126: =IF($A126>0,VLOOKUP($B126,'calculation sheet_per capita'!$A$4:$G$503,3, FALSE),"") ->  | L126: =IF($A126>0,VLOOKUP($B126,'calculation sheet_per capita'!$A$4:$G$503,4, FALSE),"") ->  | M126: =IF($A126>0,VLOOKUP($B126,'calculation sheet_per capita'!$A$4:$G$503,5, FALSE),"") ->  | N126: =IF($A126>0,VLOOKUP($B126,'calculation sheet_per capita'!$A$4:$G$503,6, FALSE),"") ->  | O126: =IF($A126>0,VLOOKUP($B126,'calculation sheet_per capita'!$A$4:$G$503,7, FALSE),"") -> 
A127: =IF(C127>0,MAX(A$2:A126)+1,0) -> 0 | B127: ='Module 2-Step 2'!B136 ->  | C127: =IF(B127<>"",IF(LEFT(B$1,3)="CFR",VLOOKUP(B127,'for concentration'!A$4:E$503,5,FALSE),0),0) -> 0 | D127: =IF(C127>0,IF('Module 2-Step 3'!F132>0,'Module 2-Step 3'!F132,'Module 2-Step 3'!D132),0) -> 0 | E127: 0 | K127: =IF($A127>0,VLOOKUP($B127,'calculation sheet_per capita'!$A$4:$G$503,3, FALSE),"") ->  | L127: =IF($A127>0,VLOOKUP($B127,'calculation sheet_per capita'!$A$4:$G$503,4, FALSE),"") ->  | M127: =IF($A127>0,VLOOKUP($B127,'calculation sheet_per capita'!$A$4:$G$503,5, FALSE),"") ->  | N127: =IF($A127>0,VLOOKUP($B127,'calculation sheet_per capita'!$A$4:$G$503,6, FALSE),"") ->  | O127: =IF($A127>0,VLOOKUP($B127,'calculation sheet_per capita'!$A$4:$G$503,7, FALSE),"") -> 
A128: =IF(C128>0,MAX(A$2:A127)+1,0) -> 0 | B128: ='Module 2-Step 2'!B137 ->  | C128: =IF(B128<>"",IF(LEFT(B$1,3)="CFR",VLOOKUP(B128,'for concentration'!A$4:E$503,5,FALSE),0),0) -> 0 | D128: =IF(C128>0,IF('Module 2-Step 3'!F133>0,'Module 2-Step 3'!F133,'Module 2-Step 3'!D133),0) -> 0 | E128: 0 | K128: =IF($A128>0,VLOOKUP($B128,'calculation sheet_per capita'!$A$4:$G$503,3, FALSE),"") ->  | L128: =IF($A128>0,VLOOKUP($B128,'calculation sheet_per capita'!$A$4:$G$503,4, FALSE),"") ->  | M128: =IF($A128>0,VLOOKUP($B128,'calculation sheet_per capita'!$A$4:$G$503,5, FALSE),"") ->  | N128: =IF($A128>0,VLOOKUP($B128,'calculation sheet_per capita'!$A$4:$G$503,6, FALSE),"") ->  | O128: =IF($A128>0,VLOOKUP($B128,'calculation sheet_per capita'!$A$4:$G$503,7, FALSE),"") -> 
A129: =IF(C129>0,MAX(A$2:A128)+1,0) -> 0 | B129: ='Module 2-Step 2'!B138 ->  | C129: =IF(B129<>"",IF(LEFT(B$1,3)="CFR",VLOOKUP(B129,'for concentration'!A$4:E$503,5,FALSE),0),0) -> 0 | D129: =IF(C129>0,IF('Module 2-Step 3'!F134>0,'Module 2-Step 3'!F134,'Module 2-Step 3'!D134),0) -> 0 | E129: 0 | K129: =IF($A129>0,VLOOKUP($B129,'calculation sheet_per capita'!$A$4:$G$503,3, FALSE),"") ->  | L129: =IF($A129>0,VLOOKUP($B129,'calculation sheet_per capita'!$A$4:$G$503,4, FALSE),"") ->  | M129: =IF($A129>0,VLOOKUP($B129,'calculation sheet_per capita'!$A$4:$G$503,5, FALSE),"") ->  | N129: =IF($A129>0,VLOOKUP($B129,'calculation sheet_per capita'!$A$4:$G$503,6, FALSE),"") ->  | O129: =IF($A129>0,VLOOKUP($B129,'calculation sheet_per capita'!$A$4:$G$503,7, FALSE),"") -> 
A130: =IF(C130>0,MAX(A$2:A129)+1,0) -> 0 | B130: ='Module 2-Step 2'!B139 ->  | C130: =IF(B130<>"",IF(LEFT(B$1,3)="CFR",VLOOKUP(B130,'for concentration'!A$4:E$503,5,FALSE),0),0) -> 0 | D130: =IF(C130>0,IF('Module 2-Step 3'!F135>0,'Module 2-Step 3'!F135,'Module 2-Step 3'!D135),0) -> 0 | E130: =D130*C130 -> 0 | K130: =IF($A130>0,VLOOKUP($B130,'calculation sheet_per capita'!$A$4:$G$503,3, FALSE),"") ->  | L130: =IF($A130>0,VLOOKUP($B130,'calculation sheet_per capita'!$A$4:$G$503,4, FALSE),"") ->  | M130: =IF($A130>0,VLOOKUP($B130,'calculation sheet_per capita'!$A$4:$G$503,5, FALSE),"") ->  | N130: =IF($A130>0,VLOOKUP($B130,'calculation sheet_per capita'!$A$4:$G$503,6, FALSE),"") ->  | O130: =IF($A130>0,VLOOKUP($B130,'calculation sheet_per capita'!$A$4:$G$503,7, FALSE),"") -> 
A131: =IF(C131>0,MAX(A$2:A130)+1,0) -> 0 | B131: ='Module 2-Step 2'!B140 ->  | C131: =IF(B131<>"",IF(LEFT(B$1,3)="CFR",VLOOKUP(B131,'for concentration'!A$4:E$503,5,FALSE),0),0) -> 0 | D131: =IF(C131>0,IF('Module 2-Step 3'!F136>0,'Module 2-Step 3'!F136,'Module 2-Step 3'!D136),0) -> 0 | E131: 0 | F131: =IF($A131>0,IF(K$502>0,K131/K$502,"NC"),"") ->  | K131: =IF($A131>0,VLOOKUP($B131,'calculation sheet_per capita'!$A$4:$G$503,3, FALSE),"") ->  | L131: =IF($A131>0,VLOOKUP($B131,'calculation sheet_per capita'!$A$4:$G$503,4, FALSE),"") ->  | M131: =IF($A131>0,VLOOKUP($B131,'calculation sheet_per capita'!$A$4:$G$503,5, FALSE),"") ->  | N131: =IF($A131>0,VLOOKUP($B131,'calculation sheet_per capita'!$A$4:$G$503,6, FALSE),"") ->  | O131: =IF($A131>0,VLOOKUP($B131,'calculation sheet_per capita'!$A$4:$G$503,7, FALSE),"") -> 
A132: =IF(C132>0,MAX(A$2:A131)+1,0) -> 0 | B132: ='Module 2-Step 2'!B141 ->  | C132: =IF(B132<>"",IF(LEFT(B$1,3)="CFR",VLOOKUP(B132,'for concentration'!A$4:E$503,5,FALSE),0),0) -> 0 | D132: =IF(C132>0,IF('Module 2-Step 3'!F137>0,'Module 2-Step 3'!F137,'Module 2-Step 3'!D137),0) -> 0 | E132: 0 | K132: =IF($A132>0,VLOOKUP($B132,'calculation sheet_per capita'!$A$4:$G$503,3, FALSE),"") ->  | L132: =IF($A132>0,VLOOKUP($B132,'calculation sheet_per capita'!$A$4:$G$503,4, FALSE),"") ->  | M132: =IF($A132>0,VLOOKUP($B132,'calculation sheet_per capita'!$A$4:$G$503,5, FALSE),"") ->  | N132: =IF($A132>0,VLOOKUP($B132,'calculation sheet_per capita'!$A$4:$G$503,6, FALSE),"") ->  | O132: =IF($A132>0,VLOOKUP($B132,'calculation sheet_per capita'!$A$4:$G$503,7, FALSE),"") -> 
A133: =IF(C133>0,MAX(A$2:A132)+1,0) -> 0 | B133: ='Module 2-Step 2'!B142 ->  | C133: =IF(B133<>"",IF(LEFT(B$1,3)="CFR",VLOOKUP(B133,'for concentration'!A$4:E$503,5,FALSE),0),0) -> 0 | D133: =IF(C133>0,IF('Module 2-Step 3'!F138>0,'Module 2-Step 3'!F138,'Module 2-Step 3'!D138),0) -> 0 | E133: 0 | K133: =IF($A133>0,VLOOKUP($B133,'calculation sheet_per capita'!$A$4:$G$503,3, FALSE),"") ->  | L133: =IF($A133>0,VLOOKUP($B133,'calculation sheet_per capita'!$A$4:$G$503,4, FALSE),"") ->  | M133: =IF($A133>0,VLOOKUP($B133,'calculation sheet_per capita'!$A$4:$G$503,5, FALSE),"") ->  | N133: =IF($A133>0,VLOOKUP($B133,'calculation sheet_per capita'!$A$4:$G$503,6, FALSE),"") ->  | O133: =IF($A133>0,VLOOKUP($B133,'calculation sheet_per capita'!$A$4:$G$503,7, FALSE),"") -> 
A134: =IF(C134>0,MAX(A$2:A133)+1,0) -> 0 | B134: ='Module 2-Step 2'!B143 ->  | C134: =IF(B134<>"",IF(LEFT(B$1,3)="CFR",VLOOKUP(B134,'for concentration'!A$4:E$503,5,FALSE),0),0) -> 0 | D134: =IF(C134>0,IF('Module 2-Step 3'!F139>0,'Module 2-Step 3'!F139,'Module 2-Step 3'!D139),0) -> 0 | E134: 0 | K134: =IF($A134>0,VLOOKUP($B134,'calculation sheet_per capita'!$A$4:$G$503,3, FALSE),"") ->  | L134: =IF($A134>0,VLOOKUP($B134,'calculation sheet_per capita'!$A$4:$G$503,4, FALSE),"") ->  | M134: =IF($A134>0,VLOOKUP($B134,'calculation sheet_per capita'!$A$4:$G$503,5, FALSE),"") ->  | N134: =IF($A134>0,VLOOKUP($B134,'calculation sheet_per capita'!$A$4:$G$503,6, FALSE),"") ->  | O134: =IF($A134>0,VLOOKUP($B134,'calculation sheet_per capita'!$A$4:$G$503,7, FALSE),"") -> 
A135: =IF(C135>0,MAX(A$2:A134)+1,0) -> 0 | B135: ='Module 2-Step 2'!B144 ->  | C135: =IF(B135<>"",IF(LEFT(B$1,3)="CFR",VLOOKUP(B135,'for concentration'!A$4:E$503,5,FALSE),0),0) -> 0 | D135: =IF(C135>0,IF('Module 2-Step 3'!F140>0,'Module 2-Step 3'!F140,'Module 2-Step 3'!D140),0) -> 0 | E135: 0 | K135: =IF($A135>0,VLOOKUP($B135,'calculation sheet_per capita'!$A$4:$G$503,3, FALSE),"") ->  | L135: =IF($A135>0,VLOOKUP($B135,'calculation sheet_per capita'!$A$4:$G$503,4, FALSE),"") ->  | M135: =IF($A135>0,VLOOKUP($B135,'calculation sheet_per capita'!$A$4:$G$503,5, FALSE),"") ->  | N135: =IF($A135>0,VLOOKUP($B135,'calculation sheet_per capita'!$A$4:$G$503,6, FALSE),"") ->  | O135: =IF($A135>0,VLOOKUP($B135,'calculation sheet_per capita'!$A$4:$G$503,7, FALSE),"") -> 
A136: =IF(C136>0,MAX(A$2:A135)+1,0) -> 0 | B136: ='Module 2-Step 2'!B145 ->  | C136: =IF(B136<>"",IF(LEFT(B$1,3)="CFR",VLOOKUP(B136,'for concentration'!A$4:E$503,5,FALSE),0),0) -> 0 | D136: =IF(C136>0,IF('Module 2-Step 3'!F141>0,'Module 2-Step 3'!F141,'Module 2-Step 3'!D141),0) -> 0 | E136: 0 | K136: =IF($A136>0,VLOOKUP($B136,'calculation sheet_per capita'!$A$4:$G$503,3, FALSE),"") ->  | L136: =IF($A136>0,VLOOKUP($B136,'calculation sheet_per capita'!$A$4:$G$503,4, FALSE),"") ->  | M136: =IF($A136>0,VLOOKUP($B136,'calculation sheet_per capita'!$A$4:$G$503,5, FALSE),"") ->  | N136: =IF($A136>0,VLOOKUP($B136,'calculation sheet_per capita'!$A$4:$G$503,6, FALSE),"") ->  | O136: =IF($A136>0,VLOOKUP($B136,'calculation sheet_per capita'!$A$4:$G$503,7, FALSE),"") -> 
A137: =IF(C137>0,MAX(A$2:A136)+1,0) -> 0 | B137: ='Module 2-Step 2'!B146 ->  | C137: =IF(B137<>"",IF(LEFT(B$1,3)="CFR",VLOOKUP(B137,'for concentration'!A$4:E$503,5,FALSE),0),0) -> 0 | D137: =IF(C137>0,IF('Module 2-Step 3'!F142>0,'Module 2-Step 3'!F142,'Module 2-Step 3'!D142),0) -> 0 | E137: 0 | K137: =IF($A137>0,VLOOKUP($B137,'calculation sheet_per capita'!$A$4:$G$503,3, FALSE),"") ->  | L137: =IF($A137>0,VLOOKUP($B137,'calculation sheet_per capita'!$A$4:$G$503,4, FALSE),"") ->  | M137: =IF($A137>0,VLOOKUP($B137,'calculation sheet_per capita'!$A$4:$G$503,5, FALSE),"") ->  | N137: =IF($A137>0,VLOOKUP($B137,'calculation sheet_per capita'!$A$4:$G$503,6, FALSE),"") ->  | O137: =IF($A137>0,VLOOKUP($B137,'calculation sheet_per capita'!$A$4:$G$503,7, FALSE),"") -> 
A138: =IF(C138>0,MAX(A$2:A137)+1,0) -> 0 | B138: ='Module 2-Step 2'!B147 ->  | C138: =IF(B138<>"",IF(LEFT(B$1,3)="CFR",VLOOKUP(B138,'for concentration'!A$4:E$503,5,FALSE),0),0) -> 0 | D138: =IF(C138>0,IF('Module 2-Step 3'!F143>0,'Module 2-Step 3'!F143,'Module 2-Step 3'!D143),0) -> 0 | E138: 0 | K138: =IF($A138>0,VLOOKUP($B138,'calculation sheet_per capita'!$A$4:$G$503,3, FALSE),"") ->  | L138: =IF($A138>0,VLOOKUP($B138,'calculation sheet_per capita'!$A$4:$G$503,4, FALSE),"") ->  | M138: =IF($A138>0,VLOOKUP($B138,'calculation sheet_per capita'!$A$4:$G$503,5, FALSE),"") ->  | N138: =IF($A138>0,VLOOKUP($B138,'calculation sheet_per capita'!$A$4:$G$503,6, FALSE),"") ->  | O138: =IF($A138>0,VLOOKUP($B138,'calculation sheet_per capita'!$A$4:$G$503,7, FALSE),"") -> 
A139: =IF(C139>0,MAX(A$2:A138)+1,0) -> 0 | B139: ='Module 2-Step 2'!B148 ->  | C139: =IF(B139<>"",IF(LEFT(B$1,3)="CFR",VLOOKUP(B139,'for concentration'!A$4:E$503,5,FALSE),0),0) -> 0 | D139: =IF(C139>0,IF('Module 2-Step 3'!F144>0,'Module 2-Step 3'!F144,'Module 2-Step 3'!D144),0) -> 0 | E139: 0 | K139: =IF($A139>0,VLOOKUP($B139,'calculation sheet_per capita'!$A$4:$G$503,3, FALSE),"") ->  | L139: =IF($A139>0,VLOOKUP($B139,'calculation sheet_per capita'!$A$4:$G$503,4, FALSE),"") ->  | M139: =IF($A139>0,VLOOKUP($B139,'calculation sheet_per capita'!$A$4:$G$503,5, FALSE),"") ->  | N139: =IF($A139>0,VLOOKUP($B139,'calculation sheet_per capita'!$A$4:$G$503,6, FALSE),"") ->  | O139: =IF($A139>0,VLOOKUP($B139,'calculation sheet_per capita'!$A$4:$G$503,7, FALSE),"") -> 
A140: =IF(C140>0,MAX(A$2:A139)+1,0) -> 0 | B140: ='Module 2-Step 2'!B149 ->  | C140: =IF(B140<>"",IF(LEFT(B$1,3)="CFR",VLOOKUP(B140,'for concentration'!A$4:E$503,5,FALSE),0),0) -> 0 | D140: =IF(C140>0,IF('Module 2-Step 3'!F145>0,'Module 2-Step 3'!F145,'Module 2-Step 3'!D145),0) -> 0 | E140: 0 | K140: =IF($A140>0,VLOOKUP($B140,'calculation sheet_per capita'!$A$4:$G$503,3, FALSE),"") ->  | L140: =IF($A140>0,VLOOKUP($B140,'calculation sheet_per capita'!$A$4:$G$503,4, FALSE),"") ->  | M140: =IF($A140>0,VLOOKUP($B140,'calculation sheet_per capita'!$A$4:$G$503,5, FALSE),"") ->  | N140: =IF($A140>0,VLOOKUP($B140,'calculation sheet_per capita'!$A$4:$G$503,6, FALSE),"") ->  | O140: =IF($A140>0,VLOOKUP($B140,'calculation sheet_per capita'!$A$4:$G$503,7, FALSE),"") -> 
A141: =IF(C141>0,MAX(A$2:A140)+1,0) -> 0 | B141: ='Module 2-Step 2'!B150 ->  | C141: =IF(B141<>"",IF(LEFT(B$1,3)="CFR",VLOOKUP(B141,'for concentration'!A$4:E$503,5,FALSE),0),0) -> 0 | D141: =IF(C141>0,IF('Module 2-Step 3'!F146>0,'Module 2-Step 3'!F146,'Module 2-Step 3'!D146),0) -> 0 | E141: 0 | K141: =IF($A141>0,VLOOKUP($B141,'calculation sheet_per capita'!$A$4:$G$503,3, FALSE),"") ->  | L141: =IF($A141>0,VLOOKUP($B141,'calculation sheet_per capita'!$A$4:$G$503,4, FALSE),"") ->  | M141: =IF($A141>0,VLOOKUP($B141,'calculation sheet_per capita'!$A$4:$G$503,5, FALSE),"") ->  | N141: =IF($A141>0,VLOOKUP($B141,'calculation sheet_per capita'!$A$4:$G$503,6, FALSE),"") ->  | O141: =IF($A141>0,VLOOKUP($B141,'calculation sheet_per capita'!$A$4:$G$503,7, FALSE),"") -> 
A142: =IF(C142>0,MAX(A$2:A141)+1,0) -> 0 | B142: ='Module 2-Step 2'!B151 ->  | C142: =IF(B142<>"",IF(LEFT(B$1,3)="CFR",VLOOKUP(B142,'for concentration'!A$4:E$503,5,FALSE),0),0) -> 0 | D142: =IF(C142>0,IF('Module 2-Step 3'!F147>0,'Module 2-Step 3'!F147,'Module 2-Step 3'!D147),0) -> 0 | E142: 0 | K142: =IF($A142>0,VLOOKUP($B142,'calculation sheet_per capita'!$A$4:$G$503,3, FALSE),"") ->  | L142: =IF($A142>0,VLOOKUP($B142,'calculation sheet_per capita'!$A$4:$G$503,4, FALSE),"") ->  | M142: =IF($A142>0,VLOOKUP($B142,'calculation sheet_per capita'!$A$4:$G$503,5, FALSE),"") ->  | N142: =IF($A142>0,VLOOKUP($B142,'calculation sheet_per capita'!$A$4:$G$503,6, FALSE),"") ->  | O142: =IF($A142>0,VLOOKUP($B142,'calculation sheet_per capita'!$A$4:$G$503,7, FALSE),"") -> 
A143: =IF(C143>0,MAX(A$2:A142)+1,0) -> 0 | B143: ='Module 2-Step 2'!B152 ->  | C143: =IF(B143<>"",IF(LEFT(B$1,3)="CFR",VLOOKUP(B143,'for concentration'!A$4:E$503,5,FALSE),0),0) -> 0 | D143: =IF(C143>0,IF('Module 2-Step 3'!F148>0,'Module 2-Step 3'!F148,'Module 2-Step 3'!D148),0) -> 0 | E143: 0 | K143: =IF($A143>0,VLOOKUP($B143,'calculation sheet_per capita'!$A$4:$G$503,3, FALSE),"") ->  | L143: =IF($A143>0,VLOOKUP($B143,'calculation sheet_per capita'!$A$4:$G$503,4, FALSE),"") ->  | M143: =IF($A143>0,VLOOKUP($B143,'calculation sheet_per capita'!$A$4:$G$503,5, FALSE),"") ->  | N143: =IF($A143>0,VLOOKUP($B143,'calculation sheet_per capita'!$A$4:$G$503,6, FALSE),"") ->  | O143: =IF($A143>0,VLOOKUP($B143,'calculation sheet_per capita'!$A$4:$G$503,7, FALSE),"") -> 
A144: =IF(C144>0,MAX(A$2:A143)+1,0) -> 0 | B144: ='Module 2-Step 2'!B153 ->  | C144: =IF(B144<>"",IF(LEFT(B$1,3)="CFR",VLOOKUP(B144,'for concentration'!A$4:E$503,5,FALSE),0),0) -> 0 | D144: =IF(C144>0,IF('Module 2-Step 3'!F149>0,'Module 2-Step 3'!F149,'Module 2-Step 3'!D149),0) -> 0 | E144: 0 | K144: =IF($A144>0,VLOOKUP($B144,'calculation sheet_per capita'!$A$4:$G$503,3, FALSE),"") ->  | L144: =IF($A144>0,VLOOKUP($B144,'calculation sheet_per capita'!$A$4:$G$503,4, FALSE),"") ->  | M144: =IF($A144>0,VLOOKUP($B144,'calculation sheet_per capita'!$A$4:$G$503,5, FALSE),"") ->  | N144: =IF($A144>0,VLOOKUP($B144,'calculation sheet_per capita'!$A$4:$G$503,6, FALSE),"") ->  | O144: =IF($A144>0,VLOOKUP($B144,'calculation sheet_per capita'!$A$4:$G$503,7, FALSE),"") -> 
A145: =IF(C145>0,MAX(A$2:A144)+1,0) -> 0 | B145: ='Module 2-Step 2'!B154 ->  | C145: =IF(B145<>"",IF(LEFT(B$1,3)="CFR",VLOOKUP(B145,'for concentration'!A$4:E$503,5,FALSE),0),0) -> 0 | D145: =IF(C145>0,IF('Module 2-Step 3'!F150>0,'Module 2-Step 3'!F150,'Module 2-Step 3'!D150),0) -> 0 | E145: 0 | K145: =IF($A145>0,VLOOKUP($B145,'calculation sheet_per capita'!$A$4:$G$503,3, FALSE),"") ->  | L145: =IF($A145>0,VLOOKUP($B145,'calculation sheet_per capita'!$A$4:$G$503,4, FALSE),"") ->  | M145: =IF($A145>0,VLOOKUP($B145,'calculation sheet_per capita'!$A$4:$G$503,5, FALSE),"") ->  | N145: =IF($A145>0,VLOOKUP($B145,'calculation sheet_per capita'!$A$4:$G$503,6, FALSE),"") ->  | O145: =IF($A145>0,VLOOKUP($B145,'calculation sheet_per capita'!$A$4:$G$503,7, FALSE),"") -> 
A146: =IF(C146>0,MAX(A$2:A145)+1,0) -> 0 | B146: ='Module 2-Step 2'!B155 ->  | C146: =IF(B146<>"",IF(LEFT(B$1,3)="CFR",VLOOKUP(B146,'for concentration'!A$4:E$503,5,FALSE),0),0) -> 0 | D146: =IF(C146>0,IF('Module 2-Step 3'!F151>0,'Module 2-Step 3'!F151,'Module 2-Step 3'!D151),0) -> 0 | E146: 0 | G146: =IF($A146>0,IF(L$502>0,L146/L$502,"NC"),"") ->  | H146: =IF($A146>0,IF(M$502>0,M146/M$502,"NC"),"") ->  | I146: =IF($A146>0,IF(N$502>0,N146/N$502,"NC"),"") ->  | J146: =IF($A146>0,IF(O$502>0,O146/O$502,"NC"),"") ->  | K146: =IF($A146>0,VLOOKUP($B146,'calculation sheet_per capita'!$A$4:$G$503,3, FALSE),"") ->  | L146: =IF($A146>0,VLOOKUP($B146,'calculation sheet_per capita'!$A$4:$G$503,4, FALSE),"") ->  | M146: =IF($A146>0,VLOOKUP($B146,'calculation sheet_per capita'!$A$4:$G$503,5, FALSE),"") ->  | N146: =IF($A146>0,VLOOKUP($B146,'calculation sheet_per capita'!$A$4:$G$503,6, FALSE),"") ->  | O146: =IF($A146>0,VLOOKUP($B146,'calculation sheet_per capita'!$A$4:$G$503,7, FALSE),"") -> 
A147: =IF(C147>0,MAX(A$2:A146)+1,0) -> 0 | B147: ='Module 2-Step 2'!B156 ->  | C147: =IF(B147<>"",IF(LEFT(B$1,3)="CFR",VLOOKUP(B147,'for concentration'!A$4:E$503,5,FALSE),0),0) -> 0 | D147: =IF(C147>0,IF('Module 2-Step 3'!F152>0,'Module 2-Step 3'!F152,'Module 2-Step 3'!D152),0) -> 0 | E147: 0 | K147: =IF($A147>0,VLOOKUP($B147,'calculation sheet_per capita'!$A$4:$G$503,3, FALSE),"") ->  | L147: =IF($A147>0,VLOOKUP($B147,'calculation sheet_per capita'!$A$4:$G$503,4, FALSE),"") ->  | M147: =IF($A147>0,VLOOKUP($B147,'calculation sheet_per capita'!$A$4:$G$503,5, FALSE),"") ->  | N147: =IF($A147>0,VLOOKUP($B147,'calculation sheet_per capita'!$A$4:$G$503,6, FALSE),"") ->  | O147: =IF($A147>0,VLOOKUP($B147,'calculation sheet_per capita'!$A$4:$G$503,7, FALSE),"") -> 
A148: =IF(C148>0,MAX(A$2:A147)+1,0) -> 0 | B148: ='Module 2-Step 2'!B157 ->  | C148: =IF(B148<>"",IF(LEFT(B$1,3)="CFR",VLOOKUP(B148,'for concentration'!A$4:E$503,5,FALSE),0),0) -> 0 | D148: =IF(C148>0,IF('Module 2-Step 3'!F153>0,'Module 2-Step 3'!F153,'Module 2-Step 3'!D153),0) -> 0 | E148: 0 | K148: =IF($A148>0,VLOOKUP($B148,'calculation sheet_per capita'!$A$4:$G$503,3, FALSE),"") ->  | L148: =IF($A148>0,VLOOKUP($B148,'calculation sheet_per capita'!$A$4:$G$503,4, FALSE),"") ->  | M148: =IF($A148>0,VLOOKUP($B148,'calculation sheet_per capita'!$A$4:$G$503,5, FALSE),"") ->  | N148: =IF($A148>0,VLOOKUP($B148,'calculation sheet_per capita'!$A$4:$G$503,6, FALSE),"") ->  | O148: =IF($A148>0,VLOOKUP($B148,'calculation sheet_per capita'!$A$4:$G$503,7, FALSE),"") -> 
A149: =IF(C149>0,MAX(A$2:A148)+1,0) -> 0 | B149: ='Module 2-Step 2'!B158 ->  | C149: =IF(B149<>"",IF(LEFT(B$1,3)="CFR",VLOOKUP(B149,'for concentration'!A$4:E$503,5,FALSE),0),0) -> 0 | D149: =IF(C149>0,IF('Module 2-Step 3'!F154>0,'Module 2-Step 3'!F154,'Module 2-Step 3'!D154),0) -> 0 | E149: 0 | K149: =IF($A149>0,VLOOKUP($B149,'calculation sheet_per capita'!$A$4:$G$503,3, FALSE),"") ->  | L149: =IF($A149>0,VLOOKUP($B149,'calculation sheet_per capita'!$A$4:$G$503,4, FALSE),"") ->  | M149: =IF($A149>0,VLOOKUP($B149,'calculation sheet_per capita'!$A$4:$G$503,5, FALSE),"") ->  | N149: =IF($A149>0,VLOOKUP($B149,'calculation sheet_per capita'!$A$4:$G$503,6, FALSE),"") ->  | O149: =IF($A149>0,VLOOKUP($B149,'calculation sheet_per capita'!$A$4:$G$503,7, FALSE),"") -> 
A150: =IF(C150>0,MAX(A$2:A149)+1,0) -> 0 | B150: ='Module 2-Step 2'!B159 ->  | C150: =IF(B150<>"",IF(LEFT(B$1,3)="CFR",VLOOKUP(B150,'for concentration'!A$4:E$503,5,FALSE),0),0) -> 0 | D150: =IF(C150>0,IF('Module 2-Step 3'!F155>0,'Module 2-Step 3'!F155,'Module 2-Step 3'!D155),0) -> 0 | E150: 0 | K150: =IF($A150>0,VLOOKUP($B150,'calculation sheet_per capita'!$A$4:$G$503,3, FALSE),"") ->  | L150: =IF($A150>0,VLOOKUP($B150,'calculation sheet_per capita'!$A$4:$G$503,4, FALSE),"") ->  | M150: =IF($A150>0,VLOOKUP($B150,'calculation sheet_per capita'!$A$4:$G$503,5, FALSE),"") ->  | N150: =IF($A150>0,VLOOKUP($B150,'calculation sheet_per capita'!$A$4:$G$503,6, FALSE),"") ->  | O150: =IF($A150>0,VLOOKUP($B150,'calculation sheet_per capita'!$A$4:$G$503,7, FALSE),"") -> 
A151: =IF(C151>0,MAX(A$2:A150)+1,0) -> 0 | B151: ='Module 2-Step 2'!B160 ->  | C151: =IF(B151<>"",IF(LEFT(B$1,3)="CFR",VLOOKUP(B151,'for concentration'!A$4:E$503,5,FALSE),0),0) -> 0 | D151: =IF(C151>0,IF('Module 2-Step 3'!F156>0,'Module 2-Step 3'!F156,'Module 2-Step 3'!D156),0) -> 0 | E151: 0 | K151: =IF($A151>0,VLOOKUP($B151,'calculation sheet_per capita'!$A$4:$G$503,3, FALSE),"") ->  | L151: =IF($A151>0,VLOOKUP($B151,'calculation sheet_per capita'!$A$4:$G$503,4, FALSE),"") ->  | M151: =IF($A151>0,VLOOKUP($B151,'calculation sheet_per capita'!$A$4:$G$503,5, FALSE),"") ->  | N151: =IF($A151>0,VLOOKUP($B151,'calculation sheet_per capita'!$A$4:$G$503,6, FALSE),"") ->  | O151: =IF($A151>0,VLOOKUP($B151,'calculation sheet_per capita'!$A$4:$G$503,7, FALSE),"") -> 
A152: =IF(C152>0,MAX(A$2:A151)+1,0) -> 0 | B152: ='Module 2-Step 2'!B161 ->  | C152: =IF(B152<>"",IF(LEFT(B$1,3)="CFR",VLOOKUP(B152,'for concentration'!A$4:E$503,5,FALSE),0),0) -> 0 | D152: =IF(C152>0,IF('Module 2-Step 3'!F157>0,'Module 2-Step 3'!F157,'Module 2-Step 3'!D157),0) -> 0 | E152: 0 | K152: =IF($A152>0,VLOOKUP($B152,'calculation sheet_per capita'!$A$4:$G$503,3, FALSE),"") ->  | L152: =IF($A152>0,VLOOKUP($B152,'calculation sheet_per capita'!$A$4:$G$503,4, FALSE),"") ->  | M152: =IF($A152>0,VLOOKUP($B152,'calculation sheet_per capita'!$A$4:$G$503,5, FALSE),"") ->  | N152: =IF($A152>0,VLOOKUP($B152,'calculation sheet_per capita'!$A$4:$G$503,6, FALSE),"") ->  | O152: =IF($A152>0,VLOOKUP($B152,'calculation sheet_per capita'!$A$4:$G$503,7, FALSE),"") -> 
A153: =IF(C153>0,MAX(A$2:A152)+1,0) -> 0 | B153: ='Module 2-Step 2'!B162 ->  | C153: =IF(B153<>"",IF(LEFT(B$1,3)="CFR",VLOOKUP(B153,'for concentration'!A$4:E$503,5,FALSE),0),0) -> 0 | D153: =IF(C153>0,IF('Module 2-Step 3'!F158>0,'Module 2-Step 3'!F158,'Module 2-Step 3'!D158),0) -> 0 | E153: 0 | K153: =IF($A153>0,VLOOKUP($B153,'calculation sheet_per capita'!$A$4:$G$503,3, FALSE),"") ->  | L153: =IF($A153>0,VLOOKUP($B153,'calculation sheet_per capita'!$A$4:$G$503,4, FALSE),"") ->  | M153: =IF($A153>0,VLOOKUP($B153,'calculation sheet_per capita'!$A$4:$G$503,5, FALSE),"") ->  | N153: =IF($A153>0,VLOOKUP($B153,'calculation sheet_per capita'!$A$4:$G$503,6, FALSE),"") ->  | O153: =IF($A153>0,VLOOKUP($B153,'calculation sheet_per capita'!$A$4:$G$503,7, FALSE),"") -> 
A154: =IF(C154>0,MAX(A$2:A153)+1,0) -> 0 | B154: ='Module 2-Step 2'!B163 ->  | C154: =IF(B154<>"",IF(LEFT(B$1,3)="CFR",VLOOKUP(B154,'for concentration'!A$4:E$503,5,FALSE),0),0) -> 0 | D154: =IF(C154>0,IF('Module 2-Step 3'!F159>0,'Module 2-Step 3'!F159,'Module 2-Step 3'!D159),0) -> 0 | E154: 0 | K154: =IF($A154>0,VLOOKUP($B154,'calculation sheet_per capita'!$A$4:$G$503,3, FALSE),"") ->  | L154: =IF($A154>0,VLOOKUP($B154,'calculation sheet_per capita'!$A$4:$G$503,4, FALSE),"") ->  | M154: =IF($A154>0,VLOOKUP($B154,'calculation sheet_per capita'!$A$4:$G$503,5, FALSE),"") ->  | N154: =IF($A154>0,VLOOKUP($B154,'calculation sheet_per capita'!$A$4:$G$503,6, FALSE),"") ->  | O154: =IF($A154>0,VLOOKUP($B154,'calculation sheet_per capita'!$A$4:$G$503,7, FALSE),"") -> 
A155: =IF(C155>0,MAX(A$2:A154)+1,0) -> 0 | B155: ='Module 2-Step 2'!B164 ->  | C155: =IF(B155<>"",IF(LEFT(B$1,3)="CFR",VLOOKUP(B155,'for concentration'!A$4:E$503,5,FALSE),0),0) -> 0 | D155: =IF(C155>0,IF('Module 2-Step 3'!F160>0,'Module 2-Step 3'!F160,'Module 2-Step 3'!D160),0) -> 0 | E155: 0 | K155: =IF($A155>0,VLOOKUP($B155,'calculation sheet_per capita'!$A$4:$G$503,3, FALSE),"") ->  | L155: =IF($A155>0,VLOOKUP($B155,'calculation sheet_per capita'!$A$4:$G$503,4, FALSE),"") ->  | M155: =IF($A155>0,VLOOKUP($B155,'calculation sheet_per capita'!$A$4:$G$503,5, FALSE),"") ->  | N155: =IF($A155>0,VLOOKUP($B155,'calculation sheet_per capita'!$A$4:$G$503,6, FALSE),"") ->  | O155: =IF($A155>0,VLOOKUP($B155,'calculation sheet_per capita'!$A$4:$G$503,7, FALSE),"") -> 
A156: =IF(C156>0,MAX(A$2:A155)+1,0) -> 0 | B156: ='Module 2-Step 2'!B165 ->  | C156: =IF(B156<>"",IF(LEFT(B$1,3)="CFR",VLOOKUP(B156,'for concentration'!A$4:E$503,5,FALSE),0),0) -> 0 | D156: =IF(C156>0,IF('Module 2-Step 3'!F161>0,'Module 2-Step 3'!F161,'Module 2-Step 3'!D161),0) -> 0 | E156: 0 | K156: =IF($A156>0,VLOOKUP($B156,'calculation sheet_per capita'!$A$4:$G$503,3, FALSE),"") ->  | L156: =IF($A156>0,VLOOKUP($B156,'calculation sheet_per capita'!$A$4:$G$503,4, FALSE),"") ->  | M156: =IF($A156>0,VLOOKUP($B156,'calculation sheet_per capita'!$A$4:$G$503,5, FALSE),"") ->  | N156: =IF($A156>0,VLOOKUP($B156,'calculation sheet_per capita'!$A$4:$G$503,6, FALSE),"") ->  | O156: =IF($A156>0,VLOOKUP($B156,'calculation sheet_per capita'!$A$4:$G$503,7, FALSE),"") -> 
A157: =IF(C157>0,MAX(A$2:A156)+1,0) -> 0 | B157: ='Module 2-Step 2'!B166 ->  | C157: =IF(B157<>"",IF(LEFT(B$1,3)="CFR",VLOOKUP(B157,'for concentration'!A$4:E$503,5,FALSE),0),0) -> 0 | D157: =IF(C157>0,IF('Module 2-Step 3'!F162>0,'Module 2-Step 3'!F162,'Module 2-Step 3'!D162),0) -> 0 | E157: 0 | K157: =IF($A157>0,VLOOKUP($B157,'calculation sheet_per capita'!$A$4:$G$503,3, FALSE),"") ->  | L157: =IF($A157>0,VLOOKUP($B157,'calculation sheet_per capita'!$A$4:$G$503,4, FALSE),"") ->  | M157: =IF($A157>0,VLOOKUP($B157,'calculation sheet_per capita'!$A$4:$G$503,5, FALSE),"") ->  | N157: =IF($A157>0,VLOOKUP($B157,'calculation sheet_per capita'!$A$4:$G$503,6, FALSE),"") ->  | O157: =IF($A157>0,VLOOKUP($B157,'calculation sheet_per capita'!$A$4:$G$503,7, FALSE),"") -> 
A158: =IF(C158>0,MAX(A$2:A157)+1,0) -> 0 | B158: ='Module 2-Step 2'!B167 ->  | C158: =IF(B158<>"",IF(LEFT(B$1,3)="CFR",VLOOKUP(B158,'for concentration'!A$4:E$503,5,FALSE),0),0) -> 0 | D158: =IF(C158>0,IF('Module 2-Step 3'!F163>0,'Module 2-Step 3'!F163,'Module 2-Step 3'!D163),0) -> 0 | E158: 0 | K158: =IF($A158>0,VLOOKUP($B158,'calculation sheet_per capita'!$A$4:$G$503,3, FALSE),"") ->  | L158: =IF($A158>0,VLOOKUP($B158,'calculation sheet_per capita'!$A$4:$G$503,4, FALSE),"") ->  | M158: =IF($A158>0,VLOOKUP($B158,'calculation sheet_per capita'!$A$4:$G$503,5, FALSE),"") ->  | N158: =IF($A158>0,VLOOKUP($B158,'calculation sheet_per capita'!$A$4:$G$503,6, FALSE),"") ->  | O158: =IF($A158>0,VLOOKUP($B158,'calculation sheet_per capita'!$A$4:$G$503,7, FALSE),"") -> 
A159: =IF(C159>0,MAX(A$2:A158)+1,0) -> 0 | B159: ='Module 2-Step 2'!B168 ->  | C159: =IF(B159<>"",IF(LEFT(B$1,3)="CFR",VLOOKUP(B159,'for concentration'!A$4:E$503,5,FALSE),0),0) -> 0 | D159: =IF(C159>0,IF('Module 2-Step 3'!F164>0,'Module 2-Step 3'!F164,'Module 2-Step 3'!D164),0) -> 0 | E159: 0 | K159: =IF($A159>0,VLOOKUP($B159,'calculation sheet_per capita'!$A$4:$G$503,3, FALSE),"") ->  | L159: =IF($A159>0,VLOOKUP($B159,'calculation sheet_per capita'!$A$4:$G$503,4, FALSE),"") ->  | M159: =IF($A159>0,VLOOKUP($B159,'calculation sheet_per capita'!$A$4:$G$503,5, FALSE),"") ->  | N159: =IF($A159>0,VLOOKUP($B159,'calculation sheet_per capita'!$A$4:$G$503,6, FALSE),"") ->  | O159: =IF($A159>0,VLOOKUP($B159,'calculation sheet_per capita'!$A$4:$G$503,7, FALSE),"") -> 
A160: =IF(C160>0,MAX(A$2:A159)+1,0) -> 0 | B160: ='Module 2-Step 2'!B169 ->  | C160: =IF(B160<>"",IF(LEFT(B$1,3)="CFR",VLOOKUP(B160,'for concentration'!A$4:E$503,5,FALSE),0),0) -> 0 | D160: =IF(C160>0,IF('Module 2-Step 3'!F165>0,'Module 2-Step 3'!F165,'Module 2-Step 3'!D165),0) -> 0 | E160: 0 | K160: =IF($A160>0,VLOOKUP($B160,'calculation sheet_per capita'!$A$4:$G$503,3, FALSE),"") ->  | L160: =IF($A160>0,VLOOKUP($B160,'calculation sheet_per capita'!$A$4:$G$503,4, FALSE),"") ->  | M160: =IF($A160>0,VLOOKUP($B160,'calculation sheet_per capita'!$A$4:$G$503,5, FALSE),"") ->  | N160: =IF($A160>0,VLOOKUP($B160,'calculation sheet_per capita'!$A$4:$G$503,6, FALSE),"") ->  | O160: =IF($A160>0,VLOOKUP($B160,'calculation sheet_per capita'!$A$4:$G$503,7, FALSE),"") -> 
A161: =IF(C161>0,MAX(A$2:A160)+1,0) -> 0 | B161: ='Module 2-Step 2'!B170 ->  | C161: =IF(B161<>"",IF(LEFT(B$1,3)="CFR",VLOOKUP(B161,'for concentration'!A$4:E$503,5,FALSE),0),0) -> 0 | D161: =IF(C161>0,IF('Module 2-Step 3'!F166>0,'Module 2-Step 3'!F166,'Module 2-Step 3'!D166),0) -> 0 | E161: 0 | K161: =IF($A161>0,VLOOKUP($B161,'calculation sheet_per capita'!$A$4:$G$503,3, FALSE),"") ->  | L161: =IF($A161>0,VLOOKUP($B161,'calculation sheet_per capita'!$A$4:$G$503,4, FALSE),"") ->  | M161: =IF($A161>0,VLOOKUP($B161,'calculation sheet_per capita'!$A$4:$G$503,5, FALSE),"") ->  | N161: =IF($A161>0,VLOOKUP($B161,'calculation sheet_per capita'!$A$4:$G$503,6, FALSE),"") ->  | O161: =IF($A161>0,VLOOKUP($B161,'calculation sheet_per capita'!$A$4:$G$503,7, FALSE),"") -> 
A162: =IF(C162>0,MAX(A$2:A161)+1,0) -> 0 | B162: ='Module 2-Step 2'!B171 ->  | C162: =IF(B162<>"",IF(LEFT(B$1,3)="CFR",VLOOKUP(B162,'for concentration'!A$4:E$503,5,FALSE),0),0) -> 0 | D162: =IF(C162>0,IF('Module 2-Step 3'!F167>0,'Module 2-Step 3'!F167,'Module 2-Step 3'!D167),0) -> 0 | E162: 0 | K162: =IF($A162>0,VLOOKUP($B162,'calculation sheet_per capita'!$A$4:$G$503,3, FALSE),"") ->  | L162: =IF($A162>0,VLOOKUP($B162,'calculation sheet_per capita'!$A$4:$G$503,4, FALSE),"") ->  | M162: =IF($A162>0,VLOOKUP($B162,'calculation sheet_per capita'!$A$4:$G$503,5, FALSE),"") ->  | N162: =IF($A162>0,VLOOKUP($B162,'calculation sheet_per capita'!$A$4:$G$503,6, FALSE),"") ->  | O162: =IF($A162>0,VLOOKUP($B162,'calculation sheet_per capita'!$A$4:$G$503,7, FALSE),"") -> 
A163: =IF(C163>0,MAX(A$2:A162)+1,0) -> 0 | B163: ='Module 2-Step 2'!B172 ->  | C163: =IF(B163<>"",IF(LEFT(B$1,3)="CFR",VLOOKUP(B163,'for concentration'!A$4:E$503,5,FALSE),0),0) -> 0 | D163: =IF(C163>0,IF('Module 2-Step 3'!F168>0,'Module 2-Step 3'!F168,'Module 2-Step 3'!D168),0) -> 0 | E163: 0 | K163: =IF($A163>0,VLOOKUP($B163,'calculation sheet_per capita'!$A$4:$G$503,3, FALSE),"") ->  | L163: =IF($A163>0,VLOOKUP($B163,'calculation sheet_per capita'!$A$4:$G$503,4, FALSE),"") ->  | M163: =IF($A163>0,VLOOKUP($B163,'calculation sheet_per capita'!$A$4:$G$503,5, FALSE),"") ->  | N163: =IF($A163>0,VLOOKUP($B163,'calculation sheet_per capita'!$A$4:$G$503,6, FALSE),"") ->  | O163: =IF($A163>0,VLOOKUP($B163,'calculation sheet_per capita'!$A$4:$G$503,7, FALSE),"") -> 
A164: =IF(C164>0,MAX(A$2:A163)+1,0) -> 0 | B164: ='Module 2-Step 2'!B173 ->  | C164: =IF(B164<>"",IF(LEFT(B$1,3)="CFR",VLOOKUP(B164,'for concentration'!A$4:E$503,5,FALSE),0),0) -> 0 | D164: =IF(C164>0,IF('Module 2-Step 3'!F169>0,'Module 2-Step 3'!F169,'Module 2-Step 3'!D169),0) -> 0 | E164: 0 | K164: =IF($A164>0,VLOOKUP($B164,'calculation sheet_per capita'!$A$4:$G$503,3, FALSE),"") ->  | L164: =IF($A164>0,VLOOKUP($B164,'calculation sheet_per capita'!$A$4:$G$503,4, FALSE),"") ->  | M164: =IF($A164>0,VLOOKUP($B164,'calculation sheet_per capita'!$A$4:$G$503,5, FALSE),"") ->  | N164: =IF($A164>0,VLOOKUP($B164,'calculation sheet_per capita'!$A$4:$G$503,6, FALSE),"") ->  | O164: =IF($A164>0,VLOOKUP($B164,'calculation sheet_per capita'!$A$4:$G$503,7, FALSE),"") -> 
A165: =IF(C165>0,MAX(A$2:A164)+1,0) -> 0 | B165: ='Module 2-Step 2'!B174 ->  | C165: =IF(B165<>"",IF(LEFT(B$1,3)="CFR",VLOOKUP(B165,'for concentration'!A$4:E$503,5,FALSE),0),0) -> 0 | D165: =IF(C165>0,IF('Module 2-Step 3'!F170>0,'Module 2-Step 3'!F170,'Module 2-Step 3'!D170),0) -> 0 | E165: 0 | K165: =IF($A165>0,VLOOKUP($B165,'calculation sheet_per capita'!$A$4:$G$503,3, FALSE),"") ->  | L165: =IF($A165>0,VLOOKUP($B165,'calculation sheet_per capita'!$A$4:$G$503,4, FALSE),"") ->  | M165: =IF($A165>0,VLOOKUP($B165,'calculation sheet_per capita'!$A$4:$G$503,5, FALSE),"") ->  | N165: =IF($A165>0,VLOOKUP($B165,'calculation sheet_per capita'!$A$4:$G$503,6, FALSE),"") ->  | O165: =IF($A165>0,VLOOKUP($B165,'calculation sheet_per capita'!$A$4:$G$503,7, FALSE),"") -> 
A166: =IF(C166>0,MAX(A$2:A165)+1,0) -> 0 | B166: ='Module 2-Step 2'!B175 ->  | C166: =IF(B166<>"",IF(LEFT(B$1,3)="CFR",VLOOKUP(B166,'for concentration'!A$4:E$503,5,FALSE),0),0) -> 0 | D166: =IF(C166>0,IF('Module 2-Step 3'!F171>0,'Module 2-Step 3'!F171,'Module 2-Step 3'!D171),0) -> 0 | E166: 0 | K166: =IF($A166>0,VLOOKUP($B166,'calculation sheet_per capita'!$A$4:$G$503,3, FALSE),"") ->  | L166: =IF($A166>0,VLOOKUP($B166,'calculation sheet_per capita'!$A$4:$G$503,4, FALSE),"") ->  | M166: =IF($A166>0,VLOOKUP($B166,'calculation sheet_per capita'!$A$4:$G$503,5, FALSE),"") ->  | N166: =IF($A166>0,VLOOKUP($B166,'calculation sheet_per capita'!$A$4:$G$503,6, FALSE),"") ->  | O166: =IF($A166>0,VLOOKUP($B166,'calculation sheet_per capita'!$A$4:$G$503,7, FALSE),"") -> 
A167: =IF(C167>0,MAX(A$2:A166)+1,0) -> 0 | B167: ='Module 2-Step 2'!B176 ->  | C167: =IF(B167<>"",IF(LEFT(B$1,3)="CFR",VLOOKUP(B167,'for concentration'!A$4:E$503,5,FALSE),0),0) -> 0 | D167: =IF(C167>0,IF('Module 2-Step 3'!F172>0,'Module 2-Step 3'!F172,'Module 2-Step 3'!D172),0) -> 0 | E167: 0 | K167: =IF($A167>0,VLOOKUP($B167,'calculation sheet_per capita'!$A$4:$G$503,3, FALSE),"") ->  | L167: =IF($A167>0,VLOOKUP($B167,'calculation sheet_per capita'!$A$4:$G$503,4, FALSE),"") ->  | M167: =IF($A167>0,VLOOKUP($B167,'calculation sheet_per capita'!$A$4:$G$503,5, FALSE),"") ->  | N167: =IF($A167>0,VLOOKUP($B167,'calculation sheet_per capita'!$A$4:$G$503,6, FALSE),"") ->  | O167: =IF($A167>0,VLOOKUP($B167,'calculation sheet_per capita'!$A$4:$G$503,7, FALSE),"") -> 
A168: =IF(C168>0,MAX(A$2:A167)+1,0) -> 0 | B168: ='Module 2-Step 2'!B177 ->  | C168: =IF(B168<>"",IF(LEFT(B$1,3)="CFR",VLOOKUP(B168,'for concentration'!A$4:E$503,5,FALSE),0),0) -> 0 | D168: =IF(C168>0,IF('Module 2-Step 3'!F173>0,'Module 2-Step 3'!F173,'Module 2-Step 3'!D173),0) -> 0 | E168: 0 | K168: =IF($A168>0,VLOOKUP($B168,'calculation sheet_per capita'!$A$4:$G$503,3, FALSE),"") ->  | L168: =IF($A168>0,VLOOKUP($B168,'calculation sheet_per capita'!$A$4:$G$503,4, FALSE),"") ->  | M168: =IF($A168>0,VLOOKUP($B168,'calculation sheet_per capita'!$A$4:$G$503,5, FALSE),"") ->  | N168: =IF($A168>0,VLOOKUP($B168,'calculation sheet_per capita'!$A$4:$G$503,6, FALSE),"") ->  | O168: =IF($A168>0,VLOOKUP($B168,'calculation sheet_per capita'!$A$4:$G$503,7, FALSE),"") -> 
A169: =IF(C169>0,MAX(A$2:A168)+1,0) -> 0 | B169: ='Module 2-Step 2'!B178 ->  | C169: =IF(B169<>"",IF(LEFT(B$1,3)="CFR",VLOOKUP(B169,'for concentration'!A$4:E$503,5,FALSE),0),0) -> 0 | D169: =IF(C169>0,IF('Module 2-Step 3'!F174>0,'Module 2-Step 3'!F174,'Module 2-Step 3'!D174),0) -> 0 | E169: 0 | K169: =IF($A169>0,VLOOKUP($B169,'calculation sheet_per capita'!$A$4:$G$503,3, FALSE),"") ->  | L169: =IF($A169>0,VLOOKUP($B169,'calculation sheet_per capita'!$A$4:$G$503,4, FALSE),"") ->  | M169: =IF($A169>0,VLOOKUP($B169,'calculation sheet_per capita'!$A$4:$G$503,5, FALSE),"") ->  | N169: =IF($A169>0,VLOOKUP($B169,'calculation sheet_per capita'!$A$4:$G$503,6, FALSE),"") ->  | O169: =IF($A169>0,VLOOKUP($B169,'calculation sheet_per capita'!$A$4:$G$503,7, FALSE),"") -> 
A170: =IF(C170>0,MAX(A$2:A169)+1,0) -> 0 | B170: ='Module 2-Step 2'!B179 ->  | C170: =IF(B170<>"",IF(LEFT(B$1,3)="CFR",VLOOKUP(B170,'for concentration'!A$4:E$503,5,FALSE),0),0) -> 0 | D170: =IF(C170>0,IF('Module 2-Step 3'!F175>0,'Module 2-Step 3'!F175,'Module 2-Step 3'!D175),0) -> 0 | E170: 0 | K170: =IF($A170>0,VLOOKUP($B170,'calculation sheet_per capita'!$A$4:$G$503,3, FALSE),"") ->  | L170: =IF($A170>0,VLOOKUP($B170,'calculation sheet_per capita'!$A$4:$G$503,4, FALSE),"") ->  | M170: =IF($A170>0,VLOOKUP($B170,'calculation sheet_per capita'!$A$4:$G$503,5, FALSE),"") ->  | N170: =IF($A170>0,VLOOKUP($B170,'calculation sheet_per capita'!$A$4:$G$503,6, FALSE),"") ->  | O170: =IF($A170>0,VLOOKUP($B170,'calculation sheet_per capita'!$A$4:$G$503,7, FALSE),"") -> 
A171: =IF(C171>0,MAX(A$2:A170)+1,0) -> 0 | B171: ='Module 2-Step 2'!B180 ->  | C171: =IF(B171<>"",IF(LEFT(B$1,3)="CFR",VLOOKUP(B171,'for concentration'!A$4:E$503,5,FALSE),0),0) -> 0 | D171: =IF(C171>0,IF('Module 2-Step 3'!F176>0,'Module 2-Step 3'!F176,'Module 2-Step 3'!D176),0) -> 0 | E171: 0 | K171: =IF($A171>0,VLOOKUP($B171,'calculation sheet_per capita'!$A$4:$G$503,3, FALSE),"") ->  | L171: =IF($A171>0,VLOOKUP($B171,'calculation sheet_per capita'!$A$4:$G$503,4, FALSE),"") ->  | M171: =IF($A171>0,VLOOKUP($B171,'calculation sheet_per capita'!$A$4:$G$503,5, FALSE),"") ->  | N171: =IF($A171>0,VLOOKUP($B171,'calculation sheet_per capita'!$A$4:$G$503,6, FALSE),"") ->  | O171: =IF($A171>0,VLOOKUP($B171,'calculation sheet_per capita'!$A$4:$G$503,7, FALSE),"") -> 
A172: =IF(C172>0,MAX(A$2:A171)+1,0) -> 0 | B172: ='Module 2-Step 2'!B181 ->  | C172: =IF(B172<>"",IF(LEFT(B$1,3)="CFR",VLOOKUP(B172,'for concentration'!A$4:E$503,5,FALSE),0),0) -> 0 | D172: =IF(C172>0,IF('Module 2-Step 3'!F177>0,'Module 2-Step 3'!F177,'Module 2-Step 3'!D177),0) -> 0 | E172: 0 | K172: =IF($A172>0,VLOOKUP($B172,'calculation sheet_per capita'!$A$4:$G$503,3, FALSE),"") ->  | L172: =IF($A172>0,VLOOKUP($B172,'calculation sheet_per capita'!$A$4:$G$503,4, FALSE),"") ->  | M172: =IF($A172>0,VLOOKUP($B172,'calculation sheet_per capita'!$A$4:$G$503,5, FALSE),"") ->  | N172: =IF($A172>0,VLOOKUP($B172,'calculation sheet_per capita'!$A$4:$G$503,6, FALSE),"") ->  | O172: =IF($A172>0,VLOOKUP($B172,'calculation sheet_per capita'!$A$4:$G$503,7, FALSE),"") -> 
A173: =IF(C173>0,MAX(A$2:A172)+1,0) -> 0 | B173: ='Module 2-Step 2'!B182 ->  | C173: =IF(B173<>"",IF(LEFT(B$1,3)="CFR",VLOOKUP(B173,'for concentration'!A$4:E$503,5,FALSE),0),0) -> 0 | D173: =IF(C173>0,IF('Module 2-Step 3'!F178>0,'Module 2-Step 3'!F178,'Module 2-Step 3'!D178),0) -> 0 | E173: 0 | K173: =IF($A173>0,VLOOKUP($B173,'calculation sheet_per capita'!$A$4:$G$503,3, FALSE),"") ->  | L173: =IF($A173>0,VLOOKUP($B173,'calculation sheet_per capita'!$A$4:$G$503,4, FALSE),"") ->  | M173: =IF($A173>0,VLOOKUP($B173,'calculation sheet_per capita'!$A$4:$G$503,5, FALSE),"") ->  | N173: =IF($A173>0,VLOOKUP($B173,'calculation sheet_per capita'!$A$4:$G$503,6, FALSE),"") ->  | O173: =IF($A173>0,VLOOKUP($B173,'calculation sheet_per capita'!$A$4:$G$503,7, FALSE),"") -> 
A174: =IF(C174>0,MAX(A$2:A173)+1,0) -> 0 | B174: ='Module 2-Step 2'!B183 ->  | C174: =IF(B174<>"",IF(LEFT(B$1,3)="CFR",VLOOKUP(B174,'for concentration'!A$4:E$503,5,FALSE),0),0) -> 0 | D174: =IF(C174>0,IF('Module 2-Step 3'!F179>0,'Module 2-Step 3'!F179,'Module 2-Step 3'!D179),0) -> 0 | E174: 0 | K174: =IF($A174>0,VLOOKUP($B174,'calculation sheet_per capita'!$A$4:$G$503,3, FALSE),"") ->  | L174: =IF($A174>0,VLOOKUP($B174,'calculation sheet_per capita'!$A$4:$G$503,4, FALSE),"") ->  | M174: =IF($A174>0,VLOOKUP($B174,'calculation sheet_per capita'!$A$4:$G$503,5, FALSE),"") ->  | N174: =IF($A174>0,VLOOKUP($B174,'calculation sheet_per capita'!$A$4:$G$503,6, FALSE),"") ->  | O174: =IF($A174>0,VLOOKUP($B174,'calculation sheet_per capita'!$A$4:$G$503,7, FALSE),"") -> 
A175: =IF(C175>0,MAX(A$2:A174)+1,0) -> 0 | B175: ='Module 2-Step 2'!B184 ->  | C175: =IF(B175<>"",IF(LEFT(B$1,3)="CFR",VLOOKUP(B175,'for concentration'!A$4:E$503,5,FALSE),0),0) -> 0 | D175: =IF(C175>0,IF('Module 2-Step 3'!F180>0,'Module 2-Step 3'!F180,'Module 2-Step 3'!D180),0) -> 0 | E175: 0 | K175: =IF($A175>0,VLOOKUP($B175,'calculation sheet_per capita'!$A$4:$G$503,3, FALSE),"") ->  | L175: =IF($A175>0,VLOOKUP($B175,'calculation sheet_per capita'!$A$4:$G$503,4, FALSE),"") ->  | M175: =IF($A175>0,VLOOKUP($B175,'calculation sheet_per capita'!$A$4:$G$503,5, FALSE),"") ->  | N175: =IF($A175>0,VLOOKUP($B175,'calculation sheet_per capita'!$A$4:$G$503,6, FALSE),"") ->  | O175: =IF($A175>0,VLOOKUP($B175,'calculation sheet_per capita'!$A$4:$G$503,7, FALSE),"") -> 
A176: =IF(C176>0,MAX(A$2:A175)+1,0) -> 0 | B176: ='Module 2-Step 2'!B185 ->  | C176: =IF(B176<>"",IF(LEFT(B$1,3)="CFR",VLOOKUP(B176,'for concentration'!A$4:E$503,5,FALSE),0),0) -> 0 | D176: =IF(C176>0,IF('Module 2-Step 3'!F181>0,'Module 2-Step 3'!F181,'Module 2-Step 3'!D181),0) -> 0 | E176: 0 | K176: =IF($A176>0,VLOOKUP($B176,'calculation sheet_per capita'!$A$4:$G$503,3, FALSE),"") ->  | L176: =IF($A176>0,VLOOKUP($B176,'calculation sheet_per capita'!$A$4:$G$503,4, FALSE),"") ->  | M176: =IF($A176>0,VLOOKUP($B176,'calculation sheet_per capita'!$A$4:$G$503,5, FALSE),"") ->  | N176: =IF($A176>0,VLOOKUP($B176,'calculation sheet_per capita'!$A$4:$G$503,6, FALSE),"") ->  | O176: =IF($A176>0,VLOOKUP($B176,'calculation sheet_per capita'!$A$4:$G$503,7, FALSE),"") -> 
A177: =IF(C177>0,MAX(A$2:A176)+1,0) -> 0 | B177: ='Module 2-Step 2'!B186 ->  | C177: =IF(B177<>"",IF(LEFT(B$1,3)="CFR",VLOOKUP(B177,'for concentration'!A$4:E$503,5,FALSE),0),0) -> 0 | D177: =IF(C177>0,IF('Module 2-Step 3'!F182>0,'Module 2-Step 3'!F182,'Module 2-Step 3'!D182),0) -> 0 | E177: 0 | K177: =IF($A177>0,VLOOKUP($B177,'calculation sheet_per capita'!$A$4:$G$503,3, FALSE),"") ->  | L177: =IF($A177>0,VLOOKUP($B177,'calculation sheet_per capita'!$A$4:$G$503,4, FALSE),"") ->  | M177: =IF($A177>0,VLOOKUP($B177,'calculation sheet_per capita'!$A$4:$G$503,5, FALSE),"") ->  | N177: =IF($A177>0,VLOOKUP($B177,'calculation sheet_per capita'!$A$4:$G$503,6, FALSE),"") ->  | O177: =IF($A177>0,VLOOKUP($B177,'calculation sheet_per capita'!$A$4:$G$503,7, FALSE),"") -> 
A178: =IF(C178>0,MAX(A$2:A177)+1,0) -> 0 | B178: ='Module 2-Step 2'!B187 ->  | C178: =IF(B178<>"",IF(LEFT(B$1,3)="CFR",VLOOKUP(B178,'for concentration'!A$4:E$503,5,FALSE),0),0) -> 0 | D178: =IF(C178>0,IF('Module 2-Step 3'!F183>0,'Module 2-Step 3'!F183,'Module 2-Step 3'!D183),0) -> 0 | E178: 0 | K178: =IF($A178>0,VLOOKUP($B178,'calculation sheet_per capita'!$A$4:$G$503,3, FALSE),"") ->  | L178: =IF($A178>0,VLOOKUP($B178,'calculation sheet_per capita'!$A$4:$G$503,4, FALSE),"") ->  | M178: =IF($A178>0,VLOOKUP($B178,'calculation sheet_per capita'!$A$4:$G$503,5, FALSE),"") ->  | N178: =IF($A178>0,VLOOKUP($B178,'calculation sheet_per capita'!$A$4:$G$503,6, FALSE),"") ->  | O178: =IF($A178>0,VLOOKUP($B178,'calculation sheet_per capita'!$A$4:$G$503,7, FALSE),"") -> 
A179: =IF(C179>0,MAX(A$2:A178)+1,0) -> 0 | B179: ='Module 2-Step 2'!B188 ->  | C179: =IF(B179<>"",IF(LEFT(B$1,3)="CFR",VLOOKUP(B179,'for concentration'!A$4:E$503,5,FALSE),0),0) -> 0 | D179: =IF(C179>0,IF('Module 2-Step 3'!F184>0,'Module 2-Step 3'!F184,'Module 2-Step 3'!D184),0) -> 0 | E179: 0 | K179: =IF($A179>0,VLOOKUP($B179,'calculation sheet_per capita'!$A$4:$G$503,3, FALSE),"") ->  | L179: =IF($A179>0,VLOOKUP($B179,'calculation sheet_per capita'!$A$4:$G$503,4, FALSE),"") ->  | M179: =IF($A179>0,VLOOKUP($B179,'calculation sheet_per capita'!$A$4:$G$503,5, FALSE),"") ->  | N179: =IF($A179>0,VLOOKUP($B179,'calculation sheet_per capita'!$A$4:$G$503,6, FALSE),"") ->  | O179: =IF($A179>0,VLOOKUP($B179,'calculation sheet_per capita'!$A$4:$G$503,7, FALSE),"") -> 
A180: =IF(C180>0,MAX(A$2:A179)+1,0) -> 0 | B180: ='Module 2-Step 2'!B189 ->  | C180: =IF(B180<>"",IF(LEFT(B$1,3)="CFR",VLOOKUP(B180,'for concentration'!A$4:E$503,5,FALSE),0),0) -> 0 | D180: =IF(C180>0,IF('Module 2-Step 3'!F185>0,'Module 2-Step 3'!F185,'Module 2-Step 3'!D185),0) -> 0 | E180: 0 | K180: =IF($A180>0,VLOOKUP($B180,'calculation sheet_per capita'!$A$4:$G$503,3, FALSE),"") ->  | L180: =IF($A180>0,VLOOKUP($B180,'calculation sheet_per capita'!$A$4:$G$503,4, FALSE),"") ->  | M180: =IF($A180>0,VLOOKUP($B180,'calculation sheet_per capita'!$A$4:$G$503,5, FALSE),"") ->  | N180: =IF($A180>0,VLOOKUP($B180,'calculation sheet_per capita'!$A$4:$G$503,6, FALSE),"") ->  | O180: =IF($A180>0,VLOOKUP($B180,'calculation sheet_per capita'!$A$4:$G$503,7, FALSE),"") -> 
A181: =IF(C181>0,MAX(A$2:A180)+1,0) -> 0 | B181: ='Module 2-Step 2'!B190 ->  | C181: =IF(B181<>"",IF(LEFT(B$1,3)="CFR",VLOOKUP(B181,'for concentration'!A$4:E$503,5,FALSE),0),0) -> 0 | D181: =IF(C181>0,IF('Module 2-Step 3'!F186>0,'Module 2-Step 3'!F186,'Module 2-Step 3'!D186),0) -> 0 | E181: 0 | K181: =IF($A181>0,VLOOKUP($B181,'calculation sheet_per capita'!$A$4:$G$503,3, FALSE),"") ->  | L181: =IF($A181>0,VLOOKUP($B181,'calculation sheet_per capita'!$A$4:$G$503,4, FALSE),"") ->  | M181: =IF($A181>0,VLOOKUP($B181,'calculation sheet_per capita'!$A$4:$G$503,5, FALSE),"") ->  | N181: =IF($A181>0,VLOOKUP($B181,'calculation sheet_per capita'!$A$4:$G$503,6, FALSE),"") ->  | O181: =IF($A181>0,VLOOKUP($B181,'calculation sheet_per capita'!$A$4:$G$503,7, FALSE),"") -> 
A182: =IF(C182>0,MAX(A$2:A181)+1,0) -> 0 | B182: ='Module 2-Step 2'!B191 ->  | C182: =IF(B182<>"",IF(LEFT(B$1,3)="CFR",VLOOKUP(B182,'for concentration'!A$4:E$503,5,FALSE),0),0) -> 0 | D182: =IF(C182>0,IF('Module 2-Step 3'!F187>0,'Module 2-Step 3'!F187,'Module 2-Step 3'!D187),0) -> 0 | E182: 0 | K182: =IF($A182>0,VLOOKUP($B182,'calculation sheet_per capita'!$A$4:$G$503,3, FALSE),"") ->  | L182: =IF($A182>0,VLOOKUP($B182,'calculation sheet_per capita'!$A$4:$G$503,4, FALSE),"") ->  | M182: =IF($A182>0,VLOOKUP($B182,'calculation sheet_per capita'!$A$4:$G$503,5, FALSE),"") ->  | N182: =IF($A182>0,VLOOKUP($B182,'calculation sheet_per capita'!$A$4:$G$503,6, FALSE),"") ->  | O182: =IF($A182>0,VLOOKUP($B182,'calculation sheet_per capita'!$A$4:$G$503,7, FALSE),"") -> 
A183: =IF(C183>0,MAX(A$2:A182)+1,0) -> 0 | B183: ='Module 2-Step 2'!B192 ->  | C183: =IF(B183<>"",IF(LEFT(B$1,3)="CFR",VLOOKUP(B183,'for concentration'!A$4:E$503,5,FALSE),0),0) -> 0 | D183: =IF(C183>0,IF('Module 2-Step 3'!F188>0,'Module 2-Step 3'!F188,'Module 2-Step 3'!D188),0) -> 0 | E183: 0 | K183: =IF($A183>0,VLOOKUP($B183,'calculation sheet_per capita'!$A$4:$G$503,3, FALSE),"") ->  | L183: =IF($A183>0,VLOOKUP($B183,'calculation sheet_per capita'!$A$4:$G$503,4, FALSE),"") ->  | M183: =IF($A183>0,VLOOKUP($B183,'calculation sheet_per capita'!$A$4:$G$503,5, FALSE),"") ->  | N183: =IF($A183>0,VLOOKUP($B183,'calculation sheet_per capita'!$A$4:$G$503,6, FALSE),"") ->  | O183: =IF($A183>0,VLOOKUP($B183,'calculation sheet_per capita'!$A$4:$G$503,7, FALSE),"") -> 
A184: =IF(C184>0,MAX(A$2:A183)+1,0) -> 0 | B184: ='Module 2-Step 2'!B193 ->  | C184: =IF(B184<>"",IF(LEFT(B$1,3)="CFR",VLOOKUP(B184,'for concentration'!A$4:E$503,5,FALSE),0),0) -> 0 | D184: =IF(C184>0,IF('Module 2-Step 3'!F189>0,'Module 2-Step 3'!F189,'Module 2-Step 3'!D189),0) -> 0 | E184: 0 | K184: =IF($A184>0,VLOOKUP($B184,'calculation sheet_per capita'!$A$4:$G$503,3, FALSE),"") ->  | L184: =IF($A184>0,VLOOKUP($B184,'calculation sheet_per capita'!$A$4:$G$503,4, FALSE),"") ->  | M184: =IF($A184>0,VLOOKUP($B184,'calculation sheet_per capita'!$A$4:$G$503,5, FALSE),"") ->  | N184: =IF($A184>0,VLOOKUP($B184,'calculation sheet_per capita'!$A$4:$G$503,6, FALSE),"") ->  | O184: =IF($A184>0,VLOOKUP($B184,'calculation sheet_per capita'!$A$4:$G$503,7, FALSE),"") -> 
A185: =IF(C185>0,MAX(A$2:A184)+1,0) -> 0 | B185: ='Module 2-Step 2'!B194 ->  | C185: =IF(B185<>"",IF(LEFT(B$1,3)="CFR",VLOOKUP(B185,'for concentration'!A$4:E$503,5,FALSE),0),0) -> 0 | D185: =IF(C185>0,IF('Module 2-Step 3'!F190>0,'Module 2-Step 3'!F190,'Module 2-Step 3'!D190),0) -> 0 | E185: 0 | K185: =IF($A185>0,VLOOKUP($B185,'calculation sheet_per capita'!$A$4:$G$503,3, FALSE),"") ->  | L185: =IF($A185>0,VLOOKUP($B185,'calculation sheet_per capita'!$A$4:$G$503,4, FALSE),"") ->  | M185: =IF($A185>0,VLOOKUP($B185,'calculation sheet_per capita'!$A$4:$G$503,5, FALSE),"") ->  | N185: =IF($A185>0,VLOOKUP($B185,'calculation sheet_per capita'!$A$4:$G$503,6, FALSE),"") ->  | O185: =IF($A185>0,VLOOKUP($B185,'calculation sheet_per capita'!$A$4:$G$503,7, FALSE),"") -> 
A186: =IF(C186>0,MAX(A$2:A185)+1,0) -> 0 | B186: ='Module 2-Step 2'!B195 ->  | C186: =IF(B186<>"",IF(LEFT(B$1,3)="CFR",VLOOKUP(B186,'for concentration'!A$4:E$503,5,FALSE),0),0) -> 0 | D186: =IF(C186>0,IF('Module 2-Step 3'!F191>0,'Module 2-Step 3'!F191,'Module 2-Step 3'!D191),0) -> 0 | E186: 0 | K186: =IF($A186>0,VLOOKUP($B186,'calculation sheet_per capita'!$A$4:$G$503,3, FALSE),"") ->  | L186: =IF($A186>0,VLOOKUP($B186,'calculation sheet_per capita'!$A$4:$G$503,4, FALSE),"") ->  | M186: =IF($A186>0,VLOOKUP($B186,'calculation sheet_per capita'!$A$4:$G$503,5, FALSE),"") ->  | N186: =IF($A186>0,VLOOKUP($B186,'calculation sheet_per capita'!$A$4:$G$503,6, FALSE),"") ->  | O186: =IF($A186>0,VLOOKUP($B186,'calculation sheet_per capita'!$A$4:$G$503,7, FALSE),"") -> 
A187: =IF(C187>0,MAX(A$2:A186)+1,0) -> 0 | B187: ='Module 2-Step 2'!B196 ->  | C187: =IF(B187<>"",IF(LEFT(B$1,3)="CFR",VLOOKUP(B187,'for concentration'!A$4:E$503,5,FALSE),0),0) -> 0 | D187: =IF(C187>0,IF('Module 2-Step 3'!F192>0,'Module 2-Step 3'!F192,'Module 2-Step 3'!D192),0) -> 0 | E187: 0 | K187: =IF($A187>0,VLOOKUP($B187,'calculation sheet_per capita'!$A$4:$G$503,3, FALSE),"") ->  | L187: =IF($A187>0,VLOOKUP($B187,'calculation sheet_per capita'!$A$4:$G$503,4, FALSE),"") ->  | M187: =IF($A187>0,VLOOKUP($B187,'calculation sheet_per capita'!$A$4:$G$503,5, FALSE),"") ->  | N187: =IF($A187>0,VLOOKUP($B187,'calculation sheet_per capita'!$A$4:$G$503,6, FALSE),"") ->  | O187: =IF($A187>0,VLOOKUP($B187,'calculation sheet_per capita'!$A$4:$G$503,7, FALSE),"") -> 
A188: =IF(C188>0,MAX(A$2:A187)+1,0) -> 0 | B188: ='Module 2-Step 2'!B197 ->  | C188: =IF(B188<>"",IF(LEFT(B$1,3)="CFR",VLOOKUP(B188,'for concentration'!A$4:E$503,5,FALSE),0),0) -> 0 | D188: =IF(C188>0,IF('Module 2-Step 3'!F193>0,'Module 2-Step 3'!F193,'Module 2-Step 3'!D193),0) -> 0 | E188: 0 | K188: =IF($A188>0,VLOOKUP($B188,'calculation sheet_per capita'!$A$4:$G$503,3, FALSE),"") ->  | L188: =IF($A188>0,VLOOKUP($B188,'calculation sheet_per capita'!$A$4:$G$503,4, FALSE),"") ->  | M188: =IF($A188>0,VLOOKUP($B188,'calculation sheet_per capita'!$A$4:$G$503,5, FALSE),"") ->  | N188: =IF($A188>0,VLOOKUP($B188,'calculation sheet_per capita'!$A$4:$G$503,6, FALSE),"") ->  | O188: =IF($A188>0,VLOOKUP($B188,'calculation sheet_per capita'!$A$4:$G$503,7, FALSE),"") -> 
A189: =IF(C189>0,MAX(A$2:A188)+1,0) -> 0 | B189: ='Module 2-Step 2'!B198 ->  | C189: =IF(B189<>"",IF(LEFT(B$1,3)="CFR",VLOOKUP(B189,'for concentration'!A$4:E$503,5,FALSE),0),0) -> 0 | D189: =IF(C189>0,IF('Module 2-Step 3'!F194>0,'Module 2-Step 3'!F194,'Module 2-Step 3'!D194),0) -> 0 | E189: 0 | K189: =IF($A189>0,VLOOKUP($B189,'calculation sheet_per capita'!$A$4:$G$503,3, FALSE),"") ->  | L189: =IF($A189>0,VLOOKUP($B189,'calculation sheet_per capita'!$A$4:$G$503,4, FALSE),"") ->  | M189: =IF($A189>0,VLOOKUP($B189,'calculation sheet_per capita'!$A$4:$G$503,5, FALSE),"") ->  | N189: =IF($A189>0,VLOOKUP($B189,'calculation sheet_per capita'!$A$4:$G$503,6, FALSE),"") ->  | O189: =IF($A189>0,VLOOKUP($B189,'calculation sheet_per capita'!$A$4:$G$503,7, FALSE),"") -> 
A190: =IF(C190>0,MAX(A$2:A189)+1,0) -> 0 | B190: ='Module 2-Step 2'!B199 ->  | C190: =IF(B190<>"",IF(LEFT(B$1,3)="CFR",VLOOKUP(B190,'for concentration'!A$4:E$503,5,FALSE),0),0) -> 0 | D190: =IF(C190>0,IF('Module 2-Step 3'!F195>0,'Module 2-Step 3'!F195,'Module 2-Step 3'!D195),0) -> 0 | E190: 0 | K190: =IF($A190>0,VLOOKUP($B190,'calculation sheet_per capita'!$A$4:$G$503,3, FALSE),"") ->  | L190: =IF($A190>0,VLOOKUP($B190,'calculation sheet_per capita'!$A$4:$G$503,4, FALSE),"") ->  | M190: =IF($A190>0,VLOOKUP($B190,'calculation sheet_per capita'!$A$4:$G$503,5, FALSE),"") ->  | N190: =IF($A190>0,VLOOKUP($B190,'calculation sheet_per capita'!$A$4:$G$503,6, FALSE),"") ->  | O190: =IF($A190>0,VLOOKUP($B190,'calculation sheet_per capita'!$A$4:$G$503,7, FALSE),"") -> 
A191: =IF(C191>0,MAX(A$2:A190)+1,0) -> 0 | B191: ='Module 2-Step 2'!B200 ->  | C191: =IF(B191<>"",IF(LEFT(B$1,3)="CFR",VLOOKUP(B191,'for concentration'!A$4:E$503,5,FALSE),0),0) -> 0 | D191: =IF(C191>0,IF('Module 2-Step 3'!F196>0,'Module 2-Step 3'!F196,'Module 2-Step 3'!D196),0) -> 0 | E191: 0 | K191: =IF($A191>0,VLOOKUP($B191,'calculation sheet_per capita'!$A$4:$G$503,3, FALSE),"") ->  | L191: =IF($A191>0,VLOOKUP($B191,'calculation sheet_per capita'!$A$4:$G$503,4, FALSE),"") ->  | M191: =IF($A191>0,VLOOKUP($B191,'calculation sheet_per capita'!$A$4:$G$503,5, FALSE),"") ->  | N191: =IF($A191>0,VLOOKUP($B191,'calculation sheet_per capita'!$A$4:$G$503,6, FALSE),"") ->  | O191: =IF($A191>0,VLOOKUP($B191,'calculation sheet_per capita'!$A$4:$G$503,7, FALSE),"") -> 
A192: =IF(C192>0,MAX(A$2:A191)+1,0) -> 0 | B192: ='Module 2-Step 2'!B201 ->  | C192: =IF(B192<>"",IF(LEFT(B$1,3)="CFR",VLOOKUP(B192,'for concentration'!A$4:E$503,5,FALSE),0),0) -> 0 | D192: =IF(C192>0,IF('Module 2-Step 3'!F197>0,'Module 2-Step 3'!F197,'Module 2-Step 3'!D197),0) -> 0 | E192: 0 | K192: =IF($A192>0,VLOOKUP($B192,'calculation sheet_per capita'!$A$4:$G$503,3, FALSE),"") ->  | L192: =IF($A192>0,VLOOKUP($B192,'calculation sheet_per capita'!$A$4:$G$503,4, FALSE),"") ->  | M192: =IF($A192>0,VLOOKUP($B192,'calculation sheet_per capita'!$A$4:$G$503,5, FALSE),"") ->  | N192: =IF($A192>0,VLOOKUP($B192,'calculation sheet_per capita'!$A$4:$G$503,6, FALSE),"") ->  | O192: =IF($A192>0,VLOOKUP($B192,'calculation sheet_per capita'!$A$4:$G$503,7, FALSE),"") -> 
A193: =IF(C193>0,MAX(A$2:A192)+1,0) -> 0 | B193: ='Module 2-Step 2'!B202 ->  | C193: =IF(B193<>"",IF(LEFT(B$1,3)="CFR",VLOOKUP(B193,'for concentration'!A$4:E$503,5,FALSE),0),0) -> 0 | D193: =IF(C193>0,IF('Module 2-Step 3'!F198>0,'Module 2-Step 3'!F198,'Module 2-Step 3'!D198),0) -> 0 | E193: 0 | K193: =IF($A193>0,VLOOKUP($B193,'calculation sheet_per capita'!$A$4:$G$503,3, FALSE),"") ->  | L193: =IF($A193>0,VLOOKUP($B193,'calculation sheet_per capita'!$A$4:$G$503,4, FALSE),"") ->  | M193: =IF($A193>0,VLOOKUP($B193,'calculation sheet_per capita'!$A$4:$G$503,5, FALSE),"") ->  | N193: =IF($A193>0,VLOOKUP($B193,'calculation sheet_per capita'!$A$4:$G$503,6, FALSE),"") ->  | O193: =IF($A193>0,VLOOKUP($B193,'calculation sheet_per capita'!$A$4:$G$503,7, FALSE),"") -> 
A194: =IF(C194>0,MAX(A$2:A193)+1,0) -> 0 | B194: ='Module 2-Step 2'!B203 ->  | C194: =IF(B194<>"",IF(LEFT(B$1,3)="CFR",VLOOKUP(B194,'for concentration'!A$4:E$503,5,FALSE),0),0) -> 0 | D194: =IF(C194>0,IF('Module 2-Step 3'!F199>0,'Module 2-Step 3'!F199,'Module 2-Step 3'!D199),0) -> 0 | E194: =D194*C194 -> 0 | K194: =IF($A194>0,VLOOKUP($B194,'calculation sheet_per capita'!$A$4:$G$503,3, FALSE),"") ->  | L194: =IF($A194>0,VLOOKUP($B194,'calculation sheet_per capita'!$A$4:$G$503,4, FALSE),"") ->  | M194: =IF($A194>0,VLOOKUP($B194,'calculation sheet_per capita'!$A$4:$G$503,5, FALSE),"") ->  | N194: =IF($A194>0,VLOOKUP($B194,'calculation sheet_per capita'!$A$4:$G$503,6, FALSE),"") ->  | O194: =IF($A194>0,VLOOKUP($B194,'calculation sheet_per capita'!$A$4:$G$503,7, FALSE),"") -> 
A195: =IF(C195>0,MAX(A$2:A194)+1,0) -> 0 | B195: ='Module 2-Step 2'!B204 ->  | C195: =IF(B195<>"",IF(LEFT(B$1,3)="CFR",VLOOKUP(B195,'for concentration'!A$4:E$503,5,FALSE),0),0) -> 0 | D195: =IF(C195>0,IF('Module 2-Step 3'!F200>0,'Module 2-Step 3'!F200,'Module 2-Step 3'!D200),0) -> 0 | E195: 0 | F195: =IF($A195>0,IF(K$502>0,K195/K$502,"NC"),"") ->  | K195: =IF($A195>0,VLOOKUP($B195,'calculation sheet_per capita'!$A$4:$G$503,3, FALSE),"") ->  | L195: =IF($A195>0,VLOOKUP($B195,'calculation sheet_per capita'!$A$4:$G$503,4, FALSE),"") ->  | M195: =IF($A195>0,VLOOKUP($B195,'calculation sheet_per capita'!$A$4:$G$503,5, FALSE),"") ->  | N195: =IF($A195>0,VLOOKUP($B195,'calculation sheet_per capita'!$A$4:$G$503,6, FALSE),"") ->  | O195: =IF($A195>0,VLOOKUP($B195,'calculation sheet_per capita'!$A$4:$G$503,7, FALSE),"") -> 
A196: =IF(C196>0,MAX(A$2:A195)+1,0) -> 0 | B196: ='Module 2-Step 2'!B205 ->  | C196: =IF(B196<>"",IF(LEFT(B$1,3)="CFR",VLOOKUP(B196,'for concentration'!A$4:E$503,5,FALSE),0),0) -> 0 | D196: =IF(C196>0,IF('Module 2-Step 3'!F201>0,'Module 2-Step 3'!F201,'Module 2-Step 3'!D201),0) -> 0 | E196: 0 | K196: =IF($A196>0,VLOOKUP($B196,'calculation sheet_per capita'!$A$4:$G$503,3, FALSE),"") ->  | L196: =IF($A196>0,VLOOKUP($B196,'calculation sheet_per capita'!$A$4:$G$503,4, FALSE),"") ->  | M196: =IF($A196>0,VLOOKUP($B196,'calculation sheet_per capita'!$A$4:$G$503,5, FALSE),"") ->  | N196: =IF($A196>0,VLOOKUP($B196,'calculation sheet_per capita'!$A$4:$G$503,6, FALSE),"") ->  | O196: =IF($A196>0,VLOOKUP($B196,'calculation sheet_per capita'!$A$4:$G$503,7, FALSE),"") -> 
A197: =IF(C197>0,MAX(A$2:A196)+1,0) -> 0 | B197: ='Module 2-Step 2'!B206 ->  | C197: =IF(B197<>"",IF(LEFT(B$1,3)="CFR",VLOOKUP(B197,'for concentration'!A$4:E$503,5,FALSE),0),0) -> 0 | D197: =IF(C197>0,IF('Module 2-Step 3'!F202>0,'Module 2-Step 3'!F202,'Module 2-Step 3'!D202),0) -> 0 | E197: 0 | K197: =IF($A197>0,VLOOKUP($B197,'calculation sheet_per capita'!$A$4:$G$503,3, FALSE),"") ->  | L197: =IF($A197>0,VLOOKUP($B197,'calculation sheet_per capita'!$A$4:$G$503,4, FALSE),"") ->  | M197: =IF($A197>0,VLOOKUP($B197,'calculation sheet_per capita'!$A$4:$G$503,5, FALSE),"") ->  | N197: =IF($A197>0,VLOOKUP($B197,'calculation sheet_per capita'!$A$4:$G$503,6, FALSE),"") ->  | O197: =IF($A197>0,VLOOKUP($B197,'calculation sheet_per capita'!$A$4:$G$503,7, FALSE),"") -> 
A198: =IF(C198>0,MAX(A$2:A197)+1,0) -> 0 | B198: ='Module 2-Step 2'!B207 ->  | C198: =IF(B198<>"",IF(LEFT(B$1,3)="CFR",VLOOKUP(B198,'for concentration'!A$4:E$503,5,FALSE),0),0) -> 0 | D198: =IF(C198>0,IF('Module 2-Step 3'!F203>0,'Module 2-Step 3'!F203,'Module 2-Step 3'!D203),0) -> 0 | E198: 0 | K198: =IF($A198>0,VLOOKUP($B198,'calculation sheet_per capita'!$A$4:$G$503,3, FALSE),"") ->  | L198: =IF($A198>0,VLOOKUP($B198,'calculation sheet_per capita'!$A$4:$G$503,4, FALSE),"") ->  | M198: =IF($A198>0,VLOOKUP($B198,'calculation sheet_per capita'!$A$4:$G$503,5, FALSE),"") ->  | N198: =IF($A198>0,VLOOKUP($B198,'calculation sheet_per capita'!$A$4:$G$503,6, FALSE),"") ->  | O198: =IF($A198>0,VLOOKUP($B198,'calculation sheet_per capita'!$A$4:$G$503,7, FALSE),"") -> 
A199: =IF(C199>0,MAX(A$2:A198)+1,0) -> 0 | B199: ='Module 2-Step 2'!B208 ->  | C199: =IF(B199<>"",IF(LEFT(B$1,3)="CFR",VLOOKUP(B199,'for concentration'!A$4:E$503,5,FALSE),0),0) -> 0 | D199: =IF(C199>0,IF('Module 2-Step 3'!F204>0,'Module 2-Step 3'!F204,'Module 2-Step 3'!D204),0) -> 0 | E199: 0 | K199: =IF($A199>0,VLOOKUP($B199,'calculation sheet_per capita'!$A$4:$G$503,3, FALSE),"") ->  | L199: =IF($A199>0,VLOOKUP($B199,'calculation sheet_per capita'!$A$4:$G$503,4, FALSE),"") ->  | M199: =IF($A199>0,VLOOKUP($B199,'calculation sheet_per capita'!$A$4:$G$503,5, FALSE),"") ->  | N199: =IF($A199>0,VLOOKUP($B199,'calculation sheet_per capita'!$A$4:$G$503,6, FALSE),"") ->  | O199: =IF($A199>0,VLOOKUP($B199,'calculation sheet_per capita'!$A$4:$G$503,7, FALSE),"") -> 
A200: =IF(C200>0,MAX(A$2:A199)+1,0) -> 0 | B200: ='Module 2-Step 2'!B209 ->  | C200: =IF(B200<>"",IF(LEFT(B$1,3)="CFR",VLOOKUP(B200,'for concentration'!A$4:E$503,5,FALSE),0),0) -> 0 | D200: =IF(C200>0,IF('Module 2-Step 3'!F205>0,'Module 2-Step 3'!F205,'Module 2-Step 3'!D205),0) -> 0 | E200: 0 | K200: =IF($A200>0,VLOOKUP($B200,'calculation sheet_per capita'!$A$4:$G$503,3, FALSE),"") ->  | L200: =IF($A200>0,VLOOKUP($B200,'calculation sheet_per capita'!$A$4:$G$503,4, FALSE),"") ->  | M200: =IF($A200>0,VLOOKUP($B200,'calculation sheet_per capita'!$A$4:$G$503,5, FALSE),"") ->  | N200: =IF($A200>0,VLOOKUP($B200,'calculation sheet_per capita'!$A$4:$G$503,6, FALSE),"") ->  | O200: =IF($A200>0,VLOOKUP($B200,'calculation sheet_per capita'!$A$4:$G$503,7, FALSE),"") -> 
... 302 more rows

Sheet FITS calculation sheet (hidden)
D1: =IF($B2=Sheet2!$B$8,FITS2_C!$B$2,IF($B2=Sheet2!$B$7,FITS1_C!$B$2,"")) ->  | H1: =IF($B2=Sheet2!$B$8,FITS2_C!$C$2,IF($B2=Sheet2!$B$7,FITS1_C!$C$2,"")) ->  | L1: =IF($B2=Sheet2!$B$8,FITS2_C!$D$2,IF($B2=Sheet2!$B$7,FITS1_C!$D$2,"")) -> 
A2: Used? | B2: ='Module 2-Step 1'!B9 -> CFR (categories) | C2: Concentration | D2: serving_1 | E2: intake per serving_1 | F2: percent users_1 | G2: relative contribution | H2: serving_2 | I2: intake per serving_2 | J2: percent users_2 | K2: relative contribution | L2: serving_3 | M2: intake per serving_3 | N2: percent users_3 | O2: relative contribution
A3: =IF(C3>0,1,0) -> 0 | B3: ='Module 2-Step 2'!B11 ->  | C3: =IF(LEFT(B$2,4)="FITS",IF(B3<>"",VLOOKUP(B3,'for concentration'!A$4:E$503,5,FALSE),0),0) -> 0 | D3: =IF($C3>0,IF($B$2="FITS data (4-11m)",VLOOKUP($B3,FITS1_C!$A$3:$G$100,2,FALSE),IF($B$2="FITS data (12-24m)",VLOOKUP($B3,FITS2_C!$A$3:$G$100,2,FALSE),0)),0) -> 0 | E3: =D3*$C3 -> 0 | F3: =IF($C3>0,IF($B$2="FITS data (4-11m)",VLOOKUP($B3,FITS1_C!$A$3:$G$100,5,FALSE),IF($B$2="FITS data (12-24m)",VLOOKUP($B3,FITS2_C!$A$3:$G$100,5,FALSE),0)),0) -> 0 | G3: =IF($A3>0,IF(F3>0,F3/SUM(F$3:F$502),0),0) -> 0 | H3: =IF($C3>0,IF($B$2="FITS data (4-11m)",VLOOKUP($B3,FITS1_C!$A$3:$G$100,3,FALSE),IF($B$2="FITS data (12-24m)",VLOOKUP($B3,FITS2_C!$A$3:$G$100,3,FALSE),0)),0) -> 0 | I3: =H3*$C3 -> 0 | J3: =IF($C3>0,IF($B$2="FITS data (4-11m)",VLOOKUP($B3,FITS1_C!$A$3:$G$100,6,FALSE),IF($B$2="FITS data (12-24m)",VLOOKUP($B3,FITS2_C!$A$3:$G$100,6,FALSE),0)),0) -> 0 | K3: =IF($A3>0,IF(J3>0,J3/SUM(J$3:J$502),0),0) -> 0 | L3: =IF($C3>0,IF($B$2="FITS data (4-11m)",VLOOKUP($B3,FITS1_C!$A$3:$G$100,4,FALSE),IF($B$2="FITS data (12-24m)",VLOOKUP($B3,FITS2_C!$A$3:$G$100,4,FALSE),0)),0) -> 0 | M3: =L3*$C3 -> 0 | N3: =IF($C3>0,IF($B$2="FITS data (4-11m)",VLOOKUP($B3,FITS1_C!$A$3:$G$100,7,FALSE),IF($B$2="FITS data (12-24m)",VLOOKUP($B3,FITS2_C!$A$3:$G$100,7,FALSE),0)),0) -> 0 | O3: =IF($A3>0,IF(N3>0,N3/SUM(N$3:N$502),0),0) -> 0
A4: =IF(C4>0,MAX(A$3:A3)+1,0) -> 0 | B4: ='Module 2-Step 2'!B12 ->  | C4: =IF(LEFT(B$2,4)="FITS",IF(B4<>"",VLOOKUP(B4,'for concentration'!A$4:E$503,5,FALSE),0),0) -> 0 | D4: =IF($C4>0,IF($B$2="FITS data (4-11m)",VLOOKUP($B4,FITS1_C!$A$3:$G$100,2,FALSE),IF($B$2="FITS data (12-24m)",VLOOKUP($B4,FITS2_C!$A$3:$G$100,2,FALSE),0)),0) -> 0 | E4: =D4*$C4 -> 0 | F4: =IF($C4>0,IF($B$2="FITS data (4-11m)",VLOOKUP($B4,FITS1_C!$A$3:$G$100,5,FALSE),IF($B$2="FITS data (12-24m)",VLOOKUP($B4,FITS2_C!$A$3:$G$100,5,FALSE),0)),0) -> 0 | G4: =IF($A4>0,IF(F4>0,F4/SUM(F$3:F$502),0),0) -> 0 | H4: =IF($C4>0,IF($B$2="FITS data (4-11m)",VLOOKUP($B4,FITS1_C!$A$3:$G$100,3,FALSE),IF($B$2="FITS data (12-24m)",VLOOKUP($B4,FITS2_C!$A$3:$G$100,3,FALSE),0)),0) -> 0 | I4: =H4*$C4 -> 0 | J4: =IF($C4>0,IF($B$2="FITS data (4-11m)",VLOOKUP($B4,FITS1_C!$A$3:$G$100,6,FALSE),IF($B$2="FITS data (12-24m)",VLOOKUP($B4,FITS2_C!$A$3:$G$100,6,FALSE),0)),0) -> 0 | K4: =IF($A4>0,IF(J4>0,J4/SUM(J$3:J$502),0),0) -> 0 | L4: =IF($C4>0,IF($B$2="FITS data (4-11m)",VLOOKUP($B4,FITS1_C!$A$3:$G$100,4,FALSE),IF($B$2="FITS data (12-24m)",VLOOKUP($B4,FITS2_C!$A$3:$G$100,4,FALSE),0)),0) -> 0 | M4: =L4*$C4 -> 0 | N4: =IF($C4>0,IF($B$2="FITS data (4-11m)",VLOOKUP($B4,FITS1_C!$A$3:$G$100,7,FALSE),IF($B$2="FITS data (12-24m)",VLOOKUP($B4,FITS2_C!$A$3:$G$100,7,FALSE),0)),0) -> 0 | O4: =IF($A4>0,IF(N4>0,N4/SUM(N$3:N$502),0),0) -> 0
A5: =IF(C5>0,MAX(A$3:A4)+1,0) -> 0 | B5: ='Module 2-Step 2'!B13 ->  | C5: =IF(LEFT(B$2,4)="FITS",IF(B5<>"",VLOOKUP(B5,'for concentration'!A$4:E$503,5,FALSE),0),0) -> 0 | D5: =IF($C5>0,IF($B$2="FITS data (4-11m)",VLOOKUP($B5,FITS1_C!$A$3:$G$100,2,FALSE),IF($B$2="FITS data (12-24m)",VLOOKUP($B5,FITS2_C!$A$3:$G$100,2,FALSE),0)),0) -> 0 | E5: 0 | F5: =IF($C5>0,IF($B$2="FITS data (4-11m)",VLOOKUP($B5,FITS1_C!$A$3:$G$100,5,FALSE),IF($B$2="FITS data (12-24m)",VLOOKUP($B5,FITS2_C!$A$3:$G$100,5,FALSE),0)),0) -> 0 | G5: 0 | H5: =IF($C5>0,IF($B$2="FITS data (4-11m)",VLOOKUP($B5,FITS1_C!$A$3:$G$100,3,FALSE),IF($B$2="FITS data (12-24m)",VLOOKUP($B5,FITS2_C!$A$3:$G$100,3,FALSE),0)),0) -> 0 | I5: 0 | J5: =IF($C5>0,IF($B$2="FITS data (4-11m)",VLOOKUP($B5,FITS1_C!$A$3:$G$100,6,FALSE),IF($B$2="FITS data (12-24m)",VLOOKUP($B5,FITS2_C!$A$3:$G$100,6,FALSE),0)),0) -> 0 | K5: 0 | L5: =IF($C5>0,IF($B$2="FITS data (4-11m)",VLOOKUP($B5,FITS1_C!$A$3:$G$100,4,FALSE),IF($B$2="FITS data (12-24m)",VLOOKUP($B5,FITS2_C!$A$3:$G$100,4,FALSE),0)),0) -> 0 | M5: 0 | N5: =IF($C5>0,IF($B$2="FITS data (4-11m)",VLOOKUP($B5,FITS1_C!$A$3:$G$100,7,FALSE),IF($B$2="FITS data (12-24m)",VLOOKUP($B5,FITS2_C!$A$3:$G$100,7,FALSE),0)),0) -> 0 | O5: 0
A6: =IF(C6>0,MAX(A$3:A5)+1,0) -> 0 | B6: ='Module 2-Step 2'!B14 ->  | C6: =IF(LEFT(B$2,4)="FITS",IF(B6<>"",VLOOKUP(B6,'for concentration'!A$4:E$503,5,FALSE),0),0) -> 0 | D6: =IF($C6>0,IF($B$2="FITS data (4-11m)",VLOOKUP($B6,FITS1_C!$A$3:$G$100,2,FALSE),IF($B$2="FITS data (12-24m)",VLOOKUP($B6,FITS2_C!$A$3:$G$100,2,FALSE),0)),0) -> 0 | E6: 0 | F6: =IF($C6>0,IF($B$2="FITS data (4-11m)",VLOOKUP($B6,FITS1_C!$A$3:$G$100,5,FALSE),IF($B$2="FITS data (12-24m)",VLOOKUP($B6,FITS2_C!$A$3:$G$100,5,FALSE),0)),0) -> 0 | G6: 0 | H6: =IF($C6>0,IF($B$2="FITS data (4-11m)",VLOOKUP($B6,FITS1_C!$A$3:$G$100,3,FALSE),IF($B$2="FITS data (12-24m)",VLOOKUP($B6,FITS2_C!$A$3:$G$100,3,FALSE),0)),0) -> 0 | I6: 0 | J6: =IF($C6>0,IF($B$2="FITS data (4-11m)",VLOOKUP($B6,FITS1_C!$A$3:$G$100,6,FALSE),IF($B$2="FITS data (12-24m)",VLOOKUP($B6,FITS2_C!$A$3:$G$100,6,FALSE),0)),0) -> 0 | K6: 0 | L6: =IF($C6>0,IF($B$2="FITS data (4-11m)",VLOOKUP($B6,FITS1_C!$A$3:$G$100,4,FALSE),IF($B$2="FITS data (12-24m)",VLOOKUP($B6,FITS2_C!$A$3:$G$100,4,FALSE),0)),0) -> 0 | M6: 0 | N6: =IF($C6>0,IF($B$2="FITS data (4-11m)",VLOOKUP($B6,FITS1_C!$A$3:$G$100,7,FALSE),IF($B$2="FITS data (12-24m)",VLOOKUP($B6,FITS2_C!$A$3:$G$100,7,FALSE),0)),0) -> 0 | O6: 0
A7: =IF(C7>0,MAX(A$3:A6)+1,0) -> 0 | B7: ='Module 2-Step 2'!B15 ->  | C7: =IF(LEFT(B$2,4)="FITS",IF(B7<>"",VLOOKUP(B7,'for concentration'!A$4:E$503,5,FALSE),0),0) -> 0 | D7: =IF($C7>0,IF($B$2="FITS data (4-11m)",VLOOKUP($B7,FITS1_C!$A$3:$G$100,2,FALSE),IF($B$2="FITS data (12-24m)",VLOOKUP($B7,FITS2_C!$A$3:$G$100,2,FALSE),0)),0) -> 0 | E7: 0 | F7: =IF($C7>0,IF($B$2="FITS data (4-11m)",VLOOKUP($B7,FITS1_C!$A$3:$G$100,5,FALSE),IF($B$2="FITS data (12-24m)",VLOOKUP($B7,FITS2_C!$A$3:$G$100,5,FALSE),0)),0) -> 0 | G7: 0 | H7: =IF($C7>0,IF($B$2="FITS data (4-11m)",VLOOKUP($B7,FITS1_C!$A$3:$G$100,3,FALSE),IF($B$2="FITS data (12-24m)",VLOOKUP($B7,FITS2_C!$A$3:$G$100,3,FALSE),0)),0) -> 0 | I7: 0 | J7: =IF($C7>0,IF($B$2="FITS data (4-11m)",VLOOKUP($B7,FITS1_C!$A$3:$G$100,6,FALSE),IF($B$2="FITS data (12-24m)",VLOOKUP($B7,FITS2_C!$A$3:$G$100,6,FALSE),0)),0) -> 0 | K7: 0 | L7: =IF($C7>0,IF($B$2="FITS data (4-11m)",VLOOKUP($B7,FITS1_C!$A$3:$G$100,4,FALSE),IF($B$2="FITS data (12-24m)",VLOOKUP($B7,FITS2_C!$A$3:$G$100,4,FALSE),0)),0) -> 0 | M7: 0 | N7: =IF($C7>0,IF($B$2="FITS data (4-11m)",VLOOKUP($B7,FITS1_C!$A$3:$G$100,7,FALSE),IF($B$2="FITS data (12-24m)",VLOOKUP($B7,FITS2_C!$A$3:$G$100,7,FALSE),0)),0) -> 0 | O7: 0
A8: =IF(C8>0,MAX(A$3:A7)+1,0) -> 0 | B8: ='Module 2-Step 2'!B16 ->  | C8: =IF(LEFT(B$2,4)="FITS",IF(B8<>"",VLOOKUP(B8,'for concentration'!A$4:E$503,5,FALSE),0),0) -> 0 | D8: =IF($C8>0,IF($B$2="FITS data (4-11m)",VLOOKUP($B8,FITS1_C!$A$3:$G$100,2,FALSE),IF($B$2="FITS data (12-24m)",VLOOKUP($B8,FITS2_C!$A$3:$G$100,2,FALSE),0)),0) -> 0 | E8: 0 | F8: =IF($C8>0,IF($B$2="FITS data (4-11m)",VLOOKUP($B8,FITS1_C!$A$3:$G$100,5,FALSE),IF($B$2="FITS data (12-24m)",VLOOKUP($B8,FITS2_C!$A$3:$G$100,5,FALSE),0)),0) -> 0 | G8: 0 | H8: =IF($C8>0,IF($B$2="FITS data (4-11m)",VLOOKUP($B8,FITS1_C!$A$3:$G$100,3,FALSE),IF($B$2="FITS data (12-24m)",VLOOKUP($B8,FITS2_C!$A$3:$G$100,3,FALSE),0)),0) -> 0 | I8: 0 | J8: =IF($C8>0,IF($B$2="FITS data (4-11m)",VLOOKUP($B8,FITS1_C!$A$3:$G$100,6,FALSE),IF($B$2="FITS data (12-24m)",VLOOKUP($B8,FITS2_C!$A$3:$G$100,6,FALSE),0)),0) -> 0 | K8: 0 | L8: =IF($C8>0,IF($B$2="FITS data (4-11m)",VLOOKUP($B8,FITS1_C!$A$3:$G$100,4,FALSE),IF($B$2="FITS data (12-24m)",VLOOKUP($B8,FITS2_C!$A$3:$G$100,4,FALSE),0)),0) -> 0 | M8: 0 | N8: =IF($C8>0,IF($B$2="FITS data (4-11m)",VLOOKUP($B8,FITS1_C!$A$3:$G$100,7,FALSE),IF($B$2="FITS data (12-24m)",VLOOKUP($B8,FITS2_C!$A$3:$G$100,7,FALSE),0)),0) -> 0 | O8: 0
A9: =IF(C9>0,MAX(A$3:A8)+1,0) -> 0 | B9: ='Module 2-Step 2'!B17 ->  | C9: =IF(LEFT(B$2,4)="FITS",IF(B9<>"",VLOOKUP(B9,'for concentration'!A$4:E$503,5,FALSE),0),0) -> 0 | D9: =IF($C9>0,IF($B$2="FITS data (4-11m)",VLOOKUP($B9,FITS1_C!$A$3:$G$100,2,FALSE),IF($B$2="FITS data (12-24m)",VLOOKUP($B9,FITS2_C!$A$3:$G$100,2,FALSE),0)),0) -> 0 | E9: 0 | F9: =IF($C9>0,IF($B$2="FITS data (4-11m)",VLOOKUP($B9,FITS1_C!$A$3:$G$100,5,FALSE),IF($B$2="FITS data (12-24m)",VLOOKUP($B9,FITS2_C!$A$3:$G$100,5,FALSE),0)),0) -> 0 | G9: 0 | H9: =IF($C9>0,IF($B$2="FITS data (4-11m)",VLOOKUP($B9,FITS1_C!$A$3:$G$100,3,FALSE),IF($B$2="FITS data (12-24m)",VLOOKUP($B9,FITS2_C!$A$3:$G$100,3,FALSE),0)),0) -> 0 | I9: 0 | J9: =IF($C9>0,IF($B$2="FITS data (4-11m)",VLOOKUP($B9,FITS1_C!$A$3:$G$100,6,FALSE),IF($B$2="FITS data (12-24m)",VLOOKUP($B9,FITS2_C!$A$3:$G$100,6,FALSE),0)),0) -> 0 | K9: 0 | L9: =IF($C9>0,IF($B$2="FITS data (4-11m)",VLOOKUP($B9,FITS1_C!$A$3:$G$100,4,FALSE),IF($B$2="FITS data (12-24m)",VLOOKUP($B9,FITS2_C!$A$3:$G$100,4,FALSE),0)),0) -> 0 | M9: 0 | N9: =IF($C9>0,IF($B$2="FITS data (4-11m)",VLOOKUP($B9,FITS1_C!$A$3:$G$100,7,FALSE),IF($B$2="FITS data (12-24m)",VLOOKUP($B9,FITS2_C!$A$3:$G$100,7,FALSE),0)),0) -> 0 | O9: 0
A10: =IF(C10>0,MAX(A$3:A9)+1,0) -> 0 | B10: ='Module 2-Step 2'!B18 ->  | C10: =IF(LEFT(B$2,4)="FITS",IF(B10<>"",VLOOKUP(B10,'for concentration'!A$4:E$503,5,FALSE),0),0) -> 0 | D10: =IF($C10>0,IF($B$2="FITS data (4-11m)",VLOOKUP($B10,FITS1_C!$A$3:$G$100,2,FALSE),IF($B$2="FITS data (12-24m)",VLOOKUP($B10,FITS2_C!$A$3:$G$100,2,FALSE),0)),0) -> 0 | E10: 0 | F10: =IF($C10>0,IF($B$2="FITS data (4-11m)",VLOOKUP($B10,FITS1_C!$A$3:$G$100,5,FALSE),IF($B$2="FITS data (12-24m)",VLOOKUP($B10,FITS2_C!$A$3:$G$100,5,FALSE),0)),0) -> 0 | G10: 0 | H10: =IF($C10>0,IF($B$2="FITS data (4-11m)",VLOOKUP($B10,FITS1_C!$A$3:$G$100,3,FALSE),IF($B$2="FITS data (12-24m)",VLOOKUP($B10,FITS2_C!$A$3:$G$100,3,FALSE),0)),0) -> 0 | I10: 0 | J10: =IF($C10>0,IF($B$2="FITS data (4-11m)",VLOOKUP($B10,FITS1_C!$A$3:$G$100,6,FALSE),IF($B$2="FITS data (12-24m)",VLOOKUP($B10,FITS2_C!$A$3:$G$100,6,FALSE),0)),0) -> 0 | K10: 0 | L10: =IF($C10>0,IF($B$2="FITS data (4-11m)",VLOOKUP($B10,FITS1_C!$A$3:$G$100,4,FALSE),IF($B$2="FITS data (12-24m)",VLOOKUP($B10,FITS2_C!$A$3:$G$100,4,FALSE),0)),0) -> 0 | M10: 0 | N10: =IF($C10>0,IF($B$2="FITS data (4-11m)",VLOOKUP($B10,FITS1_C!$A$3:$G$100,7,FALSE),IF($B$2="FITS data (12-24m)",VLOOKUP($B10,FITS2_C!$A$3:$G$100,7,FALSE),0)),0) -> 0 | O10: 0
A11: =IF(C11>0,MAX(A$3:A10)+1,0) -> 0 | B11: ='Module 2-Step 2'!B19 ->  | C11: =IF(LEFT(B$2,4)="FITS",IF(B11<>"",VLOOKUP(B11,'for concentration'!A$4:E$503,5,FALSE),0),0) -> 0 | D11: =IF($C11>0,IF($B$2="FITS data (4-11m)",VLOOKUP($B11,FITS1_C!$A$3:$G$100,2,FALSE),IF($B$2="FITS data (12-24m)",VLOOKUP($B11,FITS2_C!$A$3:$G$100,2,FALSE),0)),0) -> 0 | E11: 0 | F11: =IF($C11>0,IF($B$2="FITS data (4-11m)",VLOOKUP($B11,FITS1_C!$A$3:$G$100,5,FALSE),IF($B$2="FITS data (12-24m)",VLOOKUP($B11,FITS2_C!$A$3:$G$100,5,FALSE),0)),0) -> 0 | G11: 0 | H11: =IF($C11>0,IF($B$2="FITS data (4-11m)",VLOOKUP($B11,FITS1_C!$A$3:$G$100,3,FALSE),IF($B$2="FITS data (12-24m)",VLOOKUP($B11,FITS2_C!$A$3:$G$100,3,FALSE),0)),0) -> 0 | I11: 0 | J11: =IF($C11>0,IF($B$2="FITS data (4-11m)",VLOOKUP($B11,FITS1_C!$A$3:$G$100,6,FALSE),IF($B$2="FITS data (12-24m)",VLOOKUP($B11,FITS2_C!$A$3:$G$100,6,FALSE),0)),0) -> 0 | K11: 0 | L11: =IF($C11>0,IF($B$2="FITS data (4-11m)",VLOOKUP($B11,FITS1_C!$A$3:$G$100,4,FALSE),IF($B$2="FITS data (12-24m)",VLOOKUP($B11,FITS2_C!$A$3:$G$100,4,FALSE),0)),0) -> 0 | M11: 0 | N11: =IF($C11>0,IF($B$2="FITS data (4-11m)",VLOOKUP($B11,FITS1_C!$A$3:$G$100,7,FALSE),IF($B$2="FITS data (12-24m)",VLOOKUP($B11,FITS2_C!$A$3:$G$100,7,FALSE),0)),0) -> 0 | O11: 0
A12: =IF(C12>0,MAX(A$3:A11)+1,0) -> 0 | B12: ='Module 2-Step 2'!B20 ->  | C12: =IF(LEFT(B$2,4)="FITS",IF(B12<>"",VLOOKUP(B12,'for concentration'!A$4:E$503,5,FALSE),0),0) -> 0 | D12: =IF($C12>0,IF($B$2="FITS data (4-11m)",VLOOKUP($B12,FITS1_C!$A$3:$G$100,2,FALSE),IF($B$2="FITS data (12-24m)",VLOOKUP($B12,FITS2_C!$A$3:$G$100,2,FALSE),0)),0) -> 0 | E12: 0 | F12: =IF($C12>0,IF($B$2="FITS data (4-11m)",VLOOKUP($B12,FITS1_C!$A$3:$G$100,5,FALSE),IF($B$2="FITS data (12-24m)",VLOOKUP($B12,FITS2_C!$A$3:$G$100,5,FALSE),0)),0) -> 0 | G12: 0 | H12: =IF($C12>0,IF($B$2="FITS data (4-11m)",VLOOKUP($B12,FITS1_C!$A$3:$G$100,3,FALSE),IF($B$2="FITS data (12-24m)",VLOOKUP($B12,FITS2_C!$A$3:$G$100,3,FALSE),0)),0) -> 0 | I12: 0 | J12: =IF($C12>0,IF($B$2="FITS data (4-11m)",VLOOKUP($B12,FITS1_C!$A$3:$G$100,6,FALSE),IF($B$2="FITS data (12-24m)",VLOOKUP($B12,FITS2_C!$A$3:$G$100,6,FALSE),0)),0) -> 0 | K12: 0 | L12: =IF($C12>0,IF($B$2="FITS data (4-11m)",VLOOKUP($B12,FITS1_C!$A$3:$G$100,4,FALSE),IF($B$2="FITS data (12-24m)",VLOOKUP($B12,FITS2_C!$A$3:$G$100,4,FALSE),0)),0) -> 0 | M12: 0 | N12: =IF($C12>0,IF($B$2="FITS data (4-11m)",VLOOKUP($B12,FITS1_C!$A$3:$G$100,7,FALSE),IF($B$2="FITS data (12-24m)",VLOOKUP($B12,FITS2_C!$A$3:$G$100,7,FALSE),0)),0) -> 0 | O12: 0
A13: =IF(C13>0,MAX(A$3:A12)+1,0) -> 0 | B13: ='Module 2-Step 2'!B21 ->  | C13: =IF(LEFT(B$2,4)="FITS",IF(B13<>"",VLOOKUP(B13,'for concentration'!A$4:E$503,5,FALSE),0),0) -> 0 | D13: =IF($C13>0,IF($B$2="FITS data (4-11m)",VLOOKUP($B13,FITS1_C!$A$3:$G$100,2,FALSE),IF($B$2="FITS data (12-24m)",VLOOKUP($B13,FITS2_C!$A$3:$G$100,2,FALSE),0)),0) -> 0 | E13: 0 | F13: =IF($C13>0,IF($B$2="FITS data (4-11m)",VLOOKUP($B13,FITS1_C!$A$3:$G$100,5,FALSE),IF($B$2="FITS data (12-24m)",VLOOKUP($B13,FITS2_C!$A$3:$G$100,5,FALSE),0)),0) -> 0 | G13: 0 | H13: =IF($C13>0,IF($B$2="FITS data (4-11m)",VLOOKUP($B13,FITS1_C!$A$3:$G$100,3,FALSE),IF($B$2="FITS data (12-24m)",VLOOKUP($B13,FITS2_C!$A$3:$G$100,3,FALSE),0)),0) -> 0 | I13: 0 | J13: =IF($C13>0,IF($B$2="FITS data (4-11m)",VLOOKUP($B13,FITS1_C!$A$3:$G$100,6,FALSE),IF($B$2="FITS data (12-24m)",VLOOKUP($B13,FITS2_C!$A$3:$G$100,6,FALSE),0)),0) -> 0 | K13: 0 | L13: =IF($C13>0,IF($B$2="FITS data (4-11m)",VLOOKUP($B13,FITS1_C!$A$3:$G$100,4,FALSE),IF($B$2="FITS data (12-24m)",VLOOKUP($B13,FITS2_C!$A$3:$G$100,4,FALSE),0)),0) -> 0 | M13: 0 | N13: =IF($C13>0,IF($B$2="FITS data (4-11m)",VLOOKUP($B13,FITS1_C!$A$3:$G$100,7,FALSE),IF($B$2="FITS data (12-24m)",VLOOKUP($B13,FITS2_C!$A$3:$G$100,7,FALSE),0)),0) -> 0 | O13: 0
A14: =IF(C14>0,MAX(A$3:A13)+1,0) -> 0 | B14: ='Module 2-Step 2'!B22 ->  | C14: =IF(LEFT(B$2,4)="FITS",IF(B14<>"",VLOOKUP(B14,'for concentration'!A$4:E$503,5,FALSE),0),0) -> 0 | D14: =IF($C14>0,IF($B$2="FITS data (4-11m)",VLOOKUP($B14,FITS1_C!$A$3:$G$100,2,FALSE),IF($B$2="FITS data (12-24m)",VLOOKUP($B14,FITS2_C!$A$3:$G$100,2,FALSE),0)),0) -> 0 | E14: 0 | F14: =IF($C14>0,IF($B$2="FITS data (4-11m)",VLOOKUP($B14,FITS1_C!$A$3:$G$100,5,FALSE),IF($B$2="FITS data (12-24m)",VLOOKUP($B14,FITS2_C!$A$3:$G$100,5,FALSE),0)),0) -> 0 | G14: 0 | H14: =IF($C14>0,IF($B$2="FITS data (4-11m)",VLOOKUP($B14,FITS1_C!$A$3:$G$100,3,FALSE),IF($B$2="FITS data (12-24m)",VLOOKUP($B14,FITS2_C!$A$3:$G$100,3,FALSE),0)),0) -> 0 | I14: 0 | J14: =IF($C14>0,IF($B$2="FITS data (4-11m)",VLOOKUP($B14,FITS1_C!$A$3:$G$100,6,FALSE),IF($B$2="FITS data (12-24m)",VLOOKUP($B14,FITS2_C!$A$3:$G$100,6,FALSE),0)),0) -> 0 | K14: 0 | L14: =IF($C14>0,IF($B$2="FITS data (4-11m)",VLOOKUP($B14,FITS1_C!$A$3:$G$100,4,FALSE),IF($B$2="FITS data (12-24m)",VLOOKUP($B14,FITS2_C!$A$3:$G$100,4,FALSE),0)),0) -> 0 | M14: 0 | N14: =IF($C14>0,IF($B$2="FITS data (4-11m)",VLOOKUP($B14,FITS1_C!$A$3:$G$100,7,FALSE),IF($B$2="FITS data (12-24m)",VLOOKUP($B14,FITS2_C!$A$3:$G$100,7,FALSE),0)),0) -> 0 | O14: 0
A15: =IF(C15>0,MAX(A$3:A14)+1,0) -> 0 | B15: ='Module 2-Step 2'!B23 ->  | C15: =IF(LEFT(B$2,4)="FITS",IF(B15<>"",VLOOKUP(B15,'for concentration'!A$4:E$503,5,FALSE),0),0) -> 0 | D15: =IF($C15>0,IF($B$2="FITS data (4-11m)",VLOOKUP($B15,FITS1_C!$A$3:$G$100,2,FALSE),IF($B$2="FITS data (12-24m)",VLOOKUP($B15,FITS2_C!$A$3:$G$100,2,FALSE),0)),0) -> 0 | E15: 0 | F15: =IF($C15>0,IF($B$2="FITS data (4-11m)",VLOOKUP($B15,FITS1_C!$A$3:$G$100,5,FALSE),IF($B$2="FITS data (12-24m)",VLOOKUP($B15,FITS2_C!$A$3:$G$100,5,FALSE),0)),0) -> 0 | G15: 0 | H15: =IF($C15>0,IF($B$2="FITS data (4-11m)",VLOOKUP($B15,FITS1_C!$A$3:$G$100,3,FALSE),IF($B$2="FITS data (12-24m)",VLOOKUP($B15,FITS2_C!$A$3:$G$100,3,FALSE),0)),0) -> 0 | I15: 0 | J15: =IF($C15>0,IF($B$2="FITS data (4-11m)",VLOOKUP($B15,FITS1_C!$A$3:$G$100,6,FALSE),IF($B$2="FITS data (12-24m)",VLOOKUP($B15,FITS2_C!$A$3:$G$100,6,FALSE),0)),0) -> 0 | K15: 0 | L15: =IF($C15>0,IF($B$2="FITS data (4-11m)",VLOOKUP($B15,FITS1_C!$A$3:$G$100,4,FALSE),IF($B$2="FITS data (12-24m)",VLOOKUP($B15,FITS2_C!$A$3:$G$100,4,FALSE),0)),0) -> 0 | M15: 0 | N15: =IF($C15>0,IF($B$2="FITS data (4-11m)",VLOOKUP($B15,FITS1_C!$A$3:$G$100,7,FALSE),IF($B$2="FITS data (12-24m)",VLOOKUP($B15,FITS2_C!$A$3:$G$100,7,FALSE),0)),0) -> 0 | O15: 0
A16: =IF(C16>0,MAX(A$3:A15)+1,0) -> 0 | B16: ='Module 2-Step 2'!B24 ->  | C16: =IF(LEFT(B$2,4)="FITS",IF(B16<>"",VLOOKUP(B16,'for concentration'!A$4:E$503,5,FALSE),0),0) -> 0 | D16: =IF($C16>0,IF($B$2="FITS data (4-11m)",VLOOKUP($B16,FITS1_C!$A$3:$G$100,2,FALSE),IF($B$2="FITS data (12-24m)",VLOOKUP($B16,FITS2_C!$A$3:$G$100,2,FALSE),0)),0) -> 0 | E16: 0 | F16: =IF($C16>0,IF($B$2="FITS data (4-11m)",VLOOKUP($B16,FITS1_C!$A$3:$G$100,5,FALSE),IF($B$2="FITS data (12-24m)",VLOOKUP($B16,FITS2_C!$A$3:$G$100,5,FALSE),0)),0) -> 0 | G16: 0 | H16: =IF($C16>0,IF($B$2="FITS data (4-11m)",VLOOKUP($B16,FITS1_C!$A$3:$G$100,3,FALSE),IF($B$2="FITS data (12-24m)",VLOOKUP($B16,FITS2_C!$A$3:$G$100,3,FALSE),0)),0) -> 0 | I16: 0 | J16: =IF($C16>0,IF($B$2="FITS data (4-11m)",VLOOKUP($B16,FITS1_C!$A$3:$G$100,6,FALSE),IF($B$2="FITS data (12-24m)",VLOOKUP($B16,FITS2_C!$A$3:$G$100,6,FALSE),0)),0) -> 0 | K16: 0 | L16: =IF($C16>0,IF($B$2="FITS data (4-11m)",VLOOKUP($B16,FITS1_C!$A$3:$G$100,4,FALSE),IF($B$2="FITS data (12-24m)",VLOOKUP($B16,FITS2_C!$A$3:$G$100,4,FALSE),0)),0) -> 0 | M16: 0 | N16: =IF($C16>0,IF($B$2="FITS data (4-11m)",VLOOKUP($B16,FITS1_C!$A$3:$G$100,7,FALSE),IF($B$2="FITS data (12-24m)",VLOOKUP($B16,FITS2_C!$A$3:$G$100,7,FALSE),0)),0) -> 0 | O16: 0
A17: =IF(C17>0,MAX(A$3:A16)+1,0) -> 0 | B17: ='Module 2-Step 2'!B25 ->  | C17: =IF(LEFT(B$2,4)="FITS",IF(B17<>"",VLOOKUP(B17,'for concentration'!A$4:E$503,5,FALSE),0),0) -> 0 | D17: =IF($C17>0,IF($B$2="FITS data (4-11m)",VLOOKUP($B17,FITS1_C!$A$3:$G$100,2,FALSE),IF($B$2="FITS data (12-24m)",VLOOKUP($B17,FITS2_C!$A$3:$G$100,2,FALSE),0)),0) -> 0 | E17: 0 | F17: =IF($C17>0,IF($B$2="FITS data (4-11m)",VLOOKUP($B17,FITS1_C!$A$3:$G$100,5,FALSE),IF($B$2="FITS data (12-24m)",VLOOKUP($B17,FITS2_C!$A$3:$G$100,5,FALSE),0)),0) -> 0 | G17: 0 | H17: =IF($C17>0,IF($B$2="FITS data (4-11m)",VLOOKUP($B17,FITS1_C!$A$3:$G$100,3,FALSE),IF($B$2="FITS data (12-24m)",VLOOKUP($B17,FITS2_C!$A$3:$G$100,3,FALSE),0)),0) -> 0 | I17: 0 | J17: =IF($C17>0,IF($B$2="FITS data (4-11m)",VLOOKUP($B17,FITS1_C!$A$3:$G$100,6,FALSE),IF($B$2="FITS data (12-24m)",VLOOKUP($B17,FITS2_C!$A$3:$G$100,6,FALSE),0)),0) -> 0 | K17: 0 | L17: =IF($C17>0,IF($B$2="FITS data (4-11m)",VLOOKUP($B17,FITS1_C!$A$3:$G$100,4,FALSE),IF($B$2="FITS data (12-24m)",VLOOKUP($B17,FITS2_C!$A$3:$G$100,4,FALSE),0)),0) -> 0 | M17: 0 | N17: =IF($C17>0,IF($B$2="FITS data (4-11m)",VLOOKUP($B17,FITS1_C!$A$3:$G$100,7,FALSE),IF($B$2="FITS data (12-24m)",VLOOKUP($B17,FITS2_C!$A$3:$G$100,7,FALSE),0)),0) -> 0 | O17: 0
A18: =IF(C18>0,MAX(A$3:A17)+1,0) -> 0 | B18: ='Module 2-Step 2'!B26 ->  | C18: =IF(LEFT(B$2,4)="FITS",IF(B18<>"",VLOOKUP(B18,'for concentration'!A$4:E$503,5,FALSE),0),0) -> 0 | D18: =IF($C18>0,IF($B$2="FITS data (4-11m)",VLOOKUP($B18,FITS1_C!$A$3:$G$100,2,FALSE),IF($B$2="FITS data (12-24m)",VLOOKUP($B18,FITS2_C!$A$3:$G$100,2,FALSE),0)),0) -> 0 | E18: 0 | F18: =IF($C18>0,IF($B$2="FITS data (4-11m)",VLOOKUP($B18,FITS1_C!$A$3:$G$100,5,FALSE),IF($B$2="FITS data (12-24m)",VLOOKUP($B18,FITS2_C!$A$3:$G$100,5,FALSE),0)),0) -> 0 | G18: 0 | H18: =IF($C18>0,IF($B$2="FITS data (4-11m)",VLOOKUP($B18,FITS1_C!$A$3:$G$100,3,FALSE),IF($B$2="FITS data (12-24m)",VLOOKUP($B18,FITS2_C!$A$3:$G$100,3,FALSE),0)),0) -> 0 | I18: 0 | J18: =IF($C18>0,IF($B$2="FITS data (4-11m)",VLOOKUP($B18,FITS1_C!$A$3:$G$100,6,FALSE),IF($B$2="FITS data (12-24m)",VLOOKUP($B18,FITS2_C!$A$3:$G$100,6,FALSE),0)),0) -> 0 | K18: 0 | L18: =IF($C18>0,IF($B$2="FITS data (4-11m)",VLOOKUP($B18,FITS1_C!$A$3:$G$100,4,FALSE),IF($B$2="FITS data (12-24m)",VLOOKUP($B18,FITS2_C!$A$3:$G$100,4,FALSE),0)),0) -> 0 | M18: 0 | N18: =IF($C18>0,IF($B$2="FITS data (4-11m)",VLOOKUP($B18,FITS1_C!$A$3:$G$100,7,FALSE),IF($B$2="FITS data (12-24m)",VLOOKUP($B18,FITS2_C!$A$3:$G$100,7,FALSE),0)),0) -> 0 | O18: 0
A19: =IF(C19>0,MAX(A$3:A18)+1,0) -> 0 | B19: ='Module 2-Step 2'!B27 ->  | C19: =IF(LEFT(B$2,4)="FITS",IF(B19<>"",VLOOKUP(B19,'for concentration'!A$4:E$503,5,FALSE),0),0) -> 0 | D19: =IF($C19>0,IF($B$2="FITS data (4-11m)",VLOOKUP($B19,FITS1_C!$A$3:$G$100,2,FALSE),IF($B$2="FITS data (12-24m)",VLOOKUP($B19,FITS2_C!$A$3:$G$100,2,FALSE),0)),0) -> 0 | E19: 0 | F19: =IF($C19>0,IF($B$2="FITS data (4-11m)",VLOOKUP($B19,FITS1_C!$A$3:$G$100,5,FALSE),IF($B$2="FITS data (12-24m)",VLOOKUP($B19,FITS2_C!$A$3:$G$100,5,FALSE),0)),0) -> 0 | G19: 0 | H19: =IF($C19>0,IF($B$2="FITS data (4-11m)",VLOOKUP($B19,FITS1_C!$A$3:$G$100,3,FALSE),IF($B$2="FITS data (12-24m)",VLOOKUP($B19,FITS2_C!$A$3:$G$100,3,FALSE),0)),0) -> 0 | I19: 0 | J19: =IF($C19>0,IF($B$2="FITS data (4-11m)",VLOOKUP($B19,FITS1_C!$A$3:$G$100,6,FALSE),IF($B$2="FITS data (12-24m)",VLOOKUP($B19,FITS2_C!$A$3:$G$100,6,FALSE),0)),0) -> 0 | K19: 0 | L19: =IF($C19>0,IF($B$2="FITS data (4-11m)",VLOOKUP($B19,FITS1_C!$A$3:$G$100,4,FALSE),IF($B$2="FITS data (12-24m)",VLOOKUP($B19,FITS2_C!$A$3:$G$100,4,FALSE),0)),0) -> 0 | M19: 0 | N19: =IF($C19>0,IF($B$2="FITS data (4-11m)",VLOOKUP($B19,FITS1_C!$A$3:$G$100,7,FALSE),IF($B$2="FITS data (12-24m)",VLOOKUP($B19,FITS2_C!$A$3:$G$100,7,FALSE),0)),0) -> 0 | O19: 0
A20: =IF(C20>0,MAX(A$3:A19)+1,0) -> 0 | B20: ='Module 2-Step 2'!B28 ->  | C20: =IF(LEFT(B$2,4)="FITS",IF(B20<>"",VLOOKUP(B20,'for concentration'!A$4:E$503,5,FALSE),0),0) -> 0 | D20: =IF($C20>0,IF($B$2="FITS data (4-11m)",VLOOKUP($B20,FITS1_C!$A$3:$G$100,2,FALSE),IF($B$2="FITS data (12-24m)",VLOOKUP($B20,FITS2_C!$A$3:$G$100,2,FALSE),0)),0) -> 0 | E20: 0 | F20: =IF($C20>0,IF($B$2="FITS data (4-11m)",VLOOKUP($B20,FITS1_C!$A$3:$G$100,5,FALSE),IF($B$2="FITS data (12-24m)",VLOOKUP($B20,FITS2_C!$A$3:$G$100,5,FALSE),0)),0) -> 0 | G20: 0 | H20: =IF($C20>0,IF($B$2="FITS data (4-11m)",VLOOKUP($B20,FITS1_C!$A$3:$G$100,3,FALSE),IF($B$2="FITS data (12-24m)",VLOOKUP($B20,FITS2_C!$A$3:$G$100,3,FALSE),0)),0) -> 0 | I20: 0 | J20: =IF($C20>0,IF($B$2="FITS data (4-11m)",VLOOKUP($B20,FITS1_C!$A$3:$G$100,6,FALSE),IF($B$2="FITS data (12-24m)",VLOOKUP($B20,FITS2_C!$A$3:$G$100,6,FALSE),0)),0) -> 0 | K20: 0 | L20: =IF($C20>0,IF($B$2="FITS data (4-11m)",VLOOKUP($B20,FITS1_C!$A$3:$G$100,4,FALSE),IF($B$2="FITS data (12-24m)",VLOOKUP($B20,FITS2_C!$A$3:$G$100,4,FALSE),0)),0) -> 0 | M20: 0 | N20: =IF($C20>0,IF($B$2="FITS data (4-11m)",VLOOKUP($B20,FITS1_C!$A$3:$G$100,7,FALSE),IF($B$2="FITS data (12-24m)",VLOOKUP($B20,FITS2_C!$A$3:$G$100,7,FALSE),0)),0) -> 0 | O20: 0
A21: =IF(C21>0,MAX(A$3:A20)+1,0) -> 0 | B21: ='Module 2-Step 2'!B29 ->  | C21: =IF(LEFT(B$2,4)="FITS",IF(B21<>"",VLOOKUP(B21,'for concentration'!A$4:E$503,5,FALSE),0),0) -> 0 | D21: =IF($C21>0,IF($B$2="FITS data (4-11m)",VLOOKUP($B21,FITS1_C!$A$3:$G$100,2,FALSE),IF($B$2="FITS data (12-24m)",VLOOKUP($B21,FITS2_C!$A$3:$G$100,2,FALSE),0)),0) -> 0 | E21: 0 | F21: =IF($C21>0,IF($B$2="FITS data (4-11m)",VLOOKUP($B21,FITS1_C!$A$3:$G$100,5,FALSE),IF($B$2="FITS data (12-24m)",VLOOKUP($B21,FITS2_C!$A$3:$G$100,5,FALSE),0)),0) -> 0 | G21: 0 | H21: =IF($C21>0,IF($B$2="FITS data (4-11m)",VLOOKUP($B21,FITS1_C!$A$3:$G$100,3,FALSE),IF($B$2="FITS data (12-24m)",VLOOKUP($B21,FITS2_C!$A$3:$G$100,3,FALSE),0)),0) -> 0 | I21: 0 | J21: =IF($C21>0,IF($B$2="FITS data (4-11m)",VLOOKUP($B21,FITS1_C!$A$3:$G$100,6,FALSE),IF($B$2="FITS data (12-24m)",VLOOKUP($B21,FITS2_C!$A$3:$G$100,6,FALSE),0)),0) -> 0 | K21: 0 | L21: =IF($C21>0,IF($B$2="FITS data (4-11m)",VLOOKUP($B21,FITS1_C!$A$3:$G$100,4,FALSE),IF($B$2="FITS data (12-24m)",VLOOKUP($B21,FITS2_C!$A$3:$G$100,4,FALSE),0)),0) -> 0 | M21: 0 | N21: =IF($C21>0,IF($B$2="FITS data (4-11m)",VLOOKUP($B21,FITS1_C!$A$3:$G$100,7,FALSE),IF($B$2="FITS data (12-24m)",VLOOKUP($B21,FITS2_C!$A$3:$G$100,7,FALSE),0)),0) -> 0 | O21: 0
A22: =IF(C22>0,MAX(A$3:A21)+1,0) -> 0 | B22: ='Module 2-Step 2'!B30 ->  | C22: =IF(LEFT(B$2,4)="FITS",IF(B22<>"",VLOOKUP(B22,'for concentration'!A$4:E$503,5,FALSE),0),0) -> 0 | D22: =IF($C22>0,IF($B$2="FITS data (4-11m)",VLOOKUP($B22,FITS1_C!$A$3:$G$100,2,FALSE),IF($B$2="FITS data (12-24m)",VLOOKUP($B22,FITS2_C!$A$3:$G$100,2,FALSE),0)),0) -> 0 | E22: 0 | F22: =IF($C22>0,IF($B$2="FITS data (4-11m)",VLOOKUP($B22,FITS1_C!$A$3:$G$100,5,FALSE),IF($B$2="FITS data (12-24m)",VLOOKUP($B22,FITS2_C!$A$3:$G$100,5,FALSE),0)),0) -> 0 | G22: 0 | H22: =IF($C22>0,IF($B$2="FITS data (4-11m)",VLOOKUP($B22,FITS1_C!$A$3:$G$100,3,FALSE),IF($B$2="FITS data (12-24m)",VLOOKUP($B22,FITS2_C!$A$3:$G$100,3,FALSE),0)),0) -> 0 | I22: 0 | J22: =IF($C22>0,IF($B$2="FITS data (4-11m)",VLOOKUP($B22,FITS1_C!$A$3:$G$100,6,FALSE),IF($B$2="FITS data (12-24m)",VLOOKUP($B22,FITS2_C!$A$3:$G$100,6,FALSE),0)),0) -> 0 | K22: 0 | L22: =IF($C22>0,IF($B$2="FITS data (4-11m)",VLOOKUP($B22,FITS1_C!$A$3:$G$100,4,FALSE),IF($B$2="FITS data (12-24m)",VLOOKUP($B22,FITS2_C!$A$3:$G$100,4,FALSE),0)),0) -> 0 | M22: 0 | N22: =IF($C22>0,IF($B$2="FITS data (4-11m)",VLOOKUP($B22,FITS1_C!$A$3:$G$100,7,FALSE),IF($B$2="FITS data (12-24m)",VLOOKUP($B22,FITS2_C!$A$3:$G$100,7,FALSE),0)),0) -> 0 | O22: 0
A23: =IF(C23>0,MAX(A$3:A22)+1,0) -> 0 | B23: ='Module 2-Step 2'!B31 ->  | C23: =IF(LEFT(B$2,4)="FITS",IF(B23<>"",VLOOKUP(B23,'for concentration'!A$4:E$503,5,FALSE),0),0) -> 0 | D23: =IF($C23>0,IF($B$2="FITS data (4-11m)",VLOOKUP($B23,FITS1_C!$A$3:$G$100,2,FALSE),IF($B$2="FITS data (12-24m)",VLOOKUP($B23,FITS2_C!$A$3:$G$100,2,FALSE),0)),0) -> 0 | E23: 0 | F23: =IF($C23>0,IF($B$2="FITS data (4-11m)",VLOOKUP($B23,FITS1_C!$A$3:$G$100,5,FALSE),IF($B$2="FITS data (12-24m)",VLOOKUP($B23,FITS2_C!$A$3:$G$100,5,FALSE),0)),0) -> 0 | G23: 0 | H23: =IF($C23>0,IF($B$2="FITS data (4-11m)",VLOOKUP($B23,FITS1_C!$A$3:$G$100,3,FALSE),IF($B$2="FITS data (12-24m)",VLOOKUP($B23,FITS2_C!$A$3:$G$100,3,FALSE),0)),0) -> 0 | I23: 0 | J23: =IF($C23>0,IF($B$2="FITS data (4-11m)",VLOOKUP($B23,FITS1_C!$A$3:$G$100,6,FALSE),IF($B$2="FITS data (12-24m)",VLOOKUP($B23,FITS2_C!$A$3:$G$100,6,FALSE),0)),0) -> 0 | K23: 0 | L23: =IF($C23>0,IF($B$2="FITS data (4-11m)",VLOOKUP($B23,FITS1_C!$A$3:$G$100,4,FALSE),IF($B$2="FITS data (12-24m)",VLOOKUP($B23,FITS2_C!$A$3:$G$100,4,FALSE),0)),0) -> 0 | M23: 0 | N23: =IF($C23>0,IF($B$2="FITS data (4-11m)",VLOOKUP($B23,FITS1_C!$A$3:$G$100,7,FALSE),IF($B$2="FITS data (12-24m)",VLOOKUP($B23,FITS2_C!$A$3:$G$100,7,FALSE),0)),0) -> 0 | O23: 0
A24: =IF(C24>0,MAX(A$3:A23)+1,0) -> 0 | B24: ='Module 2-Step 2'!B32 ->  | C24: =IF(LEFT(B$2,4)="FITS",IF(B24<>"",VLOOKUP(B24,'for concentration'!A$4:E$503,5,FALSE),0),0) -> 0 | D24: =IF($C24>0,IF($B$2="FITS data (4-11m)",VLOOKUP($B24,FITS1_C!$A$3:$G$100,2,FALSE),IF($B$2="FITS data (12-24m)",VLOOKUP($B24,FITS2_C!$A$3:$G$100,2,FALSE),0)),0) -> 0 | E24: 0 | F24: =IF($C24>0,IF($B$2="FITS data (4-11m)",VLOOKUP($B24,FITS1_C!$A$3:$G$100,5,FALSE),IF($B$2="FITS data (12-24m)",VLOOKUP($B24,FITS2_C!$A$3:$G$100,5,FALSE),0)),0) -> 0 | G24: 0 | H24: =IF($C24>0,IF($B$2="FITS data (4-11m)",VLOOKUP($B24,FITS1_C!$A$3:$G$100,3,FALSE),IF($B$2="FITS data (12-24m)",VLOOKUP($B24,FITS2_C!$A$3:$G$100,3,FALSE),0)),0) -> 0 | I24: 0 | J24: =IF($C24>0,IF($B$2="FITS data (4-11m)",VLOOKUP($B24,FITS1_C!$A$3:$G$100,6,FALSE),IF($B$2="FITS data (12-24m)",VLOOKUP($B24,FITS2_C!$A$3:$G$100,6,FALSE),0)),0) -> 0 | K24: 0 | L24: =IF($C24>0,IF($B$2="FITS data (4-11m)",VLOOKUP($B24,FITS1_C!$A$3:$G$100,4,FALSE),IF($B$2="FITS data (12-24m)",VLOOKUP($B24,FITS2_C!$A$3:$G$100,4,FALSE),0)),0) -> 0 | M24: 0 | N24: =IF($C24>0,IF($B$2="FITS data (4-11m)",VLOOKUP($B24,FITS1_C!$A$3:$G$100,7,FALSE),IF($B$2="FITS data (12-24m)",VLOOKUP($B24,FITS2_C!$A$3:$G$100,7,FALSE),0)),0) -> 0 | O24: 0
A25: =IF(C25>0,MAX(A$3:A24)+1,0) -> 0 | B25: ='Module 2-Step 2'!B33 ->  | C25: =IF(LEFT(B$2,4)="FITS",IF(B25<>"",VLOOKUP(B25,'for concentration'!A$4:E$503,5,FALSE),0),0) -> 0 | D25: =IF($C25>0,IF($B$2="FITS data (4-11m)",VLOOKUP($B25,FITS1_C!$A$3:$G$100,2,FALSE),IF($B$2="FITS data (12-24m)",VLOOKUP($B25,FITS2_C!$A$3:$G$100,2,FALSE),0)),0) -> 0 | E25: 0 | F25: =IF($C25>0,IF($B$2="FITS data (4-11m)",VLOOKUP($B25,FITS1_C!$A$3:$G$100,5,FALSE),IF($B$2="FITS data (12-24m)",VLOOKUP($B25,FITS2_C!$A$3:$G$100,5,FALSE),0)),0) -> 0 | G25: 0 | H25: =IF($C25>0,IF($B$2="FITS data (4-11m)",VLOOKUP($B25,FITS1_C!$A$3:$G$100,3,FALSE),IF($B$2="FITS data (12-24m)",VLOOKUP($B25,FITS2_C!$A$3:$G$100,3,FALSE),0)),0) -> 0 | I25: 0 | J25: =IF($C25>0,IF($B$2="FITS data (4-11m)",VLOOKUP($B25,FITS1_C!$A$3:$G$100,6,FALSE),IF($B$2="FITS data (12-24m)",VLOOKUP($B25,FITS2_C!$A$3:$G$100,6,FALSE),0)),0) -> 0 | K25: 0 | L25: =IF($C25>0,IF($B$2="FITS data (4-11m)",VLOOKUP($B25,FITS1_C!$A$3:$G$100,4,FALSE),IF($B$2="FITS data (12-24m)",VLOOKUP($B25,FITS2_C!$A$3:$G$100,4,FALSE),0)),0) -> 0 | M25: 0 | N25: =IF($C25>0,IF($B$2="FITS data (4-11m)",VLOOKUP($B25,FITS1_C!$A$3:$G$100,7,FALSE),IF($B$2="FITS data (12-24m)",VLOOKUP($B25,FITS2_C!$A$3:$G$100,7,FALSE),0)),0) -> 0 | O25: 0
A26: =IF(C26>0,MAX(A$3:A25)+1,0) -> 0 | B26: ='Module 2-Step 2'!B34 ->  | C26: =IF(LEFT(B$2,4)="FITS",IF(B26<>"",VLOOKUP(B26,'for concentration'!A$4:E$503,5,FALSE),0),0) -> 0 | D26: =IF($C26>0,IF($B$2="FITS data (4-11m)",VLOOKUP($B26,FITS1_C!$A$3:$G$100,2,FALSE),IF($B$2="FITS data (12-24m)",VLOOKUP($B26,FITS2_C!$A$3:$G$100,2,FALSE),0)),0) -> 0 | E26: 0 | F26: =IF($C26>0,IF($B$2="FITS data (4-11m)",VLOOKUP($B26,FITS1_C!$A$3:$G$100,5,FALSE),IF($B$2="FITS data (12-24m)",VLOOKUP($B26,FITS2_C!$A$3:$G$100,5,FALSE),0)),0) -> 0 | G26: 0 | H26: =IF($C26>0,IF($B$2="FITS data (4-11m)",VLOOKUP($B26,FITS1_C!$A$3:$G$100,3,FALSE),IF($B$2="FITS data (12-24m)",VLOOKUP($B26,FITS2_C!$A$3:$G$100,3,FALSE),0)),0) -> 0 | I26: 0 | J26: =IF($C26>0,IF($B$2="FITS data (4-11m)",VLOOKUP($B26,FITS1_C!$A$3:$G$100,6,FALSE),IF($B$2="FITS data (12-24m)",VLOOKUP($B26,FITS2_C!$A$3:$G$100,6,FALSE),0)),0) -> 0 | K26: 0 | L26: =IF($C26>0,IF($B$2="FITS data (4-11m)",VLOOKUP($B26,FITS1_C!$A$3:$G$100,4,FALSE),IF($B$2="FITS data (12-24m)",VLOOKUP($B26,FITS2_C!$A$3:$G$100,4,FALSE),0)),0) -> 0 | M26: 0 | N26: =IF($C26>0,IF($B$2="FITS data (4-11m)",VLOOKUP($B26,FITS1_C!$A$3:$G$100,7,FALSE),IF($B$2="FITS data (12-24m)",VLOOKUP($B26,FITS2_C!$A$3:$G$100,7,FALSE),0)),0) -> 0 | O26: 0
A27: =IF(C27>0,MAX(A$3:A26)+1,0) -> 0 | B27: ='Module 2-Step 2'!B35 ->  | C27: =IF(LEFT(B$2,4)="FITS",IF(B27<>"",VLOOKUP(B27,'for concentration'!A$4:E$503,5,FALSE),0),0) -> 0 | D27: =IF($C27>0,IF($B$2="FITS data (4-11m)",VLOOKUP($B27,FITS1_C!$A$3:$G$100,2,FALSE),IF($B$2="FITS data (12-24m)",VLOOKUP($B27,FITS2_C!$A$3:$G$100,2,FALSE),0)),0) -> 0 | E27: 0 | F27: =IF($C27>0,IF($B$2="FITS data (4-11m)",VLOOKUP($B27,FITS1_C!$A$3:$G$100,5,FALSE),IF($B$2="FITS data (12-24m)",VLOOKUP($B27,FITS2_C!$A$3:$G$100,5,FALSE),0)),0) -> 0 | G27: 0 | H27: =IF($C27>0,IF($B$2="FITS data (4-11m)",VLOOKUP($B27,FITS1_C!$A$3:$G$100,3,FALSE),IF($B$2="FITS data (12-24m)",VLOOKUP($B27,FITS2_C!$A$3:$G$100,3,FALSE),0)),0) -> 0 | I27: 0 | J27: =IF($C27>0,IF($B$2="FITS data (4-11m)",VLOOKUP($B27,FITS1_C!$A$3:$G$100,6,FALSE),IF($B$2="FITS data (12-24m)",VLOOKUP($B27,FITS2_C!$A$3:$G$100,6,FALSE),0)),0) -> 0 | K27: 0 | L27: =IF($C27>0,IF($B$2="FITS data (4-11m)",VLOOKUP($B27,FITS1_C!$A$3:$G$100,4,FALSE),IF($B$2="FITS data (12-24m)",VLOOKUP($B27,FITS2_C!$A$3:$G$100,4,FALSE),0)),0) -> 0 | M27: 0 | N27: =IF($C27>0,IF($B$2="FITS data (4-11m)",VLOOKUP($B27,FITS1_C!$A$3:$G$100,7,FALSE),IF($B$2="FITS data (12-24m)",VLOOKUP($B27,FITS2_C!$A$3:$G$100,7,FALSE),0)),0) -> 0 | O27: 0
A28: =IF(C28>0,MAX(A$3:A27)+1,0) -> 0 | B28: ='Module 2-Step 2'!B36 ->  | C28: =IF(LEFT(B$2,4)="FITS",IF(B28<>"",VLOOKUP(B28,'for concentration'!A$4:E$503,5,FALSE),0),0) -> 0 | D28: =IF($C28>0,IF($B$2="FITS data (4-11m)",VLOOKUP($B28,FITS1_C!$A$3:$G$100,2,FALSE),IF($B$2="FITS data (12-24m)",VLOOKUP($B28,FITS2_C!$A$3:$G$100,2,FALSE),0)),0) -> 0 | E28: 0 | F28: =IF($C28>0,IF($B$2="FITS data (4-11m)",VLOOKUP($B28,FITS1_C!$A$3:$G$100,5,FALSE),IF($B$2="FITS data (12-24m)",VLOOKUP($B28,FITS2_C!$A$3:$G$100,5,FALSE),0)),0) -> 0 | G28: 0 | H28: =IF($C28>0,IF($B$2="FITS data (4-11m)",VLOOKUP($B28,FITS1_C!$A$3:$G$100,3,FALSE),IF($B$2="FITS data (12-24m)",VLOOKUP($B28,FITS2_C!$A$3:$G$100,3,FALSE),0)),0) -> 0 | I28: 0 | J28: =IF($C28>0,IF($B$2="FITS data (4-11m)",VLOOKUP($B28,FITS1_C!$A$3:$G$100,6,FALSE),IF($B$2="FITS data (12-24m)",VLOOKUP($B28,FITS2_C!$A$3:$G$100,6,FALSE),0)),0) -> 0 | K28: 0 | L28: =IF($C28>0,IF($B$2="FITS data (4-11m)",VLOOKUP($B28,FITS1_C!$A$3:$G$100,4,FALSE),IF($B$2="FITS data (12-24m)",VLOOKUP($B28,FITS2_C!$A$3:$G$100,4,FALSE),0)),0) -> 0 | M28: 0 | N28: =IF($C28>0,IF($B$2="FITS data (4-11m)",VLOOKUP($B28,FITS1_C!$A$3:$G$100,7,FALSE),IF($B$2="FITS data (12-24m)",VLOOKUP($B28,FITS2_C!$A$3:$G$100,7,FALSE),0)),0) -> 0 | O28: 0
A29: =IF(C29>0,MAX(A$3:A28)+1,0) -> 0 | B29: ='Module 2-Step 2'!B37 ->  | C29: =IF(LEFT(B$2,4)="FITS",IF(B29<>"",VLOOKUP(B29,'for concentration'!A$4:E$503,5,FALSE),0),0) -> 0 | D29: =IF($C29>0,IF($B$2="FITS data (4-11m)",VLOOKUP($B29,FITS1_C!$A$3:$G$100,2,FALSE),IF($B$2="FITS data (12-24m)",VLOOKUP($B29,FITS2_C!$A$3:$G$100,2,FALSE),0)),0) -> 0 | E29: 0 | F29: =IF($C29>0,IF($B$2="FITS data (4-11m)",VLOOKUP($B29,FITS1_C!$A$3:$G$100,5,FALSE),IF($B$2="FITS data (12-24m)",VLOOKUP($B29,FITS2_C!$A$3:$G$100,5,FALSE),0)),0) -> 0 | G29: 0 | H29: =IF($C29>0,IF($B$2="FITS data (4-11m)",VLOOKUP($B29,FITS1_C!$A$3:$G$100,3,FALSE),IF($B$2="FITS data (12-24m)",VLOOKUP($B29,FITS2_C!$A$3:$G$100,3,FALSE),0)),0) -> 0 | I29: 0 | J29: =IF($C29>0,IF($B$2="FITS data (4-11m)",VLOOKUP($B29,FITS1_C!$A$3:$G$100,6,FALSE),IF($B$2="FITS data (12-24m)",VLOOKUP($B29,FITS2_C!$A$3:$G$100,6,FALSE),0)),0) -> 0 | K29: 0 | L29: =IF($C29>0,IF($B$2="FITS data (4-11m)",VLOOKUP($B29,FITS1_C!$A$3:$G$100,4,FALSE),IF($B$2="FITS data (12-24m)",VLOOKUP($B29,FITS2_C!$A$3:$G$100,4,FALSE),0)),0) -> 0 | M29: 0 | N29: =IF($C29>0,IF($B$2="FITS data (4-11m)",VLOOKUP($B29,FITS1_C!$A$3:$G$100,7,FALSE),IF($B$2="FITS data (12-24m)",VLOOKUP($B29,FITS2_C!$A$3:$G$100,7,FALSE),0)),0) -> 0 | O29: 0
A30: =IF(C30>0,MAX(A$3:A29)+1,0) -> 0 | B30: ='Module 2-Step 2'!B38 ->  | C30: =IF(LEFT(B$2,4)="FITS",IF(B30<>"",VLOOKUP(B30,'for concentration'!A$4:E$503,5,FALSE),0),0) -> 0 | D30: =IF($C30>0,IF($B$2="FITS data (4-11m)",VLOOKUP($B30,FITS1_C!$A$3:$G$100,2,FALSE),IF($B$2="FITS data (12-24m)",VLOOKUP($B30,FITS2_C!$A$3:$G$100,2,FALSE),0)),0) -> 0 | E30: 0 | F30: =IF($C30>0,IF($B$2="FITS data (4-11m)",VLOOKUP($B30,FITS1_C!$A$3:$G$100,5,FALSE),IF($B$2="FITS data (12-24m)",VLOOKUP($B30,FITS2_C!$A$3:$G$100,5,FALSE),0)),0) -> 0 | G30: 0 | H30: =IF($C30>0,IF($B$2="FITS data (4-11m)",VLOOKUP($B30,FITS1_C!$A$3:$G$100,3,FALSE),IF($B$2="FITS data (12-24m)",VLOOKUP($B30,FITS2_C!$A$3:$G$100,3,FALSE),0)),0) -> 0 | I30: 0 | J30: =IF($C30>0,IF($B$2="FITS data (4-11m)",VLOOKUP($B30,FITS1_C!$A$3:$G$100,6,FALSE),IF($B$2="FITS data (12-24m)",VLOOKUP($B30,FITS2_C!$A$3:$G$100,6,FALSE),0)),0) -> 0 | K30: 0 | L30: =IF($C30>0,IF($B$2="FITS data (4-11m)",VLOOKUP($B30,FITS1_C!$A$3:$G$100,4,FALSE),IF($B$2="FITS data (12-24m)",VLOOKUP($B30,FITS2_C!$A$3:$G$100,4,FALSE),0)),0) -> 0 | M30: 0 | N30: =IF($C30>0,IF($B$2="FITS data (4-11m)",VLOOKUP($B30,FITS1_C!$A$3:$G$100,7,FALSE),IF($B$2="FITS data (12-24m)",VLOOKUP($B30,FITS2_C!$A$3:$G$100,7,FALSE),0)),0) -> 0 | O30: 0
A31: =IF(C31>0,MAX(A$3:A30)+1,0) -> 0 | B31: ='Module 2-Step 2'!B39 ->  | C31: =IF(LEFT(B$2,4)="FITS",IF(B31<>"",VLOOKUP(B31,'for concentration'!A$4:E$503,5,FALSE),0),0) -> 0 | D31: =IF($C31>0,IF($B$2="FITS data (4-11m)",VLOOKUP($B31,FITS1_C!$A$3:$G$100,2,FALSE),IF($B$2="FITS data (12-24m)",VLOOKUP($B31,FITS2_C!$A$3:$G$100,2,FALSE),0)),0) -> 0 | E31: 0 | F31: =IF($C31>0,IF($B$2="FITS data (4-11m)",VLOOKUP($B31,FITS1_C!$A$3:$G$100,5,FALSE),IF($B$2="FITS data (12-24m)",VLOOKUP($B31,FITS2_C!$A$3:$G$100,5,FALSE),0)),0) -> 0 | G31: 0 | H31: =IF($C31>0,IF($B$2="FITS data (4-11m)",VLOOKUP($B31,FITS1_C!$A$3:$G$100,3,FALSE),IF($B$2="FITS data (12-24m)",VLOOKUP($B31,FITS2_C!$A$3:$G$100,3,FALSE),0)),0) -> 0 | I31: 0 | J31: =IF($C31>0,IF($B$2="FITS data (4-11m)",VLOOKUP($B31,FITS1_C!$A$3:$G$100,6,FALSE),IF($B$2="FITS data (12-24m)",VLOOKUP($B31,FITS2_C!$A$3:$G$100,6,FALSE),0)),0) -> 0 | K31: 0 | L31: =IF($C31>0,IF($B$2="FITS data (4-11m)",VLOOKUP($B31,FITS1_C!$A$3:$G$100,4,FALSE),IF($B$2="FITS data (12-24m)",VLOOKUP($B31,FITS2_C!$A$3:$G$100,4,FALSE),0)),0) -> 0 | M31: 0 | N31: =IF($C31>0,IF($B$2="FITS data (4-11m)",VLOOKUP($B31,FITS1_C!$A$3:$G$100,7,FALSE),IF($B$2="FITS data (12-24m)",VLOOKUP($B31,FITS2_C!$A$3:$G$100,7,FALSE),0)),0) -> 0 | O31: 0
A32: =IF(C32>0,MAX(A$3:A31)+1,0) -> 0 | B32: ='Module 2-Step 2'!B40 ->  | C32: =IF(LEFT(B$2,4)="FITS",IF(B32<>"",VLOOKUP(B32,'for concentration'!A$4:E$503,5,FALSE),0),0) -> 0 | D32: =IF($C32>0,IF($B$2="FITS data (4-11m)",VLOOKUP($B32,FITS1_C!$A$3:$G$100,2,FALSE),IF($B$2="FITS data (12-24m)",VLOOKUP($B32,FITS2_C!$A$3:$G$100,2,FALSE),0)),0) -> 0 | E32: 0 | F32: =IF($C32>0,IF($B$2="FITS data (4-11m)",VLOOKUP($B32,FITS1_C!$A$3:$G$100,5,FALSE),IF($B$2="FITS data (12-24m)",VLOOKUP($B32,FITS2_C!$A$3:$G$100,5,FALSE),0)),0) -> 0 | G32: 0 | H32: =IF($C32>0,IF($B$2="FITS data (4-11m)",VLOOKUP($B32,FITS1_C!$A$3:$G$100,3,FALSE),IF($B$2="FITS data (12-24m)",VLOOKUP($B32,FITS2_C!$A$3:$G$100,3,FALSE),0)),0) -> 0 | I32: 0 | J32: =IF($C32>0,IF($B$2="FITS data (4-11m)",VLOOKUP($B32,FITS1_C!$A$3:$G$100,6,FALSE),IF($B$2="FITS data (12-24m)",VLOOKUP($B32,FITS2_C!$A$3:$G$100,6,FALSE),0)),0) -> 0 | K32: 0 | L32: =IF($C32>0,IF($B$2="FITS data (4-11m)",VLOOKUP($B32,FITS1_C!$A$3:$G$100,4,FALSE),IF($B$2="FITS data (12-24m)",VLOOKUP($B32,FITS2_C!$A$3:$G$100,4,FALSE),0)),0) -> 0 | M32: 0 | N32: =IF($C32>0,IF($B$2="FITS data (4-11m)",VLOOKUP($B32,FITS1_C!$A$3:$G$100,7,FALSE),IF($B$2="FITS data (12-24m)",VLOOKUP($B32,FITS2_C!$A$3:$G$100,7,FALSE),0)),0) -> 0 | O32: 0
A33: =IF(C33>0,MAX(A$3:A32)+1,0) -> 0 | B33: ='Module 2-Step 2'!B41 ->  | C33: =IF(LEFT(B$2,4)="FITS",IF(B33<>"",VLOOKUP(B33,'for concentration'!A$4:E$503,5,FALSE),0),0) -> 0 | D33: =IF($C33>0,IF($B$2="FITS data (4-11m)",VLOOKUP($B33,FITS1_C!$A$3:$G$100,2,FALSE),IF($B$2="FITS data (12-24m)",VLOOKUP($B33,FITS2_C!$A$3:$G$100,2,FALSE),0)),0) -> 0 | E33: 0 | F33: =IF($C33>0,IF($B$2="FITS data (4-11m)",VLOOKUP($B33,FITS1_C!$A$3:$G$100,5,FALSE),IF($B$2="FITS data (12-24m)",VLOOKUP($B33,FITS2_C!$A$3:$G$100,5,FALSE),0)),0) -> 0 | G33: 0 | H33: =IF($C33>0,IF($B$2="FITS data (4-11m)",VLOOKUP($B33,FITS1_C!$A$3:$G$100,3,FALSE),IF($B$2="FITS data (12-24m)",VLOOKUP($B33,FITS2_C!$A$3:$G$100,3,FALSE),0)),0) -> 0 | I33: 0 | J33: =IF($C33>0,IF($B$2="FITS data (4-11m)",VLOOKUP($B33,FITS1_C!$A$3:$G$100,6,FALSE),IF($B$2="FITS data (12-24m)",VLOOKUP($B33,FITS2_C!$A$3:$G$100,6,FALSE),0)),0) -> 0 | K33: 0 | L33: =IF($C33>0,IF($B$2="FITS data (4-11m)",VLOOKUP($B33,FITS1_C!$A$3:$G$100,4,FALSE),IF($B$2="FITS data (12-24m)",VLOOKUP($B33,FITS2_C!$A$3:$G$100,4,FALSE),0)),0) -> 0 | M33: 0 | N33: =IF($C33>0,IF($B$2="FITS data (4-11m)",VLOOKUP($B33,FITS1_C!$A$3:$G$100,7,FALSE),IF($B$2="FITS data (12-24m)",VLOOKUP($B33,FITS2_C!$A$3:$G$100,7,FALSE),0)),0) -> 0 | O33: 0
A34: =IF(C34>0,MAX(A$3:A33)+1,0) -> 0 | B34: ='Module 2-Step 2'!B42 ->  | C34: =IF(LEFT(B$2,4)="FITS",IF(B34<>"",VLOOKUP(B34,'for concentration'!A$4:E$503,5,FALSE),0),0) -> 0 | D34: =IF($C34>0,IF($B$2="FITS data (4-11m)",VLOOKUP($B34,FITS1_C!$A$3:$G$100,2,FALSE),IF($B$2="FITS data (12-24m)",VLOOKUP($B34,FITS2_C!$A$3:$G$100,2,FALSE),0)),0) -> 0 | E34: 0 | F34: =IF($C34>0,IF($B$2="FITS data (4-11m)",VLOOKUP($B34,FITS1_C!$A$3:$G$100,5,FALSE),IF($B$2="FITS data (12-24m)",VLOOKUP($B34,FITS2_C!$A$3:$G$100,5,FALSE),0)),0) -> 0 | G34: 0 | H34: =IF($C34>0,IF($B$2="FITS data (4-11m)",VLOOKUP($B34,FITS1_C!$A$3:$G$100,3,FALSE),IF($B$2="FITS data (12-24m)",VLOOKUP($B34,FITS2_C!$A$3:$G$100,3,FALSE),0)),0) -> 0 | I34: 0 | J34: =IF($C34>0,IF($B$2="FITS data (4-11m)",VLOOKUP($B34,FITS1_C!$A$3:$G$100,6,FALSE),IF($B$2="FITS data (12-24m)",VLOOKUP($B34,FITS2_C!$A$3:$G$100,6,FALSE),0)),0) -> 0 | K34: 0 | L34: =IF($C34>0,IF($B$2="FITS data (4-11m)",VLOOKUP($B34,FITS1_C!$A$3:$G$100,4,FALSE),IF($B$2="FITS data (12-24m)",VLOOKUP($B34,FITS2_C!$A$3:$G$100,4,FALSE),0)),0) -> 0 | M34: 0 | N34: =IF($C34>0,IF($B$2="FITS data (4-11m)",VLOOKUP($B34,FITS1_C!$A$3:$G$100,7,FALSE),IF($B$2="FITS data (12-24m)",VLOOKUP($B34,FITS2_C!$A$3:$G$100,7,FALSE),0)),0) -> 0 | O34: 0
A35: =IF(C35>0,MAX(A$3:A34)+1,0) -> 0 | B35: ='Module 2-Step 2'!B43 ->  | C35: =IF(LEFT(B$2,4)="FITS",IF(B35<>"",VLOOKUP(B35,'for concentration'!A$4:E$503,5,FALSE),0),0) -> 0 | D35: =IF($C35>0,IF($B$2="FITS data (4-11m)",VLOOKUP($B35,FITS1_C!$A$3:$G$100,2,FALSE),IF($B$2="FITS data (12-24m)",VLOOKUP($B35,FITS2_C!$A$3:$G$100,2,FALSE),0)),0) -> 0 | E35: 0 | F35: =IF($C35>0,IF($B$2="FITS data (4-11m)",VLOOKUP($B35,FITS1_C!$A$3:$G$100,5,FALSE),IF($B$2="FITS data (12-24m)",VLOOKUP($B35,FITS2_C!$A$3:$G$100,5,FALSE),0)),0) -> 0 | G35: 0 | H35: =IF($C35>0,IF($B$2="FITS data (4-11m)",VLOOKUP($B35,FITS1_C!$A$3:$G$100,3,FALSE),IF($B$2="FITS data (12-24m)",VLOOKUP($B35,FITS2_C!$A$3:$G$100,3,FALSE),0)),0) -> 0 | I35: 0 | J35: =IF($C35>0,IF($B$2="FITS data (4-11m)",VLOOKUP($B35,FITS1_C!$A$3:$G$100,6,FALSE),IF($B$2="FITS data (12-24m)",VLOOKUP($B35,FITS2_C!$A$3:$G$100,6,FALSE),0)),0) -> 0 | K35: 0 | L35: =IF($C35>0,IF($B$2="FITS data (4-11m)",VLOOKUP($B35,FITS1_C!$A$3:$G$100,4,FALSE),IF($B$2="FITS data (12-24m)",VLOOKUP($B35,FITS2_C!$A$3:$G$100,4,FALSE),0)),0) -> 0 | M35: 0 | N35: =IF($C35>0,IF($B$2="FITS data (4-11m)",VLOOKUP($B35,FITS1_C!$A$3:$G$100,7,FALSE),IF($B$2="FITS data (12-24m)",VLOOKUP($B35,FITS2_C!$A$3:$G$100,7,FALSE),0)),0) -> 0 | O35: 0
A36: =IF(C36>0,MAX(A$3:A35)+1,0) -> 0 | B36: ='Module 2-Step 2'!B44 ->  | C36: =IF(LEFT(B$2,4)="FITS",IF(B36<>"",VLOOKUP(B36,'for concentration'!A$4:E$503,5,FALSE),0),0) -> 0 | D36: =IF($C36>0,IF($B$2="FITS data (4-11m)",VLOOKUP($B36,FITS1_C!$A$3:$G$100,2,FALSE),IF($B$2="FITS data (12-24m)",VLOOKUP($B36,FITS2_C!$A$3:$G$100,2,FALSE),0)),0) -> 0 | E36: 0 | F36: =IF($C36>0,IF($B$2="FITS data (4-11m)",VLOOKUP($B36,FITS1_C!$A$3:$G$100,5,FALSE),IF($B$2="FITS data (12-24m)",VLOOKUP($B36,FITS2_C!$A$3:$G$100,5,FALSE),0)),0) -> 0 | G36: 0 | H36: =IF($C36>0,IF($B$2="FITS data (4-11m)",VLOOKUP($B36,FITS1_C!$A$3:$G$100,3,FALSE),IF($B$2="FITS data (12-24m)",VLOOKUP($B36,FITS2_C!$A$3:$G$100,3,FALSE),0)),0) -> 0 | I36: 0 | J36: =IF($C36>0,IF($B$2="FITS data (4-11m)",VLOOKUP($B36,FITS1_C!$A$3:$G$100,6,FALSE),IF($B$2="FITS data (12-24m)",VLOOKUP($B36,FITS2_C!$A$3:$G$100,6,FALSE),0)),0) -> 0 | K36: 0 | L36: =IF($C36>0,IF($B$2="FITS data (4-11m)",VLOOKUP($B36,FITS1_C!$A$3:$G$100,4,FALSE),IF($B$2="FITS data (12-24m)",VLOOKUP($B36,FITS2_C!$A$3:$G$100,4,FALSE),0)),0) -> 0 | M36: 0 | N36: =IF($C36>0,IF($B$2="FITS data (4-11m)",VLOOKUP($B36,FITS1_C!$A$3:$G$100,7,FALSE),IF($B$2="FITS data (12-24m)",VLOOKUP($B36,FITS2_C!$A$3:$G$100,7,FALSE),0)),0) -> 0 | O36: 0
A37: =IF(C37>0,MAX(A$3:A36)+1,0) -> 0 | B37: ='Module 2-Step 2'!B45 ->  | C37: =IF(LEFT(B$2,4)="FITS",IF(B37<>"",VLOOKUP(B37,'for concentration'!A$4:E$503,5,FALSE),0),0) -> 0 | D37: =IF($C37>0,IF($B$2="FITS data (4-11m)",VLOOKUP($B37,FITS1_C!$A$3:$G$100,2,FALSE),IF($B$2="FITS data (12-24m)",VLOOKUP($B37,FITS2_C!$A$3:$G$100,2,FALSE),0)),0) -> 0 | E37: 0 | F37: =IF($C37>0,IF($B$2="FITS data (4-11m)",VLOOKUP($B37,FITS1_C!$A$3:$G$100,5,FALSE),IF($B$2="FITS data (12-24m)",VLOOKUP($B37,FITS2_C!$A$3:$G$100,5,FALSE),0)),0) -> 0 | G37: 0 | H37: =IF($C37>0,IF($B$2="FITS data (4-11m)",VLOOKUP($B37,FITS1_C!$A$3:$G$100,3,FALSE),IF($B$2="FITS data (12-24m)",VLOOKUP($B37,FITS2_C!$A$3:$G$100,3,FALSE),0)),0) -> 0 | I37: 0 | J37: =IF($C37>0,IF($B$2="FITS data (4-11m)",VLOOKUP($B37,FITS1_C!$A$3:$G$100,6,FALSE),IF($B$2="FITS data (12-24m)",VLOOKUP($B37,FITS2_C!$A$3:$G$100,6,FALSE),0)),0) -> 0 | K37: 0 | L37: =IF($C37>0,IF($B$2="FITS data (4-11m)",VLOOKUP($B37,FITS1_C!$A$3:$G$100,4,FALSE),IF($B$2="FITS data (12-24m)",VLOOKUP($B37,FITS2_C!$A$3:$G$100,4,FALSE),0)),0) -> 0 | M37: 0 | N37: =IF($C37>0,IF($B$2="FITS data (4-11m)",VLOOKUP($B37,FITS1_C!$A$3:$G$100,7,FALSE),IF($B$2="FITS data (12-24m)",VLOOKUP($B37,FITS2_C!$A$3:$G$100,7,FALSE),0)),0) -> 0 | O37: 0
A38: =IF(C38>0,MAX(A$3:A37)+1,0) -> 0 | B38: ='Module 2-Step 2'!B46 ->  | C38: =IF(LEFT(B$2,4)="FITS",IF(B38<>"",VLOOKUP(B38,'for concentration'!A$4:E$503,5,FALSE),0),0) -> 0 | D38: =IF($C38>0,IF($B$2="FITS data (4-11m)",VLOOKUP($B38,FITS1_C!$A$3:$G$100,2,FALSE),IF($B$2="FITS data (12-24m)",VLOOKUP($B38,FITS2_C!$A$3:$G$100,2,FALSE),0)),0) -> 0 | E38: 0 | F38: =IF($C38>0,IF($B$2="FITS data (4-11m)",VLOOKUP($B38,FITS1_C!$A$3:$G$100,5,FALSE),IF($B$2="FITS data (12-24m)",VLOOKUP($B38,FITS2_C!$A$3:$G$100,5,FALSE),0)),0) -> 0 | G38: 0 | H38: =IF($C38>0,IF($B$2="FITS data (4-11m)",VLOOKUP($B38,FITS1_C!$A$3:$G$100,3,FALSE),IF($B$2="FITS data (12-24m)",VLOOKUP($B38,FITS2_C!$A$3:$G$100,3,FALSE),0)),0) -> 0 | I38: 0 | J38: =IF($C38>0,IF($B$2="FITS data (4-11m)",VLOOKUP($B38,FITS1_C!$A$3:$G$100,6,FALSE),IF($B$2="FITS data (12-24m)",VLOOKUP($B38,FITS2_C!$A$3:$G$100,6,FALSE),0)),0) -> 0 | K38: 0 | L38: =IF($C38>0,IF($B$2="FITS data (4-11m)",VLOOKUP($B38,FITS1_C!$A$3:$G$100,4,FALSE),IF($B$2="FITS data (12-24m)",VLOOKUP($B38,FITS2_C!$A$3:$G$100,4,FALSE),0)),0) -> 0 | M38: 0 | N38: =IF($C38>0,IF($B$2="FITS data (4-11m)",VLOOKUP($B38,FITS1_C!$A$3:$G$100,7,FALSE),IF($B$2="FITS data (12-24m)",VLOOKUP($B38,FITS2_C!$A$3:$G$100,7,FALSE),0)),0) -> 0 | O38: 0
A39: =IF(C39>0,MAX(A$3:A38)+1,0) -> 0 | B39: ='Module 2-Step 2'!B47 ->  | C39: =IF(LEFT(B$2,4)="FITS",IF(B39<>"",VLOOKUP(B39,'for concentration'!A$4:E$503,5,FALSE),0),0) -> 0 | D39: =IF($C39>0,IF($B$2="FITS data (4-11m)",VLOOKUP($B39,FITS1_C!$A$3:$G$100,2,FALSE),IF($B$2="FITS data (12-24m)",VLOOKUP($B39,FITS2_C!$A$3:$G$100,2,FALSE),0)),0) -> 0 | E39: 0 | F39: =IF($C39>0,IF($B$2="FITS data (4-11m)",VLOOKUP($B39,FITS1_C!$A$3:$G$100,5,FALSE),IF($B$2="FITS data (12-24m)",VLOOKUP($B39,FITS2_C!$A$3:$G$100,5,FALSE),0)),0) -> 0 | G39: 0 | H39: =IF($C39>0,IF($B$2="FITS data (4-11m)",VLOOKUP($B39,FITS1_C!$A$3:$G$100,3,FALSE),IF($B$2="FITS data (12-24m)",VLOOKUP($B39,FITS2_C!$A$3:$G$100,3,FALSE),0)),0) -> 0 | I39: 0 | J39: =IF($C39>0,IF($B$2="FITS data (4-11m)",VLOOKUP($B39,FITS1_C!$A$3:$G$100,6,FALSE),IF($B$2="FITS data (12-24m)",VLOOKUP($B39,FITS2_C!$A$3:$G$100,6,FALSE),0)),0) -> 0 | K39: 0 | L39: =IF($C39>0,IF($B$2="FITS data (4-11m)",VLOOKUP($B39,FITS1_C!$A$3:$G$100,4,FALSE),IF($B$2="FITS data (12-24m)",VLOOKUP($B39,FITS2_C!$A$3:$G$100,4,FALSE),0)),0) -> 0 | M39: 0 | N39: =IF($C39>0,IF($B$2="FITS data (4-11m)",VLOOKUP($B39,FITS1_C!$A$3:$G$100,7,FALSE),IF($B$2="FITS data (12-24m)",VLOOKUP($B39,FITS2_C!$A$3:$G$100,7,FALSE),0)),0) -> 0 | O39: 0
A40: =IF(C40>0,MAX(A$3:A39)+1,0) -> 0 | B40: ='Module 2-Step 2'!B48 ->  | C40: =IF(LEFT(B$2,4)="FITS",IF(B40<>"",VLOOKUP(B40,'for concentration'!A$4:E$503,5,FALSE),0),0) -> 0 | D40: =IF($C40>0,IF($B$2="FITS data (4-11m)",VLOOKUP($B40,FITS1_C!$A$3:$G$100,2,FALSE),IF($B$2="FITS data (12-24m)",VLOOKUP($B40,FITS2_C!$A$3:$G$100,2,FALSE),0)),0) -> 0 | E40: 0 | F40: =IF($C40>0,IF($B$2="FITS data (4-11m)",VLOOKUP($B40,FITS1_C!$A$3:$G$100,5,FALSE),IF($B$2="FITS data (12-24m)",VLOOKUP($B40,FITS2_C!$A$3:$G$100,5,FALSE),0)),0) -> 0 | G40: 0 | H40: =IF($C40>0,IF($B$2="FITS data (4-11m)",VLOOKUP($B40,FITS1_C!$A$3:$G$100,3,FALSE),IF($B$2="FITS data (12-24m)",VLOOKUP($B40,FITS2_C!$A$3:$G$100,3,FALSE),0)),0) -> 0 | I40: 0 | J40: =IF($C40>0,IF($B$2="FITS data (4-11m)",VLOOKUP($B40,FITS1_C!$A$3:$G$100,6,FALSE),IF($B$2="FITS data (12-24m)",VLOOKUP($B40,FITS2_C!$A$3:$G$100,6,FALSE),0)),0) -> 0 | K40: 0 | L40: =IF($C40>0,IF($B$2="FITS data (4-11m)",VLOOKUP($B40,FITS1_C!$A$3:$G$100,4,FALSE),IF($B$2="FITS data (12-24m)",VLOOKUP($B40,FITS2_C!$A$3:$G$100,4,FALSE),0)),0) -> 0 | M40: 0 | N40: =IF($C40>0,IF($B$2="FITS data (4-11m)",VLOOKUP($B40,FITS1_C!$A$3:$G$100,7,FALSE),IF($B$2="FITS data (12-24m)",VLOOKUP($B40,FITS2_C!$A$3:$G$100,7,FALSE),0)),0) -> 0 | O40: 0
A41: =IF(C41>0,MAX(A$3:A40)+1,0) -> 0 | B41: ='Module 2-Step 2'!B49 ->  | C41: =IF(LEFT(B$2,4)="FITS",IF(B41<>"",VLOOKUP(B41,'for concentration'!A$4:E$503,5,FALSE),0),0) -> 0 | D41: =IF($C41>0,IF($B$2="FITS data (4-11m)",VLOOKUP($B41,FITS1_C!$A$3:$G$100,2,FALSE),IF($B$2="FITS data (12-24m)",VLOOKUP($B41,FITS2_C!$A$3:$G$100,2,FALSE),0)),0) -> 0 | E41: 0 | F41: =IF($C41>0,IF($B$2="FITS data (4-11m)",VLOOKUP($B41,FITS1_C!$A$3:$G$100,5,FALSE),IF($B$2="FITS data (12-24m)",VLOOKUP($B41,FITS2_C!$A$3:$G$100,5,FALSE),0)),0) -> 0 | G41: 0 | H41: =IF($C41>0,IF($B$2="FITS data (4-11m)",VLOOKUP($B41,FITS1_C!$A$3:$G$100,3,FALSE),IF($B$2="FITS data (12-24m)",VLOOKUP($B41,FITS2_C!$A$3:$G$100,3,FALSE),0)),0) -> 0 | I41: 0 | J41: =IF($C41>0,IF($B$2="FITS data (4-11m)",VLOOKUP($B41,FITS1_C!$A$3:$G$100,6,FALSE),IF($B$2="FITS data (12-24m)",VLOOKUP($B41,FITS2_C!$A$3:$G$100,6,FALSE),0)),0) -> 0 | K41: 0 | L41: =IF($C41>0,IF($B$2="FITS data (4-11m)",VLOOKUP($B41,FITS1_C!$A$3:$G$100,4,FALSE),IF($B$2="FITS data (12-24m)",VLOOKUP($B41,FITS2_C!$A$3:$G$100,4,FALSE),0)),0) -> 0 | M41: 0 | N41: =IF($C41>0,IF($B$2="FITS data (4-11m)",VLOOKUP($B41,FITS1_C!$A$3:$G$100,7,FALSE),IF($B$2="FITS data (12-24m)",VLOOKUP($B41,FITS2_C!$A$3:$G$100,7,FALSE),0)),0) -> 0 | O41: 0
A42: =IF(C42>0,MAX(A$3:A41)+1,0) -> 0 | B42: ='Module 2-Step 2'!B50 ->  | C42: =IF(LEFT(B$2,4)="FITS",IF(B42<>"",VLOOKUP(B42,'for concentration'!A$4:E$503,5,FALSE),0),0) -> 0 | D42: =IF($C42>0,IF($B$2="FITS data (4-11m)",VLOOKUP($B42,FITS1_C!$A$3:$G$100,2,FALSE),IF($B$2="FITS data (12-24m)",VLOOKUP($B42,FITS2_C!$A$3:$G$100,2,FALSE),0)),0) -> 0 | E42: 0 | F42: =IF($C42>0,IF($B$2="FITS data (4-11m)",VLOOKUP($B42,FITS1_C!$A$3:$G$100,5,FALSE),IF($B$2="FITS data (12-24m)",VLOOKUP($B42,FITS2_C!$A$3:$G$100,5,FALSE),0)),0) -> 0 | G42: 0 | H42: =IF($C42>0,IF($B$2="FITS data (4-11m)",VLOOKUP($B42,FITS1_C!$A$3:$G$100,3,FALSE),IF($B$2="FITS data (12-24m)",VLOOKUP($B42,FITS2_C!$A$3:$G$100,3,FALSE),0)),0) -> 0 | I42: 0 | J42: =IF($C42>0,IF($B$2="FITS data (4-11m)",VLOOKUP($B42,FITS1_C!$A$3:$G$100,6,FALSE),IF($B$2="FITS data (12-24m)",VLOOKUP($B42,FITS2_C!$A$3:$G$100,6,FALSE),0)),0) -> 0 | K42: 0 | L42: =IF($C42>0,IF($B$2="FITS data (4-11m)",VLOOKUP($B42,FITS1_C!$A$3:$G$100,4,FALSE),IF($B$2="FITS data (12-24m)",VLOOKUP($B42,FITS2_C!$A$3:$G$100,4,FALSE),0)),0) -> 0 | M42: 0 | N42: =IF($C42>0,IF($B$2="FITS data (4-11m)",VLOOKUP($B42,FITS1_C!$A$3:$G$100,7,FALSE),IF($B$2="FITS data (12-24m)",VLOOKUP($B42,FITS2_C!$A$3:$G$100,7,FALSE),0)),0) -> 0 | O42: 0
A43: =IF(C43>0,MAX(A$3:A42)+1,0) -> 0 | B43: ='Module 2-Step 2'!B51 ->  | C43: =IF(LEFT(B$2,4)="FITS",IF(B43<>"",VLOOKUP(B43,'for concentration'!A$4:E$503,5,FALSE),0),0) -> 0 | D43: =IF($C43>0,IF($B$2="FITS data (4-11m)",VLOOKUP($B43,FITS1_C!$A$3:$G$100,2,FALSE),IF($B$2="FITS data (12-24m)",VLOOKUP($B43,FITS2_C!$A$3:$G$100,2,FALSE),0)),0) -> 0 | E43: 0 | F43: =IF($C43>0,IF($B$2="FITS data (4-11m)",VLOOKUP($B43,FITS1_C!$A$3:$G$100,5,FALSE),IF($B$2="FITS data (12-24m)",VLOOKUP($B43,FITS2_C!$A$3:$G$100,5,FALSE),0)),0) -> 0 | G43: 0 | H43: =IF($C43>0,IF($B$2="FITS data (4-11m)",VLOOKUP($B43,FITS1_C!$A$3:$G$100,3,FALSE),IF($B$2="FITS data (12-24m)",VLOOKUP($B43,FITS2_C!$A$3:$G$100,3,FALSE),0)),0) -> 0 | I43: 0 | J43: =IF($C43>0,IF($B$2="FITS data (4-11m)",VLOOKUP($B43,FITS1_C!$A$3:$G$100,6,FALSE),IF($B$2="FITS data (12-24m)",VLOOKUP($B43,FITS2_C!$A$3:$G$100,6,FALSE),0)),0) -> 0 | K43: 0 | L43: =IF($C43>0,IF($B$2="FITS data (4-11m)",VLOOKUP($B43,FITS1_C!$A$3:$G$100,4,FALSE),IF($B$2="FITS data (12-24m)",VLOOKUP($B43,FITS2_C!$A$3:$G$100,4,FALSE),0)),0) -> 0 | M43: 0 | N43: =IF($C43>0,IF($B$2="FITS data (4-11m)",VLOOKUP($B43,FITS1_C!$A$3:$G$100,7,FALSE),IF($B$2="FITS data (12-24m)",VLOOKUP($B43,FITS2_C!$A$3:$G$100,7,FALSE),0)),0) -> 0 | O43: 0
A44: =IF(C44>0,MAX(A$3:A43)+1,0) -> 0 | B44: ='Module 2-Step 2'!B52 ->  | C44: =IF(LEFT(B$2,4)="FITS",IF(B44<>"",VLOOKUP(B44,'for concentration'!A$4:E$503,5,FALSE),0),0) -> 0 | D44: =IF($C44>0,IF($B$2="FITS data (4-11m)",VLOOKUP($B44,FITS1_C!$A$3:$G$100,2,FALSE),IF($B$2="FITS data (12-24m)",VLOOKUP($B44,FITS2_C!$A$3:$G$100,2,FALSE),0)),0) -> 0 | E44: 0 | F44: =IF($C44>0,IF($B$2="FITS data (4-11m)",VLOOKUP($B44,FITS1_C!$A$3:$G$100,5,FALSE),IF($B$2="FITS data (12-24m)",VLOOKUP($B44,FITS2_C!$A$3:$G$100,5,FALSE),0)),0) -> 0 | G44: 0 | H44: =IF($C44>0,IF($B$2="FITS data (4-11m)",VLOOKUP($B44,FITS1_C!$A$3:$G$100,3,FALSE),IF($B$2="FITS data (12-24m)",VLOOKUP($B44,FITS2_C!$A$3:$G$100,3,FALSE),0)),0) -> 0 | I44: 0 | J44: =IF($C44>0,IF($B$2="FITS data (4-11m)",VLOOKUP($B44,FITS1_C!$A$3:$G$100,6,FALSE),IF($B$2="FITS data (12-24m)",VLOOKUP($B44,FITS2_C!$A$3:$G$100,6,FALSE),0)),0) -> 0 | K44: 0 | L44: =IF($C44>0,IF($B$2="FITS data (4-11m)",VLOOKUP($B44,FITS1_C!$A$3:$G$100,4,FALSE),IF($B$2="FITS data (12-24m)",VLOOKUP($B44,FITS2_C!$A$3:$G$100,4,FALSE),0)),0) -> 0 | M44: 0 | N44: =IF($C44>0,IF($B$2="FITS data (4-11m)",VLOOKUP($B44,FITS1_C!$A$3:$G$100,7,FALSE),IF($B$2="FITS data (12-24m)",VLOOKUP($B44,FITS2_C!$A$3:$G$100,7,FALSE),0)),0) -> 0 | O44: 0
A45: =IF(C45>0,MAX(A$3:A44)+1,0) -> 0 | B45: ='Module 2-Step 2'!B53 ->  | C45: =IF(LEFT(B$2,4)="FITS",IF(B45<>"",VLOOKUP(B45,'for concentration'!A$4:E$503,5,FALSE),0),0) -> 0 | D45: =IF($C45>0,IF($B$2="FITS data (4-11m)",VLOOKUP($B45,FITS1_C!$A$3:$G$100,2,FALSE),IF($B$2="FITS data (12-24m)",VLOOKUP($B45,FITS2_C!$A$3:$G$100,2,FALSE),0)),0) -> 0 | E45: 0 | F45: =IF($C45>0,IF($B$2="FITS data (4-11m)",VLOOKUP($B45,FITS1_C!$A$3:$G$100,5,FALSE),IF($B$2="FITS data (12-24m)",VLOOKUP($B45,FITS2_C!$A$3:$G$100,5,FALSE),0)),0) -> 0 | G45: 0 | H45: =IF($C45>0,IF($B$2="FITS data (4-11m)",VLOOKUP($B45,FITS1_C!$A$3:$G$100,3,FALSE),IF($B$2="FITS data (12-24m)",VLOOKUP($B45,FITS2_C!$A$3:$G$100,3,FALSE),0)),0) -> 0 | I45: 0 | J45: =IF($C45>0,IF($B$2="FITS data (4-11m)",VLOOKUP($B45,FITS1_C!$A$3:$G$100,6,FALSE),IF($B$2="FITS data (12-24m)",VLOOKUP($B45,FITS2_C!$A$3:$G$100,6,FALSE),0)),0) -> 0 | K45: 0 | L45: =IF($C45>0,IF($B$2="FITS data (4-11m)",VLOOKUP($B45,FITS1_C!$A$3:$G$100,4,FALSE),IF($B$2="FITS data (12-24m)",VLOOKUP($B45,FITS2_C!$A$3:$G$100,4,FALSE),0)),0) -> 0 | M45: 0 | N45: =IF($C45>0,IF($B$2="FITS data (4-11m)",VLOOKUP($B45,FITS1_C!$A$3:$G$100,7,FALSE),IF($B$2="FITS data (12-24m)",VLOOKUP($B45,FITS2_C!$A$3:$G$100,7,FALSE),0)),0) -> 0 | O45: 0
A46: =IF(C46>0,MAX(A$3:A45)+1,0) -> 0 | B46: ='Module 2-Step 2'!B54 ->  | C46: =IF(LEFT(B$2,4)="FITS",IF(B46<>"",VLOOKUP(B46,'for concentration'!A$4:E$503,5,FALSE),0),0) -> 0 | D46: =IF($C46>0,IF($B$2="FITS data (4-11m)",VLOOKUP($B46,FITS1_C!$A$3:$G$100,2,FALSE),IF($B$2="FITS data (12-24m)",VLOOKUP($B46,FITS2_C!$A$3:$G$100,2,FALSE),0)),0) -> 0 | E46: 0 | F46: =IF($C46>0,IF($B$2="FITS data (4-11m)",VLOOKUP($B46,FITS1_C!$A$3:$G$100,5,FALSE),IF($B$2="FITS data (12-24m)",VLOOKUP($B46,FITS2_C!$A$3:$G$100,5,FALSE),0)),0) -> 0 | G46: 0 | H46: =IF($C46>0,IF($B$2="FITS data (4-11m)",VLOOKUP($B46,FITS1_C!$A$3:$G$100,3,FALSE),IF($B$2="FITS data (12-24m)",VLOOKUP($B46,FITS2_C!$A$3:$G$100,3,FALSE),0)),0) -> 0 | I46: 0 | J46: =IF($C46>0,IF($B$2="FITS data (4-11m)",VLOOKUP($B46,FITS1_C!$A$3:$G$100,6,FALSE),IF($B$2="FITS data (12-24m)",VLOOKUP($B46,FITS2_C!$A$3:$G$100,6,FALSE),0)),0) -> 0 | K46: 0 | L46: =IF($C46>0,IF($B$2="FITS data (4-11m)",VLOOKUP($B46,FITS1_C!$A$3:$G$100,4,FALSE),IF($B$2="FITS data (12-24m)",VLOOKUP($B46,FITS2_C!$A$3:$G$100,4,FALSE),0)),0) -> 0 | M46: 0 | N46: =IF($C46>0,IF($B$2="FITS data (4-11m)",VLOOKUP($B46,FITS1_C!$A$3:$G$100,7,FALSE),IF($B$2="FITS data (12-24m)",VLOOKUP($B46,FITS2_C!$A$3:$G$100,7,FALSE),0)),0) -> 0 | O46: 0
A47: =IF(C47>0,MAX(A$3:A46)+1,0) -> 0 | B47: ='Module 2-Step 2'!B55 ->  | C47: =IF(LEFT(B$2,4)="FITS",IF(B47<>"",VLOOKUP(B47,'for concentration'!A$4:E$503,5,FALSE),0),0) -> 0 | D47: =IF($C47>0,IF($B$2="FITS data (4-11m)",VLOOKUP($B47,FITS1_C!$A$3:$G$100,2,FALSE),IF($B$2="FITS data (12-24m)",VLOOKUP($B47,FITS2_C!$A$3:$G$100,2,FALSE),0)),0) -> 0 | E47: 0 | F47: =IF($C47>0,IF($B$2="FITS data (4-11m)",VLOOKUP($B47,FITS1_C!$A$3:$G$100,5,FALSE),IF($B$2="FITS data (12-24m)",VLOOKUP($B47,FITS2_C!$A$3:$G$100,5,FALSE),0)),0) -> 0 | G47: 0 | H47: =IF($C47>0,IF($B$2="FITS data (4-11m)",VLOOKUP($B47,FITS1_C!$A$3:$G$100,3,FALSE),IF($B$2="FITS data (12-24m)",VLOOKUP($B47,FITS2_C!$A$3:$G$100,3,FALSE),0)),0) -> 0 | I47: 0 | J47: =IF($C47>0,IF($B$2="FITS data (4-11m)",VLOOKUP($B47,FITS1_C!$A$3:$G$100,6,FALSE),IF($B$2="FITS data (12-24m)",VLOOKUP($B47,FITS2_C!$A$3:$G$100,6,FALSE),0)),0) -> 0 | K47: 0 | L47: =IF($C47>0,IF($B$2="FITS data (4-11m)",VLOOKUP($B47,FITS1_C!$A$3:$G$100,4,FALSE),IF($B$2="FITS data (12-24m)",VLOOKUP($B47,FITS2_C!$A$3:$G$100,4,FALSE),0)),0) -> 0 | M47: 0 | N47: =IF($C47>0,IF($B$2="FITS data (4-11m)",VLOOKUP($B47,FITS1_C!$A$3:$G$100,7,FALSE),IF($B$2="FITS data (12-24m)",VLOOKUP($B47,FITS2_C!$A$3:$G$100,7,FALSE),0)),0) -> 0 | O47: 0
A48: =IF(C48>0,MAX(A$3:A47)+1,0) -> 0 | B48: ='Module 2-Step 2'!B56 ->  | C48: =IF(LEFT(B$2,4)="FITS",IF(B48<>"",VLOOKUP(B48,'for concentration'!A$4:E$503,5,FALSE),0),0) -> 0 | D48: =IF($C48>0,IF($B$2="FITS data (4-11m)",VLOOKUP($B48,FITS1_C!$A$3:$G$100,2,FALSE),IF($B$2="FITS data (12-24m)",VLOOKUP($B48,FITS2_C!$A$3:$G$100,2,FALSE),0)),0) -> 0 | E48: 0 | F48: =IF($C48>0,IF($B$2="FITS data (4-11m)",VLOOKUP($B48,FITS1_C!$A$3:$G$100,5,FALSE),IF($B$2="FITS data (12-24m)",VLOOKUP($B48,FITS2_C!$A$3:$G$100,5,FALSE),0)),0) -> 0 | G48: 0 | H48: =IF($C48>0,IF($B$2="FITS data (4-11m)",VLOOKUP($B48,FITS1_C!$A$3:$G$100,3,FALSE),IF($B$2="FITS data (12-24m)",VLOOKUP($B48,FITS2_C!$A$3:$G$100,3,FALSE),0)),0) -> 0 | I48: 0 | J48: =IF($C48>0,IF($B$2="FITS data (4-11m)",VLOOKUP($B48,FITS1_C!$A$3:$G$100,6,FALSE),IF($B$2="FITS data (12-24m)",VLOOKUP($B48,FITS2_C!$A$3:$G$100,6,FALSE),0)),0) -> 0 | K48: 0 | L48: =IF($C48>0,IF($B$2="FITS data (4-11m)",VLOOKUP($B48,FITS1_C!$A$3:$G$100,4,FALSE),IF($B$2="FITS data (12-24m)",VLOOKUP($B48,FITS2_C!$A$3:$G$100,4,FALSE),0)),0) -> 0 | M48: 0 | N48: =IF($C48>0,IF($B$2="FITS data (4-11m)",VLOOKUP($B48,FITS1_C!$A$3:$G$100,7,FALSE),IF($B$2="FITS data (12-24m)",VLOOKUP($B48,FITS2_C!$A$3:$G$100,7,FALSE),0)),0) -> 0 | O48: 0
A49: =IF(C49>0,MAX(A$3:A48)+1,0) -> 0 | B49: ='Module 2-Step 2'!B57 ->  | C49: =IF(LEFT(B$2,4)="FITS",IF(B49<>"",VLOOKUP(B49,'for concentration'!A$4:E$503,5,FALSE),0),0) -> 0 | D49: =IF($C49>0,IF($B$2="FITS data (4-11m)",VLOOKUP($B49,FITS1_C!$A$3:$G$100,2,FALSE),IF($B$2="FITS data (12-24m)",VLOOKUP($B49,FITS2_C!$A$3:$G$100,2,FALSE),0)),0) -> 0 | E49: 0 | F49: =IF($C49>0,IF($B$2="FITS data (4-11m)",VLOOKUP($B49,FITS1_C!$A$3:$G$100,5,FALSE),IF($B$2="FITS data (12-24m)",VLOOKUP($B49,FITS2_C!$A$3:$G$100,5,FALSE),0)),0) -> 0 | G49: 0 | H49: =IF($C49>0,IF($B$2="FITS data (4-11m)",VLOOKUP($B49,FITS1_C!$A$3:$G$100,3,FALSE),IF($B$2="FITS data (12-24m)",VLOOKUP($B49,FITS2_C!$A$3:$G$100,3,FALSE),0)),0) -> 0 | I49: 0 | J49: =IF($C49>0,IF($B$2="FITS data (4-11m)",VLOOKUP($B49,FITS1_C!$A$3:$G$100,6,FALSE),IF($B$2="FITS data (12-24m)",VLOOKUP($B49,FITS2_C!$A$3:$G$100,6,FALSE),0)),0) -> 0 | K49: 0 | L49: =IF($C49>0,IF($B$2="FITS data (4-11m)",VLOOKUP($B49,FITS1_C!$A$3:$G$100,4,FALSE),IF($B$2="FITS data (12-24m)",VLOOKUP($B49,FITS2_C!$A$3:$G$100,4,FALSE),0)),0) -> 0 | M49: 0 | N49: =IF($C49>0,IF($B$2="FITS data (4-11m)",VLOOKUP($B49,FITS1_C!$A$3:$G$100,7,FALSE),IF($B$2="FITS data (12-24m)",VLOOKUP($B49,FITS2_C!$A$3:$G$100,7,FALSE),0)),0) -> 0 | O49: 0
A50: =IF(C50>0,MAX(A$3:A49)+1,0) -> 0 | B50: ='Module 2-Step 2'!B58 ->  | C50: =IF(LEFT(B$2,4)="FITS",IF(B50<>"",VLOOKUP(B50,'for concentration'!A$4:E$503,5,FALSE),0),0) -> 0 | D50: =IF($C50>0,IF($B$2="FITS data (4-11m)",VLOOKUP($B50,FITS1_C!$A$3:$G$100,2,FALSE),IF($B$2="FITS data (12-24m)",VLOOKUP($B50,FITS2_C!$A$3:$G$100,2,FALSE),0)),0) -> 0 | E50: 0 | F50: =IF($C50>0,IF($B$2="FITS data (4-11m)",VLOOKUP($B50,FITS1_C!$A$3:$G$100,5,FALSE),IF($B$2="FITS data (12-24m)",VLOOKUP($B50,FITS2_C!$A$3:$G$100,5,FALSE),0)),0) -> 0 | G50: 0 | H50: =IF($C50>0,IF($B$2="FITS data (4-11m)",VLOOKUP($B50,FITS1_C!$A$3:$G$100,3,FALSE),IF($B$2="FITS data (12-24m)",VLOOKUP($B50,FITS2_C!$A$3:$G$100,3,FALSE),0)),0) -> 0 | I50: 0 | J50: =IF($C50>0,IF($B$2="FITS data (4-11m)",VLOOKUP($B50,FITS1_C!$A$3:$G$100,6,FALSE),IF($B$2="FITS data (12-24m)",VLOOKUP($B50,FITS2_C!$A$3:$G$100,6,FALSE),0)),0) -> 0 | K50: 0 | L50: =IF($C50>0,IF($B$2="FITS data (4-11m)",VLOOKUP($B50,FITS1_C!$A$3:$G$100,4,FALSE),IF($B$2="FITS data (12-24m)",VLOOKUP($B50,FITS2_C!$A$3:$G$100,4,FALSE),0)),0) -> 0 | M50: 0 | N50: =IF($C50>0,IF($B$2="FITS data (4-11m)",VLOOKUP($B50,FITS1_C!$A$3:$G$100,7,FALSE),IF($B$2="FITS data (12-24m)",VLOOKUP($B50,FITS2_C!$A$3:$G$100,7,FALSE),0)),0) -> 0 | O50: 0
A51: =IF(C51>0,MAX(A$3:A50)+1,0) -> 0 | B51: ='Module 2-Step 2'!B59 ->  | C51: =IF(LEFT(B$2,4)="FITS",IF(B51<>"",VLOOKUP(B51,'for concentration'!A$4:E$503,5,FALSE),0),0) -> 0 | D51: =IF($C51>0,IF($B$2="FITS data (4-11m)",VLOOKUP($B51,FITS1_C!$A$3:$G$100,2,FALSE),IF($B$2="FITS data (12-24m)",VLOOKUP($B51,FITS2_C!$A$3:$G$100,2,FALSE),0)),0) -> 0 | E51: 0 | F51: =IF($C51>0,IF($B$2="FITS data (4-11m)",VLOOKUP($B51,FITS1_C!$A$3:$G$100,5,FALSE),IF($B$2="FITS data (12-24m)",VLOOKUP($B51,FITS2_C!$A$3:$G$100,5,FALSE),0)),0) -> 0 | G51: 0 | H51: =IF($C51>0,IF($B$2="FITS data (4-11m)",VLOOKUP($B51,FITS1_C!$A$3:$G$100,3,FALSE),IF($B$2="FITS data (12-24m)",VLOOKUP($B51,FITS2_C!$A$3:$G$100,3,FALSE),0)),0) -> 0 | I51: 0 | J51: =IF($C51>0,IF($B$2="FITS data (4-11m)",VLOOKUP($B51,FITS1_C!$A$3:$G$100,6,FALSE),IF($B$2="FITS data (12-24m)",VLOOKUP($B51,FITS2_C!$A$3:$G$100,6,FALSE),0)),0) -> 0 | K51: 0 | L51: =IF($C51>0,IF($B$2="FITS data (4-11m)",VLOOKUP($B51,FITS1_C!$A$3:$G$100,4,FALSE),IF($B$2="FITS data (12-24m)",VLOOKUP($B51,FITS2_C!$A$3:$G$100,4,FALSE),0)),0) -> 0 | M51: 0 | N51: =IF($C51>0,IF($B$2="FITS data (4-11m)",VLOOKUP($B51,FITS1_C!$A$3:$G$100,7,FALSE),IF($B$2="FITS data (12-24m)",VLOOKUP($B51,FITS2_C!$A$3:$G$100,7,FALSE),0)),0) -> 0 | O51: 0
A52: =IF(C52>0,MAX(A$3:A51)+1,0) -> 0 | B52: ='Module 2-Step 2'!B60 ->  | C52: =IF(LEFT(B$2,4)="FITS",IF(B52<>"",VLOOKUP(B52,'for concentration'!A$4:E$503,5,FALSE),0),0) -> 0 | D52: =IF($C52>0,IF($B$2="FITS data (4-11m)",VLOOKUP($B52,FITS1_C!$A$3:$G$100,2,FALSE),IF($B$2="FITS data (12-24m)",VLOOKUP($B52,FITS2_C!$A$3:$G$100,2,FALSE),0)),0) -> 0 | E52: 0 | F52: =IF($C52>0,IF($B$2="FITS data (4-11m)",VLOOKUP($B52,FITS1_C!$A$3:$G$100,5,FALSE),IF($B$2="FITS data (12-24m)",VLOOKUP($B52,FITS2_C!$A$3:$G$100,5,FALSE),0)),0) -> 0 | G52: 0 | H52: =IF($C52>0,IF($B$2="FITS data (4-11m)",VLOOKUP($B52,FITS1_C!$A$3:$G$100,3,FALSE),IF($B$2="FITS data (12-24m)",VLOOKUP($B52,FITS2_C!$A$3:$G$100,3,FALSE),0)),0) -> 0 | I52: 0 | J52: =IF($C52>0,IF($B$2="FITS data (4-11m)",VLOOKUP($B52,FITS1_C!$A$3:$G$100,6,FALSE),IF($B$2="FITS data (12-24m)",VLOOKUP($B52,FITS2_C!$A$3:$G$100,6,FALSE),0)),0) -> 0 | K52: 0 | L52: =IF($C52>0,IF($B$2="FITS data (4-11m)",VLOOKUP($B52,FITS1_C!$A$3:$G$100,4,FALSE),IF($B$2="FITS data (12-24m)",VLOOKUP($B52,FITS2_C!$A$3:$G$100,4,FALSE),0)),0) -> 0 | M52: 0 | N52: =IF($C52>0,IF($B$2="FITS data (4-11m)",VLOOKUP($B52,FITS1_C!$A$3:$G$100,7,FALSE),IF($B$2="FITS data (12-24m)",VLOOKUP($B52,FITS2_C!$A$3:$G$100,7,FALSE),0)),0) -> 0 | O52: 0
A53: =IF(C53>0,MAX(A$3:A52)+1,0) -> 0 | B53: ='Module 2-Step 2'!B61 ->  | C53: =IF(LEFT(B$2,4)="FITS",IF(B53<>"",VLOOKUP(B53,'for concentration'!A$4:E$503,5,FALSE),0),0) -> 0 | D53: =IF($C53>0,IF($B$2="FITS data (4-11m)",VLOOKUP($B53,FITS1_C!$A$3:$G$100,2,FALSE),IF($B$2="FITS data (12-24m)",VLOOKUP($B53,FITS2_C!$A$3:$G$100,2,FALSE),0)),0) -> 0 | E53: 0 | F53: =IF($C53>0,IF($B$2="FITS data (4-11m)",VLOOKUP($B53,FITS1_C!$A$3:$G$100,5,FALSE),IF($B$2="FITS data (12-24m)",VLOOKUP($B53,FITS2_C!$A$3:$G$100,5,FALSE),0)),0) -> 0 | G53: 0 | H53: =IF($C53>0,IF($B$2="FITS data (4-11m)",VLOOKUP($B53,FITS1_C!$A$3:$G$100,3,FALSE),IF($B$2="FITS data (12-24m)",VLOOKUP($B53,FITS2_C!$A$3:$G$100,3,FALSE),0)),0) -> 0 | I53: 0 | J53: =IF($C53>0,IF($B$2="FITS data (4-11m)",VLOOKUP($B53,FITS1_C!$A$3:$G$100,6,FALSE),IF($B$2="FITS data (12-24m)",VLOOKUP($B53,FITS2_C!$A$3:$G$100,6,FALSE),0)),0) -> 0 | K53: 0 | L53: =IF($C53>0,IF($B$2="FITS data (4-11m)",VLOOKUP($B53,FITS1_C!$A$3:$G$100,4,FALSE),IF($B$2="FITS data (12-24m)",VLOOKUP($B53,FITS2_C!$A$3:$G$100,4,FALSE),0)),0) -> 0 | M53: 0 | N53: =IF($C53>0,IF($B$2="FITS data (4-11m)",VLOOKUP($B53,FITS1_C!$A$3:$G$100,7,FALSE),IF($B$2="FITS data (12-24m)",VLOOKUP($B53,FITS2_C!$A$3:$G$100,7,FALSE),0)),0) -> 0 | O53: 0
A54: =IF(C54>0,MAX(A$3:A53)+1,0) -> 0 | B54: ='Module 2-Step 2'!B62 ->  | C54: =IF(LEFT(B$2,4)="FITS",IF(B54<>"",VLOOKUP(B54,'for concentration'!A$4:E$503,5,FALSE),0),0) -> 0 | D54: =IF($C54>0,IF($B$2="FITS data (4-11m)",VLOOKUP($B54,FITS1_C!$A$3:$G$100,2,FALSE),IF($B$2="FITS data (12-24m)",VLOOKUP($B54,FITS2_C!$A$3:$G$100,2,FALSE),0)),0) -> 0 | E54: 0 | F54: =IF($C54>0,IF($B$2="FITS data (4-11m)",VLOOKUP($B54,FITS1_C!$A$3:$G$100,5,FALSE),IF($B$2="FITS data (12-24m)",VLOOKUP($B54,FITS2_C!$A$3:$G$100,5,FALSE),0)),0) -> 0 | G54: 0 | H54: =IF($C54>0,IF($B$2="FITS data (4-11m)",VLOOKUP($B54,FITS1_C!$A$3:$G$100,3,FALSE),IF($B$2="FITS data (12-24m)",VLOOKUP($B54,FITS2_C!$A$3:$G$100,3,FALSE),0)),0) -> 0 | I54: 0 | J54: =IF($C54>0,IF($B$2="FITS data (4-11m)",VLOOKUP($B54,FITS1_C!$A$3:$G$100,6,FALSE),IF($B$2="FITS data (12-24m)",VLOOKUP($B54,FITS2_C!$A$3:$G$100,6,FALSE),0)),0) -> 0 | K54: 0 | L54: =IF($C54>0,IF($B$2="FITS data (4-11m)",VLOOKUP($B54,FITS1_C!$A$3:$G$100,4,FALSE),IF($B$2="FITS data (12-24m)",VLOOKUP($B54,FITS2_C!$A$3:$G$100,4,FALSE),0)),0) -> 0 | M54: 0 | N54: =IF($C54>0,IF($B$2="FITS data (4-11m)",VLOOKUP($B54,FITS1_C!$A$3:$G$100,7,FALSE),IF($B$2="FITS data (12-24m)",VLOOKUP($B54,FITS2_C!$A$3:$G$100,7,FALSE),0)),0) -> 0 | O54: 0
A55: =IF(C55>0,MAX(A$3:A54)+1,0) -> 0 | B55: ='Module 2-Step 2'!B63 ->  | C55: =IF(LEFT(B$2,4)="FITS",IF(B55<>"",VLOOKUP(B55,'for concentration'!A$4:E$503,5,FALSE),0),0) -> 0 | D55: =IF($C55>0,IF($B$2="FITS data (4-11m)",VLOOKUP($B55,FITS1_C!$A$3:$G$100,2,FALSE),IF($B$2="FITS data (12-24m)",VLOOKUP($B55,FITS2_C!$A$3:$G$100,2,FALSE),0)),0) -> 0 | E55: 0 | F55: =IF($C55>0,IF($B$2="FITS data (4-11m)",VLOOKUP($B55,FITS1_C!$A$3:$G$100,5,FALSE),IF($B$2="FITS data (12-24m)",VLOOKUP($B55,FITS2_C!$A$3:$G$100,5,FALSE),0)),0) -> 0 | G55: 0 | H55: =IF($C55>0,IF($B$2="FITS data (4-11m)",VLOOKUP($B55,FITS1_C!$A$3:$G$100,3,FALSE),IF($B$2="FITS data (12-24m)",VLOOKUP($B55,FITS2_C!$A$3:$G$100,3,FALSE),0)),0) -> 0 | I55: 0 | J55: =IF($C55>0,IF($B$2="FITS data (4-11m)",VLOOKUP($B55,FITS1_C!$A$3:$G$100,6,FALSE),IF($B$2="FITS data (12-24m)",VLOOKUP($B55,FITS2_C!$A$3:$G$100,6,FALSE),0)),0) -> 0 | K55: 0 | L55: =IF($C55>0,IF($B$2="FITS data (4-11m)",VLOOKUP($B55,FITS1_C!$A$3:$G$100,4,FALSE),IF($B$2="FITS data (12-24m)",VLOOKUP($B55,FITS2_C!$A$3:$G$100,4,FALSE),0)),0) -> 0 | M55: 0 | N55: =IF($C55>0,IF($B$2="FITS data (4-11m)",VLOOKUP($B55,FITS1_C!$A$3:$G$100,7,FALSE),IF($B$2="FITS data (12-24m)",VLOOKUP($B55,FITS2_C!$A$3:$G$100,7,FALSE),0)),0) -> 0 | O55: 0
A56: =IF(C56>0,MAX(A$3:A55)+1,0) -> 0 | B56: ='Module 2-Step 2'!B64 ->  | C56: =IF(LEFT(B$2,4)="FITS",IF(B56<>"",VLOOKUP(B56,'for concentration'!A$4:E$503,5,FALSE),0),0) -> 0 | D56: =IF($C56>0,IF($B$2="FITS data (4-11m)",VLOOKUP($B56,FITS1_C!$A$3:$G$100,2,FALSE),IF($B$2="FITS data (12-24m)",VLOOKUP($B56,FITS2_C!$A$3:$G$100,2,FALSE),0)),0) -> 0 | E56: 0 | F56: =IF($C56>0,IF($B$2="FITS data (4-11m)",VLOOKUP($B56,FITS1_C!$A$3:$G$100,5,FALSE),IF($B$2="FITS data (12-24m)",VLOOKUP($B56,FITS2_C!$A$3:$G$100,5,FALSE),0)),0) -> 0 | G56: 0 | H56: =IF($C56>0,IF($B$2="FITS data (4-11m)",VLOOKUP($B56,FITS1_C!$A$3:$G$100,3,FALSE),IF($B$2="FITS data (12-24m)",VLOOKUP($B56,FITS2_C!$A$3:$G$100,3,FALSE),0)),0) -> 0 | I56: 0 | J56: =IF($C56>0,IF($B$2="FITS data (4-11m)",VLOOKUP($B56,FITS1_C!$A$3:$G$100,6,FALSE),IF($B$2="FITS data (12-24m)",VLOOKUP($B56,FITS2_C!$A$3:$G$100,6,FALSE),0)),0) -> 0 | K56: 0 | L56: =IF($C56>0,IF($B$2="FITS data (4-11m)",VLOOKUP($B56,FITS1_C!$A$3:$G$100,4,FALSE),IF($B$2="FITS data (12-24m)",VLOOKUP($B56,FITS2_C!$A$3:$G$100,4,FALSE),0)),0) -> 0 | M56: 0 | N56: =IF($C56>0,IF($B$2="FITS data (4-11m)",VLOOKUP($B56,FITS1_C!$A$3:$G$100,7,FALSE),IF($B$2="FITS data (12-24m)",VLOOKUP($B56,FITS2_C!$A$3:$G$100,7,FALSE),0)),0) -> 0 | O56: 0
A57: =IF(C57>0,MAX(A$3:A56)+1,0) -> 0 | B57: ='Module 2-Step 2'!B65 ->  | C57: =IF(LEFT(B$2,4)="FITS",IF(B57<>"",VLOOKUP(B57,'for concentration'!A$4:E$503,5,FALSE),0),0) -> 0 | D57: =IF($C57>0,IF($B$2="FITS data (4-11m)",VLOOKUP($B57,FITS1_C!$A$3:$G$100,2,FALSE),IF($B$2="FITS data (12-24m)",VLOOKUP($B57,FITS2_C!$A$3:$G$100,2,FALSE),0)),0) -> 0 | E57: 0 | F57: =IF($C57>0,IF($B$2="FITS data (4-11m)",VLOOKUP($B57,FITS1_C!$A$3:$G$100,5,FALSE),IF($B$2="FITS data (12-24m)",VLOOKUP($B57,FITS2_C!$A$3:$G$100,5,FALSE),0)),0) -> 0 | G57: 0 | H57: =IF($C57>0,IF($B$2="FITS data (4-11m)",VLOOKUP($B57,FITS1_C!$A$3:$G$100,3,FALSE),IF($B$2="FITS data (12-24m)",VLOOKUP($B57,FITS2_C!$A$3:$G$100,3,FALSE),0)),0) -> 0 | I57: 0 | J57: =IF($C57>0,IF($B$2="FITS data (4-11m)",VLOOKUP($B57,FITS1_C!$A$3:$G$100,6,FALSE),IF($B$2="FITS data (12-24m)",VLOOKUP($B57,FITS2_C!$A$3:$G$100,6,FALSE),0)),0) -> 0 | K57: 0 | L57: =IF($C57>0,IF($B$2="FITS data (4-11m)",VLOOKUP($B57,FITS1_C!$A$3:$G$100,4,FALSE),IF($B$2="FITS data (12-24m)",VLOOKUP($B57,FITS2_C!$A$3:$G$100,4,FALSE),0)),0) -> 0 | M57: 0 | N57: =IF($C57>0,IF($B$2="FITS data (4-11m)",VLOOKUP($B57,FITS1_C!$A$3:$G$100,7,FALSE),IF($B$2="FITS data (12-24m)",VLOOKUP($B57,FITS2_C!$A$3:$G$100,7,FALSE),0)),0) -> 0 | O57: 0
A58: =IF(C58>0,MAX(A$3:A57)+1,0) -> 0 | B58: ='Module 2-Step 2'!B66 ->  | C58: =IF(LEFT(B$2,4)="FITS",IF(B58<>"",VLOOKUP(B58,'for concentration'!A$4:E$503,5,FALSE),0),0) -> 0 | D58: =IF($C58>0,IF($B$2="FITS data (4-11m)",VLOOKUP($B58,FITS1_C!$A$3:$G$100,2,FALSE),IF($B$2="FITS data (12-24m)",VLOOKUP($B58,FITS2_C!$A$3:$G$100,2,FALSE),0)),0) -> 0 | E58: 0 | F58: =IF($C58>0,IF($B$2="FITS data (4-11m)",VLOOKUP($B58,FITS1_C!$A$3:$G$100,5,FALSE),IF($B$2="FITS data (12-24m)",VLOOKUP($B58,FITS2_C!$A$3:$G$100,5,FALSE),0)),0) -> 0 | G58: 0 | H58: =IF($C58>0,IF($B$2="FITS data (4-11m)",VLOOKUP($B58,FITS1_C!$A$3:$G$100,3,FALSE),IF($B$2="FITS data (12-24m)",VLOOKUP($B58,FITS2_C!$A$3:$G$100,3,FALSE),0)),0) -> 0 | I58: 0 | J58: =IF($C58>0,IF($B$2="FITS data (4-11m)",VLOOKUP($B58,FITS1_C!$A$3:$G$100,6,FALSE),IF($B$2="FITS data (12-24m)",VLOOKUP($B58,FITS2_C!$A$3:$G$100,6,FALSE),0)),0) -> 0 | K58: 0 | L58: =IF($C58>0,IF($B$2="FITS data (4-11m)",VLOOKUP($B58,FITS1_C!$A$3:$G$100,4,FALSE),IF($B$2="FITS data (12-24m)",VLOOKUP($B58,FITS2_C!$A$3:$G$100,4,FALSE),0)),0) -> 0 | M58: 0 | N58: =IF($C58>0,IF($B$2="FITS data (4-11m)",VLOOKUP($B58,FITS1_C!$A$3:$G$100,7,FALSE),IF($B$2="FITS data (12-24m)",VLOOKUP($B58,FITS2_C!$A$3:$G$100,7,FALSE),0)),0) -> 0 | O58: 0
A59: =IF(C59>0,MAX(A$3:A58)+1,0) -> 0 | B59: ='Module 2-Step 2'!B67 ->  | C59: =IF(LEFT(B$2,4)="FITS",IF(B59<>"",VLOOKUP(B59,'for concentration'!A$4:E$503,5,FALSE),0),0) -> 0 | D59: =IF($C59>0,IF($B$2="FITS data (4-11m)",VLOOKUP($B59,FITS1_C!$A$3:$G$100,2,FALSE),IF($B$2="FITS data (12-24m)",VLOOKUP($B59,FITS2_C!$A$3:$G$100,2,FALSE),0)),0) -> 0 | E59: 0 | F59: =IF($C59>0,IF($B$2="FITS data (4-11m)",VLOOKUP($B59,FITS1_C!$A$3:$G$100,5,FALSE),IF($B$2="FITS data (12-24m)",VLOOKUP($B59,FITS2_C!$A$3:$G$100,5,FALSE),0)),0) -> 0 | G59: 0 | H59: =IF($C59>0,IF($B$2="FITS data (4-11m)",VLOOKUP($B59,FITS1_C!$A$3:$G$100,3,FALSE),IF($B$2="FITS data (12-24m)",VLOOKUP($B59,FITS2_C!$A$3:$G$100,3,FALSE),0)),0) -> 0 | I59: 0 | J59: =IF($C59>0,IF($B$2="FITS data (4-11m)",VLOOKUP($B59,FITS1_C!$A$3:$G$100,6,FALSE),IF($B$2="FITS data (12-24m)",VLOOKUP($B59,FITS2_C!$A$3:$G$100,6,FALSE),0)),0) -> 0 | K59: 0 | L59: =IF($C59>0,IF($B$2="FITS data (4-11m)",VLOOKUP($B59,FITS1_C!$A$3:$G$100,4,FALSE),IF($B$2="FITS data (12-24m)",VLOOKUP($B59,FITS2_C!$A$3:$G$100,4,FALSE),0)),0) -> 0 | M59: 0 | N59: =IF($C59>0,IF($B$2="FITS data (4-11m)",VLOOKUP($B59,FITS1_C!$A$3:$G$100,7,FALSE),IF($B$2="FITS data (12-24m)",VLOOKUP($B59,FITS2_C!$A$3:$G$100,7,FALSE),0)),0) -> 0 | O59: 0
